Workbook

Sheet 説明書
B1: 農業収支計算ソフト | H1: ver.3.4
H2: 東近江市版 | J2: ※シート保護解除のパスワードは公開しておりません。
A4: 令和 | B4: 5 | C4: 年分の収支内訳書を作成します。
A8: この計算ソフトは、領収書や請求書などから取引金額などを直接入力する方法で、「収支内訳
A9: 書」が作成できるようになっています。
A11: 全ての事例について正しく計算できない可能性があります。そのことを了解の上、ご利用ください。
A12: ※Excel 2007 以降をお使いの場合、「マクロを有効」または「コンテンツの有効化」をクリックして
A13: ご利用ください。
A14: ※Excel 2007 以降をお使いの場合、データ保存時の「互換性チェック」において「機能の重大な
A15: 損失」等の表示が出ますが、計算に問題はありませんので「続行」してください。
A17: １．ソフト構成内容 | C17: 【（３）を印刷して申告書に添付して提出してください。】
A18: （１） | B18: 説明書 | F18: （２） | G18: 計算シート
A19: （３） | B19: 収支内訳書（表）（裏） | F19: （４） | G19: 償却資産明細書（入力）
A20: （５） | B20: 耐用年数表 | F20: （６） | G20: 専従者控除シート
A22: ２．使用方法
A23: （１） | B23: 「計算シート」
B25: ●日付の入力は、９月１８日の場合 ９／1８ と入力してください。
B26: ●摘要欄に取引先、取引の内容を入力してください。
B27: ●収入・支出の別、科目を（リストから）選択してください。
B28: ●収入金額または支出金額を入力してください。
B29: ●農作物等の棚卸高については「計算シート」の収入金額表および経費表の棚卸期首・期
B30: 末欄、育成費用欄で直接入力してください。
B31: ●行数が足りない場合は、同じ費目などをまとめて入力してください。
B32: ●入力した経費に家事上の経費（家事費）が含まれている場合は、経費の科目別に家事費
B33: の金額をマイナス入力して下さい。
B34: ●収支内訳書の経費に無い科目がある場合は経費欄（ヨ）～（ソ）へ適宜入力してください。
B35: ●科目名を変更したときは、計算シートの「科目（ヨ～ソ）」を「新しく作成した科目」に選択し
B36: 直してください。
A38: （２） | B38: 「収支内訳書（表）」について
B39: ●雇人費・小作料・賃借料があれば該当欄に内容を記入してください。
B40: （雇人費の合計金額は表示されます。）
B41: ●肉用牛について特例の適用を受けている場合も該当欄に記入してください。
A43: （３） | B43: 「収支内訳書（裏）」について
B44: ●「収入金額の明細欄」の水稲、茶、麦、大豆、野菜、果実の販売金額・家事消費等の合計
B45: 金額、棚卸金額、雑収入、育成費用の合計金額は、計算シートに入力することで自動で
B46: 表示されます。
B47: ●計算シートに入力した収入金額は、「収入金額の明細欄」においては全て田畑に転記され
B48: ます。特殊施設で計上する場合は手修正をお願いします。
B49: ●それ以外の内容で該当がある場合は、それぞれ該当欄に記入してください。
B50: （特殊施設、畜産物その他欄は自動計算には対応していません。）
A51: （４） | B51: 減価償却費の計算
B52: ●購入価格１０万円（平成１０年分以前は２０万円）以上の機械などは、
B53: をクリックして入力してください。
B54: ●資産名、数量、購入年月、取得価格、耐用年数、事業専用割合を入力すると、減価償却費、
B55: 未償却残高を計算します。
B56: ●購入価額が１０万円以上２０万円未満の資産については、一括償却資産として３年間で償却
B57: することが可能です。その場合、シートの一括償却欄の をクリックして『一括償却資産』
B58: を選択してください。
B59: ●減価償却資産の数が７つまでの場合は、収支内訳書（裏）に記載され、８つ以上ある場合は
B60: 別紙として、償却資産明細書が合わせて出力されます。
B61: ●平成２０年度の税制改正で、農業用機械および設備の耐用年数が全て７年に変更となりまし
B62: た。
B63: ●平成２０年１２月までに取得した資産については、必ず新旧両方の耐用年数を入力してくださ
B64: い。
B65: ●営農組合等から配分された減価償却費は、計算シートから入力してください。経費欄（ヨ）～
B66: （ソ）に「減価償却費（営農組合分）」等として入力してください。
A68: （５） | B68: 専従者控除の計算
B69: ●家族のうち、６か月以上農業に従事している人がいる場合で専従者控除の適用を受ける場合
B70: は、「計算シート」の「支出合計表」欄の をクリックして 「専従者控除シ
B71: －ト」に専従者の人数を入力してください。
B72: ●専従者が配偶者の場合は、【配偶者を専従者にしていますか】欄で | H72: をクリックし「○」
B73: を選択入力してください。
B74: ●事業専従者の氏名等は「専従者控除シート」で入力してください。収支内訳書に転記されます。
B76: ●事業専従者は、他の親族の配偶者控除・ 配偶者特別控除又は扶養控除の対象とすることが
B77: できません。
A79: （６） | B79: 「収支内訳書（表）・（裏）」の提出
B80: ●印刷した 「収支内訳書（表）・（裏）」に住所・氏名を記入し、押印の上、申告書に添付して提出
B81: してください。
B82: ●「計算シート」、「収支内訳書」は、写しを作成して、ご自分で５年間保管してください。
B83: ●お使いのプリンタで印刷しきれない場合（収支内訳書が２ページになってしまう）は、ファイルの
B84: ページ設定から拡大縮小印刷の設定を変更してください。
E87: 東近江市税務部市民税課
B89: (履歴)
B90: 2013.12.16 | C90: ver.1.0
B91: 2013.12.26 | C91: ver.1.1 | D91: ○ 償却資産の耐用年数表を一部修正
B92: 2014.01.10 | C92: ver.1.2 | D92: ○ 収支内訳書（裏）、減価償却費（別紙）：印刷設定を変更（改ページ設定）
D93: ○ 計算シートに入力した収入の内容が収支内訳書（裏）収入金額の明細に反映
D94: するようにしました。
D95: ○ シート見出しを表示させました。
D96: ○ 事業専従者の氏名等については、「専従者控除シート」で入力するようにしました。
B97: 2014.01.14 | C97: ver.1.3 | D97: ○ H22.23.24年中に取得した資産で耐用年数が新と旧で異なる場合、未償却残高
D98: の計算結果が異なる不具合を修正
D99: ○ 平成21年１月以降に取得した資産については、旧（見直し前）の耐用年数を
D100: 入力しなくても計算ができるように修正
B101: 2014.01.21 | C101: ver.1.4 | D101: ○ 収入の項目に「果実」を追加
B102: 2014.01.31 | C102: ver.1.5 | D102: ○ 償却資産の耐用年数入力において、旧耐用年数の入力が必要な場合は、
D103: セルに色が付くように改善
D104: ○ 計算シートの行数を増やしました。
D105: ○ その他軽微修正
B106: 2014.02.12 | C106: ver.1.6 | D106: ○ 一括償却資産の計算において事業専用割合を入力しないと必要経費算入額が
D107: 表示されない不具合を修正
B108: 2014.02.18 | C108: ver.2.0 | D108: ○ 計算シートの入力方法を変更しました。
D109: 「日付順に並び替える」の不具合が解消しました。
D110: コピー、貼り付けなどのデータ加工が容易になりました。
D111: （データ入力は少し不便になりますがご了承ください）
B112: 2014.02.20 | C112: ver.2.1 | D112: ○ 償却資産における必要経費算入額が条件によっては1円の誤差が出る不具合を
D113: 修正しました。（1月に軽トラックを取得し、取得価格が4の倍数の場合、償却最終年
D114: で1円の誤差が出ていました。）
B115: 2014.03.20 | C115: ver.2.2 | D115: ○ 計算シート摘要欄の初期設定を「中央揃え」から「左揃え」、「縮小して全体表示」に変更。
D116: 計算シートのセルの書式設定が可能になりました。
D117: ○ その他軽微修正
B118: 2017.07.19 | C118: ver.2.4 | D118: ○ 収支内訳書（表）のシートを保護
D119: ○ 説明書の「収支内訳書（裏）」について欄に「(特殊施設、畜産物その他欄は自動計算には対応していません。）」を追記。
B120: 2019.12.09 | C120: ver.3.0 | D120: ○ 元号「令和」に対応しました。
B122: 2020.1.22 | C122: ver.3.1 | D122: 〇 収支内訳書（裏）シートの減価償却費の計算（耐用年数）の表示の不具合を修正しました。
B123: 2020.2.1 | C123: ver.3.2 | D123: 〇 計算シートの日付欄印刷時の不具合を修正しました。
B124: 2020.2.14 | C124: ver.3.3 | D124: 〇 収支内訳書（裏）「印刷」ボタンの不具合を修正しました。
B125: 2022.12.12 | C125: ver.3.4 | D125: 〇 説明書の文言等軽微な修正

Sheet 計算シート
C2: =説明書!B4 -> 5
C4: 住 所 | D4: 東近江市八日市緑町１０番５号
C5: 氏 名 | D5: 東近江 太郎
C6: フリガナ | D6: ヒガシオウミ タロウ
C7: 電話番号 | D7: 0505-801-5604 | I7: =説明書!H1 -> ver.3.4 | M7: 収入
M8: 支出
A9: 各経費で家事費が含まれている場合は、該当項目の家事費を減算入力してください。 （農産物等棚卸 は直接右の表に入力してください。減価償却費・専従者控除は別シートにより入力してください。） | G9: 収入金額
A11: 日付 | B11: 摘要 | C11: 収入・支出の別 | D11: 科 目 | E11: 金額 | G11: 収入科目 | I11: 合計 | L11: 1 | M11: 水稲（販売金額） | N11: =SUMIF($D$12:$D$346,M11,$E$12:$E$346) -> 0
G12: 販 売 金 額 | H12: ① | I12: =N11+N13+N15+N17+N19+N21 -> 0 | L12: 2 | M12: 水稲（家事消費） | N12: 0
G13: 家 事 ･ 事 業 消 費 | H13: ② | I13: =N12+N14+N16+N18+N20+N22 -> 0 | L13: 3 | M13: 茶（販売金額） | N13: =SUMIF($D$12:$D$346,M13,$E$12:$E$346) -> 0
G14: 雑 収 入 | H14: ③ | I14: =SUMIF($D$12:$D$346,M23,$E$12:$E$346) -> 0 | L14: 4 | M14: 茶（家事消費） | N14: 0
G15: 農産物の棚卸 期首 | L15: 5 | M15: 麦（販売金額） | N15: 0
G16: 農産物の棚卸 期末 | L16: 6 | M16: 麦（家事消費） | N16: 0
G17: 合 計 | H17: ⑦ | I17: =I12+I13+I14-I15+I16 -> 0 | L17: 7 | M17: 大豆（販売金額） | N17: 0
G18: 農産物の棚卸は家事消費として計上したものは省略できます。販売用の米や消費期間が比較的長いジャガイモなどの在庫がある場合に記載してください。 | L18: 8 | M18: 大豆（家事消費） | N18: 0
L19: 9 | M19: 野菜（販売金額） | N19: 0
L20: 10 | M20: 野菜（家事消費） | N20: 0
G21: 経費 | L21: 11 | M21: 果実（販売金額） | N21: 0
G22: 経費科目 | I22: 合計 | L22: 12 | M22: 果実（家事消費） | N22: 0
G23: 雇 人 費 | H23: ⑧ | I23: =SUMIF($D$12:$D$346,M24,$E$12:$E$346) -> 0 | L23: 13 | M23: 雑収入 | N23: 0
G24: 小 作 料 ･ 賃 借 料 | H24: ⑨ | I24: =SUMIF($D$12:$D$346,M25,$E$12:$E$346) -> 0 | L24: 14 | M24: 雇人費 | N24: 0
G25: 減 価 償 却 費 | H25: ⑩ | I25: ='償却資産明細書(入力)'!W29 -> 0 | L25: 15 | M25: 小作料･賃借料 | N25: 0
G26: 貸 倒 金 | H26: ⑪ | I26: =SUMIF($D$12:$D$346,M26,$E$12:$E$346) -> 0 | L26: 16 | M26: 貸倒金 | N26: 0
G27: 利 子 割 引 料 | H27: ⑫ | I27: 0 | L27: 17 | M27: 利子割引料 | N27: 0
G28: 租 税 公 課 | H28: イ | I28: 0 | L28: 18 | M28: 租税公課 | N28: 0
G29: 種 苗 費 | H29: ロ | I29: 0 | L29: 19 | M29: 種苗費 | N29: 0
G30: 素 畜 費 | H30: ハ | I30: 0 | L30: 20 | M30: 素畜費 | N30: 0
G31: 肥 料 費 | H31: 二 | I31: 0 | L31: 21 | M31: 肥料費 | N31: 0
G32: 飼 料 費 | H32: ホ | I32: 0 | L32: 22 | M32: 飼料費 | N32: 0
G33: 農 具 費 | H33: ヘ | I33: 0 | L33: 23 | M33: 農具費 | N33: 0
G34: 農 薬 ･ 衛 生 費 | H34: ト | I34: 0 | L34: 24 | M34: 農薬･衛生費 | N34: 0
G35: 諸 材 料 費 | H35: チ | I35: 0 | L35: 25 | M35: 諸材料費 | N35: 0
G36: 修 繕 費 | H36: リ | I36: 0 | L36: 26 | M36: 修繕費 | N36: 0
G37: 動 力 光 熱 費 | H37: ヌ | I37: 0 | L37: 27 | M37: 動力光熱費 | N37: 0
G38: 作 業 用 衣 料 費 | H38: ル | I38: 0 | L38: 28 | M38: 作業用衣料費 | N38: 0
G39: 農 業 共 済 掛 金 | H39: ヲ | I39: 0 | L39: 29 | M39: 農業共済掛金 | N39: 0
G40: 荷 造 運 賃 手 数 料 | H40: ワ | I40: 0 | L40: 30 | M40: 荷造運賃手数料 | N40: 0
G41: 土 地 改 良 費 | H41: カ | I41: 0 | L41: 31 | M41: 土地改良費 | N41: 0
G42: ヨ | H42: ヨ | I42: 0 | L42: 32 | M42: =IF(G42="","",G42) -> ヨ | N42: 0
G43: タ | H43: タ | I43: 0 | L43: 33 | M43: =IF(G43="","",G43) -> タ | N43: 0
G44: レ | H44: レ | I44: 0 | L44: 34 | M44: =IF(G44="","",G44) -> レ | N44: 0
G45: ソ | H45: ソ | I45: 0 | L45: 35 | M45: =IF(G45="","",G45) -> ソ | N45: 0
G46: そ の 他 雑 費 | H46: ツ | I46: 0 | M46: その他雑費 | N46: 0
G48: 農産物以外棚卸期首 | H48: ネ
G49: 農産物以外棚卸期末 | H49: ナ
G50: 経費差引の育成費用 | H50: ラ
G51: 小計 | H51: ⑭ | I51: =SUM(I23:I48)-I49-I50 -> 0
G52: 「農産物以外棚卸」は肥料・農薬などの年末の貯蔵品を記載しますが毎年同程度の棚卸は省略することができます。
G55: 専従者控除前所得 | H55: ⑮ | I55: =I17-I51 -> 0
G56: 専 従 者 控 除 | H56: ⑯ | I56: =専従者控除シート!B8 -> 0
G57: 所 得 金 額 | H57: ⑰ | I57: =I55-I56 -> 0
F90: .

Sheet 印字要求 (hidden)
I1: 千万 | J1: 百万 | K1: 十万 | L1: 万 | M1: 千 | N1: 百 | O1: 十 | P1: 一 | S1: 千万 | T1: 百万 | U1: 十万 | V1: 万 | W1: 千 | X1: 百 | Y1: 十 | Z1: 一
A2: ① | B2: 販売金額 | C2: ='収支内訳書（裏）'!AF30 -> 0 | D2: リ | E2: 修繕費 | F2: =計算シート!I36 -> 0 | H2: ① | I2: =IF(C2>=10000000,ROUNDDOWN(C2/10000000,0),"") ->  | J2: =ROUNDDOWN(C2/1000000,0) -> 0 | K2: =ROUNDDOWN((C2-(J2*1000000))/100000,0) -> 0 | L2: =ROUNDDOWN((C2-(J2*1000000+K2*100000))/10000,0) -> 0 | M2: =ROUNDDOWN((C2-(J2*1000000+K2*100000+L2*10000))/1000,0) -> 0 | N2: =ROUNDDOWN((C2-(J2*1000000+K2*100000+L2*10000+M2*1000))/100,0) -> 0 | O2: =ROUNDDOWN((C2-(J2*1000000+K2*100000+L2*10000+M2*1000+N2*100))/10,0) -> 0 | P2: =ROUNDDOWN((C2-(J2*1000000+K2*100000+L2*10000+M2*1000+N2*100+O2*10)),0) -> 0 | R2: リ | S2: =IF(F2>=10000000,ROUNDDOWN(F2/10000000,0),"") ->  | T2: =ROUNDDOWN(F2/1000000,0) -> 0 | U2: =ROUNDDOWN((F2-(T2*1000000))/100000,0) -> 0 | V2: =ROUNDDOWN((F2-(T2*1000000+U2*100000))/10000,0) -> 0 | W2: =ROUNDDOWN((F2-(T2*1000000+U2*100000+V2*10000))/1000,0) -> 0 | X2: =ROUNDDOWN((F2-(T2*1000000+U2*100000+V2*10000+W2*1000))/100,0) -> 0 | Y2: =ROUNDDOWN((F2-(T2*1000000+U2*100000+V2*10000+W2*1000+X2*100))/10,0) -> 0 | Z2: =ROUNDDOWN((F2-(T2*1000000+U2*100000+V2*10000+W2*1000+X2*100+Y2*10)),0) -> 0
I3: =I2 ->  | J3: =IF(J2=0,"",IF(J2>=10,RIGHT(J2,1),J2)) ->  | K3: =IF(AND(J2=0,K2=0),"",K2) ->  | L3: =IF(AND(J2=0,K2=0,L2=0),"",L2) ->  | M3: =IF(AND(J2=0,K2=0,L2=0,M2=0),"",M2) ->  | N3: =IF(AND(J2=0,K2=0,L2=0,M2=0,N2=0),"",N2) ->  | O3: =IF(AND(J2=0,K2=0,L2=0,M2=0,N2=0,O2=0),"",O2) ->  | P3: =IF(AND(J2=0,K2=0,L2=0,M2=0,N2=0,O2=0,P2=0),"",P2) ->  | S3: =S2 ->  | T3: =IF(T2=0,"",IF(T2>=10,RIGHT(T2,1),T2)) ->  | U3: =IF(AND(T2=0,U2=0),"",U2) ->  | V3: =IF(AND(T2=0,U2=0,V2=0),"",V2) ->  | W3: =IF(AND(T2=0,U2=0,V2=0,W2=0),"",W2) ->  | X3: =IF(AND(T2=0,U2=0,V2=0,W2=0,X2=0),"",X2) ->  | Y3: =IF(AND(T2=0,U2=0,V2=0,W2=0,X2=0,Y2=0),"",Y2) ->  | Z3: =IF(AND(T2=0,U2=0,V2=0,W2=0,X2=0,Y2=0,Z2=0),"",Z2) -> 
A4: ② | B4: 家事消費 | C4: ='収支内訳書（裏）'!AL30 -> 0 | D4: ヌ | E4: 動力光熱費 | F4: =計算シート!I37 -> 0 | H4: ② | I4: =IF(C4>=10000000,ROUNDDOWN(計算シート!I13/10000000,0),"") ->  | J4: =ROUNDDOWN(C4/1000000,0) -> 0 | K4: =ROUNDDOWN((C4-(J4*1000000))/100000,0) -> 0 | L4: =ROUNDDOWN((C4-(J4*1000000+K4*100000))/10000,0) -> 0 | M4: =ROUNDDOWN((C4-(J4*1000000+K4*100000+L4*10000))/1000,0) -> 0 | N4: =ROUNDDOWN((C4-(J4*1000000+K4*100000+L4*10000+M4*1000))/100,0) -> 0 | O4: =ROUNDDOWN((C4-(J4*1000000+K4*100000+L4*10000+M4*1000+N4*100))/10,0) -> 0 | P4: =ROUNDDOWN((C4-(J4*1000000+K4*100000+L4*10000+M4*1000+N4*100+O4*10)),0) -> 0 | R4: ヌ | S4: =IF(F4>=10000000,ROUNDDOWN(F4/10000000,0),"") ->  | T4: =ROUNDDOWN(F4/1000000,0) -> 0 | U4: =ROUNDDOWN((F4-(T4*1000000))/100000,0) -> 0 | V4: =ROUNDDOWN((F4-(T4*1000000+U4*100000))/10000,0) -> 0 | W4: =ROUNDDOWN((F4-(T4*1000000+U4*100000+V4*10000))/1000,0) -> 0 | X4: =ROUNDDOWN((F4-(T4*1000000+U4*100000+V4*10000+W4*1000))/100,0) -> 0 | Y4: =ROUNDDOWN((F4-(T4*1000000+U4*100000+V4*10000+W4*1000+X4*100))/10,0) -> 0 | Z4: =ROUNDDOWN((F4-(T4*1000000+U4*100000+V4*10000+W4*1000+X4*100+Y4*10)),0) -> 0
I5: =I4 ->  | J5: =IF(J4=0,"",IF(J4>=10,RIGHT(J4,1),J4)) ->  | K5: =IF(AND(J4=0,K4=0),"",K4) ->  | L5: =IF(AND(J4=0,K4=0,L4=0),"",L4) ->  | M5: =IF(AND(J4=0,K4=0,L4=0,M4=0),"",M4) ->  | N5: =IF(AND(J4=0,K4=0,L4=0,M4=0,N4=0),"",N4) ->  | O5: =IF(AND(J4=0,K4=0,L4=0,M4=0,N4=0,O4=0),"",O4) ->  | P5: =IF(AND(J4=0,K4=0,L4=0,M4=0,N4=0,O4=0,P4=0),"",P4) ->  | S5: =S4 ->  | T5: =IF(T4=0,"",IF(T4>=10,RIGHT(T4,1),T4)) ->  | U5: =IF(AND(T4=0,U4=0),"",U4) ->  | V5: =IF(AND(T4=0,U4=0,V4=0),"",V4) ->  | W5: =IF(AND(T4=0,U4=0,V4=0,W4=0),"",W4) ->  | X5: =IF(AND(T4=0,U4=0,V4=0,W4=0,X4=0),"",X4) ->  | Y5: =IF(AND(T4=0,U4=0,V4=0,W4=0,X4=0,Y4=0),"",Y4) ->  | Z5: =IF(AND(T4=0,U4=0,V4=0,W4=0,X4=0,Y4=0,Z4=0),"",Z4) -> 
A6: ③ | B6: 雑収入 | C6: =計算シート!I14 -> 0 | D6: ル | E6: 作業用衣料費 | F6: =計算シート!I38 -> 0 | H6: ③ | I6: =IF(C6>=10000000,ROUNDDOWN(C6/10000000,0),"") ->  | J6: =ROUNDDOWN(C6/1000000,0) -> 0 | K6: =ROUNDDOWN((C6-(J6*1000000))/100000,0) -> 0 | L6: =ROUNDDOWN((C6-(J6*1000000+K6*100000))/10000,0) -> 0 | M6: =ROUNDDOWN((C6-(J6*1000000+K6*100000+L6*10000))/1000,0) -> 0 | N6: =ROUNDDOWN((C6-(J6*1000000+K6*100000+L6*10000+M6*1000))/100,0) -> 0 | O6: =ROUNDDOWN((C6-(J6*1000000+K6*100000+L6*10000+M6*1000+N6*100))/10,0) -> 0 | P6: =ROUNDDOWN((C6-(J6*1000000+K6*100000+L6*10000+M6*1000+N6*100+O6*10)),0) -> 0 | R6: ル | S6: =IF(F6>=10000000,ROUNDDOWN(F6/10000000,0),"") ->  | T6: =ROUNDDOWN(F6/1000000,0) -> 0 | U6: =ROUNDDOWN((F6-(T6*1000000))/100000,0) -> 0 | V6: =ROUNDDOWN((F6-(T6*1000000+U6*100000))/10000,0) -> 0 | W6: =ROUNDDOWN((F6-(T6*1000000+U6*100000+V6*10000))/1000,0) -> 0 | X6: =ROUNDDOWN((F6-(T6*1000000+U6*100000+V6*10000+W6*1000))/100,0) -> 0 | Y6: =ROUNDDOWN((F6-(T6*1000000+U6*100000+V6*10000+W6*1000+X6*100))/10,0) -> 0 | Z6: =ROUNDDOWN((F6-(T6*1000000+U6*100000+V6*10000+W6*1000+X6*100+Y6*10)),0) -> 0
I7: =I6 ->  | J7: =IF(J6=0,"",IF(J6>=10,RIGHT(J6,1),J6)) ->  | K7: =IF(AND(J6=0,K6=0),"",K6) ->  | L7: =IF(AND(J6=0,K6=0,L6=0),"",L6) ->  | M7: =IF(AND(J6=0,K6=0,L6=0,M6=0),"",M6) ->  | N7: =IF(AND(J6=0,K6=0,L6=0,M6=0,N6=0),"",N6) ->  | O7: =IF(AND(J6=0,K6=0,L6=0,M6=0,N6=0,O6=0),"",O6) ->  | P7: =IF(AND(J6=0,K6=0,L6=0,M6=0,N6=0,O6=0,P6=0),"",P6) ->  | S7: =S6 ->  | T7: =IF(T6=0,"",IF(T6>=10,RIGHT(T6,1),T6)) ->  | U7: =IF(AND(T6=0,U6=0),"",U6) ->  | V7: =IF(AND(T6=0,U6=0,V6=0),"",V6) ->  | W7: =IF(AND(T6=0,U6=0,V6=0,W6=0),"",W6) ->  | X7: =IF(AND(T6=0,U6=0,V6=0,W6=0,X6=0),"",X6) ->  | Y7: =IF(AND(T6=0,U6=0,V6=0,W6=0,X6=0,Y6=0),"",Y6) ->  | Z7: =IF(AND(T6=0,U6=0,V6=0,W6=0,X6=0,Y6=0,Z6=0),"",Z6) -> 
A8: ④ | B8: 小計 | C8: =C2+C4+C6 -> 0 | D8: ヲ | E8: 農業共済掛金 | F8: =計算シート!I39 -> 0 | H8: ④ | I8: =IF(C8>=10000000,ROUNDDOWN(C8/10000000,0),"") ->  | J8: =ROUNDDOWN(C8/1000000,0) -> 0 | K8: =ROUNDDOWN((C8-(J8*1000000))/100000,0) -> 0 | L8: =ROUNDDOWN((C8-(J8*1000000+K8*100000))/10000,0) -> 0 | M8: =ROUNDDOWN((C8-(J8*1000000+K8*100000+L8*10000))/1000,0) -> 0 | N8: =ROUNDDOWN((C8-(J8*1000000+K8*100000+L8*10000+M8*1000))/100,0) -> 0 | O8: =ROUNDDOWN((C8-(J8*1000000+K8*100000+L8*10000+M8*1000+N8*100))/10,0) -> 0 | P8: =ROUNDDOWN((C8-(J8*1000000+K8*100000+L8*10000+M8*1000+N8*100+O8*10)),0) -> 0 | R8: ヲ | S8: =IF(F8>=10000000,ROUNDDOWN(F8/10000000,0),"") ->  | T8: =ROUNDDOWN(F8/1000000,0) -> 0 | U8: =ROUNDDOWN((F8-(T8*1000000))/100000,0) -> 0 | V8: =ROUNDDOWN((F8-(T8*1000000+U8*100000))/10000,0) -> 0 | W8: =ROUNDDOWN((F8-(T8*1000000+U8*100000+V8*10000))/1000,0) -> 0 | X8: =ROUNDDOWN((F8-(T8*1000000+U8*100000+V8*10000+W8*1000))/100,0) -> 0 | Y8: =ROUNDDOWN((F8-(T8*1000000+U8*100000+V8*10000+W8*1000+X8*100))/10,0) -> 0 | Z8: =ROUNDDOWN((F8-(T8*1000000+U8*100000+V8*10000+W8*1000+X8*100+Y8*10)),0) -> 0
I9: =I8 ->  | J9: =IF(J8=0,"",IF(J8>=10,RIGHT(J8,1),J8)) ->  | K9: =IF(AND(J8=0,K8=0),"",K8) ->  | L9: =IF(AND(J8=0,K8=0,L8=0),"",L8) ->  | M9: =IF(AND(J8=0,K8=0,L8=0,M8=0),"",M8) ->  | N9: =IF(AND(J8=0,K8=0,L8=0,M8=0,N8=0),"",N8) ->  | O9: =IF(AND(J8=0,K8=0,L8=0,M8=0,N8=0,O8=0),"",O8) ->  | P9: =IF(AND(J8=0,K8=0,L8=0,M8=0,N8=0,O8=0,P8=0),"",P8) ->  | S9: =S8 ->  | T9: =IF(T8=0,"",IF(T8>=10,RIGHT(T8,1),T8)) ->  | U9: =IF(AND(T8=0,U8=0),"",U8) ->  | V9: =IF(AND(T8=0,U8=0,V8=0),"",V8) ->  | W9: =IF(AND(T8=0,U8=0,V8=0,W8=0),"",W8) ->  | X9: =IF(AND(T8=0,U8=0,V8=0,W8=0,X8=0),"",X8) ->  | Y9: =IF(AND(T8=0,U8=0,V8=0,W8=0,X8=0,Y8=0),"",Y8) ->  | Z9: =IF(AND(T8=0,U8=0,V8=0,W8=0,X8=0,Y8=0,Z8=0),"",Z8) -> 
A10: ⑤ | B10: 期首 | C10: =計算シート!I15 -> 0 | D10: ワ | E10: 荷造運賃手数料 | F10: =計算シート!I40 -> 0 | H10: ⑤ | I10: =IF(C10>=10000000,ROUNDDOWN(C10/10000000,0),"") ->  | J10: =ROUNDDOWN(C10/1000000,0) -> 0 | K10: =ROUNDDOWN((C10-(J10*1000000))/100000,0) -> 0 | L10: =ROUNDDOWN((C10-(J10*1000000+K10*100000))/10000,0) -> 0 | M10: =ROUNDDOWN((C10-(J10*1000000+K10*100000+L10*10000))/1000,0) -> 0 | N10: =ROUNDDOWN((C10-(J10*1000000+K10*100000+L10*10000+M10*1000))/100,0) -> 0 | O10: =ROUNDDOWN((C10-(J10*1000000+K10*100000+L10*10000+M10*1000+N10*100))/10,0) -> 0 | P10: =ROUNDDOWN((C10-(J10*1000000+K10*100000+L10*10000+M10*1000+N10*100+O10*10)),0) -> 0 | R10: ワ | S10: =IF(F10>=10000000,ROUNDDOWN(F10/10000000,0),"") ->  | T10: =ROUNDDOWN(F10/1000000,0) -> 0 | U10: =ROUNDDOWN((F10-(T10*1000000))/100000,0) -> 0 | V10: =ROUNDDOWN((F10-(T10*1000000+U10*100000))/10000,0) -> 0 | W10: =ROUNDDOWN((F10-(T10*1000000+U10*100000+V10*10000))/1000,0) -> 0 | X10: =ROUNDDOWN((F10-(T10*1000000+U10*100000+V10*10000+W10*1000))/100,0) -> 0 | Y10: =ROUNDDOWN((F10-(T10*1000000+U10*100000+V10*10000+W10*1000+X10*100))/10,0) -> 0 | Z10: =ROUNDDOWN((F10-(T10*1000000+U10*100000+V10*10000+W10*1000+X10*100+Y10*10)),0) -> 0
I11: =I10 ->  | J11: =IF(J10=0,"",IF(J10>=10,RIGHT(J10,1),J10)) ->  | K11: =IF(AND(J10=0,K10=0),"",K10) ->  | L11: =IF(AND(J10=0,K10=0,L10=0),"",L10) ->  | M11: =IF(AND(J10=0,K10=0,L10=0,M10=0),"",M10) ->  | N11: =IF(AND(J10=0,K10=0,L10=0,M10=0,N10=0),"",N10) ->  | O11: =IF(AND(J10=0,K10=0,L10=0,M10=0,N10=0,O10=0),"",O10) ->  | P11: =IF(AND(J10=0,K10=0,L10=0,M10=0,N10=0,O10=0,P10=0),"",P10) ->  | S11: =S10 ->  | T11: =IF(T10=0,"",IF(T10>=10,RIGHT(T10,1),T10)) ->  | U11: =IF(AND(T10=0,U10=0),"",U10) ->  | V11: =IF(AND(T10=0,U10=0,V10=0),"",V10) ->  | W11: =IF(AND(T10=0,U10=0,V10=0,W10=0),"",W10) ->  | X11: =IF(AND(T10=0,U10=0,V10=0,W10=0,X10=0),"",X10) ->  | Y11: =IF(AND(T10=0,U10=0,V10=0,W10=0,X10=0,Y10=0),"",Y10) ->  | Z11: =IF(AND(T10=0,U10=0,V10=0,W10=0,X10=0,Y10=0,Z10=0),"",Z10) -> 
A12: ⑥ | B12: 期末 | C12: =計算シート!I16 -> 0 | D12: カ | E12: 土地改良費 | F12: =計算シート!I41 -> 0 | H12: ⑥ | I12: =IF(C12>=10000000,ROUNDDOWN(C12/10000000,0),"") ->  | J12: =ROUNDDOWN(C12/1000000,0) -> 0 | K12: =ROUNDDOWN((C12-(J12*1000000))/100000,0) -> 0 | L12: =ROUNDDOWN((C12-(J12*1000000+K12*100000))/10000,0) -> 0 | M12: =ROUNDDOWN((C12-(J12*1000000+K12*100000+L12*10000))/1000,0) -> 0 | N12: =ROUNDDOWN((C12-(J12*1000000+K12*100000+L12*10000+M12*1000))/100,0) -> 0 | O12: =ROUNDDOWN((C12-(J12*1000000+K12*100000+L12*10000+M12*1000+N12*100))/10,0) -> 0 | P12: =ROUNDDOWN((C12-(J12*1000000+K12*100000+L12*10000+M12*1000+N12*100+O12*10)),0) -> 0 | R12: カ | S12: =IF(F12>=10000000,ROUNDDOWN(F12/10000000,0),"") ->  | T12: =ROUNDDOWN(F12/1000000,0) -> 0 | U12: =ROUNDDOWN((F12-(T12*1000000))/100000,0) -> 0 | V12: =ROUNDDOWN((F12-(T12*1000000+U12*100000))/10000,0) -> 0 | W12: =ROUNDDOWN((F12-(T12*1000000+U12*100000+V12*10000))/1000,0) -> 0 | X12: =ROUNDDOWN((F12-(T12*1000000+U12*100000+V12*10000+W12*1000))/100,0) -> 0 | Y12: =ROUNDDOWN((F12-(T12*1000000+U12*100000+V12*10000+W12*1000+X12*100))/10,0) -> 0 | Z12: =ROUNDDOWN((F12-(T12*1000000+U12*100000+V12*10000+W12*1000+X12*100+Y12*10)),0) -> 0
I13: =I12 ->  | J13: =IF(J12=0,"",IF(J12>=10,RIGHT(J12,1),J12)) ->  | K13: =IF(AND(J12=0,K12=0),"",K12) ->  | L13: =IF(AND(J12=0,K12=0,L12=0),"",L12) ->  | M13: =IF(AND(J12=0,K12=0,L12=0,M12=0),"",M12) ->  | N13: =IF(AND(J12=0,K12=0,L12=0,M12=0,N12=0),"",N12) ->  | O13: =IF(AND(J12=0,K12=0,L12=0,M12=0,N12=0,O12=0),"",O12) ->  | P13: =IF(AND(J12=0,K12=0,L12=0,M12=0,N12=0,O12=0,P12=0),"",P12) ->  | S13: =S12 ->  | T13: =IF(T12=0,"",IF(T12>=10,RIGHT(T12,1),T12)) ->  | U13: =IF(AND(T12=0,U12=0),"",U12) ->  | V13: =IF(AND(T12=0,U12=0,V12=0),"",V12) ->  | W13: =IF(AND(T12=0,U12=0,V12=0,W12=0),"",W12) ->  | X13: =IF(AND(T12=0,U12=0,V12=0,W12=0,X12=0),"",X12) ->  | Y13: =IF(AND(T12=0,U12=0,V12=0,W12=0,X12=0,Y12=0),"",Y12) ->  | Z13: =IF(AND(T12=0,U12=0,V12=0,W12=0,X12=0,Y12=0,Z12=0),"",Z12) -> 
A14: ⑦ | B14: 計 | C14: =C8-C10+C12 -> 0 | D14: ヨ | E14: =IF(計算シート!G42="","",計算シート!G42) -> ヨ | F14: =計算シート!I42 -> 0 | H14: ⑦ | I14: =IF(C14>=10000000,ROUNDDOWN(C14/10000000,0),"") ->  | J14: =ROUNDDOWN(C14/1000000,0) -> 0 | K14: =ROUNDDOWN((C14-(J14*1000000))/100000,0) -> 0 | L14: =ROUNDDOWN((C14-(J14*1000000+K14*100000))/10000,0) -> 0 | M14: =ROUNDDOWN((C14-(J14*1000000+K14*100000+L14*10000))/1000,0) -> 0 | N14: =ROUNDDOWN((C14-(J14*1000000+K14*100000+L14*10000+M14*1000))/100,0) -> 0 | O14: =ROUNDDOWN((C14-(J14*1000000+K14*100000+L14*10000+M14*1000+N14*100))/10,0) -> 0 | P14: =ROUNDDOWN((C14-(J14*1000000+K14*100000+L14*10000+M14*1000+N14*100+O14*10)),0) -> 0 | R14: ヨ | S14: =IF(F14>=10000000,ROUNDDOWN(F14/10000000,0),"") ->  | T14: =ROUNDDOWN(F14/1000000,0) -> 0 | U14: =ROUNDDOWN((F14-(T14*1000000))/100000,0) -> 0 | V14: =ROUNDDOWN((F14-(T14*1000000+U14*100000))/10000,0) -> 0 | W14: =ROUNDDOWN((F14-(T14*1000000+U14*100000+V14*10000))/1000,0) -> 0 | X14: =ROUNDDOWN((F14-(T14*1000000+U14*100000+V14*10000+W14*1000))/100,0) -> 0 | Y14: =ROUNDDOWN((F14-(T14*1000000+U14*100000+V14*10000+W14*1000+X14*100))/10,0) -> 0 | Z14: =ROUNDDOWN((F14-(T14*1000000+U14*100000+V14*10000+W14*1000+X14*100+Y14*10)),0) -> 0
I15: =I14 ->  | J15: =IF(J14=0,"",IF(J14>=10,RIGHT(J14,1),J14)) ->  | K15: =IF(AND(J14=0,K14=0),"",K14) ->  | L15: =IF(AND(J14=0,K14=0,L14=0),"",L14) ->  | M15: =IF(AND(J14=0,K14=0,L14=0,M14=0),"",M14) ->  | N15: =IF(AND(J14=0,K14=0,L14=0,M14=0,N14=0),"",N14) ->  | O15: =IF(AND(J14=0,K14=0,L14=0,M14=0,N14=0,O14=0),"",O14) ->  | P15: =IF(AND(J14=0,K14=0,L14=0,M14=0,N14=0,O14=0,P14=0),"",P14) ->  | S15: =S14 ->  | T15: =IF(T14=0,"",IF(T14>=10,RIGHT(T14,1),T14)) ->  | U15: =IF(AND(T14=0,U14=0),"",U14) ->  | V15: =IF(AND(T14=0,U14=0,V14=0),"",V14) ->  | W15: =IF(AND(T14=0,U14=0,V14=0,W14=0),"",W14) ->  | X15: =IF(AND(T14=0,U14=0,V14=0,W14=0,X14=0),"",X14) ->  | Y15: =IF(AND(T14=0,U14=0,V14=0,W14=0,X14=0,Y14=0),"",Y14) ->  | Z15: =IF(AND(T14=0,U14=0,V14=0,W14=0,X14=0,Y14=0,Z14=0),"",Z14) -> 
A16: ⑧ | B16: 雇人費 | C16: =計算シート!I23 -> 0 | D16: タ | E16: =IF(計算シート!G43="","",計算シート!G43) -> タ | F16: =計算シート!I43 -> 0 | H16: ⑧ | I16: =IF(C16>=10000000,ROUNDDOWN(C16/10000000,0),"") ->  | J16: =ROUNDDOWN(C16/1000000,0) -> 0 | K16: =ROUNDDOWN((C16-(J16*1000000))/100000,0) -> 0 | L16: =ROUNDDOWN((C16-(J16*1000000+K16*100000))/10000,0) -> 0 | M16: =ROUNDDOWN((C16-(J16*1000000+K16*100000+L16*10000))/1000,0) -> 0 | N16: =ROUNDDOWN((C16-(J16*1000000+K16*100000+L16*10000+M16*1000))/100,0) -> 0 | O16: =ROUNDDOWN((C16-(J16*1000000+K16*100000+L16*10000+M16*1000+N16*100))/10,0) -> 0 | P16: =ROUNDDOWN((C16-(J16*1000000+K16*100000+L16*10000+M16*1000+N16*100+O16*10)),0) -> 0 | R16: タ | S16: =IF(F16>=10000000,ROUNDDOWN(F16/10000000,0),"") ->  | T16: =ROUNDDOWN(F16/1000000,0) -> 0 | U16: =ROUNDDOWN((F16-(T16*1000000))/100000,0) -> 0 | V16: =ROUNDDOWN((F16-(T16*1000000+U16*100000))/10000,0) -> 0 | W16: =ROUNDDOWN((F16-(T16*1000000+U16*100000+V16*10000))/1000,0) -> 0 | X16: =ROUNDDOWN((F16-(T16*1000000+U16*100000+V16*10000+W16*1000))/100,0) -> 0 | Y16: =ROUNDDOWN((F16-(T16*1000000+U16*100000+V16*10000+W16*1000+X16*100))/10,0) -> 0 | Z16: =ROUNDDOWN((F16-(T16*1000000+U16*100000+V16*10000+W16*1000+X16*100+Y16*10)),0) -> 0
I17: =I16 ->  | J17: =IF(J16=0,"",IF(J16>=10,RIGHT(J16,1),J16)) ->  | K17: =IF(AND(J16=0,K16=0),"",K16) ->  | L17: =IF(AND(J16=0,K16=0,L16=0),"",L16) ->  | M17: =IF(AND(J16=0,K16=0,L16=0,M16=0),"",M16) ->  | N17: =IF(AND(J16=0,K16=0,L16=0,M16=0,N16=0),"",N16) ->  | O17: =IF(AND(J16=0,K16=0,L16=0,M16=0,N16=0,O16=0),"",O16) ->  | P17: =IF(AND(J16=0,K16=0,L16=0,M16=0,N16=0,O16=0,P16=0),"",P16) ->  | S17: =S16 ->  | T17: =IF(T16=0,"",IF(T16>=10,RIGHT(T16,1),T16)) ->  | U17: =IF(AND(T16=0,U16=0),"",U16) ->  | V17: =IF(AND(T16=0,U16=0,V16=0),"",V16) ->  | W17: =IF(AND(T16=0,U16=0,V16=0,W16=0),"",W16) ->  | X17: =IF(AND(T16=0,U16=0,V16=0,W16=0,X16=0),"",X16) ->  | Y17: =IF(AND(T16=0,U16=0,V16=0,W16=0,X16=0,Y16=0),"",Y16) ->  | Z17: =IF(AND(T16=0,U16=0,V16=0,W16=0,X16=0,Y16=0,Z16=0),"",Z16) -> 
A18: ⑨ | B18: 小作料・賃借料 | C18: =計算シート!I24 -> 0 | D18: レ | E18: =IF(計算シート!G44="","",計算シート!G44) -> レ | F18: =計算シート!I44 -> 0 | H18: ⑨ | I18: =IF(C18>=10000000,ROUNDDOWN(C18/10000000,0),"") ->  | J18: =ROUNDDOWN(C18/1000000,0) -> 0 | K18: =ROUNDDOWN((C18-(J18*1000000))/100000,0) -> 0 | L18: =ROUNDDOWN((C18-(J18*1000000+K18*100000))/10000,0) -> 0 | M18: =ROUNDDOWN((C18-(J18*1000000+K18*100000+L18*10000))/1000,0) -> 0 | N18: =ROUNDDOWN((C18-(J18*1000000+K18*100000+L18*10000+M18*1000))/100,0) -> 0 | O18: =ROUNDDOWN((C18-(J18*1000000+K18*100000+L18*10000+M18*1000+N18*100))/10,0) -> 0 | P18: =ROUNDDOWN((C18-(J18*1000000+K18*100000+L18*10000+M18*1000+N18*100+O18*10)),0) -> 0 | R18: レ | S18: =IF(F18>=10000000,ROUNDDOWN(F18/10000000,0),"") ->  | T18: =ROUNDDOWN(F18/1000000,0) -> 0 | U18: =ROUNDDOWN((F18-(T18*1000000))/100000,0) -> 0 | V18: =ROUNDDOWN((F18-(T18*1000000+U18*100000))/10000,0) -> 0 | W18: =ROUNDDOWN((F18-(T18*1000000+U18*100000+V18*10000))/1000,0) -> 0 | X18: =ROUNDDOWN((F18-(T18*1000000+U18*100000+V18*10000+W18*1000))/100,0) -> 0 | Y18: =ROUNDDOWN((F18-(T18*1000000+U18*100000+V18*10000+W18*1000+X18*100))/10,0) -> 0 | Z18: =ROUNDDOWN((F18-(T18*1000000+U18*100000+V18*10000+W18*1000+X18*100+Y18*10)),0) -> 0
I19: =I18 ->  | J19: =IF(J18=0,"",IF(J18>=10,RIGHT(J18,1),J18)) ->  | K19: =IF(AND(J18=0,K18=0),"",K18) ->  | L19: =IF(AND(J18=0,K18=0,L18=0),"",L18) ->  | M19: =IF(AND(J18=0,K18=0,L18=0,M18=0),"",M18) ->  | N19: =IF(AND(J18=0,K18=0,L18=0,M18=0,N18=0),"",N18) ->  | O19: =IF(AND(J18=0,K18=0,L18=0,M18=0,N18=0,O18=0),"",O18) ->  | P19: =IF(AND(J18=0,K18=0,L18=0,M18=0,N18=0,O18=0,P18=0),"",P18) ->  | S19: =S18 ->  | T19: =IF(T18=0,"",IF(T18>=10,RIGHT(T18,1),T18)) ->  | U19: =IF(AND(T18=0,U18=0),"",U18) ->  | V19: =IF(AND(T18=0,U18=0,V18=0),"",V18) ->  | W19: =IF(AND(T18=0,U18=0,V18=0,W18=0),"",W18) ->  | X19: =IF(AND(T18=0,U18=0,V18=0,W18=0,X18=0),"",X18) ->  | Y19: =IF(AND(T18=0,U18=0,V18=0,W18=0,X18=0,Y18=0),"",Y18) ->  | Z19: =IF(AND(T18=0,U18=0,V18=0,W18=0,X18=0,Y18=0,Z18=0),"",Z18) -> 
A20: ⑩ | B20: 減価償却費 | C20: =計算シート!I25 -> 0 | D20: ソ | E20: =IF(計算シート!G45="","",計算シート!G45) -> ソ | F20: =計算シート!I45 -> 0 | H20: ⑩ | I20: =IF(C20>=10000000,ROUNDDOWN(C20/10000000,0),"") ->  | J20: =ROUNDDOWN(C20/1000000,0) -> 0 | K20: =ROUNDDOWN((C20-(J20*1000000))/100000,0) -> 0 | L20: =ROUNDDOWN((C20-(J20*1000000+K20*100000))/10000,0) -> 0 | M20: =ROUNDDOWN((C20-(J20*1000000+K20*100000+L20*10000))/1000,0) -> 0 | N20: =ROUNDDOWN((C20-(J20*1000000+K20*100000+L20*10000+M20*1000))/100,0) -> 0 | O20: =ROUNDDOWN((C20-(J20*1000000+K20*100000+L20*10000+M20*1000+N20*100))/10,0) -> 0 | P20: =ROUNDDOWN((C20-(J20*1000000+K20*100000+L20*10000+M20*1000+N20*100+O20*10)),0) -> 0 | R20: ソ | S20: =IF(F20>=10000000,ROUNDDOWN(F20/10000000,0),"") ->  | T20: =ROUNDDOWN(F20/1000000,0) -> 0 | U20: =ROUNDDOWN((F20-(T20*1000000))/100000,0) -> 0 | V20: =ROUNDDOWN((F20-(T20*1000000+U20*100000))/10000,0) -> 0 | W20: =ROUNDDOWN((F20-(T20*1000000+U20*100000+V20*10000))/1000,0) -> 0 | X20: =ROUNDDOWN((F20-(T20*1000000+U20*100000+V20*10000+W20*1000))/100,0) -> 0 | Y20: =ROUNDDOWN((F20-(T20*1000000+U20*100000+V20*10000+W20*1000+X20*100))/10,0) -> 0 | Z20: =ROUNDDOWN((F20-(T20*1000000+U20*100000+V20*10000+W20*1000+X20*100+Y20*10)),0) -> 0
I21: =I20 ->  | J21: =IF(J20=0,"",IF(J20>=10,RIGHT(J20,1),J20)) ->  | K21: =IF(AND(J20=0,K20=0),"",K20) ->  | L21: =IF(AND(J20=0,K20=0,L20=0),"",L20) ->  | M21: =IF(AND(J20=0,K20=0,L20=0,M20=0),"",M20) ->  | N21: =IF(AND(J20=0,K20=0,L20=0,M20=0,N20=0),"",N20) ->  | O21: =IF(AND(J20=0,K20=0,L20=0,M20=0,N20=0,O20=0),"",O20) ->  | P21: =IF(AND(J20=0,K20=0,L20=0,M20=0,N20=0,O20=0,P20=0),"",P20) ->  | S21: =S20 ->  | T21: =IF(T20=0,"",IF(T20>=10,RIGHT(T20,1),T20)) ->  | U21: =IF(AND(T20=0,U20=0),"",U20) ->  | V21: =IF(AND(T20=0,U20=0,V20=0),"",V20) ->  | W21: =IF(AND(T20=0,U20=0,V20=0,W20=0),"",W20) ->  | X21: =IF(AND(T20=0,U20=0,V20=0,W20=0,X20=0),"",X20) ->  | Y21: =IF(AND(T20=0,U20=0,V20=0,W20=0,X20=0,Y20=0),"",Y20) ->  | Z21: =IF(AND(T20=0,U20=0,V20=0,W20=0,X20=0,Y20=0,Z20=0),"",Z20) -> 
A22: ⑪ | B22: 貸倒金 | C22: =計算シート!I26 -> 0 | D22: ツ | E22: 雑費 | F22: =計算シート!I46 -> 0 | H22: ⑪ | I22: =IF(C22>=10000000,ROUNDDOWN(C22/10000000,0),"") ->  | J22: =ROUNDDOWN(C22/1000000,0) -> 0 | K22: =ROUNDDOWN((C22-(J22*1000000))/100000,0) -> 0 | L22: =ROUNDDOWN((C22-(J22*1000000+K22*100000))/10000,0) -> 0 | M22: =ROUNDDOWN((C22-(J22*1000000+K22*100000+L22*10000))/1000,0) -> 0 | N22: =ROUNDDOWN((C22-(J22*1000000+K22*100000+L22*10000+M22*1000))/100,0) -> 0 | O22: =ROUNDDOWN((C22-(J22*1000000+K22*100000+L22*10000+M22*1000+N22*100))/10,0) -> 0 | P22: =ROUNDDOWN((C22-(J22*1000000+K22*100000+L22*10000+M22*1000+N22*100+O22*10)),0) -> 0 | R22: ツ | S22: =IF(F22>=10000000,ROUNDDOWN(F22/10000000,0),"") ->  | T22: =ROUNDDOWN(F22/1000000,0) -> 0 | U22: =ROUNDDOWN((F22-(T22*1000000))/100000,0) -> 0 | V22: =ROUNDDOWN((F22-(T22*1000000+U22*100000))/10000,0) -> 0 | W22: =ROUNDDOWN((F22-(T22*1000000+U22*100000+V22*10000))/1000,0) -> 0 | X22: =ROUNDDOWN((F22-(T22*1000000+U22*100000+V22*10000+W22*1000))/100,0) -> 0 | Y22: =ROUNDDOWN((F22-(T22*1000000+U22*100000+V22*10000+W22*1000+X22*100))/10,0) -> 0 | Z22: =ROUNDDOWN((F22-(T22*1000000+U22*100000+V22*10000+W22*1000+X22*100+Y22*10)),0) -> 0
I23: =I22 ->  | J23: =IF(J22=0,"",IF(J22>=10,RIGHT(J22,1),J22)) ->  | K23: =IF(AND(J22=0,K22=0),"",K22) ->  | L23: =IF(AND(J22=0,K22=0,L22=0),"",L22) ->  | M23: =IF(AND(J22=0,K22=0,L22=0,M22=0),"",M22) ->  | N23: =IF(AND(J22=0,K22=0,L22=0,M22=0,N22=0),"",N22) ->  | O23: =IF(AND(J22=0,K22=0,L22=0,M22=0,N22=0,O22=0),"",O22) ->  | P23: =IF(AND(J22=0,K22=0,L22=0,M22=0,N22=0,O22=0,P22=0),"",P22) ->  | S23: =S22 ->  | T23: =IF(T22=0,"",IF(T22>=10,RIGHT(T22,1),T22)) ->  | U23: =IF(AND(T22=0,U22=0),"",U22) ->  | V23: =IF(AND(T22=0,U22=0,V22=0),"",V22) ->  | W23: =IF(AND(T22=0,U22=0,V22=0,W22=0),"",W22) ->  | X23: =IF(AND(T22=0,U22=0,V22=0,W22=0,X22=0),"",X22) ->  | Y23: =IF(AND(T22=0,U22=0,V22=0,W22=0,X22=0,Y22=0),"",Y22) ->  | Z23: =IF(AND(T22=0,U22=0,V22=0,W22=0,X22=0,Y22=0,Z22=0),"",Z22) -> 
A24: ⑫ | B24: 利子割引料 | C24: =計算シート!I27 -> 0 | D24: ネ | E24: 期首 | F24: =計算シート!I48 -> 0 | H24: ⑫ | I24: =IF(C24>=10000000,ROUNDDOWN(C24/10000000,0),"") ->  | J24: =ROUNDDOWN(C24/1000000,0) -> 0 | K24: =ROUNDDOWN((C24-(J24*1000000))/100000,0) -> 0 | L24: =ROUNDDOWN((C24-(J24*1000000+K24*100000))/10000,0) -> 0 | M24: =ROUNDDOWN((C24-(J24*1000000+K24*100000+L24*10000))/1000,0) -> 0 | N24: =ROUNDDOWN((C24-(J24*1000000+K24*100000+L24*10000+M24*1000))/100,0) -> 0 | O24: =ROUNDDOWN((C24-(J24*1000000+K24*100000+L24*10000+M24*1000+N24*100))/10,0) -> 0 | P24: =ROUNDDOWN((C24-(J24*1000000+K24*100000+L24*10000+M24*1000+N24*100+O24*10)),0) -> 0 | R24: ネ | S24: =IF(F24>=10000000,ROUNDDOWN(F24/10000000,0),"") ->  | T24: =ROUNDDOWN(F24/1000000,0) -> 0 | U24: =ROUNDDOWN((F24-(T24*1000000))/100000,0) -> 0 | V24: =ROUNDDOWN((F24-(T24*1000000+U24*100000))/10000,0) -> 0 | W24: =ROUNDDOWN((F24-(T24*1000000+U24*100000+V24*10000))/1000,0) -> 0 | X24: =ROUNDDOWN((F24-(T24*1000000+U24*100000+V24*10000+W24*1000))/100,0) -> 0 | Y24: =ROUNDDOWN((F24-(T24*1000000+U24*100000+V24*10000+W24*1000+X24*100))/10,0) -> 0 | Z24: =ROUNDDOWN((F24-(T24*1000000+U24*100000+V24*10000+W24*1000+X24*100+Y24*10)),0) -> 0
I25: =I24 ->  | J25: =IF(J24=0,"",IF(J24>=10,RIGHT(J24,1),J24)) ->  | K25: =IF(AND(J24=0,K24=0),"",K24) ->  | L25: =IF(AND(J24=0,K24=0,L24=0),"",L24) ->  | M25: =IF(AND(J24=0,K24=0,L24=0,M24=0),"",M24) ->  | N25: =IF(AND(J24=0,K24=0,L24=0,M24=0,N24=0),"",N24) ->  | O25: =IF(AND(J24=0,K24=0,L24=0,M24=0,N24=0,O24=0),"",O24) ->  | P25: =IF(AND(J24=0,K24=0,L24=0,M24=0,N24=0,O24=0,P24=0),"",P24) ->  | S25: =S24 ->  | T25: =IF(T24=0,"",IF(T24>=10,RIGHT(T24,1),T24)) ->  | U25: =IF(AND(T24=0,U24=0),"",U24) ->  | V25: =IF(AND(T24=0,U24=0,V24=0),"",V24) ->  | W25: =IF(AND(T24=0,U24=0,V24=0,W24=0),"",W24) ->  | X25: =IF(AND(T24=0,U24=0,V24=0,W24=0,X24=0),"",X24) ->  | Y25: =IF(AND(T24=0,U24=0,V24=0,W24=0,X24=0,Y24=0),"",Y24) ->  | Z25: =IF(AND(T24=0,U24=0,V24=0,W24=0,X24=0,Y24=0,Z24=0),"",Z24) -> 
A26: イ | B26: 租税公課 | C26: =計算シート!I28 -> 0 | D26: ナ | E26: 期末 | F26: =計算シート!I49 -> 0 | H26: イ | I26: =IF(C26>=10000000,ROUNDDOWN(C26/10000000,0),"") ->  | J26: =ROUNDDOWN(C26/1000000,0) -> 0 | K26: =ROUNDDOWN((C26-(J26*1000000))/100000,0) -> 0 | L26: =ROUNDDOWN((C26-(J26*1000000+K26*100000))/10000,0) -> 0 | M26: =ROUNDDOWN((C26-(J26*1000000+K26*100000+L26*10000))/1000,0) -> 0 | N26: =ROUNDDOWN((C26-(J26*1000000+K26*100000+L26*10000+M26*1000))/100,0) -> 0 | O26: =ROUNDDOWN((C26-(J26*1000000+K26*100000+L26*10000+M26*1000+N26*100))/10,0) -> 0 | P26: =ROUNDDOWN((C26-(J26*1000000+K26*100000+L26*10000+M26*1000+N26*100+O26*10)),0) -> 0 | R26: ナ | S26: =IF(F26>=10000000,ROUNDDOWN(F26/10000000,0),"") ->  | T26: =ROUNDDOWN(F26/1000000,0) -> 0 | U26: =ROUNDDOWN((F26-(T26*1000000))/100000,0) -> 0 | V26: =ROUNDDOWN((F26-(T26*1000000+U26*100000))/10000,0) -> 0 | W26: =ROUNDDOWN((F26-(T26*1000000+U26*100000+V26*10000))/1000,0) -> 0 | X26: =ROUNDDOWN((F26-(T26*1000000+U26*100000+V26*10000+W26*1000))/100,0) -> 0 | Y26: =ROUNDDOWN((F26-(T26*1000000+U26*100000+V26*10000+W26*1000+X26*100))/10,0) -> 0 | Z26: =ROUNDDOWN((F26-(T26*1000000+U26*100000+V26*10000+W26*1000+X26*100+Y26*10)),0) -> 0
J27: =IF(J26=0,"",IF(J26>=10,RIGHT(J26,1),J26)) ->  | K27: =IF(AND(J26=0,K26=0),"",K26) ->  | L27: =IF(AND(J26=0,K26=0,L26=0),"",L26) ->  | M27: =IF(AND(J26=0,K26=0,L26=0,M26=0),"",M26) ->  | N27: =IF(AND(J26=0,K26=0,L26=0,M26=0,N26=0),"",N26) ->  | O27: =IF(AND(J26=0,K26=0,L26=0,M26=0,N26=0,O26=0),"",O26) ->  | P27: =IF(AND(J26=0,K26=0,L26=0,M26=0,N26=0,O26=0,P26=0),"",P26) ->  | S27: =S26 ->  | T27: =IF(T26=0,"",IF(T26>=10,RIGHT(T26,1),T26)) ->  | U27: =IF(AND(T26=0,U26=0),"",U26) ->  | V27: =IF(AND(T26=0,U26=0,V26=0),"",V26) ->  | W27: =IF(AND(T26=0,U26=0,V26=0,W26=0),"",W26) ->  | X27: =IF(AND(T26=0,U26=0,V26=0,W26=0,X26=0),"",X26) ->  | Y27: =IF(AND(T26=0,U26=0,V26=0,W26=0,X26=0,Y26=0),"",Y26) ->  | Z27: =IF(AND(T26=0,U26=0,V26=0,W26=0,X26=0,Y26=0,Z26=0),"",Z26) -> 
A28: ロ | B28: 種苗費 | C28: =計算シート!I29 -> 0 | D28: ラ | E28: 経費から差し引く果樹 牛馬等の育成費用 | F28: =計算シート!I50 -> 0 | H28: ロ | I28: =IF(C28>=10000000,ROUNDDOWN(C28/10000000,0),"") ->  | J28: =ROUNDDOWN(C28/1000000,0) -> 0 | K28: =ROUNDDOWN((C28-(J28*1000000))/100000,0) -> 0 | L28: =ROUNDDOWN((C28-(J28*1000000+K28*100000))/10000,0) -> 0 | M28: =ROUNDDOWN((C28-(J28*1000000+K28*100000+L28*10000))/1000,0) -> 0 | N28: =ROUNDDOWN((C28-(J28*1000000+K28*100000+L28*10000+M28*1000))/100,0) -> 0 | O28: =ROUNDDOWN((C28-(J28*1000000+K28*100000+L28*10000+M28*1000+N28*100))/10,0) -> 0 | P28: =ROUNDDOWN((C28-(J28*1000000+K28*100000+L28*10000+M28*1000+N28*100+O28*10)),0) -> 0 | R28: ラ | S28: =IF(F28>=10000000,ROUNDDOWN(F28/10000000,0),"") ->  | T28: =ROUNDDOWN(F28/1000000,0) -> 0 | U28: =ROUNDDOWN((F28-(T28*1000000))/100000,0) -> 0 | V28: =ROUNDDOWN((F28-(T28*1000000+U28*100000))/10000,0) -> 0 | W28: =ROUNDDOWN((F28-(T28*1000000+U28*100000+V28*10000))/1000,0) -> 0 | X28: =ROUNDDOWN((F28-(T28*1000000+U28*100000+V28*10000+W28*1000))/100,0) -> 0 | Y28: =ROUNDDOWN((F28-(T28*1000000+U28*100000+V28*10000+W28*1000+X28*100))/10,0) -> 0 | Z28: =ROUNDDOWN((F28-(T28*1000000+U28*100000+V28*10000+W28*1000+X28*100+Y28*10)),0) -> 0
J29: =IF(J28=0,"",IF(J28>=10,RIGHT(J28,1),J28)) ->  | K29: =IF(AND(J28=0,K28=0),"",K28) ->  | L29: =IF(AND(J28=0,K28=0,L28=0),"",L28) ->  | M29: =IF(AND(J28=0,K28=0,L28=0,M28=0),"",M28) ->  | N29: =IF(AND(J28=0,K28=0,L28=0,M28=0,N28=0),"",N28) ->  | O29: =IF(AND(J28=0,K28=0,L28=0,M28=0,N28=0,O28=0),"",O28) ->  | P29: =IF(AND(J28=0,K28=0,L28=0,M28=0,N28=0,O28=0,P28=0),"",P28) ->  | S29: =S28 ->  | T29: =IF(T28=0,"",IF(T28>=10,RIGHT(T28,1),T28)) ->  | U29: =IF(AND(T28=0,U28=0),"",U28) ->  | V29: =IF(AND(T28=0,U28=0,V28=0),"",V28) ->  | W29: =IF(AND(T28=0,U28=0,V28=0,W28=0),"",W28) ->  | X29: =IF(AND(T28=0,U28=0,V28=0,W28=0,X28=0),"",X28) ->  | Y29: =IF(AND(T28=0,U28=0,V28=0,W28=0,X28=0,Y28=0),"",Y28) ->  | Z29: =IF(AND(T28=0,U28=0,V28=0,W28=0,X28=0,Y28=0,Z28=0),"",Z28) -> 
A30: ハ | B30: 素畜費 | C30: =計算シート!I30 -> 0 | D30: ⑬ | E30: 小計 | F30: =C26+C28+C30+C32+C34+C36+C38+C40+F2+F4+F6+F8+F10+F12+F14+F16+F18+F20+F22+F24-F26-F28 -> 0 | H30: ハ | I30: =IF(C30>=10000000,ROUNDDOWN(C30/10000000,0),"") ->  | J30: =ROUNDDOWN(C30/1000000,0) -> 0 | K30: =ROUNDDOWN((C30-(J30*1000000))/100000,0) -> 0 | L30: =ROUNDDOWN((C30-(J30*1000000+K30*100000))/10000,0) -> 0 | M30: =ROUNDDOWN((C30-(J30*1000000+K30*100000+L30*10000))/1000,0) -> 0 | N30: =ROUNDDOWN((C30-(J30*1000000+K30*100000+L30*10000+M30*1000))/100,0) -> 0 | O30: =ROUNDDOWN((C30-(J30*1000000+K30*100000+L30*10000+M30*1000+N30*100))/10,0) -> 0 | P30: =ROUNDDOWN((C30-(J30*1000000+K30*100000+L30*10000+M30*1000+N30*100+O30*10)),0) -> 0 | R30: ⑬ | S30: =IF(F30>=10000000,ROUNDDOWN(F30/10000000,0),"") ->  | T30: =ROUNDDOWN(F30/1000000,0) -> 0 | U30: =ROUNDDOWN((F30-(T30*1000000))/100000,0) -> 0 | V30: =ROUNDDOWN((F30-(T30*1000000+U30*100000))/10000,0) -> 0 | W30: =ROUNDDOWN((F30-(T30*1000000+U30*100000+V30*10000))/1000,0) -> 0 | X30: =ROUNDDOWN((F30-(T30*1000000+U30*100000+V30*10000+W30*1000))/100,0) -> 0 | Y30: =ROUNDDOWN((F30-(T30*1000000+U30*100000+V30*10000+W30*1000+X30*100))/10,0) -> 0 | Z30: =ROUNDDOWN((F30-(T30*1000000+U30*100000+V30*10000+W30*1000+X30*100+Y30*10)),0) -> 0
J31: =IF(J30=0,"",IF(J30>=10,RIGHT(J30,1),J30)) ->  | K31: =IF(AND(J30=0,K30=0),"",K30) ->  | L31: =IF(AND(J30=0,K30=0,L30=0),"",L30) ->  | M31: =IF(AND(J30=0,K30=0,L30=0,M30=0),"",M30) ->  | N31: =IF(AND(J30=0,K30=0,L30=0,M30=0,N30=0),"",N30) ->  | O31: =IF(AND(J30=0,K30=0,L30=0,M30=0,N30=0,O30=0),"",O30) ->  | P31: =IF(AND(J30=0,K30=0,L30=0,M30=0,N30=0,O30=0,P30=0),"",P30) ->  | S31: =S30 ->  | T31: =IF(T30=0,"",IF(T30>=10,RIGHT(T30,1),T30)) ->  | U31: =IF(AND(T30=0,U30=0),"",U30) ->  | V31: =IF(AND(T30=0,U30=0,V30=0),"",V30) ->  | W31: =IF(AND(T30=0,U30=0,V30=0,W30=0),"",W30) ->  | X31: =IF(AND(T30=0,U30=0,V30=0,W30=0,X30=0),"",X30) ->  | Y31: =IF(AND(T30=0,U30=0,V30=0,W30=0,X30=0,Y30=0),"",Y30) ->  | Z31: =IF(AND(T30=0,U30=0,V30=0,W30=0,X30=0,Y30=0,Z30=0),"",Z30) -> 
A32: ニ | B32: 肥料費 | C32: =計算シート!I31 -> 0 | D32: ⑭ | E32: 経費計 | F32: =C16+C18+C20+C22+C24+F30 -> 0 | H32: ニ | I32: =IF(C32>=10000000,ROUNDDOWN(C32/10000000,0),"") ->  | J32: =ROUNDDOWN(C32/1000000,0) -> 0 | K32: =ROUNDDOWN((C32-(J32*1000000))/100000,0) -> 0 | L32: =ROUNDDOWN((C32-(J32*1000000+K32*100000))/10000,0) -> 0 | M32: =ROUNDDOWN((C32-(J32*1000000+K32*100000+L32*10000))/1000,0) -> 0 | N32: =ROUNDDOWN((C32-(J32*1000000+K32*100000+L32*10000+M32*1000))/100,0) -> 0 | O32: =ROUNDDOWN((C32-(J32*1000000+K32*100000+L32*10000+M32*1000+N32*100))/10,0) -> 0 | P32: =ROUNDDOWN((C32-(J32*1000000+K32*100000+L32*10000+M32*1000+N32*100+O32*10)),0) -> 0 | R32: ⑭ | S32: =IF(F32>=10000000,ROUNDDOWN(F32/10000000,0),"") ->  | T32: =ROUNDDOWN(F32/1000000,0) -> 0 | U32: =ROUNDDOWN((F32-(T32*1000000))/100000,0) -> 0 | V32: =ROUNDDOWN((F32-(T32*1000000+U32*100000))/10000,0) -> 0 | W32: =ROUNDDOWN((F32-(T32*1000000+U32*100000+V32*10000))/1000,0) -> 0 | X32: =ROUNDDOWN((F32-(T32*1000000+U32*100000+V32*10000+W32*1000))/100,0) -> 0 | Y32: =ROUNDDOWN((F32-(T32*1000000+U32*100000+V32*10000+W32*1000+X32*100))/10,0) -> 0 | Z32: =ROUNDDOWN((F32-(T32*1000000+U32*100000+V32*10000+W32*1000+X32*100+Y32*10)),0) -> 0
J33: =IF(J32=0,"",IF(J32>=10,RIGHT(J32,1),J32)) ->  | K33: =IF(AND(J32=0,K32=0),"",K32) ->  | L33: =IF(AND(J32=0,K32=0,L32=0),"",L32) ->  | M33: =IF(AND(J32=0,K32=0,L32=0,M32=0),"",M32) ->  | N33: =IF(AND(J32=0,K32=0,L32=0,M32=0,N32=0),"",N32) ->  | O33: =IF(AND(J32=0,K32=0,L32=0,M32=0,N32=0,O32=0),"",O32) ->  | P33: =IF(AND(J32=0,K32=0,L32=0,M32=0,N32=0,O32=0,P32=0),"",P32) ->  | S33: =S32 ->  | T33: =IF(T32=0,"",IF(T32>=10,RIGHT(T32,1),T32)) ->  | U33: =IF(AND(T32=0,U32=0),"",U32) ->  | V33: =IF(AND(T32=0,U32=0,V32=0),"",V32) ->  | W33: =IF(AND(T32=0,U32=0,V32=0,W32=0),"",W32) ->  | X33: =IF(AND(T32=0,U32=0,V32=0,W32=0,X32=0),"",X32) ->  | Y33: =IF(AND(T32=0,U32=0,V32=0,W32=0,X32=0,Y32=0),"",Y32) ->  | Z33: =IF(AND(T32=0,U32=0,V32=0,W32=0,X32=0,Y32=0,Z32=0),"",Z32) -> 
A34: ホ | B34: 飼料費 | C34: =計算シート!I32 -> 0 | D34: ⑮ | E34: 専従者控除前の所得金額 | F34: =C14-F32 -> 0 | H34: ホ | I34: =IF(C34>=10000000,ROUNDDOWN(C34/10000000,0),"") ->  | J34: =ROUNDDOWN(C34/1000000,0) -> 0 | K34: =ROUNDDOWN((C34-(J34*1000000))/100000,0) -> 0 | L34: =ROUNDDOWN((C34-(J34*1000000+K34*100000))/10000,0) -> 0 | M34: =ROUNDDOWN((C34-(J34*1000000+K34*100000+L34*10000))/1000,0) -> 0 | N34: =ROUNDDOWN((C34-(J34*1000000+K34*100000+L34*10000+M34*1000))/100,0) -> 0 | O34: =ROUNDDOWN((C34-(J34*1000000+K34*100000+L34*10000+M34*1000+N34*100))/10,0) -> 0 | P34: =ROUNDDOWN((C34-(J34*1000000+K34*100000+L34*10000+M34*1000+N34*100+O34*10)),0) -> 0 | R34: ⑮ | S34: =IF(F34>=10000000,ROUNDDOWN(F34/10000000,0),"") ->  | T34: =ROUNDDOWN(F34/1000000,0) -> 0 | U34: =ROUNDDOWN((F34-(T34*1000000))/100000,0) -> 0 | V34: =ROUNDDOWN((F34-(T34*1000000+U34*100000))/10000,0) -> 0 | W34: =ROUNDDOWN((F34-(T34*1000000+U34*100000+V34*10000))/1000,0) -> 0 | X34: =ROUNDDOWN((F34-(T34*1000000+U34*100000+V34*10000+W34*1000))/100,0) -> 0 | Y34: =ROUNDDOWN((F34-(T34*1000000+U34*100000+V34*10000+W34*1000+X34*100))/10,0) -> 0 | Z34: =ROUNDDOWN((F34-(T34*1000000+U34*100000+V34*10000+W34*1000+X34*100+Y34*10)),0) -> 0
F35: =IF(F34<0,F34*-1,F34) -> 0 | J35: =IF(J34=0,"",IF(J34>=10,RIGHT(J34,1),J34)) ->  | K35: =IF(AND(J34=0,K34=0),"",K34) ->  | L35: =IF(AND(J34=0,K34=0,L34=0),"",L34) ->  | M35: =IF(AND(J34=0,K34=0,L34=0,M34=0),"",M34) ->  | N35: =IF(AND(J34=0,K34=0,L34=0,M34=0,N34=0),"",N34) ->  | O35: =IF(AND(J34=0,K34=0,L34=0,M34=0,N34=0,O34=0),"",O34) ->  | P35: =IF(AND(J34=0,K34=0,L34=0,M34=0,N34=0,O34=0,P34=0),"",P34) ->  | S35: =IF(T34<0,"△",IF(AND(S34=0),"",IF(S34<0,S34*-1,S34))) ->  | T35: =IF(AND(U34<0,F34>-1000000),"△",IF(T34=0,"",IF(T34>=10,RIGHT(T34,1),IF(T34<0,T34*-1,T34)))) ->  | U35: =IF(AND(V34<0,F34>-100000),"△",IF(AND(T34=0,U34=0),"",IF(U34<0,U34*-1,U34))) ->  | V35: =IF(AND(W34<0,F34>-10000),"△",IF(AND(T34=0,U34=0,V34=0),"",IF(V34<0,V34*-1,V34))) ->  | W35: =IF(AND(X34<0,F34>-1000),"△",IF(AND(U34=0,T34=0,V34=0,W34=0),"",IF(W34<0,W34*-1,W34))) ->  | X35: =IF(AND(Y34<0,F34>-100),"△",IF(AND(T34=0,U34=0,V34=0,W34=0,X34=0),"",IF(X34<0,X34*-1,X34))) ->  | Y35: =IF(AND(Z34<0,F34>-10),"△",IF(AND(T34=0,U34=0,V34=0,W34=0,X34=0,Y34=0),"",IF(Y34<0,Y34*-1,Y34))) ->  | Z35: =IF(AA34<0,"△",IF(AND(T34=0,U34=0,V34=0,W34=0,X34=0,Y34=0,Z34=0),"",IF(Z34<0,Z34*-1,Z34))) ->  | AB35: =IF(T35<10,S35,S35&LEFT(T35,1)) ->  | AC35: =IF(T35<10,T35,RIGHT(T35,1)) -> 
A36: へ | B36: 農具費 | C36: =計算シート!I33 -> 0 | D36: ⑯ | E36: 専従者控除 | F36: =計算シート!I56 -> 0 | H36: へ | I36: =IF(C36>=10000000,ROUNDDOWN(C36/10000000,0),"") ->  | J36: =ROUNDDOWN(C36/1000000,0) -> 0 | K36: =ROUNDDOWN((C36-(J36*1000000))/100000,0) -> 0 | L36: =ROUNDDOWN((C36-(J36*1000000+K36*100000))/10000,0) -> 0 | M36: =ROUNDDOWN((C36-(J36*1000000+K36*100000+L36*10000))/1000,0) -> 0 | N36: =ROUNDDOWN((C36-(J36*1000000+K36*100000+L36*10000+M36*1000))/100,0) -> 0 | O36: =ROUNDDOWN((C36-(J36*1000000+K36*100000+L36*10000+M36*1000+N36*100))/10,0) -> 0 | P36: =ROUNDDOWN((C36-(J36*1000000+K36*100000+L36*10000+M36*1000+N36*100+O36*10)),0) -> 0 | R36: ⑯ | S36: =IF(F36>=10000000,ROUNDDOWN(F36/10000000,0),"") ->  | T36: =ROUNDDOWN(F36/1000000,0) -> 0 | U36: =ROUNDDOWN((F36-(T36*1000000))/100000,0) -> 0 | V36: =ROUNDDOWN((F36-(T36*1000000+U36*100000))/10000,0) -> 0 | W36: =ROUNDDOWN((F36-(T36*1000000+U36*100000+V36*10000))/1000,0) -> 0 | X36: =ROUNDDOWN((F36-(T36*1000000+U36*100000+V36*10000+W36*1000))/100,0) -> 0 | Y36: =ROUNDDOWN((F36-(T36*1000000+U36*100000+V36*10000+W36*1000+X36*100))/10,0) -> 0 | Z36: =ROUNDDOWN((F36-(T36*1000000+U36*100000+V36*10000+W36*1000+X36*100+Y36*10)),0) -> 0
J37: =IF(J36=0,"",IF(J36>=10,RIGHT(J36,1),J36)) ->  | K37: =IF(AND(J36=0,K36=0),"",K36) ->  | L37: =IF(AND(J36=0,K36=0,L36=0),"",L36) ->  | M37: =IF(AND(J36=0,K36=0,L36=0,M36=0),"",M36) ->  | N37: =IF(AND(J36=0,K36=0,L36=0,M36=0,N36=0),"",N36) ->  | O37: =IF(AND(J36=0,K36=0,L36=0,M36=0,N36=0,O36=0),"",O36) ->  | P37: =IF(AND(J36=0,K36=0,L36=0,M36=0,N36=0,O36=0,P36=0),"",P36) ->  | S37: =S36 ->  | T37: =IF(T36=0,"",IF(T36>=10,RIGHT(T36,1),T36)) ->  | U37: =IF(AND(T36=0,U36=0),"",U36) ->  | V37: =IF(AND(T36=0,U36=0,V36=0),"",V36) ->  | W37: =IF(AND(T36=0,U36=0,V36=0,W36=0),"",W36) ->  | X37: =IF(AND(T36=0,U36=0,V36=0,W36=0,X36=0),"",X36) ->  | Y37: =IF(AND(T36=0,U36=0,V36=0,W36=0,X36=0,Y36=0),"",Y36) ->  | Z37: =IF(AND(T36=0,U36=0,V36=0,W36=0,X36=0,Y36=0,Z36=0),"",Z36) -> 
A38: ト | B38: 農薬衛生費 | C38: =計算シート!I34 -> 0 | D38: ⑰ | E38: 所得金額 | F38: =F34-F36 -> 0 | H38: ト | I38: =IF(C38>=10000000,ROUNDDOWN(C38/10000000,0),"") ->  | J38: =ROUNDDOWN(C38/1000000,0) -> 0 | K38: =ROUNDDOWN((C38-(J38*1000000))/100000,0) -> 0 | L38: =ROUNDDOWN((C38-(J38*1000000+K38*100000))/10000,0) -> 0 | M38: =ROUNDDOWN((C38-(J38*1000000+K38*100000+L38*10000))/1000,0) -> 0 | N38: =ROUNDDOWN((C38-(J38*1000000+K38*100000+L38*10000+M38*1000))/100,0) -> 0 | O38: =ROUNDDOWN((C38-(J38*1000000+K38*100000+L38*10000+M38*1000+N38*100))/10,0) -> 0 | P38: =ROUNDDOWN((C38-(J38*1000000+K38*100000+L38*10000+M38*1000+N38*100+O38*10)),0) -> 0 | R38: ⑰ | S38: =IF(F38>=10000000,ROUNDDOWN(F38/10000000,0),"") ->  | T38: =ROUNDDOWN(F38/1000000,0) -> 0 | U38: =ROUNDDOWN((F38-(T38*1000000))/100000,0) -> 0 | V38: =ROUNDDOWN((F38-(T38*1000000+U38*100000))/10000,0) -> 0 | W38: =ROUNDDOWN((F38-(T38*1000000+U38*100000+V38*10000))/1000,0) -> 0 | X38: =ROUNDDOWN((F38-(T38*1000000+U38*100000+V38*10000+W38*1000))/100,0) -> 0 | Y38: =ROUNDDOWN((F38-(T38*1000000+U38*100000+V38*10000+W38*1000+X38*100))/10,0) -> 0 | Z38: =ROUNDDOWN((F38-(T38*1000000+U38*100000+V38*10000+W38*1000+X38*100+Y38*10)),0) -> 0
F39: =IF(F38<0,F38*-1,F38) -> 0 | J39: =IF(J38=0,"",IF(J38>=10,RIGHT(J38,1),J38)) ->  | K39: =IF(AND(J38=0,K38=0),"",K38) ->  | L39: =IF(AND(J38=0,K38=0,L38=0),"",L38) ->  | M39: =IF(AND(J38=0,K38=0,L38=0,M38=0),"",M38) ->  | N39: =IF(AND(J38=0,K38=0,L38=0,M38=0,N38=0),"",N38) ->  | O39: =IF(AND(J38=0,K38=0,L38=0,M38=0,N38=0,O38=0),"",O38) ->  | P39: =IF(AND(J38=0,K38=0,L38=0,M38=0,N38=0,O38=0,P38=0),"",P38) ->  | S39: =IF(T38<0,"△",IF(AND(S38=0),"",IF(S38<0,S38*-1,S38))) ->  | T39: =IF(AND(U38<0,F38>-1000000),"△",IF(T38=0,"",IF(T38>=10,RIGHT(T38,1),IF(T38<0,T38*-1,T38)))) ->  | U39: =IF(AND(V38<0,F38>-100000),"△",IF(AND(T38=0,U38=0),"",IF(U38<0,U38*-1,U38))) ->  | V39: =IF(AND(W38<0,F38>-10000),"△",IF(AND(T38=0,U38=0,V38=0),"",IF(V38<0,V38*-1,V38))) ->  | W39: =IF(AND(X38<0,F38>-1000),"△",IF(AND(U38=0,T38=0,V38=0,W38=0),"",IF(W38<0,W38*-1,W38))) ->  | X39: =IF(AND(Y38<0,F38>-100),"△",IF(AND(T38=0,U38=0,V38=0,W38=0,X38=0),"",IF(X38<0,X38*-1,X38))) ->  | Y39: =IF(AND(Z38<0,F38>-10),"△",IF(AND(T38=0,U38=0,V38=0,W38=0,X38=0,Y38=0),"",IF(Y38<0,Y38*-1,Y38))) ->  | Z39: =IF(AA38<0,"△",IF(AND(T38=0,U38=0,V38=0,W38=0,X38=0,Y38=0,Z38=0),"",IF(Z38<0,Z38*-1,Z38))) ->  | AB39: =IF(T39<10,S39,S39&LEFT(T39,1)) ->  | AC39: =IF(T39<10,T39,RIGHT(T39,1)) -> 
A40: チ | B40: 諸材料費 | C40: =計算シート!I35 -> 0 | H40: チ | I40: =IF(C40>=10000000,ROUNDDOWN(C40/10000000,0),"") ->  | J40: =ROUNDDOWN(C40/1000000,0) -> 0 | K40: =ROUNDDOWN((C40-(J40*1000000))/100000,0) -> 0 | L40: =ROUNDDOWN((C40-(J40*1000000+K40*100000))/10000,0) -> 0 | M40: =ROUNDDOWN((C40-(J40*1000000+K40*100000+L40*10000))/1000,0) -> 0 | N40: =ROUNDDOWN((C40-(J40*1000000+K40*100000+L40*10000+M40*1000))/100,0) -> 0 | O40: =ROUNDDOWN((C40-(J40*1000000+K40*100000+L40*10000+M40*1000+N40*100))/10,0) -> 0 | P40: =ROUNDDOWN((C40-(J40*1000000+K40*100000+L40*10000+M40*1000+N40*100+O40*10)),0) -> 0
J41: =IF(J40=0,"",IF(J40>=10,RIGHT(J40,1),J40)) ->  | K41: =IF(AND(J40=0,K40=0),"",K40) ->  | L41: =IF(AND(J40=0,K40=0,L40=0),"",L40) ->  | M41: =IF(AND(J40=0,K40=0,L40=0,M40=0),"",M40) ->  | N41: =IF(AND(J40=0,K40=0,L40=0,M40=0,N40=0),"",N40) ->  | O41: =IF(AND(J40=0,K40=0,L40=0,M40=0,N40=0,O40=0),"",O40) ->  | P41: =IF(AND(J40=0,K40=0,L40=0,M40=0,N40=0,O40=0,P40=0),"",P40) ->  | T41: =IF(AND(T40=0),"",T40) ->  | U41: =IF(AND(T40=0,U40=0),"",U40) ->  | V41: =IF(AND(T40=0,U40=0,V40=0),"",V40) ->  | W41: =IF(AND(T40=0,U40=0,V40=0,W40=0),"",W40) ->  | X41: =IF(AND(T40=0,U40=0,V40=0,W40=0,X40=0),"",X40) ->  | Y41: =IF(AND(T40=0,U40=0,V40=0,W40=0,X40=0,Y40=0),"",Y40) ->  | Z41: =IF(AND(T40=0,U40=0,V40=0,W40=0,X40=0,Y40=0,Z40=0),"",Z40) -> 

Sheet 収支内訳書（表）
AE2: 令和 | AQ2: 年分収支内訳書
AK4: =IF(計算シート!C2>=10,LEFT(計算シート!C2,1),"") ->  | AN4: =RIGHT(計算シート!C2,1) -> 5 | BH4: （農業所得用） | BP4: あなたの本年分の農業所得
BP5: の金額の計算内容をこの表に
BP6: 記載して確定申告に添付
BP8: してください。□□□□□
AJ10: 住 所 | AP10: =IF(計算シート!D4="","",計算シート!D4) -> 東近江市八日市緑町１０番５号 | BI10: 業種名 | BV10: 依頼税理士等 | BY10: 事務所 所在地
BI14: 農園名 | BY14: 氏 名 (名称)
AP16: =IF(計算シート!D6="","",計算シート!D6) -> ヒガシオウミ タロウ
AJ17: フリガナ
AJ18: 氏 名 | AP18: =IF(計算シート!D5="","",計算シート!D5) -> 東近江 太郎 | BH18: ㊞ | BI18: 電 話 | BK18: =IF(計算シート!D7="","",計算シート!D7) -> 0505-801-5604 | BY18: 電 話 番 号
BI20: 番 号
BQ24: =計算シート!C2 -> 5 | BW24: 番 号
A25: 令和 年 月 日提出
AH27: (自 月 日 至 月 日) | BH27: ○雇人費の内訳
B31: 科 目 | M31: 金 | U31: 額 | AA31: (円) | AB31: 科 目 | AR31: 金 | AZ31: 額 | BF31: (円) | BH31: 氏名・住所又は・作業名 | BL31: 日数 | BN31: 現 金 | BR31: 合 計 | CE31: 源 泉 徴 収 税 額
BN32: 現 物
D33: 販売金額 | J33: ① | L33: =印字要求!I3 ->  | N33: =印字要求!J3 ->  | P33: =印字要求!K3 ->  | R33: =印字要求!L3 ->  | T33: =印字要求!M3 ->  | V33: =印字要求!N3 ->  | X33: =印字要求!O3 ->  | Z33: =印字要求!P3 ->  | AG33: 修繕費 | AN33: リ | AQ33: =印字要求!S3 ->  | AS33: =印字要求!T3 ->  | AU33: =印字要求!U3 ->  | AW33: =印字要求!V3 ->  | AY33: =印字要求!W3 ->  | BA33: =印字要求!X3 ->  | BC33: =印字要求!Y3 ->  | BE33: =印字要求!Z3 -> 
BL34: 延日 | BQ34: 円 | CD34: 円 | CT34: 円
B37: 収入金額 | D37: 家事消費 | H37: 金額 | J37: ② | L37: =印字要求!I5 ->  | N37: =印字要求!J5 ->  | P37: =印字要求!K5 ->  | R37: =印字要求!L5 ->  | T37: =印字要求!M5 ->  | V37: =印字要求!N5 ->  | X37: =印字要求!O5 ->  | Z37: =印字要求!P5 ->  | AG37: 動力光熱費 | AN37: ヌ | AQ37: =印字要求!S5 ->  | AS37: =印字要求!T5 ->  | AU37: =印字要求!U5 ->  | AW37: =印字要求!V5 ->  | AY37: =印字要求!W5 ->  | BA37: =印字要求!X5 ->  | BC37: =印字要求!Y5 ->  | BE37: =印字要求!Z5 -> 
D38: 事業消費
D41: 雑収入 | J41: ③ | L41: =印字要求!I7 ->  | N41: =印字要求!J7 ->  | P41: =印字要求!K7 ->  | R41: =印字要求!L7 ->  | T41: =印字要求!M7 ->  | V41: =印字要求!N7 ->  | X41: =印字要求!O7 ->  | Z41: =印字要求!P7 ->  | AG41: 作業用衣料費 | AN41: ル | AQ41: =印字要求!S7 ->  | AS41: =印字要求!T7 ->  | AU41: =印字要求!U7 ->  | AW41: =印字要求!V7 ->  | AY41: =印字要求!W7 ->  | BA41: =印字要求!X7 ->  | BC41: =印字要求!Y7 ->  | BE41: =印字要求!Z7 -> 
D45: 小計 | J45: ④ | L45: =印字要求!I9 ->  | N45: =印字要求!J9 ->  | P45: =印字要求!K9 ->  | R45: =印字要求!L9 ->  | T45: =印字要求!M9 ->  | V45: =印字要求!N9 ->  | X45: =印字要求!O9 ->  | Z45: =印字要求!P9 ->  | AB45: 経費 | AD45: その他の経費 | AG45: 農業共済掛金 | AN45: ヲ | AQ45: =印字要求!S9 ->  | AS45: =印字要求!T9 ->  | AU45: =印字要求!U9 ->  | AW45: =印字要求!V9 ->  | AY45: =印字要求!W9 ->  | BA45: =印字要求!X9 ->  | BC45: =印字要求!Y9 ->  | BE45: =印字要求!Z9 -> 
D46: (①＋②＋③)
D49: 農産物の 棚卸高 | G49: 期首 | J49: ⑤ | L49: =印字要求!I11 ->  | N49: =印字要求!J11 ->  | P49: =印字要求!K11 ->  | R49: =印字要求!L11 ->  | T49: =印字要求!M11 ->  | V49: =印字要求!N11 ->  | X49: =印字要求!O11 ->  | Z49: =印字要求!P11 ->  | AG49: 荷造運賃手数料 | AN49: ワ | AQ49: =印字要求!S11 ->  | AS49: =印字要求!T11 ->  | AU49: =印字要求!U11 ->  | AW49: =印字要求!V11 ->  | AY49: =印字要求!W11 ->  | BA49: =印字要求!X11 ->  | BC49: =印字要求!Y11 ->  | BE49: =印字要求!Z11 -> 
G53: 期末 | J53: ⑥ | L53: =印字要求!I13 ->  | N53: =印字要求!J13 ->  | P53: =印字要求!K13 ->  | R53: =印字要求!L13 ->  | T53: =印字要求!M13 ->  | V53: =印字要求!N13 ->  | X53: =印字要求!O13 ->  | Z53: =印字要求!P13 ->  | AG53: 土地改良費 | AN53: カ | AQ53: =印字要求!S13 ->  | AS53: =印字要求!T13 ->  | AU53: =印字要求!U13 ->  | AW53: =印字要求!V13 ->  | AY53: =印字要求!W13 ->  | BA53: =印字要求!X13 ->  | BC53: =印字要求!Y13 ->  | BE53: =印字要求!Z13 ->  | BH53: その他( | BK53: 人分)
D57: 計 | J57: ⑦ | L57: =印字要求!I15 ->  | N57: =印字要求!J15 ->  | P57: =印字要求!K15 ->  | R57: =印字要求!L15 ->  | T57: =印字要求!M15 ->  | V57: =印字要求!N15 ->  | X57: =印字要求!O15 ->  | Z57: =印字要求!P15 ->  | AG57: =IF(計算シート!G42="","",計算シート!G42) -> ヨ | AN57: ヨ | AQ57: =印字要求!S15 ->  | AS57: =印字要求!T15 ->  | AU57: =印字要求!U15 ->  | AW57: =印字要求!V15 ->  | AY57: =印字要求!W15 ->  | BA57: =印字要求!X15 ->  | BC57: =印字要求!Y15 ->  | BE57: =印字要求!Z15 -> 
D58: (④－⑤＋⑥) | BH58: 計 | BN58: =BN34+BN35+BN42+BN50 -> 0 | BR58: ⑧ | BT58: =計算シート!I23 -> 0
B60: 収 入 金 額
D61: 雇人費 | J61: ⑧ | L61: =印字要求!I17 ->  | N61: =印字要求!J17 ->  | P61: =印字要求!K17 ->  | R61: =印字要求!L17 ->  | T61: =印字要求!M17 ->  | V61: =印字要求!N17 ->  | X61: =印字要求!O17 ->  | Z61: =印字要求!P17 ->  | AG61: =IF(計算シート!G43="","",計算シート!G43) -> タ | AN61: タ | AQ61: =印字要求!S17 ->  | AS61: =印字要求!T17 ->  | AU61: =印字要求!U17 ->  | AW61: =印字要求!V17 ->  | AY61: =印字要求!W17 ->  | BA61: =印字要求!X17 ->  | BC61: =印字要求!Y17 ->  | BE61: =印字要求!Z17 -> 
BN62: =BN38+BN46+BN54 -> 0
D65: 小作料・賃借料 | J65: ⑨ | L65: =印字要求!I19 ->  | N65: =印字要求!J19 ->  | P65: =印字要求!K19 ->  | R65: =印字要求!L19 ->  | T65: =印字要求!M19 ->  | V65: =印字要求!N19 ->  | X65: =印字要求!O19 ->  | Z65: =印字要求!P19 ->  | AG65: =IF(計算シート!G44="","",計算シート!G44) -> レ | AN65: レ | AQ65: =印字要求!S19 ->  | AS65: =印字要求!T19 ->  | AU65: =印字要求!U19 ->  | AW65: =印字要求!V19 ->  | AY65: =印字要求!W19 ->  | BA65: =印字要求!X19 ->  | BC65: =印字要求!Y19 ->  | BE65: =印字要求!Z19 -> 
B69: 経費 | D69: 減価償却費 | J69: ⑩ | L69: =印字要求!I21 ->  | N69: =印字要求!J21 ->  | P69: =印字要求!K21 ->  | R69: =印字要求!L21 ->  | T69: =印字要求!M21 ->  | V69: =印字要求!N21 ->  | X69: =印字要求!O21 ->  | Z69: =印字要求!P21 ->  | AG69: =IF(計算シート!G45="","",計算シート!G45) -> ソ | AN69: ソ | AQ69: =印字要求!S21 ->  | AS69: =印字要求!T21 ->  | AU69: =印字要求!U21 ->  | AW69: =印字要求!V21 ->  | AY69: =印字要求!W21 ->  | BA69: =印字要求!X21 ->  | BC69: =印字要求!Y21 ->  | BE69: =印字要求!Z21 ->  | BH69: ○小作料・賃借料の内訳
D73: 貸倒金 | J73: ⑪ | L73: =印字要求!I23 ->  | N73: =印字要求!J23 ->  | P73: =印字要求!K23 ->  | R73: =印字要求!L23 ->  | T73: =印字要求!M23 ->  | V73: =印字要求!N23 ->  | X73: =印字要求!O23 ->  | Z73: =印字要求!P23 ->  | AG73: 雑費 | AN73: ツ | AQ73: =印字要求!S23 ->  | AS73: =印字要求!T23 ->  | AU73: =印字要求!U23 ->  | AW73: =印字要求!V23 ->  | AY73: =印字要求!W23 ->  | BA73: =印字要求!X23 ->  | BC73: =印字要求!Y23 ->  | BE73: =印字要求!Z23 ->  | BH73: 支 払 先 の 住 所 ・ 氏 名 | BQ73: 小作料、賃 | BZ73: 面積・数量 | CK73: 支 払 額
BQ74: 耕料等の別
CH76: a･㎏ | CS76: 円
D77: 利子割引料 | J77: ⑫ | L77: =印字要求!I25 ->  | N77: =印字要求!J25 ->  | P77: =印字要求!K25 ->  | R77: =印字要求!L25 ->  | T77: =印字要求!M25 ->  | V77: =印字要求!N25 ->  | X77: =印字要求!O25 ->  | Z77: =印字要求!P25 ->  | AG77: 農産物 以外の 棚卸高 | AH77: 期首 | AN77: ネ | AQ77: =印字要求!S25 ->  | AS77: =印字要求!T25 ->  | AU77: =印字要求!U25 ->  | AW77: =印字要求!V25 ->  | AY77: =印字要求!W25 ->  | BA77: =印字要求!X25 ->  | BC77: =印字要求!Y25 ->  | BE77: =印字要求!Z25 -> 
F81: 租税公課 | J81: イ | L81: =印字要求!I27 ->  | N81: =印字要求!J27 ->  | P81: =印字要求!K27 ->  | R81: =印字要求!L27 ->  | T81: =印字要求!M27 ->  | V81: =印字要求!N27 ->  | X81: =印字要求!O27 ->  | Z81: =印字要求!P27 ->  | AH81: 期末 | AN81: ナ | AQ81: =印字要求!S27 ->  | AS81: =印字要求!T27 ->  | AU81: =印字要求!U27 ->  | AW81: =印字要求!V27 ->  | AY81: =印字要求!W27 ->  | BA81: =印字要求!X27 ->  | BC81: =印字要求!Y27 ->  | BE81: =印字要求!Z27 -> 
C85: その他の経費 | F85: 種苗費 | J85: ロ | L85: =印字要求!I29 ->  | N85: =印字要求!J29 ->  | P85: =印字要求!K29 ->  | R85: =印字要求!L29 ->  | T85: =印字要求!M29 ->  | V85: =印字要求!N29 ->  | X85: =印字要求!O29 ->  | Z85: =印字要求!P29 ->  | AG85: 経費から差し引く果樹 | AN85: ラ | AQ85: =印字要求!S29 ->  | AS85: =印字要求!T29 ->  | AU85: =印字要求!U29 ->  | AW85: =印字要求!V29 ->  | AY85: =印字要求!W29 ->  | BA85: =印字要求!X29 ->  | BC85: =印字要求!Y29 ->  | BE85: =印字要求!Z29 -> 
AG86: 牛馬等の育成費用 | BH86: ○事業専従者の氏名等
F89: 素畜費 | J89: ハ | L89: =印字要求!I31 ->  | N89: =印字要求!J31 ->  | P89: =印字要求!K31 ->  | R89: =印字要求!L31 ->  | T89: =印字要求!M31 ->  | V89: =印字要求!N31 ->  | X89: =印字要求!O31 ->  | Z89: =印字要求!P31 ->  | AG89: 小計 | AN89: ⑬ | AQ89: =印字要求!S31 ->  | AS89: =印字要求!T31 ->  | AU89: =印字要求!U31 ->  | AW89: =印字要求!V31 ->  | AY89: =印字要求!W31 ->  | BA89: =印字要求!X31 ->  | BC89: =印字要求!Y31 ->  | BE89: =印字要求!Z31 -> 
BI90: 氏 名 | BP90: 続 柄 | BS90: 従 事
BS92: 月 数
F93: 肥料費 | J93: ニ | L93: =印字要求!I33 ->  | N93: =印字要求!J33 ->  | P93: =印字要求!K33 ->  | R93: =印字要求!L33 ->  | T93: =印字要求!M33 ->  | V93: =印字要求!N33 ->  | X93: =印字要求!O33 ->  | Z93: =印字要求!P33 ->  | AE93: 経費計 | AN93: ⑭ | AQ93: =印字要求!S33 ->  | AS93: =印字要求!T33 ->  | AU93: =印字要求!U33 ->  | AW93: =印字要求!V33 ->  | AY93: =印字要求!W33 ->  | BA93: =印字要求!X33 ->  | BC93: =印字要求!Y33 ->  | BE93: =印字要求!Z33 ->  | BO93: (年齢)
AE94: (⑧～⑫までの計＋⑬) | BH94: =専従者控除シート!B22 -> 0 | BP94: =専従者控除シート!E22 -> 0 | BW94: 月
BR95: =専従者控除シート!L22 -> 0
F97: 飼料費 | J97: ホ | L97: =印字要求!I35 ->  | N97: =印字要求!J35 ->  | P97: =印字要求!K35 ->  | R97: =印字要求!L35 ->  | T97: =印字要求!M35 ->  | V97: =印字要求!N35 ->  | X97: =印字要求!O35 ->  | Z97: =印字要求!P35 ->  | AC97: 専従者控除前の所得金額 | AN97: ⑮ | AQ97: =IF(印字要求!F34<-999999,印字要求!AB35,印字要求!S35) ->  | AS97: =印字要求!AC35 ->  | AU97: =印字要求!U35 ->  | AW97: =印字要求!V35 ->  | AY97: =印字要求!W35 ->  | BA97: =印字要求!X35 ->  | BC97: =印字要求!Y35 ->  | BE97: =IF(印字要求!F34=0,0,印字要求!Z35) -> 0 | BL97: ( | BM97: =専従者控除シート!C22 -> 0 | BO97: 歳)
AC98: (⑦－⑭) | BH98: =専従者控除シート!B23 -> 0 | BP98: =専従者控除シート!E23 -> 0 | BR98: =専従者控除シート!L23 -> 0
F101: 農具費 | J101: ヘ | L101: =印字要求!I37 ->  | N101: =印字要求!J37 ->  | P101: =印字要求!K37 ->  | R101: =印字要求!L37 ->  | T101: =印字要求!M37 ->  | V101: =印字要求!N37 ->  | X101: =印字要求!O37 ->  | Z101: =印字要求!P37 ->  | AC101: 専従者控除 | AN101: ⑯ | AQ101: =印字要求!S37 ->  | AS101: =印字要求!T37 ->  | AU101: =印字要求!U37 ->  | AW101: =印字要求!V37 ->  | AY101: =印字要求!W37 ->  | BA101: =印字要求!X37 ->  | BC101: =印字要求!Y37 ->  | BE101: =印字要求!Z37 ->  | BL101: ( | BM101: =専従者控除シート!C23 -> 0 | BO101: 歳)
BH102: =専従者控除シート!B24 -> 0 | BP102: =専従者控除シート!E24 -> 0 | BR102: =専従者控除シート!L24 -> 0
F105: 農薬 | H105: 費 | J105: ト | L105: =印字要求!I39 ->  | N105: =印字要求!J39 ->  | P105: =印字要求!K39 ->  | R105: =印字要求!L39 ->  | T105: =印字要求!M39 ->  | V105: =印字要求!N39 ->  | X105: =印字要求!O39 ->  | Z105: =印字要求!P39 ->  | AC105: 所得金額 | AN105: ⑰ | AQ105: =IF(印字要求!F38<-999999,印字要求!AB39,印字要求!S39) ->  | AS105: =印字要求!AC39 ->  | AU105: =印字要求!U39 ->  | AW105: =印字要求!V39 ->  | AY105: =印字要求!W39 ->  | BA105: =印字要求!X39 ->  | BC105: =印字要求!Y39 ->  | BE105: =IF(印字要求!F38=0,0,印字要求!Z39) -> 0 | BL105: ( | BM105: =専従者控除シート!C24 -> 0 | BO105: 歳)
F106: 衛生 | AC106: (⑮－⑯) | BH106: =専従者控除シート!B25 -> 0 | BP106: =専従者控除シート!E25 -> 0 | BR106: =専従者控除シート!L25 -> 0
F109: 諸材料費 | J109: チ | L109: =印字要求!I41 ->  | N109: =印字要求!J41 ->  | P109: =印字要求!K41 ->  | R109: =印字要求!L41 ->  | T109: =印字要求!M41 ->  | V109: =印字要求!N41 ->  | X109: =印字要求!O41 ->  | Z109: =印字要求!P41 ->  | AC109: ⑰のうち、肉用牛について | BL109: ( | BM109: =専従者控除シート!C25 -> 0 | BO109: 歳)
AC110: 特例の適用を受ける金額
BP111: 延べ従事月数 | BS111: =IF(専従者控除シート!L26="","",ROUNDDOWN(専従者控除シート!L26/10,0)) ->  | BT111: = | BU111: =RIGHT(専従者控除シート!L26,1) -> 
AW116: －１－ | CM116: =説明書!H1 -> ver.3.4
D119: 小作料
D120: 賃耕料
D121: 機械等の賃料

Sheet 収支内訳書（表）1 (hidden)
AK1: F A 0 3 1 1
AA2: あなたの本年分の農業所得の金額の計算内容をこの表に記載して確定申告書に添付してください。
I3: ="平成"&計算シート!C2&"年分 収 支 内 訳 書 (農業所得用）" -> 平成5年分 収 支 内 訳 書 (農業所得用）
J4: 住 所 | L4: =IF(計算シート!D4="","",計算シート!D4) -> 東近江市八日市緑町１０番５号 | U4: 業種名 | AB4: 依頼税理士等 | AC4: 事務所 所在地 | AV4: 小作料
AV5: 賃借料
U6: 農園名 | AC6: 氏 名
J7: フリガナ 氏 名 | L7: =IF(計算シート!D6="","",計算シート!D6) -> ヒガシオウミ タロウ
L8: =IF(計算シート!D5="","",計算シート!D5) -> 東近江 太郎 | R8: 印 | U8: 電 話 番 号 | W8: =IF(計算シート!D7="","",計算シート!D7) -> 0505-801-5604 | AC8: 電 話 番 号
B12: 平成 年 月 日提出 | AD12: =計算シート!C2 -> 5 | AH12: 番号
K13: (自 月 日 至 月 日） | T13: ○雇人費の内訳
B14: 科 目 | H14: 金 額 (円) | I14: 科 目 | N14: 金 額 (円) | T14: 氏名･住所又は作業名 | Y14: 日数 | AA14: 現 金 | AF14: 合 計 | AL14: 源泉徴収税額
B15: 収 入 金 額 | C15: 販 売 金 額 | G15: ① | H15: =計算シート!I12 -> 0 | I15: 経 費 | J15: そ の 他 の 経 費 | K15: 修 繕 費 | N15: リ | O15: =計算シート!I36 -> 0 | AA15: 現 物
Y16: 延 日 | AD16: 円 | AJ16: 円 | AP16: 円
C17: 家事・事業消費 | G17: ② | H17: =計算シート!I13 -> 0 | K17: 動力光熱費 | N17: ヌ | O17: =計算シート!I37 -> 0
C19: 雑 収 入 | G19: ③ | H19: =計算シート!I14 -> 0 | K19: 作業用衣料費 | N19: ル | O19: =計算シート!I38 -> 0
C21: 小計（①+②+③） | G21: ④ | H21: =H15+H17+H19 -> 0 | K21: 農業共済掛金 | N21: ヲ | O21: =計算シート!I39 -> 0
C23: 農産物の 棚 卸 高 | E23: 期 首 | F23: 期首 | G23: ⑤ | H23: =計算シート!I15 -> 0 | K23: 荷造運賃手数料 | N23: ワ | O23: =計算シート!I40 -> 0
E25: 期 末 | F25: 期末 | G25: ⑥ | H25: =計算シート!I16 -> 0 | K25: 土地改良費 | N25: カ | O25: =計算シート!I41 -> 0
C27: 計（④-⑤+⑥） | G27: ⑦ | H27: =H21-H23+H25 -> 0 | K27: ライスセンター | N27: ヨ | O27: =計算シート!I42 -> 0
T28: 計 | AA28: =AA16+AA20+AA24 -> 0 | AF28: ⑧
B29: 経 費 | C29: 雇 人 費 | G29: ⑧ | H29: =計算シート!I23 -> 0 | K29: 生産組合 | N29: タ | O29: =計算シート!I43 -> 0 | AF29: =H29 -> 0 | AL29: =SUM(AL17:AQ27) -> 0
AA30: =AA18+AA22+AA26 -> 0
C31: 小作料・賃借料 | G31: ⑨ | H31: =計算シート!I24 -> 0 | K31: 作業委託料等 | N31: レ | O31: =計算シート!I44 -> 0
C33: 減価償却費 | G33: ⑩ | H33: =計算シート!I25 -> 0 | K33: 盛 費 等 | N33: ソ | O33: =計算シート!I45 -> 0 | T33: ○小作料･賃借料の内訳
C34: 貸 倒 金 | G34: ⑪ | H34: =計算シート!I26 -> 0 | K34: 雑 費 | N34: ツ | O34: =計算シート!I46 -> 0 | T34: 支払先の住所･氏名 | AB34: 小作・賃借料の別 | AF34: 面積・数量 | AK34: 支 払 額
C35: 利子割引料 | G35: ⑫ | H35: =計算シート!I27 -> 0 | K35: 農産物 以外の 棚卸高 | L35: 期 首 | N35: ネ | O35: =計算シート!I48 -> 0 | AQ35: 円
C36: そ の 他 の 経 費 | D36: 租税公課 | G36: イ | H36: =計算シート!I28 -> 0 | L36: 期 末 | N36: ナ | O36: =計算シート!I49 -> 0
D37: 種 苗 費 | G37: ロ | H37: =計算シート!I29 -> 0 | K37: 経費から差し引く果 樹牛馬等の育成費用 | N37: ラ | O37: =計算シート!I50 -> 0 | T37: ○事業専従者の氏名等
D38: 素 畜 費 | G38: ハ | H38: =計算シート!I30 -> 0 | K38: 小計 (イからネまでの計-ナ-ラ） | N38: ⑬ | O38: =H36+H37+H38+H39+H40+H41+H42+H43+O15+O17+O19+O21+O23+O25+O27+O29+O31+O33+O34+O35-O36-O37 -> 0 | T38: 氏 名 （年齢） | Z38: 続 柄 | AB38: 従事月数
D39: 肥 料 費 | G39: ニ | H39: =計算シート!I31 -> 0 | J39: 経 費 計 （⑧から⑫までの計＋⑬） | N39: ⑭ | O39: =H29+H31+H33+H34+H35+O38 -> 0 | AC39: 月
D40: 飼 料 費 | G40: ホ | H40: =計算シート!I32 -> 0 | I40: 専従者控除前の所得金額 (⑦－⑭） | N40: ⑮ | O40: =H27-O39 -> 0
D41: 農 具 費 | G41: へ | H41: =計算シート!I33 -> 0 | I41: 専 従 者 控 除 | N41: ⑯ | O41: =計算シート!I56 -> 0 | AM41: 【税務署整理欄】
D42: 農薬・衛生費 | G42: ト | H42: =計算シート!I34 -> 0 | I42: 所得金額 (⑮－⑯） | N42: ⑰ | O42: =O40-O41 -> 0 | AM42: B
D43: 諸材料費 | G43: チ | H43: =計算シート!I35 -> 0 | I43: ⑰のうち、肉用牛について 特例の適用を受ける金額 | Z43: 延べ従 事月数 | AH43: 99
B45: －１－
D50: 小作料
D51: 賃借料

Sheet 収支内訳書（裏）
A2: ○収入金額の明細
A4: 農産物等の 種類品名等 | C4: 作付面積 | E4: 販売金額 | K4: 家事消費 | M4: 農 産 物 の 棚 卸 高 | AA4: 農産物等の 種類品名等 | AD4: 作付面積 | AF4: 販売金額 | AL4: 家事消費 | AO4: 農 産 物 の 棚 卸 高
C5: 飼 育 | K5: 事業消費 | M5: 期 首 | R5: 期 末 | AD5: 飼 育 | AL5: 事業消費 | AO5: 期 首 | AY5: 期 末
C6: 頭羽数 | K6: 金□□額 | M6: 数 量 | P6: 金 額 | R6: 数 量 | U6: 金 額 | AD6: 頭羽数 | AL6: 金□□額 | AO6: 数 量 | AT6: 金 額 | AY6: 数 量 | BC6: 金 額
A7: 田 畑 | D7: ａ | J7: 円 | L7: 円 | O7: ㎏ | Q7: 円 | T7: ㎏ | Y7: 円 | AA7: 特殊施設 | AE7: ㎡ | AK7: 円 | AN7: 円 | AS7: ㎏ | AX7: 円 | BB7: ㎏ | BE7: 円
B9: 水稲 | E9: =計算シート!N11 -> 0 | K9: =計算シート!N12 -> 0
B11: 麦 | E11: =計算シート!N15 -> 0 | K11: =計算シート!N16 -> 0
B13: 大豆 | E13: =計算シート!N17 -> 0 | K13: =計算シート!N18 -> 0 | AB13: Ｂ | AF13: =SUM(AF8:AK12) -> 0 | AL13: =SUM(AL8:AN12) -> 0 | AT13: =SUM(AT8:AX12) -> 0 | BC13: =SUM(BC8:BE12) -> 0
AB15: 小 計
B16: 野菜 | E16: =計算シート!N19 -> 0 | K16: =計算シート!N20 -> 0 | AA16: 農 産 物 計 | AD16: 耕作面積 | AE16: ａ | AF16: =E28+AF13 -> 0 | AL16: =K28+AL13 -> 0 | AT16: ⑤ | BC16: ⑥
AA18: (Ａ＋Ｂ) | AT18: =計算シート!I15 -> 0 | BC18: =計算シート!I16 -> 0
B19: 茶 | E19: =計算シート!N13 -> 0 | K19: =計算シート!N14 -> 0 | AA19: 畜産物その他 | AE19: 頭羽 | AO19: 雑収入の内訳 | AQ19: 区 分 | BC19: 金 額
B21: 果実 | E21: =計算シート!N21 -> 0 | K21: =計算シート!N22 -> 0 | BE21: 円
AB25: Ｃ | AF25: =SUM(AF19:AK24) -> 0 | AL25: =SUM(AL19:AN24) -> 0
AB27: 小 計
B28: Ａ | E28: =SUM(E8:J27) -> 0 | K28: =SUM(K8:L27) -> 0 | P28: =SUM(P8:Q27) -> 0 | U28: =SUM(U8:Y27) -> 0 | AA28: 合 □ □ 計 | AF28: ① | AL28: ② | AQ28: 合 計 | BC28: ③
B30: 小 計 | AA30: (Ａ＋Ｂ＋Ｃ) | AF30: =AF16+AF25 -> 0 | AL30: =AL16+AL25 -> 0 | BC30: =計算シート!I14 -> 0
A32: ○減価償却費の計算
A34: 減価償却資産 | D34: 面 積 | G34: 取 得 | K34: イ | N34: ロ | Q34: 償 却 | S34: 耐 用 | T34: ハ | V34: ニ | Y34: ホ | AC34: ヘ | AH34: ト | AN34: チ | AP34: リ | AW34: ヌ
V35: 本年中 | Y35: 本年分の | AC35: 特□□□別 | AH35: 本年分の | AN35: 事業専 | AP35: 本年分の必要 | AW35: 未償却残高
A36: の 名 称 等 | D36: 又 は | G36: (成熟) | K36: 取 得 価 額 | N36: 償却の基礎 | T36: 償却率 | BA36: 摘 要
V37: の償却 | Y37: 普通償却費 | AH37: 償却費合計 | AP37: 経費算入額
A38: (繰延資産を含む) | D38: 数 量 | G38: 年 月 | N38: になる金額 | Q38: 方 法 | S38: 年 数
V39: 期□間 | Y39: (ロ×ハ×ニ) | AC39: 償□却□費 | AH39: (ホ＋ヘ) | AN39: 用割合 | AP39: (ト×チ) | AW39: (期末残高)
A40: =IF('償却資産明細書(印刷)'!B6="","",'償却資産明細書(印刷)'!B6) -> 着色部分のみ | D40: =IF('償却資産明細書(印刷)'!C6="","",'償却資産明細書(印刷)'!C6) ->  | G40: 元号 | H40: 年 | J40: 月 | M40: 円 | P40: 円 | Q40: =IF('償却資産明細書(印刷)'!I6="","",'償却資産明細書(印刷)'!I6) ->  | S40: 年 | T40: =IF('償却資産明細書(印刷)'!K6="","",'償却資産明細書(印刷)'!K6) ->  | W40: =IF('償却資産明細書(印刷)'!L6="","",'償却資産明細書(印刷)'!L6) ->  | X40: 月 | AB40: 円 | AG40: 円 | AM40: 円 | AO40: ％ | AV40: 円 | AZ40: 円 | BA40: =IF('償却資産明細書(印刷)'!T6="","",'償却資産明細書(印刷)'!T6) -> 
K41: =IF('償却資産明細書(印刷)'!G6="","",'償却資産明細書(印刷)'!G6) ->  | N41: =IF('償却資産明細書(印刷)'!H6="","",'償却資産明細書(印刷)'!H6) ->  | S41: =IF('償却資産明細書(印刷)'!J6="","",'償却資産明細書(印刷)'!J6) ->  | Y41: =IF('償却資産明細書(印刷)'!N6="","",'償却資産明細書(印刷)'!N6) ->  | AC41: =IF('償却資産明細書(印刷)'!O6="","",'償却資産明細書(印刷)'!O6) ->  | AH41: =IF('償却資産明細書(印刷)'!P6="","",'償却資産明細書(印刷)'!P6) ->  | AN41: =IF('償却資産明細書(印刷)'!Q6="","",'償却資産明細書(印刷)'!Q6*100) ->  | AP41: =IF('償却資産明細書(印刷)'!R6="","",'償却資産明細書(印刷)'!R6) ->  | AW41: =IF('償却資産明細書(印刷)'!S6="","",'償却資産明細書(印刷)'!S6) -> 
G42: =IF('償却資産明細書(印刷)'!D6="","",'償却資産明細書(印刷)'!D6) ->  | H42: =IF('償却資産明細書(印刷)'!E6="","",'償却資産明細書(印刷)'!E6) ->  | I42: ･ | J42: =IF('償却資産明細書(印刷)'!F6="","",'償却資産明細書(印刷)'!F6) ->  | W42: 12
A43: =IF('償却資産明細書(印刷)'!B7="","",'償却資産明細書(印刷)'!B7) -> 入力可能です | D43: =IF('償却資産明細書(印刷)'!C7="","",'償却資産明細書(印刷)'!C7) ->  | G43: =IF('償却資産明細書(印刷)'!D7="","",'償却資産明細書(印刷)'!D7) ->  | H43: =IF('償却資産明細書(印刷)'!E7="","",'償却資産明細書(印刷)'!E7) ->  | I43: ･ | J43: =IF('償却資産明細書(印刷)'!F7="","",'償却資産明細書(印刷)'!F7) ->  | K43: =IF('償却資産明細書(印刷)'!G7="","",'償却資産明細書(印刷)'!G7) ->  | N43: =IF('償却資産明細書(印刷)'!H7="","",'償却資産明細書(印刷)'!H7) ->  | Q43: =IF('償却資産明細書(印刷)'!I7="","",'償却資産明細書(印刷)'!I7) ->  | S43: =IF('償却資産明細書(印刷)'!J7="","",'償却資産明細書(印刷)'!J7) ->  | T43: =IF('償却資産明細書(印刷)'!K7="","",'償却資産明細書(印刷)'!K7) ->  | W43: =IF('償却資産明細書(印刷)'!L7="","",'償却資産明細書(印刷)'!L7) ->  | Y43: =IF('償却資産明細書(印刷)'!N7="","",'償却資産明細書(印刷)'!N7) ->  | AC43: =IF('償却資産明細書(印刷)'!O7="","",'償却資産明細書(印刷)'!O7) ->  | AH43: =IF('償却資産明細書(印刷)'!P7="","",'償却資産明細書(印刷)'!P7) ->  | AN43: =IF('償却資産明細書(印刷)'!Q7="","",'償却資産明細書(印刷)'!Q7*100) ->  | AP43: =IF('償却資産明細書(印刷)'!R7="","",'償却資産明細書(印刷)'!R7) ->  | AW43: =IF('償却資産明細書(印刷)'!S7="","",'償却資産明細書(印刷)'!S7) ->  | BA43: =IF('償却資産明細書(印刷)'!T7="","",'償却資産明細書(印刷)'!T7) ->  | BK43: ='償却資産明細書(入力)'!A5 -> 0
W45: 12
A46: =IF('償却資産明細書(印刷)'!B8="","",'償却資産明細書(印刷)'!B8) ->  | D46: =IF('償却資産明細書(印刷)'!C8="","",'償却資産明細書(印刷)'!C8) ->  | G46: =IF('償却資産明細書(印刷)'!D8="","",'償却資産明細書(印刷)'!D8) ->  | H46: =IF('償却資産明細書(印刷)'!E8="","",'償却資産明細書(印刷)'!E8) ->  | I46: ･ | J46: =IF('償却資産明細書(印刷)'!F8="","",'償却資産明細書(印刷)'!F8) ->  | K46: =IF('償却資産明細書(印刷)'!G8="","",'償却資産明細書(印刷)'!G8) ->  | N46: =IF('償却資産明細書(印刷)'!H8="","",'償却資産明細書(印刷)'!H8) ->  | Q46: =IF('償却資産明細書(印刷)'!I8="","",'償却資産明細書(印刷)'!I8) ->  | S46: =IF('償却資産明細書(印刷)'!J8="","",'償却資産明細書(印刷)'!J8) ->  | T46: =IF('償却資産明細書(印刷)'!K8="","",'償却資産明細書(印刷)'!K8) ->  | W46: =IF('償却資産明細書(印刷)'!L8="","",'償却資産明細書(印刷)'!L8) ->  | Y46: =IF('償却資産明細書(印刷)'!N8="","",'償却資産明細書(印刷)'!N8) ->  | AC46: =IF('償却資産明細書(印刷)'!O8="","",'償却資産明細書(印刷)'!O8) ->  | AH46: =IF('償却資産明細書(印刷)'!P8="","",'償却資産明細書(印刷)'!P8) ->  | AN46: =IF('償却資産明細書(印刷)'!Q8="","",'償却資産明細書(印刷)'!Q8*100) ->  | AP46: =IF('償却資産明細書(印刷)'!R8="","",'償却資産明細書(印刷)'!R8) ->  | AW46: =IF('償却資産明細書(印刷)'!S8="","",'償却資産明細書(印刷)'!S8) ->  | BA46: =IF('償却資産明細書(印刷)'!T8="","",'償却資産明細書(印刷)'!T8) ->  | BP46: =IF(BK43>=8,BS48,"") -> 
W48: 12 | BS48: 別紙明細書のとおり
A49: =IF('償却資産明細書(印刷)'!B9="","",'償却資産明細書(印刷)'!B9) ->  | D49: =IF('償却資産明細書(印刷)'!C9="","",'償却資産明細書(印刷)'!C9) ->  | G49: =IF('償却資産明細書(印刷)'!D9="","",'償却資産明細書(印刷)'!D9) ->  | H49: =IF('償却資産明細書(印刷)'!E9="","",'償却資産明細書(印刷)'!E9) ->  | I49: ･ | J49: =IF('償却資産明細書(印刷)'!F9="","",'償却資産明細書(印刷)'!F9) ->  | K49: =IF('償却資産明細書(印刷)'!G9="","",'償却資産明細書(印刷)'!G9) ->  | N49: =IF('償却資産明細書(印刷)'!H9="","",'償却資産明細書(印刷)'!H9) ->  | Q49: =IF('償却資産明細書(印刷)'!I9="","",'償却資産明細書(印刷)'!I9) ->  | S49: =IF('償却資産明細書(印刷)'!J9="","",'償却資産明細書(印刷)'!J9) ->  | T49: =IF('償却資産明細書(印刷)'!K9="","",'償却資産明細書(印刷)'!K9) ->  | W49: =IF('償却資産明細書(印刷)'!L9="","",'償却資産明細書(印刷)'!L9) ->  | Y49: =IF('償却資産明細書(印刷)'!N9="","",'償却資産明細書(印刷)'!N9) ->  | AC49: =IF('償却資産明細書(印刷)'!O9="","",'償却資産明細書(印刷)'!O9) ->  | AH49: =IF('償却資産明細書(印刷)'!P9="","",'償却資産明細書(印刷)'!P9) ->  | AN49: =IF('償却資産明細書(印刷)'!Q9="","",'償却資産明細書(印刷)'!Q9*100) ->  | AP49: =IF('償却資産明細書(印刷)'!R9="","",'償却資産明細書(印刷)'!R9) ->  | AW49: =IF('償却資産明細書(印刷)'!S9="","",'償却資産明細書(印刷)'!S9) ->  | BA49: =IF('償却資産明細書(印刷)'!T9="","",'償却資産明細書(印刷)'!T9) -> 
W51: 12
A52: =IF('償却資産明細書(印刷)'!B10="","",'償却資産明細書(印刷)'!B10) ->  | D52: =IF('償却資産明細書(印刷)'!C10="","",'償却資産明細書(印刷)'!C10) ->  | G52: =IF('償却資産明細書(印刷)'!D10="","",'償却資産明細書(印刷)'!D10) ->  | H52: =IF('償却資産明細書(印刷)'!E10="","",'償却資産明細書(印刷)'!E10) ->  | I52: ･ | J52: =IF('償却資産明細書(印刷)'!F10="","",'償却資産明細書(印刷)'!F10) ->  | K52: =IF('償却資産明細書(印刷)'!G10="","",'償却資産明細書(印刷)'!G10) ->  | N52: =IF('償却資産明細書(印刷)'!H10="","",'償却資産明細書(印刷)'!H10) ->  | Q52: =IF('償却資産明細書(印刷)'!I10="","",'償却資産明細書(印刷)'!I10) ->  | S52: =IF('償却資産明細書(印刷)'!J10="","",'償却資産明細書(印刷)'!J10) ->  | T52: =IF('償却資産明細書(印刷)'!K10="","",'償却資産明細書(印刷)'!K10) ->  | W52: =IF('償却資産明細書(印刷)'!L10="","",'償却資産明細書(印刷)'!L10) ->  | Y52: =IF('償却資産明細書(印刷)'!N10="","",'償却資産明細書(印刷)'!N10) ->  | AC52: =IF('償却資産明細書(印刷)'!O10="","",'償却資産明細書(印刷)'!O10) ->  | AH52: =IF('償却資産明細書(印刷)'!P10="","",'償却資産明細書(印刷)'!P10) ->  | AN52: =IF('償却資産明細書(印刷)'!Q10="","",'償却資産明細書(印刷)'!Q10*100) ->  | AP52: =IF('償却資産明細書(印刷)'!R10="","",'償却資産明細書(印刷)'!R10) ->  | AW52: =IF('償却資産明細書(印刷)'!S10="","",'償却資産明細書(印刷)'!S10) ->  | BA52: =IF('償却資産明細書(印刷)'!T10="","",'償却資産明細書(印刷)'!T10) -> 
W54: 12
A55: =IF('償却資産明細書(印刷)'!B11="","",'償却資産明細書(印刷)'!B11) ->  | D55: =IF('償却資産明細書(印刷)'!C11="","",'償却資産明細書(印刷)'!C11) ->  | G55: =IF('償却資産明細書(印刷)'!D11="","",'償却資産明細書(印刷)'!D11) ->  | H55: =IF('償却資産明細書(印刷)'!E11="","",'償却資産明細書(印刷)'!E11) ->  | I55: ･ | J55: =IF('償却資産明細書(印刷)'!F11="","",'償却資産明細書(印刷)'!F11) ->  | K55: =IF('償却資産明細書(印刷)'!G11="","",'償却資産明細書(印刷)'!G11) ->  | N55: =IF('償却資産明細書(印刷)'!H11="","",'償却資産明細書(印刷)'!H11) ->  | Q55: =IF('償却資産明細書(印刷)'!I11="","",'償却資産明細書(印刷)'!I11) ->  | S55: =IF('償却資産明細書(印刷)'!J11="","",'償却資産明細書(印刷)'!J11) ->  | T55: =IF('償却資産明細書(印刷)'!K11="","",'償却資産明細書(印刷)'!K11) ->  | W55: =IF('償却資産明細書(印刷)'!L11="","",'償却資産明細書(印刷)'!L11) ->  | Y55: =IF('償却資産明細書(印刷)'!N11="","",'償却資産明細書(印刷)'!N11) ->  | AC55: =IF('償却資産明細書(印刷)'!O11="","",'償却資産明細書(印刷)'!O11) ->  | AH55: =IF('償却資産明細書(印刷)'!P11="","",'償却資産明細書(印刷)'!P11) ->  | AN55: =IF('償却資産明細書(印刷)'!Q11="","",'償却資産明細書(印刷)'!Q11*100) ->  | AP55: =IF('償却資産明細書(印刷)'!R11="","",'償却資産明細書(印刷)'!R11) ->  | AW55: =IF('償却資産明細書(印刷)'!S11="","",'償却資産明細書(印刷)'!S11) ->  | BA55: =IF('償却資産明細書(印刷)'!T11="","",'償却資産明細書(印刷)'!T11) -> 
W57: 12
A58: =IF('償却資産明細書(印刷)'!B12="","",'償却資産明細書(印刷)'!B12) ->  | D58: =IF('償却資産明細書(印刷)'!C12="","",'償却資産明細書(印刷)'!C12) ->  | G58: =IF('償却資産明細書(印刷)'!D12="","",'償却資産明細書(印刷)'!D12) ->  | H58: =IF('償却資産明細書(印刷)'!E12="","",'償却資産明細書(印刷)'!E12) ->  | I58: ･ | J58: =IF('償却資産明細書(印刷)'!F12="","",'償却資産明細書(印刷)'!F12) ->  | K58: =IF('償却資産明細書(印刷)'!G12="","",'償却資産明細書(印刷)'!G12) ->  | N58: =IF('償却資産明細書(印刷)'!H12="","",'償却資産明細書(印刷)'!H12) ->  | Q58: =IF('償却資産明細書(印刷)'!I12="","",'償却資産明細書(印刷)'!I12) ->  | S58: =IF('償却資産明細書(印刷)'!J12="","",'償却資産明細書(印刷)'!J12) ->  | T58: =IF('償却資産明細書(印刷)'!K12="","",'償却資産明細書(印刷)'!K12) ->  | W58: =IF('償却資産明細書(印刷)'!L12="","",'償却資産明細書(印刷)'!L12) ->  | Y58: =IF('償却資産明細書(印刷)'!N12="","",'償却資産明細書(印刷)'!N12) ->  | AC58: =IF('償却資産明細書(印刷)'!O12="","",'償却資産明細書(印刷)'!O12) ->  | AH58: =IF('償却資産明細書(印刷)'!P12="","",'償却資産明細書(印刷)'!P12) ->  | AN58: =IF('償却資産明細書(印刷)'!Q12="","",'償却資産明細書(印刷)'!Q12*100) ->  | AP58: =IF('償却資産明細書(印刷)'!R12="","",'償却資産明細書(印刷)'!R12) ->  | AW58: =IF('償却資産明細書(印刷)'!S12="","",'償却資産明細書(印刷)'!S12) ->  | BA58: =IF('償却資産明細書(印刷)'!T12="","",'償却資産明細書(印刷)'!T12) -> 
W60: 12
A61: 計 | N61: =IF(K61="","",K61*0.9) ->  | Y61: ='償却資産明細書(入力)'!Q29 -> 0 | AH61: ='償却資産明細書(入力)'!T29 -> 0 | AP61: ⑩ | AW61: ='償却資産明細書(入力)'!X29 -> 0
AP63: ='償却資産明細書(入力)'!W29 -> 0
A65: ○果樹・牛馬等の育成費用の計算(販売用の牛馬、受託した牛馬は除きます。) | AV65: ◎本年中における特殊事情
A67: 果樹・牛馬等 | C67: 取得･生産 | F67: イ | L67: 育 成 費 用 の 明 細 | AC67: ト | AH67: チ | AN67: ロ、ハ、ホの
F68: 前 年 か ら | L68: ロ本 年 中 の | O68: ハ本 年 中 の | Q68: ニ | T68: ホ 育成中の果 | Y68: ヘ 本年に取得 | AC68: 本年中に成 | AH68: 翌 年 へ の
C69: ･定植等 | AN69: 欄の金額の
A70: の 名 称 | L70: 種苗費、種付 | O70: 肥料、農薬等 | Q70: 小 計 | T70: 樹等から生じ | Y70: 価額に加算する | AC70: 熟したものの | AH70: 繰 越 額
C71: の年月日 | AN71: 計 算 方 法
F72: の 繰 越 額 | L72: 料、素 畜 費 | O72: の投下費用 | Q72: (ロ＋ハ) | T72: た収入金額 | Y72: 金額 (ニ－ホ) | AC72: 所 得 価 額 | AH72: (イ＋ヘ＋ト)
K73: 円 | N73: 円 | P73: 円 | S73: 円 | X73: 円 | AB73: 円 | AG73: 円 | AM73: 円
Q74: =IF(L74="","",SUM(L74:P74)) ->  | Y74: =IF(L74="","",Q74-T74) ->  | AH74: =IF(F74="","",SUM(F74+Y74+AC74)) -> 
Q75: =IF(L75="","",SUM(L75:P76)) ->  | Y75: =IF(L75="","",Q75-T75) ->  | AH75: =IF(F75="","",SUM(F75+Y75+AC75)) -> 
A77: 計 | F77: =SUM(F74:K76) -> 0 | L77: =SUM(L74:N76) -> 0 | O77: =SUM(O74:P76) -> 0 | Q77: ラ | T77: =SUM(T74:X76) -> 0 | Y77: =SUM(Y74:AB76) -> 0 | AC77: =SUM(AC74:AG76) -> 0 | AH77: =SUM(AH74:AM76) -> 0
Q79: =計算シート!I50 -> 0
BD80: =説明書!H1 -> ver.3.4
A81: －２－

Sheet 収支内訳書（裏）１ (hidden)
BL1: 一括償却資産
A3: ○収入金額の明細 | K3: =IF(ISNUMBER(計算シート!C2),"平成 "&計算シート!C2&" 年分","年分が入力されていません ！！") -> 平成 5 年分 | S3: 住所 | W3: =IF(計算シート!D4="","",計算シート!D4) -> 東近江市八日市緑町１０番５号 | AN3: 氏名 | AR3: =IF(計算シート!D5="","",計算シート!D5) -> 東近江 太郎
A4: 農産物等の 種類品名等 | F4: 作付面積 （飼育・ 頭羽数） | I4: 販売金額 | M4: 家事消費 事業消費 金 額 | Q4: 農 産 物 の 棚 卸 高 | AE4: 農産物等の 種類品名等 | AJ4: 作付面積 （飼育・ 頭羽数） | AM4: 販売金額 | AQ4: 家事消費 事業消費 金 額 | AU4: 農 産 物 の 棚 卸 高
Q5: 期 首 | X5: 期 末 | AU5: 期 首 | BB5: 期 末
Q6: 数 量 | T6: 金 額 | X6: 数 量 | AA6: 金 額 | AU6: 数 量 | AX6: 金 額 | BB6: 数 量 | BE6: 金 額
H7: ａ | L7: 円 | P7: 円 | S7: ㎏ | W7: 円 | Z7: ㎏ | AD7: 円 | AE7: 特殊施設 | AL7: ㎡ | AP7: 円 | AT7: 円 | AW7: ㎏ | BA7: 円 | BD7: ㎏ | BH7: 円
B8: 水稲 | I8: =IF(計算シート!N11=0,0,計算シート!N11) -> 0 | M8: =IF(計算シート!N12=0,0,計算シート!N12) -> 0
B9: 茶 | I9: =IF(計算シート!N13=0,0,計算シート!N13) -> 0 | M9: =IF(計算シート!N14=0,0,計算シート!N14) -> 0
A10: 田 | B10: 麦 | I10: =IF(計算シート!N15=0,0,計算シート!N15) -> 0
B11: 大豆 | I11: =IF(計算シート!N17=0,0,計算シート!N17) -> 0 | M11: =IF(計算シート!N18=0,0,計算シート!N18) -> 0 | AF11: B 小 計 | AM11: =SUM(AM8:AM10) -> 0 | AQ11: =SUM(AQ8:AQ10) -> 0 | AX11: =SUM(AX8:AX10) -> 0 | BE11: =SUM(BE8:BE10) -> 0
B12: 野菜 | I12: =IF(計算シート!N19=0,0,計算シート!N19) -> 0 | M12: =IF(計算シート!N20=0,0,計算シート!N20) -> 0 | AE12: 農産物計 | AJ12: 耕作面積 ａ | AM12: =I19+AM11 -> 0 | AQ12: =M19+AQ11 -> 0 | AX12: ⑤ | AY12: =計算シート!I15 -> 0 | BE12: ⑥ | BF12: =計算シート!I16 -> 0
AE13: （A+B)
AE14: 畜産物その他 | AL14: 頭羽 | AU14: 雑収入の内訳 | AV14: 区 分 | BE14: 金 額
A15: 畑 | BH15: 円
AF18: C 小 計 | AM18: =SUM(AM14:AM17) -> 0 | AQ18: =SUM(AQ14:AQ17) -> 0
B19: A | C19: 小 計 | I19: =I8+I9+I10+I11+I12+I14+I15+I16+I17+I18 -> 0 | M19: =M8+M9+M10+M11+M12+M14+M15+M16+M17+M18 -> 0 | T19: =T8+T9+T10+T11+T12+T14+T15+T16+T17+T18 -> 0 | AA19: =AA8+AA9+AA10+AA11+AA12+AA14+AA15+AA16+AA17+AA18 -> 0 | AE19: 合 計 | AM19: ① | AN19: =計算シート!I12 -> 0 | AQ19: ② | AR19: =計算シート!I13 -> 0 | AV19: 合 計 | BE19: ③ | BF19: =計算シート!I14 -> 0
AE20: （A+B+C)
A21: ○減価償却費の計算
A22: 減価償却資産の 名 称 等 (繰延資産を含む) | G22: 面積又は数量 | I22: 取 得 (成 熟) 年 月 | O22: イ | T22: ロ | X22: 償 却 方 法 | Z22: 耐 用 年 数 | AB22: ハ | AE22: ニ | AI22: ホ | AM22: へ | AP22: ト | AT22: チ | AW22: リ | BB22: ヌ | BF22: 摘 要
O23: 取得価額 | T23: 償却の基礎 になる金額 | AB23: 償却率 | AE23: 本 年 中 の 償 却 期 間 | AI23: 本 年 分 の 普通償却費 （ロ×ハ×ニ） | AM23: 特 別 償却費 | AP23: 本 年 分 の 償却費合計 (ホ＋へ） | AT23: 事業専 用割合 | AW23: 本年分の必要 経費算入額 (ト×チ） | BB23: 未償却残高 (期末残高) | BK23: ='償却資産明細書(入力)'!A5 -> 0
I25: 年号 | K25: 年 | M25: 月
A26: =IF('償却資産明細書(印刷)'!B6="","",'償却資産明細書(印刷)'!B6) -> 着色部分のみ | G26: =IF('償却資産明細書(印刷)'!C6="","",'償却資産明細書(印刷)'!C6) ->  | I26: =IF('償却資産明細書(印刷)'!D6="","",'償却資産明細書(印刷)'!D6) ->  | K26: =IF('償却資産明細書(印刷)'!E6="","",'償却資産明細書(印刷)'!E6) ->  | M26: =IF('償却資産明細書(印刷)'!F6="","",'償却資産明細書(印刷)'!F6) ->  | O26: =IF('償却資産明細書(印刷)'!G6="","",'償却資産明細書(印刷)'!G6) ->  | T26: =IF('償却資産明細書(印刷)'!H6="","",'償却資産明細書(印刷)'!H6) ->  | X26: =IF('償却資産明細書(印刷)'!I6="","",'償却資産明細書(印刷)'!I6) ->  | Z26: =IF('償却資産明細書(印刷)'!J6="","",'償却資産明細書(印刷)'!J6) ->  | AB26: =IF('償却資産明細書(印刷)'!K6="","",'償却資産明細書(印刷)'!K6) ->  | AE26: =IF('償却資産明細書(印刷)'!L6="","",'償却資産明細書(印刷)'!L6) ->  | AG26: 12 | AI26: =IF('償却資産明細書(印刷)'!N6="","",'償却資産明細書(印刷)'!N6) ->  | AM26: =IF('償却資産明細書(印刷)'!O6="","",'償却資産明細書(印刷)'!O6) ->  | AP26: =IF('償却資産明細書(印刷)'!P6="","",'償却資産明細書(印刷)'!P6) ->  | AT26: =IF('償却資産明細書(印刷)'!Q6="","",'償却資産明細書(印刷)'!Q6) ->  | AW26: =IF('償却資産明細書(印刷)'!R6="","",'償却資産明細書(印刷)'!R6) ->  | BB26: =IF('償却資産明細書(印刷)'!S6="","",'償却資産明細書(印刷)'!S6) ->  | BF26: =IF('償却資産明細書(印刷)'!T6="","",'償却資産明細書(印刷)'!T6) -> 
A27: =IF('償却資産明細書(印刷)'!B7="","",'償却資産明細書(印刷)'!B7) -> 入力可能です | G27: =IF('償却資産明細書(印刷)'!C7="","",'償却資産明細書(印刷)'!C7) ->  | I27: =IF('償却資産明細書(印刷)'!D7="","",'償却資産明細書(印刷)'!D7) ->  | K27: =IF('償却資産明細書(印刷)'!E7="","",'償却資産明細書(印刷)'!E7) ->  | M27: =IF('償却資産明細書(印刷)'!F7="","",'償却資産明細書(印刷)'!F7) ->  | O27: =IF('償却資産明細書(印刷)'!G7="","",'償却資産明細書(印刷)'!G7) ->  | T27: =IF('償却資産明細書(印刷)'!H7="","",'償却資産明細書(印刷)'!H7) ->  | X27: =IF('償却資産明細書(印刷)'!I7="","",'償却資産明細書(印刷)'!I7) ->  | Z27: =IF('償却資産明細書(印刷)'!J7="","",'償却資産明細書(印刷)'!J7) ->  | AB27: =IF('償却資産明細書(印刷)'!K7="","",'償却資産明細書(印刷)'!K7) ->  | AE27: =IF('償却資産明細書(印刷)'!L7="","",'償却資産明細書(印刷)'!L7) ->  | AG27: 12 | AI27: =IF('償却資産明細書(印刷)'!N7="","",'償却資産明細書(印刷)'!N7) ->  | AM27: =IF('償却資産明細書(印刷)'!O7="","",'償却資産明細書(印刷)'!O7) ->  | AP27: =IF('償却資産明細書(印刷)'!P7="","",'償却資産明細書(印刷)'!P7) ->  | AT27: =IF('償却資産明細書(印刷)'!Q7="","",'償却資産明細書(印刷)'!Q7) ->  | AW27: =IF('償却資産明細書(印刷)'!R7="","",'償却資産明細書(印刷)'!R7) ->  | BB27: =IF('償却資産明細書(印刷)'!S7="","",'償却資産明細書(印刷)'!S7) ->  | BF27: =IF('償却資産明細書(印刷)'!T7="","",'償却資産明細書(印刷)'!T7) -> 
A28: =IF('償却資産明細書(印刷)'!B8="","",'償却資産明細書(印刷)'!B8) ->  | G28: =IF('償却資産明細書(印刷)'!C8="","",'償却資産明細書(印刷)'!C8) ->  | I28: =IF('償却資産明細書(印刷)'!D8="","",'償却資産明細書(印刷)'!D8) ->  | K28: =IF('償却資産明細書(印刷)'!E8="","",'償却資産明細書(印刷)'!E8) ->  | M28: =IF('償却資産明細書(印刷)'!F8="","",'償却資産明細書(印刷)'!F8) ->  | O28: =IF('償却資産明細書(印刷)'!G8="","",'償却資産明細書(印刷)'!G8) ->  | T28: =IF('償却資産明細書(印刷)'!H8="","",'償却資産明細書(印刷)'!H8) ->  | X28: =IF('償却資産明細書(印刷)'!I8="","",'償却資産明細書(印刷)'!I8) ->  | Z28: =IF('償却資産明細書(印刷)'!J8="","",'償却資産明細書(印刷)'!J8) ->  | AB28: =IF('償却資産明細書(印刷)'!K8="","",'償却資産明細書(印刷)'!K8) ->  | AE28: =IF('償却資産明細書(印刷)'!L8="","",'償却資産明細書(印刷)'!L8) ->  | AG28: 12 | AI28: =IF('償却資産明細書(印刷)'!N8="","",'償却資産明細書(印刷)'!N8) ->  | AM28: =IF('償却資産明細書(印刷)'!O8="","",'償却資産明細書(印刷)'!O8) ->  | AP28: =IF('償却資産明細書(印刷)'!P8="","",'償却資産明細書(印刷)'!P8) ->  | AT28: =IF('償却資産明細書(印刷)'!Q8="","",'償却資産明細書(印刷)'!Q8) ->  | AW28: =IF('償却資産明細書(印刷)'!R8="","",'償却資産明細書(印刷)'!R8) ->  | BB28: =IF('償却資産明細書(印刷)'!S8="","",'償却資産明細書(印刷)'!S8) ->  | BF28: =IF('償却資産明細書(印刷)'!T8="","",'償却資産明細書(印刷)'!T8) ->  | BP28: =IF(BK23>=8,CI28,"") ->  | CI28: 別紙明細書のとおり
A29: =IF('償却資産明細書(印刷)'!B9="","",'償却資産明細書(印刷)'!B9) ->  | G29: =IF('償却資産明細書(印刷)'!C9="","",'償却資産明細書(印刷)'!C9) ->  | I29: =IF('償却資産明細書(印刷)'!D9="","",'償却資産明細書(印刷)'!D9) ->  | K29: =IF('償却資産明細書(印刷)'!E9="","",'償却資産明細書(印刷)'!E9) ->  | M29: =IF('償却資産明細書(印刷)'!F9="","",'償却資産明細書(印刷)'!F9) ->  | O29: =IF('償却資産明細書(印刷)'!G9="","",'償却資産明細書(印刷)'!G9) ->  | T29: =IF('償却資産明細書(印刷)'!H9="","",'償却資産明細書(印刷)'!H9) ->  | X29: =IF('償却資産明細書(印刷)'!I9="","",'償却資産明細書(印刷)'!I9) ->  | Z29: =IF('償却資産明細書(印刷)'!J9="","",'償却資産明細書(印刷)'!J9) ->  | AB29: =IF('償却資産明細書(印刷)'!K9="","",'償却資産明細書(印刷)'!K9) ->  | AE29: =IF('償却資産明細書(印刷)'!L9="","",'償却資産明細書(印刷)'!L9) ->  | AG29: 12 | AI29: =IF('償却資産明細書(印刷)'!N9="","",'償却資産明細書(印刷)'!N9) ->  | AM29: =IF('償却資産明細書(印刷)'!O9="","",'償却資産明細書(印刷)'!O9) ->  | AP29: =IF('償却資産明細書(印刷)'!P9="","",'償却資産明細書(印刷)'!P9) ->  | AT29: =IF('償却資産明細書(印刷)'!Q9="","",'償却資産明細書(印刷)'!Q9) ->  | AW29: =IF('償却資産明細書(印刷)'!R9="","",'償却資産明細書(印刷)'!R9) ->  | BB29: =IF('償却資産明細書(印刷)'!S9="","",'償却資産明細書(印刷)'!S9) ->  | BF29: =IF('償却資産明細書(印刷)'!T9="","",'償却資産明細書(印刷)'!T9) -> 
A30: =IF('償却資産明細書(印刷)'!B10="","",'償却資産明細書(印刷)'!B10) ->  | G30: =IF('償却資産明細書(印刷)'!C10="","",'償却資産明細書(印刷)'!C10) ->  | I30: =IF('償却資産明細書(印刷)'!D10="","",'償却資産明細書(印刷)'!D10) ->  | K30: =IF('償却資産明細書(印刷)'!E10="","",'償却資産明細書(印刷)'!E10) ->  | M30: =IF('償却資産明細書(印刷)'!F10="","",'償却資産明細書(印刷)'!F10) ->  | O30: =IF('償却資産明細書(印刷)'!G10="","",'償却資産明細書(印刷)'!G10) ->  | T30: =IF('償却資産明細書(印刷)'!H10="","",'償却資産明細書(印刷)'!H10) ->  | X30: =IF('償却資産明細書(印刷)'!I10="","",'償却資産明細書(印刷)'!I10) ->  | Z30: =IF('償却資産明細書(印刷)'!J10="","",'償却資産明細書(印刷)'!J10) ->  | AB30: =IF('償却資産明細書(印刷)'!K10="","",'償却資産明細書(印刷)'!K10) ->  | AE30: =IF('償却資産明細書(印刷)'!L10="","",'償却資産明細書(印刷)'!L10) ->  | AG30: 12 | AI30: =IF('償却資産明細書(印刷)'!N10="","",'償却資産明細書(印刷)'!N10) ->  | AM30: =IF('償却資産明細書(印刷)'!O10="","",'償却資産明細書(印刷)'!O10) ->  | AP30: =IF('償却資産明細書(印刷)'!P10="","",'償却資産明細書(印刷)'!P10) ->  | AT30: =IF('償却資産明細書(印刷)'!Q10="","",'償却資産明細書(印刷)'!Q10) ->  | AW30: =IF('償却資産明細書(印刷)'!R10="","",'償却資産明細書(印刷)'!R10) ->  | BB30: =IF('償却資産明細書(印刷)'!S10="","",'償却資産明細書(印刷)'!S10) ->  | BF30: =IF('償却資産明細書(印刷)'!T10="","",'償却資産明細書(印刷)'!T10) -> 
A31: =IF('償却資産明細書(印刷)'!B11="","",'償却資産明細書(印刷)'!B11) ->  | G31: =IF('償却資産明細書(印刷)'!C11="","",'償却資産明細書(印刷)'!C11) ->  | I31: =IF('償却資産明細書(印刷)'!D11="","",'償却資産明細書(印刷)'!D11) ->  | K31: =IF('償却資産明細書(印刷)'!E11="","",'償却資産明細書(印刷)'!E11) ->  | M31: =IF('償却資産明細書(印刷)'!F11="","",'償却資産明細書(印刷)'!F11) ->  | O31: =IF('償却資産明細書(印刷)'!G11="","",'償却資産明細書(印刷)'!G11) ->  | T31: =IF('償却資産明細書(印刷)'!H11="","",'償却資産明細書(印刷)'!H11) ->  | X31: =IF('償却資産明細書(印刷)'!I11="","",'償却資産明細書(印刷)'!I11) ->  | Z31: =IF('償却資産明細書(印刷)'!J11="","",'償却資産明細書(印刷)'!J11) ->  | AB31: =IF('償却資産明細書(印刷)'!K11="","",'償却資産明細書(印刷)'!K11) ->  | AE31: =IF('償却資産明細書(印刷)'!L11="","",'償却資産明細書(印刷)'!L11) ->  | AG31: 12 | AI31: =IF('償却資産明細書(印刷)'!N11="","",'償却資産明細書(印刷)'!N11) ->  | AM31: =IF('償却資産明細書(印刷)'!O11="","",'償却資産明細書(印刷)'!O11) ->  | AP31: =IF('償却資産明細書(印刷)'!P11="","",'償却資産明細書(印刷)'!P11) ->  | AT31: =IF('償却資産明細書(印刷)'!Q11="","",'償却資産明細書(印刷)'!Q11) ->  | AW31: =IF('償却資産明細書(印刷)'!R11="","",'償却資産明細書(印刷)'!R11) ->  | BB31: =IF('償却資産明細書(印刷)'!S11="","",'償却資産明細書(印刷)'!S11) ->  | BF31: =IF('償却資産明細書(印刷)'!T11="","",'償却資産明細書(印刷)'!T11) -> 
A32: =IF('償却資産明細書(印刷)'!B12="","",'償却資産明細書(印刷)'!B12) ->  | G32: =IF('償却資産明細書(印刷)'!C12="","",'償却資産明細書(印刷)'!C12) ->  | I32: =IF('償却資産明細書(印刷)'!D12="","",'償却資産明細書(印刷)'!D12) ->  | K32: =IF('償却資産明細書(印刷)'!E12="","",'償却資産明細書(印刷)'!E12) ->  | M32: =IF('償却資産明細書(印刷)'!F12="","",'償却資産明細書(印刷)'!F12) ->  | O32: =IF('償却資産明細書(印刷)'!G12="","",'償却資産明細書(印刷)'!G12) ->  | T32: =IF('償却資産明細書(印刷)'!H12="","",'償却資産明細書(印刷)'!H12) ->  | X32: =IF('償却資産明細書(印刷)'!I12="","",'償却資産明細書(印刷)'!I12) ->  | Z32: =IF('償却資産明細書(印刷)'!J12="","",'償却資産明細書(印刷)'!J12) ->  | AB32: =IF('償却資産明細書(印刷)'!K12="","",'償却資産明細書(印刷)'!K12) ->  | AE32: =IF('償却資産明細書(印刷)'!L12="","",'償却資産明細書(印刷)'!L12) ->  | AG32: 12 | AI32: =IF('償却資産明細書(印刷)'!N12="","",'償却資産明細書(印刷)'!N12) ->  | AM32: =IF('償却資産明細書(印刷)'!O12="","",'償却資産明細書(印刷)'!O12) ->  | AP32: =IF('償却資産明細書(印刷)'!P12="","",'償却資産明細書(印刷)'!P12) ->  | AT32: =IF('償却資産明細書(印刷)'!Q12="","",'償却資産明細書(印刷)'!Q12) ->  | AW32: =IF('償却資産明細書(印刷)'!R12="","",'償却資産明細書(印刷)'!R12) ->  | BB32: =IF('償却資産明細書(印刷)'!S12="","",'償却資産明細書(印刷)'!S12) ->  | BF32: =IF('償却資産明細書(印刷)'!T12="","",'償却資産明細書(印刷)'!T12) -> 
A33: 合 計 | AI33: ='償却資産明細書(印刷)'!N29 -> 0 | AP33: ='償却資産明細書(印刷)'!P29 -> 0 | AW33: ⑩ | AX33: ='償却資産明細書(印刷)'!R29 -> 0 | BB33: ='償却資産明細書(印刷)'!S29 -> 0
A35: ○果樹･牛馬等の育成費用の計算 | M35: （販売用の牛馬、受託した牛馬は除きます｡） | AY35: ◎本年中における特殊事情
A36: 果樹･牛馬等 の 名 称 | E36: 取得･生産 ･定植等の 年 月 日 | I36: イ | M36: 育 成 費 用 の 明 細 | AK36: ト | AP36: チ | AU36: ロ,ハ,ホ の欄の金 額の計算 方 法
I37: 前年から の繰越額 | M37: ロ | R37: ハ | W37: ニ | AA37: ホ | AF37: ヘ | AK37: 本年中に成熟 し た も の の 取 得 価 額 | AP37: 翌年への繰越額
M38: 本年中の種 苗費、種付 料、素畜費 | R38: 本年中の肥 料、農薬等 の投下費用 | W38: 小 計 （ロ+ハ） | AA38: 育成中の果 樹等から生 じた収入金額 | AF38: 本年に取得価額に加算する金額（ニ－ホ）
AP39: （イ+ヘ-ト）
L40: 円 | Q40: 円 | V40: 円 | W40: =M40+R40 -> 0 | Z40: 円 | AE40: 円 | AF40: =W40-AA40 -> 0 | AJ40: 円 | AO40: 円 | AP40: =I40+AF40-AK40 -> 0 | AT40: 円
W41: =M41+R41 -> 0 | AF41: =W41-AA41 -> 0 | AP41: =I41+AF41-AK41 -> 0
A42: 計 | I42: =SUM(I40:I41) -> 0 | M42: =SUM(M40:M41) -> 0 | R42: =SUM(R40:R41) -> 0 | W42: =計算シート!I50 -> 0 | AA42: =SUM(AA40:AA41) -> 0 | AF42: =W42-AA42 -> 0 | AK42: =SUM(AK40:AK41) -> 0 | AP42: =I42+AF42-AK42 -> 0
A43: －２－
A44: 《中古資産の耐用年数》
A45: （計算した年数に1年未満の端数があるときは、その端数を切り捨てた金額とし、
A46: 計算した年数が2年に満たない場合には、2年とします。）
A47: 法定耐用年数を全部経過したもの ：法定耐用年数×２０％
A48: 法定耐用年数を一部経過したもの:（法定耐用年数ー経過年数）+経過年数×２０％
A49: ○ 償却がすんだものでも、現在使用しているものはすべて書き出して管理してください。

Sheet 償却資産明細書(入力)
X1: =IF(AND(AB6="",AB7="",AB8="",AB9="",AB10="",AB11="",AB12="",AB13="",AB14="",AB15="",AB16="",AB17="",AB18="",AB19="",AB20="",AB21="",AB22="",AB23="",AB24="",AB25="",AB26="",AB27="",AB28=""),"","入力エラーあり") ->  | AA1: =説明書!H1 -> ver.3.4
J2: 平成20年12月までに取得した資産の場合は必ず旧の耐用年数も入力してください。 ↓
B3: 減価償却資産の 名 称 等 (繰延資産を含む) | C3: 面積又は数量 | D3: 取 得 （成 熟） 年 月 | G3: イ | H3: ロ | I3: 償 却 方 法 | J3: 注意 | L3: ハ | M3: ハ | N3: ニ | P3: ホ | Q3: ホ | R3: へ | S3: ト | T3: ト | U3: チ | V3: リ | W3: リ | X3: ヌ | Y3: 資産を処分 した場合・ 処分月 | AA3: 一括償却 取得価格が10万円以上20万円未満の場合
G4: 取得価額 | H4: 償却の基礎 になる金額 | J4: 耐用年数 | L4: 旧 償却率 | M4: 新 償却率 | N4: 本年中 の償却 期 間 | P4: 本 年 分の 普通償却費 （ロ×ハ×ニ) | Q4: 本 年 分の 普通償却費 （ロ×ハ×ニ) | R4: 特 別 償却費 | S4: 本 年 分 の 償却費合計 (ホ＋へ） | T4: 本 年 分 の 償却費合計 (ホ＋へ） | U4: 事業専 用割合 | V4: 本年分の必要 経費算入額 (ト×チ） | W4: 本年分の必要 経費算入額 (ト×チ） | X4: 未償却残高 (期末残高) | AB4: 一括償却資産
A5: =SUM(A6:A28) -> 0 | D5: 年号 | E5: 年 | F5: 月 | J5: 旧 | K5: 新 | T5: （ホ＋ヘ） | W5: （ト×チ）
A6: =IF(D6="","",1) ->  | B6: 着色部分のみ | H6: =IF(D6="","",新償却資産計算!V19) ->  | I6: =IF(D6="","",新償却資産計算!Z19) ->  | L6: =IF(D6="","",IF(AA6="一括償却資産","1/3",償却率!O5)) ->  | M6: =IF(D6="","",IF(AA6="一括償却資産","1/3",新償却資産計算!AD19)) ->  | N6: =IF(D6="","",新償却資産計算!AG19) ->  | O6: 12 | P6: =償却率!BB5 -> 0 | Q6: =IF(D6="","",新償却資産計算!AL19) ->  | S6: =P6+R6 -> 0 | T6: =SUM(Q6:R6) -> 0 | V6: =償却率!BG5 -> 0 | W6: =IF(D6="","",新償却資産計算!AZ19) ->  | X6: =IF(D6="","",新償却資産計算!BE19) ->  | AB6: =IF(AA6="一括償却資産",IF(G6<100000,"×一括償却不可（取得金額が一括償却対象外）。",IF(G6>199999,"×一括償却不可（取得金額が一括償却対象外）","")),"")&IF(AA6="一括償却資産",IF(新償却資産計算!$BA$62-新償却資産計算!CH19>2,"×一括償却期間終了（取得年から3年が経過）",""),"")&IF(Y6="","",IF(AA6="","","×「廃棄月」と「一括償却資産」は同時に入力できません。")) -> 
A7: =IF(D7="","",1) ->  | B7: 入力可能です | H7: =IF(D7="","",新償却資産計算!V20) ->  | I7: =IF(D7="","",新償却資産計算!Z20) ->  | L7: =IF(D7="","",IF(AA7="一括償却資産","1/3",償却率!O6)) ->  | M7: =IF(D7="","",IF(AA7="一括償却資産","1/3",新償却資産計算!AD20)) ->  | N7: =IF(D7="","",新償却資産計算!AG20) ->  | O7: 12 | P7: =償却率!BB6 -> 0 | Q7: =IF(D7="","",新償却資産計算!AL20) ->  | S7: 0 | T7: 0 | V7: =償却率!BG6 -> 0 | W7: =IF(D7="","",新償却資産計算!AZ20) ->  | X7: =IF(D7="","",新償却資産計算!BE20) ->  | AB7: =IF(AA7="一括償却資産",IF(G7<100000,"×一括償却不可（取得金額が一括償却対象外）。",IF(G7>199999,"×一括償却不可（取得金額が一括償却対象外）","")),"")&IF(AA7="一括償却資産",IF(新償却資産計算!$BA$62-新償却資産計算!CH20>2,"×一括償却期間終了（取得年から3年が経過）",""),"")&IF(Y7="","",IF(AA7="","","×「廃棄月」と「一括償却資産」は同時に入力できません。")) -> 
H8: =IF(D8="","",新償却資産計算!V21) ->  | I8: =IF(D8="","",新償却資産計算!Z21) ->  | L8: =IF(D8="","",IF(AA8="一括償却資産","1/3",償却率!O7)) ->  | M8: =IF(D8="","",IF(AA8="一括償却資産","1/3",新償却資産計算!AD21)) ->  | N8: =IF(D8="","",新償却資産計算!AG21) ->  | O8: 12 | P8: =償却率!BB7 -> 0 | Q8: =IF(D8="","",新償却資産計算!AL21) ->  | S8: 0 | T8: 0 | V8: =償却率!BG7 -> 0 | W8: =IF(D8="","",新償却資産計算!AZ21) ->  | X8: =IF(D8="","",新償却資産計算!BE21) ->  | AB8: =IF(AA8="一括償却資産",IF(G8<100000,"×一括償却不可（取得金額が一括償却対象外）。",IF(G8>199999,"×一括償却不可（取得金額が一括償却対象外）","")),"")&IF(AA8="一括償却資産",IF(新償却資産計算!$BA$62-新償却資産計算!CH21>2,"×一括償却期間終了（取得年から3年が経過）",""),"")&IF(Y8="","",IF(AA8="","","×「廃棄月」と「一括償却資産」は同時に入力できません。")) -> 
H9: =IF(D9="","",新償却資産計算!V22) ->  | I9: =IF(D9="","",新償却資産計算!Z22) ->  | L9: =IF(D9="","",IF(AA9="一括償却資産","1/3",償却率!O8)) ->  | M9: =IF(D9="","",IF(AA9="一括償却資産","1/3",新償却資産計算!AD22)) ->  | N9: =IF(D9="","",新償却資産計算!AG22) ->  | O9: 12 | P9: =償却率!BB8 -> 0 | Q9: =IF(D9="","",新償却資産計算!AL22) ->  | S9: 0 | T9: 0 | V9: =償却率!BG8 -> 0 | W9: =IF(D9="","",新償却資産計算!AZ22) ->  | X9: =IF(D9="","",新償却資産計算!BE22) ->  | AB9: =IF(AA9="一括償却資産",IF(G9<100000,"×一括償却不可（取得金額が一括償却対象外）。",IF(G9>199999,"×一括償却不可（取得金額が一括償却対象外）","")),"")&IF(AA9="一括償却資産",IF(新償却資産計算!$BA$62-新償却資産計算!CH22>2,"×一括償却期間終了（取得年から3年が経過）",""),"")&IF(Y9="","",IF(AA9="","","×「廃棄月」と「一括償却資産」は同時に入力できません。")) -> 
H10: =IF(D10="","",新償却資産計算!V23) ->  | I10: =IF(D10="","",新償却資産計算!Z23) ->  | L10: =IF(D10="","",IF(AA10="一括償却資産","1/3",償却率!O9)) ->  | M10: =IF(D10="","",IF(AA10="一括償却資産","1/3",新償却資産計算!AD23)) ->  | N10: =IF(D10="","",新償却資産計算!AG23) ->  | O10: 12 | P10: =償却率!BB9 -> 0 | Q10: =IF(D10="","",新償却資産計算!AL23) ->  | S10: 0 | T10: 0 | V10: =償却率!BG9 -> 0 | W10: =IF(D10="","",新償却資産計算!AZ23) ->  | X10: =IF(D10="","",新償却資産計算!BE23) ->  | AB10: =IF(AA10="一括償却資産",IF(G10<100000,"×一括償却不可（取得金額が一括償却対象外）。",IF(G10>199999,"×一括償却不可（取得金額が一括償却対象外）","")),"")&IF(AA10="一括償却資産",IF(新償却資産計算!$BA$62-新償却資産計算!CH23>2,"×一括償却期間終了（取得年から3年が経過）",""),"")&IF(Y10="","",IF(AA10="","","×「廃棄月」と「一括償却資産」は同時に入力できません。")) -> 
H11: =IF(D11="","",新償却資産計算!V24) ->  | I11: =IF(D11="","",新償却資産計算!Z24) ->  | L11: =IF(D11="","",IF(AA11="一括償却資産","1/3",償却率!O10)) ->  | M11: =IF(D11="","",IF(AA11="一括償却資産","1/3",新償却資産計算!AD24)) ->  | N11: =IF(D11="","",新償却資産計算!AG24) ->  | O11: 12 | P11: =償却率!BB10 -> 0 | Q11: =IF(D11="","",新償却資産計算!AL24) ->  | S11: 0 | T11: 0 | V11: =償却率!BG10 -> 0 | W11: =IF(D11="","",新償却資産計算!AZ24) ->  | X11: =IF(D11="","",新償却資産計算!BE24) ->  | AB11: =IF(AA11="一括償却資産",IF(G11<100000,"×一括償却不可（取得金額が一括償却対象外）。",IF(G11>199999,"×一括償却不可（取得金額が一括償却対象外）","")),"")&IF(AA11="一括償却資産",IF(新償却資産計算!$BA$62-新償却資産計算!CH24>2,"×一括償却期間終了（取得年から3年が経過）",""),"")&IF(Y11="","",IF(AA11="","","×「廃棄月」と「一括償却資産」は同時に入力できません。")) -> 
H12: =IF(D12="","",新償却資産計算!V25) ->  | I12: =IF(D12="","",新償却資産計算!Z25) ->  | L12: =IF(D12="","",IF(AA12="一括償却資産","1/3",償却率!O11)) ->  | M12: =IF(D12="","",IF(AA12="一括償却資産","1/3",新償却資産計算!AD25)) ->  | N12: =IF(D12="","",新償却資産計算!AG25) ->  | O12: 12 | P12: =償却率!BB11 -> 0 | Q12: =IF(D12="","",新償却資産計算!AL25) ->  | S12: 0 | T12: 0 | V12: =償却率!BG11 -> 0 | W12: =IF(D12="","",新償却資産計算!AZ25) ->  | X12: =IF(D12="","",新償却資産計算!BE25) ->  | AB12: =IF(AA12="一括償却資産",IF(G12<100000,"×一括償却不可（取得金額が一括償却対象外）。",IF(G12>199999,"×一括償却不可（取得金額が一括償却対象外）","")),"")&IF(AA12="一括償却資産",IF(新償却資産計算!$BA$62-新償却資産計算!CH25>2,"×一括償却期間終了（取得年から3年が経過）",""),"")&IF(Y12="","",IF(AA12="","","×「廃棄月」と「一括償却資産」は同時に入力できません。")) -> 
H13: =IF(D13="","",新償却資産計算!V26) ->  | I13: =IF(D13="","",新償却資産計算!Z26) ->  | L13: =IF(D13="","",IF(AA13="一括償却資産","1/3",償却率!O12)) ->  | M13: =IF(D13="","",IF(AA13="一括償却資産","1/3",新償却資産計算!AD26)) ->  | N13: =IF(D13="","",新償却資産計算!AG26) ->  | O13: 12 | P13: =償却率!BB12 -> 0 | Q13: =IF(D13="","",新償却資産計算!AL26) ->  | S13: 0 | T13: 0 | V13: =償却率!BG12 -> 0 | W13: =IF(D13="","",新償却資産計算!AZ26) ->  | X13: =IF(D13="","",新償却資産計算!BE26) ->  | AB13: =IF(AA13="一括償却資産",IF(G13<100000,"×一括償却不可（取得金額が一括償却対象外）。",IF(G13>199999,"×一括償却不可（取得金額が一括償却対象外）","")),"")&IF(AA13="一括償却資産",IF(新償却資産計算!$BA$62-新償却資産計算!CH26>2,"×一括償却期間終了（取得年から3年が経過）",""),"")&IF(Y13="","",IF(AA13="","","×「廃棄月」と「一括償却資産」は同時に入力できません。")) -> 
H14: =IF(D14="","",新償却資産計算!V27) ->  | I14: =IF(D14="","",新償却資産計算!Z27) ->  | L14: =IF(D14="","",IF(AA14="一括償却資産","1/3",償却率!O13)) ->  | M14: =IF(D14="","",IF(AA14="一括償却資産","1/3",新償却資産計算!AD27)) ->  | N14: =IF(D14="","",新償却資産計算!AG27) ->  | O14: 12 | P14: =償却率!BB13 -> 0 | Q14: =IF(D14="","",新償却資産計算!AL27) ->  | S14: 0 | T14: 0 | V14: =償却率!BG13 -> 0 | W14: =IF(D14="","",新償却資産計算!AZ27) ->  | X14: =IF(D14="","",新償却資産計算!BE27) ->  | AB14: =IF(AA14="一括償却資産",IF(G14<100000,"×一括償却不可（取得金額が一括償却対象外）。",IF(G14>199999,"×一括償却不可（取得金額が一括償却対象外）","")),"")&IF(AA14="一括償却資産",IF(新償却資産計算!$BA$62-新償却資産計算!CH27>2,"×一括償却期間終了（取得年から3年が経過）",""),"")&IF(Y14="","",IF(AA14="","","×「廃棄月」と「一括償却資産」は同時に入力できません。")) -> 
H15: =IF(D15="","",新償却資産計算!V28) ->  | I15: =IF(D15="","",新償却資産計算!Z28) ->  | L15: =IF(D15="","",IF(AA15="一括償却資産","1/3",償却率!O14)) ->  | M15: =IF(D15="","",IF(AA15="一括償却資産","1/3",新償却資産計算!AD28)) ->  | N15: =IF(D15="","",新償却資産計算!AG28) ->  | O15: 12 | P15: =償却率!BB14 -> 0 | Q15: =IF(D15="","",新償却資産計算!AL28) ->  | S15: 0 | T15: 0 | V15: =償却率!BG14 -> 0 | W15: =IF(D15="","",新償却資産計算!AZ28) ->  | X15: =IF(D15="","",新償却資産計算!BE28) ->  | AB15: =IF(AA15="一括償却資産",IF(G15<100000,"×一括償却不可（取得金額が一括償却対象外）。",IF(G15>199999,"×一括償却不可（取得金額が一括償却対象外）","")),"")&IF(AA15="一括償却資産",IF(新償却資産計算!$BA$62-新償却資産計算!CH28>2,"×一括償却期間終了（取得年から3年が経過）",""),"")&IF(Y15="","",IF(AA15="","","×「廃棄月」と「一括償却資産」は同時に入力できません。")) -> 
H16: =IF(D16="","",新償却資産計算!V29) ->  | I16: =IF(D16="","",新償却資産計算!Z29) ->  | L16: =IF(D16="","",IF(AA16="一括償却資産","1/3",償却率!O15)) ->  | M16: =IF(D16="","",IF(AA16="一括償却資産","1/3",新償却資産計算!AD29)) ->  | N16: =IF(D16="","",新償却資産計算!AG29) ->  | O16: 12 | P16: =償却率!BB15 -> 0 | Q16: =IF(D16="","",新償却資産計算!AL29) ->  | S16: 0 | T16: 0 | V16: =償却率!BG15 -> 0 | W16: =IF(D16="","",新償却資産計算!AZ29) ->  | X16: =IF(D16="","",新償却資産計算!BE29) ->  | AB16: =IF(AA16="一括償却資産",IF(G16<100000,"×一括償却不可（取得金額が一括償却対象外）。",IF(G16>199999,"×一括償却不可（取得金額が一括償却対象外）","")),"")&IF(AA16="一括償却資産",IF(新償却資産計算!$BA$62-新償却資産計算!CH29>2,"×一括償却期間終了（取得年から3年が経過）",""),"")&IF(Y16="","",IF(AA16="","","×「廃棄月」と「一括償却資産」は同時に入力できません。")) -> 
H17: =IF(D17="","",新償却資産計算!V30) ->  | I17: =IF(D17="","",新償却資産計算!Z30) ->  | L17: =IF(D17="","",IF(AA17="一括償却資産","1/3",償却率!O16)) ->  | M17: =IF(D17="","",IF(AA17="一括償却資産","1/3",新償却資産計算!AD30)) ->  | N17: =IF(D17="","",新償却資産計算!AG30) ->  | O17: 12 | P17: =償却率!BB16 -> 0 | Q17: =IF(D17="","",新償却資産計算!AL30) ->  | S17: 0 | T17: 0 | V17: =償却率!BG16 -> 0 | W17: =IF(D17="","",新償却資産計算!AZ30) ->  | X17: =IF(D17="","",新償却資産計算!BE30) ->  | AB17: =IF(AA17="一括償却資産",IF(G17<100000,"×一括償却不可（取得金額が一括償却対象外）。",IF(G17>199999,"×一括償却不可（取得金額が一括償却対象外）","")),"")&IF(AA17="一括償却資産",IF(新償却資産計算!$BA$62-新償却資産計算!CH30>2,"×一括償却期間終了（取得年から3年が経過）",""),"")&IF(Y17="","",IF(AA17="","","×「廃棄月」と「一括償却資産」は同時に入力できません。")) -> 
H18: =IF(D18="","",新償却資産計算!V31) ->  | I18: =IF(D18="","",新償却資産計算!Z31) ->  | L18: =IF(D18="","",IF(AA18="一括償却資産","1/3",償却率!O17)) ->  | M18: =IF(D18="","",IF(AA18="一括償却資産","1/3",新償却資産計算!AD31)) ->  | N18: =IF(D18="","",新償却資産計算!AG31) ->  | O18: 12 | P18: =償却率!BB17 -> 0 | Q18: =IF(D18="","",新償却資産計算!AL31) ->  | S18: 0 | T18: 0 | V18: =償却率!BG17 -> 0 | W18: =IF(D18="","",新償却資産計算!AZ31) ->  | X18: =IF(D18="","",新償却資産計算!BE31) ->  | AB18: =IF(AA18="一括償却資産",IF(G18<100000,"×一括償却不可（取得金額が一括償却対象外）。",IF(G18>199999,"×一括償却不可（取得金額が一括償却対象外）","")),"")&IF(AA18="一括償却資産",IF(新償却資産計算!$BA$62-新償却資産計算!CH31>2,"×一括償却期間終了（取得年から3年が経過）",""),"")&IF(Y18="","",IF(AA18="","","×「廃棄月」と「一括償却資産」は同時に入力できません。")) -> 
H19: =IF(D19="","",新償却資産計算!V32) ->  | I19: =IF(D19="","",新償却資産計算!Z32) ->  | L19: =IF(D19="","",IF(AA19="一括償却資産","1/3",償却率!O18)) ->  | M19: =IF(D19="","",IF(AA19="一括償却資産","1/3",新償却資産計算!AD32)) ->  | N19: =IF(D19="","",新償却資産計算!AG32) ->  | O19: 12 | P19: =償却率!BB18 -> 0 | Q19: =IF(D19="","",新償却資産計算!AL32) ->  | S19: 0 | T19: 0 | V19: =償却率!BG18 -> 0 | W19: =IF(D19="","",新償却資産計算!AZ32) ->  | X19: =IF(D19="","",新償却資産計算!BE32) ->  | AB19: =IF(AA19="一括償却資産",IF(G19<100000,"×一括償却不可（取得金額が一括償却対象外）。",IF(G19>199999,"×一括償却不可（取得金額が一括償却対象外）","")),"")&IF(AA19="一括償却資産",IF(新償却資産計算!$BA$62-新償却資産計算!CH32>2,"×一括償却期間終了（取得年から3年が経過）",""),"")&IF(Y19="","",IF(AA19="","","×「廃棄月」と「一括償却資産」は同時に入力できません。")) -> 
H20: =IF(D20="","",新償却資産計算!V33) ->  | I20: =IF(D20="","",新償却資産計算!Z33) ->  | L20: =IF(D20="","",IF(AA20="一括償却資産","1/3",償却率!O19)) ->  | M20: =IF(D20="","",IF(AA20="一括償却資産","1/3",新償却資産計算!AD33)) ->  | N20: =IF(D20="","",新償却資産計算!AG33) ->  | O20: 12 | P20: =償却率!BB19 -> 0 | Q20: =IF(D20="","",新償却資産計算!AL33) ->  | S20: 0 | T20: 0 | V20: =償却率!BG19 -> 0 | W20: =IF(D20="","",新償却資産計算!AZ33) ->  | X20: =IF(D20="","",新償却資産計算!BE33) ->  | AB20: =IF(AA20="一括償却資産",IF(G20<100000,"×一括償却不可（取得金額が一括償却対象外）。",IF(G20>199999,"×一括償却不可（取得金額が一括償却対象外）","")),"")&IF(AA20="一括償却資産",IF(新償却資産計算!$BA$62-新償却資産計算!CH33>2,"×一括償却期間終了（取得年から3年が経過）",""),"")&IF(Y20="","",IF(AA20="","","×「廃棄月」と「一括償却資産」は同時に入力できません。")) -> 
H21: =IF(D21="","",新償却資産計算!V34) ->  | I21: =IF(D21="","",新償却資産計算!Z34) ->  | L21: =IF(D21="","",IF(AA21="一括償却資産","1/3",償却率!O20)) ->  | M21: =IF(D21="","",IF(AA21="一括償却資産","1/3",新償却資産計算!AD34)) ->  | N21: =IF(D21="","",新償却資産計算!AG34) ->  | O21: 12 | P21: =償却率!BB20 -> 0 | Q21: =IF(D21="","",新償却資産計算!AL34) ->  | S21: 0 | T21: 0 | V21: =償却率!BG20 -> 0 | W21: =IF(D21="","",新償却資産計算!AZ34) ->  | X21: =IF(D21="","",新償却資産計算!BE34) ->  | AB21: =IF(AA21="一括償却資産",IF(G21<100000,"×一括償却不可（取得金額が一括償却対象外）。",IF(G21>199999,"×一括償却不可（取得金額が一括償却対象外）","")),"")&IF(AA21="一括償却資産",IF(新償却資産計算!$BA$62-新償却資産計算!CH34>2,"×一括償却期間終了（取得年から3年が経過）",""),"")&IF(Y21="","",IF(AA21="","","×「廃棄月」と「一括償却資産」は同時に入力できません。")) -> 
H22: =IF(D22="","",新償却資産計算!V35) ->  | I22: =IF(D22="","",新償却資産計算!Z35) ->  | L22: =IF(D22="","",IF(AA22="一括償却資産","1/3",償却率!O21)) ->  | M22: =IF(D22="","",IF(AA22="一括償却資産","1/3",新償却資産計算!AD35)) ->  | N22: =IF(D22="","",新償却資産計算!AG35) ->  | O22: 12 | P22: =償却率!BB21 -> 0 | Q22: =IF(D22="","",新償却資産計算!AL35) ->  | S22: 0 | T22: 0 | V22: =償却率!BG21 -> 0 | W22: =IF(D22="","",新償却資産計算!AZ35) ->  | X22: =IF(D22="","",新償却資産計算!BE35) ->  | AB22: =IF(AA22="一括償却資産",IF(G22<100000,"×一括償却不可（取得金額が一括償却対象外）。",IF(G22>199999,"×一括償却不可（取得金額が一括償却対象外）","")),"")&IF(AA22="一括償却資産",IF(新償却資産計算!$BA$62-新償却資産計算!CH35>2,"×一括償却期間終了（取得年から3年が経過）",""),"")&IF(Y22="","",IF(AA22="","","×「廃棄月」と「一括償却資産」は同時に入力できません。")) -> 
H23: =IF(D23="","",新償却資産計算!V36) ->  | I23: =IF(D23="","",新償却資産計算!Z36) ->  | L23: =IF(D23="","",IF(AA23="一括償却資産","1/3",償却率!O22)) ->  | M23: =IF(D23="","",IF(AA23="一括償却資産","1/3",新償却資産計算!AD36)) ->  | N23: =IF(D23="","",新償却資産計算!AG36) ->  | O23: 12 | P23: =償却率!BB22 -> 0 | Q23: =IF(D23="","",新償却資産計算!AL36) ->  | S23: 0 | T23: 0 | V23: =償却率!BG22 -> 0 | W23: =IF(D23="","",新償却資産計算!AZ36) ->  | X23: =IF(D23="","",新償却資産計算!BE36) ->  | AB23: =IF(AA23="一括償却資産",IF(G23<100000,"×一括償却不可（取得金額が一括償却対象外）。",IF(G23>199999,"×一括償却不可（取得金額が一括償却対象外）","")),"")&IF(AA23="一括償却資産",IF(新償却資産計算!$BA$62-新償却資産計算!CH36>2,"×一括償却期間終了（取得年から3年が経過）",""),"")&IF(Y23="","",IF(AA23="","","×「廃棄月」と「一括償却資産」は同時に入力できません。")) -> 
H24: =IF(D24="","",新償却資産計算!V37) ->  | I24: =IF(D24="","",新償却資産計算!Z37) ->  | L24: =IF(D24="","",IF(AA24="一括償却資産","1/3",償却率!O23)) ->  | M24: =IF(D24="","",IF(AA24="一括償却資産","1/3",新償却資産計算!AD37)) ->  | N24: =IF(D24="","",新償却資産計算!AG37) ->  | O24: 12 | P24: =償却率!BB23 -> 0 | Q24: =IF(D24="","",新償却資産計算!AL37) ->  | S24: 0 | T24: 0 | V24: =償却率!BG23 -> 0 | W24: =IF(D24="","",新償却資産計算!AZ37) ->  | X24: =IF(D24="","",新償却資産計算!BE37) ->  | AB24: =IF(AA24="一括償却資産",IF(G24<100000,"×一括償却不可（取得金額が一括償却対象外）。",IF(G24>199999,"×一括償却不可（取得金額が一括償却対象外）","")),"")&IF(AA24="一括償却資産",IF(新償却資産計算!$BA$62-新償却資産計算!CH37>2,"×一括償却期間終了（取得年から3年が経過）",""),"")&IF(Y24="","",IF(AA24="","","×「廃棄月」と「一括償却資産」は同時に入力できません。")) -> 
H25: =IF(D25="","",新償却資産計算!V38) ->  | I25: =IF(D25="","",新償却資産計算!Z38) ->  | L25: =IF(D25="","",IF(AA25="一括償却資産","1/3",償却率!O24)) ->  | M25: =IF(D25="","",IF(AA25="一括償却資産","1/3",新償却資産計算!AD38)) ->  | N25: =IF(D25="","",新償却資産計算!AG38) ->  | O25: 12 | P25: =償却率!BB24 -> 0 | Q25: =IF(D25="","",新償却資産計算!AL38) ->  | S25: 0 | T25: 0 | V25: =償却率!BG24 -> 0 | W25: =IF(D25="","",新償却資産計算!AZ38) ->  | X25: =IF(D25="","",新償却資産計算!BE38) ->  | AB25: =IF(AA25="一括償却資産",IF(G25<100000,"×一括償却不可（取得金額が一括償却対象外）。",IF(G25>199999,"×一括償却不可（取得金額が一括償却対象外）","")),"")&IF(AA25="一括償却資産",IF(新償却資産計算!$BA$62-新償却資産計算!CH38>2,"×一括償却期間終了（取得年から3年が経過）",""),"")&IF(Y25="","",IF(AA25="","","×「廃棄月」と「一括償却資産」は同時に入力できません。")) -> 
H26: =IF(D26="","",新償却資産計算!V39) ->  | I26: =IF(D26="","",新償却資産計算!Z39) ->  | L26: =IF(D26="","",IF(AA26="一括償却資産","1/3",償却率!O25)) ->  | M26: =IF(D26="","",IF(AA26="一括償却資産","1/3",新償却資産計算!AD39)) ->  | N26: =IF(D26="","",新償却資産計算!AG39) ->  | O26: 12 | P26: =償却率!BB25 -> 0 | Q26: =IF(D26="","",新償却資産計算!AL39) ->  | S26: 0 | T26: 0 | V26: =償却率!BG25 -> 0 | W26: =IF(D26="","",新償却資産計算!AZ39) ->  | X26: =IF(D26="","",新償却資産計算!BE39) ->  | AB26: =IF(AA26="一括償却資産",IF(G26<100000,"×一括償却不可（取得金額が一括償却対象外）。",IF(G26>199999,"×一括償却不可（取得金額が一括償却対象外）","")),"")&IF(AA26="一括償却資産",IF(新償却資産計算!$BA$62-新償却資産計算!CH39>2,"×一括償却期間終了（取得年から3年が経過）",""),"")&IF(Y26="","",IF(AA26="","","×「廃棄月」と「一括償却資産」は同時に入力できません。")) -> 
H27: =IF(D27="","",新償却資産計算!V40) ->  | I27: =IF(D27="","",新償却資産計算!Z40) ->  | L27: =IF(D27="","",IF(AA27="一括償却資産","1/3",償却率!O26)) ->  | M27: =IF(D27="","",IF(AA27="一括償却資産","1/3",新償却資産計算!AD40)) ->  | N27: =IF(D27="","",新償却資産計算!AG40) ->  | O27: 12 | P27: =償却率!BB26 -> 0 | Q27: =IF(D27="","",新償却資産計算!AL40) ->  | S27: 0 | T27: 0 | V27: =償却率!BG26 -> 0 | W27: =IF(D27="","",新償却資産計算!AZ40) ->  | X27: =IF(D27="","",新償却資産計算!BE40) ->  | AB27: =IF(AA27="一括償却資産",IF(G27<100000,"×一括償却不可（取得金額が一括償却対象外）。",IF(G27>199999,"×一括償却不可（取得金額が一括償却対象外）","")),"")&IF(AA27="一括償却資産",IF(新償却資産計算!$BA$62-新償却資産計算!CH40>2,"×一括償却期間終了（取得年から3年が経過）",""),"")&IF(Y27="","",IF(AA27="","","×「廃棄月」と「一括償却資産」は同時に入力できません。")) -> 
H28: =IF(D28="","",新償却資産計算!V41) ->  | I28: =IF(D28="","",新償却資産計算!Z41) ->  | L28: =IF(D28="","",IF(AA28="一括償却資産","1/3",償却率!O27)) ->  | M28: =IF(D28="","",IF(AA28="一括償却資産","1/3",新償却資産計算!AD41)) ->  | N28: =IF(D28="","",新償却資産計算!AG41) ->  | O28: 12 | P28: =償却率!BB27 -> 0 | Q28: =IF(D28="","",新償却資産計算!AL41) ->  | S28: 0 | T28: 0 | V28: =償却率!BG27 -> 0 | W28: =IF(D28="","",新償却資産計算!AZ41) ->  | X28: =IF(D28="","",新償却資産計算!BE41) ->  | AB28: =IF(AA28="一括償却資産",IF(G28<100000,"×一括償却不可（取得金額が一括償却対象外）。",IF(G28>199999,"×一括償却不可（取得金額が一括償却対象外）","")),"")&IF(AA28="一括償却資産",IF(新償却資産計算!$BA$62-新償却資産計算!CH41>2,"×一括償却期間終了（取得年から3年が経過）",""),"")&IF(Y28="","",IF(AA28="","","×「廃棄月」と「一括償却資産」は同時に入力できません。")) -> 
B29: 小計 | P29: =SUM(P6:P28) -> 0 | Q29: =SUM(Q6:Q28) -> 0 | S29: 0 | T29: =SUM(T6:T28) -> 0 | V29: =SUM(V6:V28) -> 0 | W29: =SUM(W6:W28) -> 0 | X29: =SUM(X6:X28) -> 0
B58: 1
B59: 2
B60: 3
B61: 4
B62: 5
B63: 6
B64: 7
B65: 8
B66: 9
B67: 10
B68: 11
B69: 12
B72: 一括償却資産

Sheet 耐用年数表
F1: 中古資産の場合(□にチェック） | H1: 製造年 | J1: 取得年 | O1: 経過年数 | Q1: =Q106-Q110 -> 30
G2: =IF(O2=TRUE,"中古資産","") ->  | H2: 平成 | I2: 1 | J2: 令和 | K2: 1 | O2: FALSE
F4: 製造年、取得年を入力してください。 | K4: 新品の場合 | N4: 中古の場合
B5: 構 造 又 は 用 途 | D5: 細 目 | K5: 改正前 耐用年数 | L5: 改正後 耐用年数 | N5: 改正前 耐用年数 | O5: 改正後 耐用年数
A7: よく出てくるもの | D7: ・乗用型トラクター・籾すり機・乾燥機 | K7: 8 | L7: 7 | N7: =IF(R7<2,2,ROUNDDOWN(R7,0)) -> 2 | O7: =IF(S7<2,2,ROUNDDOWN(S7,0)) -> 2 | R7: =IF($Q$1>=K7,0.2*K7,K7-($Q$1*0.8)) -> 1.6 | S7: 1.4
D8: ・歩行型トラクター(耕運機)・田植機・自脱型コンバイン | K8: 5 | L8: 7 | N8: =IF(R8<2,2,ROUNDDOWN(R8,0)) -> 2 | O8: =IF(S8<2,2,ROUNDDOWN(S8,0)) -> 2 | R8: 1 | S8: 1.4 | V8: 1
D9: ・軽トラック | K9: 4 | L9: 4 | N9: =IF(R9<2,2,ROUNDDOWN(R9,0)) -> 2 | O9: 2 | R9: 0.8 | S9: 0.8 | V9: 2
A10: ① 建 物 | B10: 木造のもの | D10: ・店舗用、住宅用のもの | K10: 22 | L10: 22 | N10: 4 | O10: 4 | R10: 4.4 | S10: 4.4 | V10: 3
D11: ・倉庫用、作業場用のもの | K11: 15 | L11: 15 | N11: 3 | O11: 3 | R11: 3 | S11: 3 | V11: 4
D12: (但し、著しく腐食性、及び蒸気の影響を直接全面的に受けるもの、著しく潮解性の固体を常置するものを除く) | V12: 5
B13: 木造モルタル造のもの | D13: ・店舗用、住宅用のもの | K13: 20 | L13: 20 | N13: =IF(R13<2,2,ROUNDDOWN(R13,0)) -> 4 | O13: 4 | R13: =IF($Q$1>=K13,0.2*K13,K13-($Q$1*0.8)) -> 4 | S13: =IF($Q$1>=L13,0.2*L13,L13-($Q$1*0.8)) -> 4 | V13: 6
D14: ・倉庫用、作業場用のもの | K14: 14 | L14: 14 | N14: 2 | O14: 2 | R14: 2.8 | S14: 2.8 | V14: 7
B15: 簡易建物 | D15: ・木製主要柱が10cm角以下で土居ぶき、杉皮ぶき、ﾙｰﾌｨﾝｸﾞぶき、ﾄﾀﾝぶき | K15: 10 | L15: 10 | N15: 2 | O15: 2 | R15: 2 | S15: 2 | V15: 8
D16: ・掘立造のもの及び仮設のもの | K16: 7 | L16: 7 | N16: 2 | O16: 2 | R16: 1.4 | S16: 1.4 | V16: 9
B17: 金 属 造 | C17: 骨格材の肉厚が | D17: ・店舗用、住宅用のもの | K17: 34 | L17: 34 | N17: 10 | O17: 10 | R17: 10 | S17: 10 | V17: 10
C18: 4㎜超のもの | D18: ・倉庫用、作業場用のもの | K18: 31 | L18: 31 | N18: 7 | O18: 7 | R18: 7 | S18: 7 | V18: 11
C19: 〃 | D19: ・店舗用、住宅用のもの | K19: 27 | L19: 27 | N19: 5 | O19: 5 | R19: 5.4 | S19: 5.4 | V19: 12
C20: 3㎜超 4㎜以下のもの | D20: ・倉庫用、作業場用のもの | K20: 24 | L20: 24 | N20: 4 | O20: 4 | R20: 4.8 | S20: 4.8 | V20: 13
C21: 〃 | D21: ・店舗用、住宅用のもの | K21: 19 | L21: 19 | N21: 3 | O21: 3 | R21: 3.8 | S21: 3.8 | V21: 14
C22: 3㎜以下のもの | D22: ・倉庫用、作業場用のもの | K22: 17 | L22: 17 | N22: 3 | O22: 3 | R22: 3.4 | S22: 3.4 | V22: 15
B23: れんが造、石造、ブロ | D23: ・店舗用、住宅用のもの | K23: 38 | L23: 38 | N23: 14 | O23: 14 | R23: 14 | S23: 14 | V23: 16
B24: ック造のもの | D24: ・倉庫用、作業場用のもの | K24: 34 | L24: 34 | N24: 10 | O24: 10 | R24: 10 | S24: 10 | V24: 17
B25: 鉄骨鉄筋コンクリート | D25: ・住宅用 | K25: 47 | L25: 47 | N25: 23 | O25: 23 | R25: 23 | S25: 23 | V25: 18
B26: 造・鉄筋コンクリート | D26: ・店舗用 | K26: 39 | L26: 39 | N26: 15 | O26: 15 | R26: 15 | S26: 15 | V26: 19
B27: 造のもの | D27: ・倉庫用、作業場用 | K27: 38 | L27: 38 | N27: 14 | O27: 14 | R27: 14 | S27: 14 | V27: 20
A28: ② 車両 | D28: ○自動車（二輪又は三輪自動車を除く） | V28: 21
D29: ・小型車（660cc以下） | K29: 4 | L29: 4 | N29: =IF(R29<2,2,ROUNDDOWN(R29,0)) -> 2 | O29: 2 | R29: =IF($Q$1>=K29,0.2*K29,K29-($Q$1*0.8)) -> 0.8 | S29: =IF($Q$1>=L29,0.2*L29,L29-($Q$1*0.8)) -> 0.8 | V29: 22
D30: ・その他のもの | V30: 23
D31: 貨物自動車（ダンプ式のもの） | K31: 4 | L31: 4 | N31: 2 | O31: 2 | R31: =IF($Q$1>=K31,0.2*K31,K31-($Q$1*0.8)) -> 0.8 | S31: 0.8 | V31: 24
D32: 貨物自動車（ダンプ式でないもの） | K32: 5 | L32: 5 | N32: 2 | O32: 2 | R32: 1 | S32: 1 | V32: 25
D33: その他のもの | K33: 6 | L33: 6 | N33: 2 | O33: 2 | R33: 1.2 | S33: 1.2 | V33: 26
A34: ③ 構築物 | B34: 主としてコンクリート造 | D34: ○ 果樹又はホップだな、斜降索道設備及び牧さく(電気牧さくを含む。) | K34: 17 | L34: 14 | N34: 3 | O34: 2 | R34: 3.4 | S34: 2.8 | V34: 27
B35: れんが造、石造又はブロ | D35: ○ その他のもの(例:頭首工、えん堤、ひ門、用水路、かんがい用配管、 | K35: 20 | L35: 17 | N35: 4 | O35: 3 | R35: 4 | S35: 3.4 | V35: 28
B36: ック造の構築物 | D36: 農用井戸、貯水そう、肥料だめ、たい肥盤、温床わく、サイロ、あぜ等 | V36: 29
B37: 主として金属造の構築物 | D37: ○ 斜降索道設備 | K37: 13 | L37: 14 | N37: 2 | O37: 2 | R37: =IF($Q$1>=K37,0.2*K37,K37-($Q$1*0.8)) -> 2.6 | S37: 2.8 | V37: 30
D38: ○ その他のもの(例:農用井戸、かん水用又は果樹だな等) | K38: 15 | L38: 14 | N38: 3 | O38: 2 | R38: 3 | S38: 2.8 | V38: 31
B39: 主として木造の構築物 | D39: 例:果樹又はホップだな、斜降索道設備、稲架、牧さく(電気牧さくを含む)等 | K39: 5 | L39: 5 | N39: 2 | O39: 2 | R39: 1 | S39: 1 | V39: 32
B40: 土管を主とした構築物 | D40: 例:暗きょ、農用井戸、かんがい用配管等 | K40: 10 | L40: 10 | N40: 2 | O40: 2 | R40: 2 | S40: 2 | V40: 33
B41: その他の構築物 | D41: 例:薬剤散布及びかんがい用塩化ビニール配管等 | K41: 8 | L41: 8 | N41: 2 | O41: 2 | R41: 1.6 | S41: 1.6 | V41: 34
A42: ④ 機械及び装置 | B42: 電 動 機 | D42: 例:モーター | K42: 10 | L42: 7 | N42: 2 | O42: 2 | R42: 2 | S42: 1.4 | V42: 35
A43: 農業用設備 | B43: 内燃機関、ボイラー及び | D43: 例:ディーゼルエンジン、ガソリンエンジン、ボイラー等 | K43: 8 | L43: 7 | N43: 2 | O43: 2 | R43: 1.6 | S43: 1.4 | V43: 36
A44: （農機具） | B44: ポンプ | V44: 37
B45: トラクター | D45: ○ 歩行型トラクター(耕運機) | K45: 5 | L45: 7 | N45: 2 | O45: 2 | R45: =IF($Q$1>=K45,0.2*K45,K45-($Q$1*0.8)) -> 1 | S45: 1.4 | V45: 38
D46: ○ その他のもの (例:乗用型トラクター等) | K46: 8 | L46: 7 | N46: 2 | O46: 2 | R46: 1.6 | S46: 1.4 | V46: 39
B47: 耕うん整地用機具 | D47: 例:プラウ、ロータリー、ハロー、代掻機、鎮圧機、均平機、うねたて機、 | K47: 5 | L47: 7 | N47: 2 | O47: 2 | R47: 1 | S47: 1.4 | V47: 40
D48: あぜ塗り機等 | V48: 41
B49: 耕土造成改良用機具 | D49: 例:抜根機、心土破砕機、みぞ堀り機、穴掘り機等 | K49: 5 | L49: 7 | N49: 2 | O49: 2 | R49: =IF($Q$1>=K49,0.2*K49,K49-($Q$1*0.8)) -> 1 | S49: =IF($Q$1>=L49,0.2*L49,L49-($Q$1*0.8)) -> 1.4 | V49: 42
D50: 例:たい肥散布機(ﾏﾆｱｽﾌﾟﾚｯﾀﾞ)、石灰散布機(ﾗｲﾑｿｰﾜ)、は種機、施肥は種機 | K50: 5 | L50: 7 | N50: 2 | O50: 2 | R50: =IF($Q$1>=K50,0.2*K50,K50-($Q$1*0.8)) -> 1 | S50: =IF($Q$1>=L50,0.2*L50,L50-($Q$1*0.8)) -> 1.4 | V50: 43
D51: (ブロードキャスタを含む。)、田植機、移植機、育苗機、中耕除草機、 | V51: 44
B52: 栽培管理用機具 | D52: ｽﾌﾟﾘﾝｸﾗｰ、マルチャ、動力剪定機、暖房機、温室自動天窓開閉装置、 | V52: 45
D53: 温室自動換気装置、温室用施肥かん水装置(除く槽・ポンプ)、剪枝機、 | V53: 46
D54: 走行式作業台、管理機等 | V54: 47
B55: 防除用機具 | D55: 例:スピードスプレイヤー、散粉機、噴霧機、ミスト機、煙霧機、土壌消毒機等 | K55: 5 | L55: 7 | N55: 2 | O55: 2 | R55: =IF($Q$1>=K55,0.2*K55,K55-($Q$1*0.8)) -> 1 | S55: =IF($Q$1>=L55,0.2*L55,L55-($Q$1*0.8)) -> 1.4 | V55: 48
D56: ○ 自脱型コンバイン、刈取機(ｳｲﾝﾄﾞﾛｰﾜをのぞき、ﾊﾞｲﾝﾀﾞｰを含む)、稲わら収穫機 | K56: 5 | L56: 7 | N56: 2 | O56: 2 | R56: =IF($Q$1>=K56,0.2*K56,K56-($Q$1*0.8)) -> 1 | S56: =IF($Q$1>=L56,0.2*L56,L56-($Q$1*0.8)) -> 1.4 | V56: 49
B57: 穀類収穫調製用機具 | D57: (自走式のものを除く)、わら処理カッター | V57: 50
D58: ○ その他のもの | K58: 8 | L58: 7 | N58: 2 | O58: 2 | R58: =IF($Q$1>=K58,0.2*K58,K58-($Q$1*0.8)) -> 1.6 | S58: =IF($Q$1>=L58,0.2*L58,L58-($Q$1*0.8)) -> 1.4
D59: 例:普通型コンバイン、ウインドローワ、籾すり機、脱穀機、穀物乾燥機等
D60: ○ モーア、ヘーコンディショナー(自走式のものを除く)、ヘーレーキ、ヘーテッダー | K60: 5 | L60: 7 | N60: 2 | O60: 2 | R60: =IF($Q$1>=K60,0.2*K60,K60-($Q$1*0.8)) -> 1 | S60: =IF($Q$1>=L60,0.2*L60,L60-($Q$1*0.8)) -> 1.4
D61: ヘーテッダーレーキ、フォレージハーベスタ(自走式のものを除く)、ヘーベーラー
D62: (自走式のものを除く)、ヘープレス、ヘーローダー、ヘードライヤー
D63: (連続式のものを除く)、ヘーエレバーター、フォレージブロアー、
B64: 飼料作物収穫調製用機具 | D64: サイレージデイストリビュータ、サイレージアンローダー、飼料細断機
D65: ○ その他のもの | K65: 8 | L65: 7 | N65: 2 | O65: 2 | R65: =IF($Q$1>=K65,0.2*K65,K65-($Q$1*0.8)) -> 1.6 | S65: =IF($Q$1>=L65,0.2*L65,L65-($Q$1*0.8)) -> 1.4
D66: 例:自走式フォレージハーベスター、自走式ヘーコンデショナー、
D67: 自走式モアコンデショナー、自走式ヘーベーラー、連続式自動ドライヤー、
D68: 飼料成形機等
B69: 果樹・野菜又は花き収穫 | D69: ○ 野菜洗浄機、清浄器及び堀取機 | K69: 5 | L69: 7 | N69: 2 | O69: 2 | R69: =IF($Q$1>=K69,0.2*K69,K69-($Q$1*0.8)) -> 1 | S69: =IF($Q$1>=L69,0.2*L69,L69-($Q$1*0.8)) -> 1.4
B70: 調製用機具 | D70: ○ その他のもの | K70: 8 | L70: 7 | N70: 2 | O70: 2 | R70: =IF($Q$1>=K70,0.2*K70,K70-($Q$1*0.8)) -> 1.6 | S70: =IF($Q$1>=L70,0.2*L70,L70-($Q$1*0.8)) -> 1.4
D71: 例:しいたけ乾燥機、果実洗浄機等
D72: ○ い草刈取機、い草選別機、い割機、い苗分割機、粒選機、収穫機、掘取機、 | K72: 5 | L72: 7 | N72: 2 | O72: 2 | R72: =IF($Q$1>=K72,0.2*K72,K72-($Q$1*0.8)) -> 1 | S72: =IF($Q$1>=L72,0.2*L72,L72-($Q$1*0.8)) -> 1.4
B73: その他の農作物収穫調製 | D73: つる切機及び茶摘機
B74: 用機具 | D74: ○ その他のもの | K74: 8 | L74: 7 | N74: 2 | O74: 2 | R74: =IF($Q$1>=K74,0.2*K74,K74-($Q$1*0.8)) -> 1.6 | S74: =IF($Q$1>=L74,0.2*L74,L74-($Q$1*0.8)) -> 1.4
D75: 例:ラミーはく皮機、たばこ乾燥機、こんにゃく乾燥機
D76: ○ 花莚織機及び畳表織機 | K76: 5 | L76: 7 | N76: 2 | O76: 2 | R76: =IF($Q$1>=K76,0.2*K76,K76-($Q$1*0.8)) -> 1 | S76: =IF($Q$1>=L76,0.2*L76,L76-($Q$1*0.8)) -> 1.4
D77: ○ その他のもの | K77: 8 | L77: 7 | N77: 2 | O77: 2 | R77: =IF($Q$1>=K77,0.2*K77,K77-($Q$1*0.8)) -> 1.6 | S77: =IF($Q$1>=L77,0.2*L77,L77-($Q$1*0.8)) -> 1.4
B78: 農産物処理加工用機具 | D78: 例:選果機、選別機、ワックス処理機、自動製函機、自動封かん機、洗卵選別機、
B79: (精米又は精麦機を除く。) | D79: わら打機、なわない機、なわ仕上機、製莚機、薄荷蒸りゅう機、
D80: 干ぴょう製造機、蒸煮機、はく皮精製機、荒茶製造機、仕上茶製造機、
D81: いも切機等
D82: ○ 自動給じ機、自動給水機、搾乳機、牛乳冷却機、ふ卵機、保温機、畜衡機、 | K82: 5 | L82: 7 | N82: 2 | O82: 2 | R82: =IF($Q$1>=K82,0.2*K82,K82-($Q$1*0.8)) -> 1 | S82: =IF($Q$1>=L82,0.2*L82,L82-($Q$1*0.8)) -> 1.4
D83: 牛乳成分検定用機具、人工受精用機具、育成機、育すう機、ケージ、電牧器、
B84: 家畜飼養管理用機具 | D84: カウトレーナー、マット、畜舎清掃機、ふん尿散布機、ふん尿乾燥機及び
D85: ふん焼却機
D86: ○ その他のもの (例:飼料粉砕機、飼料配合機等) | K86: 8 | L86: 7 | N86: =IF(R86<2,2,ROUNDDOWN(R86,0)) -> 2 | O86: 2 | R86: =IF($Q$1>=K86,0.2*K86,K86-($Q$1*0.8)) -> 1.6 | S86: 1.4
D87: ○ 条桑刈取機、簡易保温用暖房機、天幕及び回転まぶし | K87: 5 | L87: 7 | N87: 2 | O87: 2 | R87: 1 | S87: 1.4
B88: 養蚕用機具 | D88: ○ その他のもの | K88: 8 | L88: 7 | N88: 2 | O88: 2 | R88: 1.6 | S88: 1.4
D89: 例:蚕自動飼育装置、稚蚕飼育用温湿度自動調整装置、ざ桑機、動力条払機、
D90: 自動収繭機、繭毛羽取機、蚕架、条桑育台、自動選繭機等
B91: 運搬用機具 | D91: 例:トレーラー、リヤカー、ワゴン、孤輪車、モノレールカー、動力運搬車 | K91: 4 | L91: 7 | N91: 2 | O91: 2 | R91: =IF($Q$1>=K91,0.2*K91,K91-($Q$1*0.8)) -> 0.8 | S91: =IF($Q$1>=L91,0.2*L91,L91-($Q$1*0.8)) -> 1.4
D92: (一輪又は二輪)、農用舟等
D93: ○ きのこ栽培用ほだ木
D94: ・ 生しいたけ栽培用のもの | K94: 2 | L94: 3 | N94: 2 | O94: 2 | R94: =IF($Q$1>=K94,0.2*K94,K94-($Q$1*0.8)) -> 0.4 | S94: 0.6
D95: ・ その他のもの | K95: 4 | L95: 3 | N95: 2 | O95: 2 | R95: 0.8 | S95: 0.6
B96: その他の機具 | D96: ○ 乾燥用バーナー | K96: 5 | L96: 5 | N96: 2 | O96: 2 | R96: 1 | S96: 1
D97: ○ その他のもの
D98: 主として金属製のもの (例:精米機等) | K98: 10 | L98: 7 | N98: 2 | O98: 2 | R98: =IF($Q$1>=K98,0.2*K98,K98-($Q$1*0.8)) -> 2 | S98: 1.4
D99: その他のもの | K99: 5 | L99: 7 | N99: 2 | O99: 2 | R99: 1 | S99: 1.4
A100: ⑤ 器具･機械 | B100: ビニールハウス | D100: ・金属造のもの | K100: 10 | L100: 10 | N100: 2 | O100: 2 | R100: 2 | S100: 2 | V100: 21
B101: (構築物でないもの) | D101: ・木骨造のもの | K101: 5 | L101: 5 | N101: 2 | O101: 2 | R101: 1 | S101: 1 | V101: 22
C103: 【一括償却資産について】
C104: 取得価額が１０万円以上２０万円未満の減価償却資産については、減価償却をしないでその使用した年以後３年間の各年分において、
C105: その減価償却資産の全部または特定の一部を一括し、一括した減価償却資産の取得価額の合計額の３分の１の金額を必要経費にする | Q105: 取得年（西暦） | R105: 和暦（平成） | S105: 西暦 | U105: 和暦（令和） | V105: 西暦
C106: ことができます。 | Q106: =IF(J2="平成",VLOOKUP(K2,$R$106:$S$136,2,FALSE),VLOOKUP(K2,U106:V175,2,FALSE)) -> 2019 | R106: 1 | S106: 1989 | U106: 1 | V106: 2019
R107: 2 | S107: 1990 | U107: 2 | V107: 2020
R108: 3 | S108: 1991 | U108: 3 | V108: 2021
Q109: 製造年（西暦） | R109: 4 | S109: 1992 | U109: 4 | V109: 2022
Q110: =IF(H2="平成",VLOOKUP(I2,$R$106:$S$136,2,FALSE),VLOOKUP(I2,U110:V179,2,FALSE)) -> 1989 | R110: 5 | S110: 1993 | U110: 5 | V110: 2023
R111: 6 | S111: 1994 | U111: 6 | V111: 2024
Q112: 平成 | R112: 7 | S112: 1995 | U112: 7 | V112: 2025
Q113: 令和 | R113: 8 | S113: 1996 | U113: 8 | V113: 2026
R114: 9 | S114: 1997 | U114: 9 | V114: 2027
R115: 10 | S115: 1998 | U115: 10 | V115: 2028
R116: 11 | S116: 1999 | U116: 11 | V116: 2029
R117: 12 | S117: 2000 | U117: 12 | V117: 2030
R118: 13 | S118: 2001 | U118: 13 | V118: 2031
R119: 14 | S119: 2002 | U119: 14 | V119: 2032
R120: 15 | S120: 2003 | U120: 15 | V120: 2033
R121: 16 | S121: 2004 | U121: 16 | V121: 2034
R122: 17 | S122: 2005 | U122: 17 | V122: 2035
R123: 18 | S123: 2006 | U123: 18 | V123: 2036
R124: 19 | S124: 2007 | U124: 19 | V124: 2037
R125: 20 | S125: 2008 | U125: 20 | V125: 2038
R126: 21 | S126: 2009 | U126: 21 | V126: 2039
R127: 22 | S127: 2010 | U127: 22 | V127: 2040
R128: 23 | S128: 2011 | U128: 23 | V128: 2041
R129: 24 | S129: 2012 | U129: 24 | V129: 2042
R130: 25 | S130: 2013 | U130: 25 | V130: 2043
R131: 26 | S131: 2014 | U131: 26 | V131: 2044
R132: 27 | S132: 2015 | U132: 27 | V132: 2045
R133: 28 | S133: 2016 | U133: 28 | V133: 2046
R134: 29 | S134: 2017 | U134: 29 | V134: 2047
R135: 30 | S135: 2018 | U135: 30 | V135: 2048
R136: 31 | S136: 2019 | U136: 31 | V136: 2049
U137: 32 | V137: 2050
U138: 33 | V138: 2051
U139: 34 | V139: 2052
U140: 35 | V140: 2053
U141: 36 | V141: 2054
U142: 37 | V142: 2055
U143: 38 | V143: 2056
U144: 39 | V144: 2057
U145: 40 | V145: 2058
U146: 41 | V146: 2059
U147: 42 | V147: 2060
U148: 43 | V148: 2061
U149: 44 | V149: 2062
U150: 45 | V150: 2063
U151: 46 | V151: 2064
U152: 47 | V152: 2065
U153: 48 | V153: 2066
U154: 49 | V154: 2067
U155: 50 | V155: 2068
U156: 51 | V156: 2069
U157: 52 | V157: 2070
U158: 53 | V158: 2071
U159: 54 | V159: 2072
U160: 55 | V160: 2073
U161: 56 | V161: 2074
U162: 57 | V162: 2075
U163: 58 | V163: 2076
U164: 59 | V164: 2077
U165: 60 | V165: 2078
U166: 61 | V166: 2079
U167: 62 | V167: 2080
U168: 63 | V168: 2081
U169: 64 | V169: 2082
U170: 65 | V170: 2083
U171: 66 | V171: 2084
U172: 67 | V172: 2085
U173: 68 | V173: 2086
U174: 69 | V174: 2087
U175: 70 | V175: 2088

Sheet 専従者控除シート
B1: 専従者控除シート
K2: ○
B4: 専従者は何人ですか？ | D4: 人 | F4: 最大控除額 | G4: =IF(AND(C4>0,C5="○"),860000,0) -> 0 | J4: 該当控除額 | K4: =IF(G6<=G4,G6,G4) -> 0
B5: 配偶者を専従者にしていますか？ | F5: 最大控除額 | G5: =IF(OR(C4=0,AND(C4=1,C5="○")),0,500000) -> 0 | H5: 該当控除額（1人分） | I5: =IF(G6<=G5,G6,G5) -> 0 | J5: 該当控除額 | K5: =IF(OR(C4=0,AND(C4=1,C5="○")),0,IF(AND(C4>=1,C5=""),I5*C4,I5*(C4-1))) -> 0 | M5: ○
G6: =IF(OR(C4=0,C4=""),0,ROUNDDOWN(計算シート!I55/(C4+1),0)) -> 0
B7: 専従者控除額(自動計算)
B8: =IF(SUM(K4:K5)<=0,0,SUM(K4:K5)) -> 0 | C8: 円
B10: 白色事業専従者控除額の算出方法 イとロのうちどちらか少ない方が１人当たりの控除額となります。 （イ）専従者が配偶者の場合：86万円、専従者が配偶者以外の親族の場合：50万円 （ロ）（専従者控除前の所得金額⑮）÷（専従者の人数＋１人）
B20: 事業専従者の氏名等･･･(収支内訳書･表面に転記されます）
B21: 氏名 | C21: 年齢 | E21: 続柄 | L21: 従事月数
D26: 延べ従事月数 | L26: =IF(SUM(L22:M25)=0,"",SUM(L22:M25)) -> 

Sheet 新償却資産計算 (hidden)
CG4: 入力欄取得年
CG6: =IF($O6="昭和",VLOOKUP($R6,$AK$62:$AP$125,4,0),VLOOKUP($R6,$AR$62:$AW$125,4,0)) ->  | CJ6: 空白 | CK6: 年比較 | CL6: 減価償却 | CM6: メッセージ
CI7: 「月」入力 | CJ7: =IF(T6="","○","") -> ○ | CK7: － | CL7: =IF(N7>199999,"○",IF(AC10="減価償却","○","")) ->  | CM7: =IF(COUNTIF(CJ7:CL7,"○")=2,"該当","非該当") -> 非該当
CI8: H20以前 | CJ8: =IF(N8="","○","") -> ○ | CK8: =IF(CG6<2009,"○","") ->  | CL8: =IF(N7>199999,"○",IF(AC10="減価償却","○","")) ->  | CM8: =IF(COUNTIF(CJ8:CL8,"○")=3,"該当","非該当") -> 非該当
CI9: H21以後 | CJ9: =IF(N9="","○","") -> ○ | CK9: =IF(AZ62>2008,"○","") ->  | CL9: =IF(N7>199999,"○",IF(AC10="減価償却","○","")) ->  | CM9: =IF(COUNTIF(CJ9:CL9,"○")=3,"該当","非該当") -> 非該当
BM14: 入力データ転記欄 | CH14: Ｈ１９．３以前収得 20万円以上 減価償却分 | DJ14: Ｈ１９．４．１以後取得 20万円以上 減価償却分 | EK14: 一 括 償 却 | FB14: 償却率判定
B16: 登録番号 | C16: 減価償却資産の 名 称 等 （繰延資産を含む） | I16: 面積 又は 数量 | K16: 取 得 （成 熟） 年 月 | Q16: ｲ | V16: ロ | Z16: 償却方法 | AB16: 耐用年数 | AD16: ハ | AG16: ニ | AL16: ホ | AP16: ヘ | AS16: ト | AW16: チ | AZ16: リ | BE16: ヌ | BM16: 処分月 | BN16: 処分年未償却月数 | BO16: 処分年未償却額 | BP16: (処分前)本年分の普通償却費 | BQ16: (処分前)本年分償却費合計 | BR16: (処分前)本年分必要経費 | BS16: (処分前）本年分未償却残高 | BT16: 旧耐用年数 | BU16: 新耐用年数 | BV16: 償却方法 | BW16: 名称 | BX16: 中古 | BY16: 数量 | BZ16: 単位 | CA16: 元号 | CB16: 年 | CC16: 月 | CD16: 取得価額 | CE16: 専用割合 | CH16: 取得年 （西暦） | CI16: ハ | CK16: ロ | CL16: H20年までの経過年数 | CM16: H21年以後の経過年数 | CN16: 償却累計額 | CO16: 前年までの償却累計額 | CP16: 取得価額の 95％償却 終了年 | CV16: 償却方法 | CW16: ニ | CZ16: ホ | DA16: ト | DB16: リ | DC16: 未償却残高 (期末残高) H21以後 | DD16: 初年度償却額 | DE16: 通常償却額 H20以前 | DF16: 通常償却額 H21以後 | DG16: 摘要 | DJ16: 償却率 (～H20） | DK16: 償却率 (H21～） | DL16: ロ | DM16: H20年までの経過年数 | DN16: H21年以後の経過年数 | DO16: 償却額(累計) | DQ16: 償却方法 | DR16: ニ | DU16: ホ | DV16: ト | DW16: リ | DX16: ヌ | DY16: 初年度償却額 | DZ16: 初年度償却残 | EA16: 通常償却額 H20年まで | EB16: 通常償却額 H21年から | EC16: 摘要 | EK16: ロ | EL16: 償却方法 | EM16: ハ | EP16: 償却額 | EQ16: ニ | ET16: ホ | EU16: ト | EV16: リ | EW16: 経過年数 | EX16: ヌ | EY16: 摘要 | FB16: 新定額・旧定額 | FC16: 償却方法 | FD16: 償却率
Q17: 取得価額 (償却保証額） | V17: 償却の基礎 になる金額 | AD17: 償却率 又は 改定償却率 | AG17: 本年中の 償却期間 | AL17: 本年分の 普通償却費 (ﾛ×ﾊ×ﾆ) | AP17: 特 別 償却費 | AS17: 本 年 分 の 償却費合計 (ﾎ＋ﾍ) | AW17: 事業専 用割合 | AZ17: 本年分の必要経費 算入額(ﾄ×ﾁ) | BE17: 未償却残高 (期末残高) | BI17: 摘 要 | CI17: 償却率 （～H20) | CJ17: 償却率 （H21～) | CK17: 償却の基礎 になる金額 | CW17: 本年中の 償却期間 | CZ17: 本年分の 普通償却費 (ﾛ×ﾊ×ﾆ) | DA17: 本 年 分 の 償却費合計 (ﾎ＋ﾍ) | DB17: 本年分の必要経費 算入額(ﾄ×ﾁ) | DL17: 償却の基礎 になる金額 初年度 | DR17: 本年中の 償却期間 | DU17: 本年分の 普通償却費 (ﾛ×ﾊ×ﾆ) | DV17: 本 年 分 の 償却費合計 (ﾎ＋ﾍ) | DW17: 本年分の必要経費 算入額(ﾄ×ﾁ) | DX17: 未償却残高 (期末残高) | EK17: 償却の基礎 になる金額 | EM17: 償却率 | EQ17: 本年中の 償却期間 | ET17: 本年分の 普通償却費 (ﾛ×ﾊ×ﾆ) | EU17: 本 年 分 の 償却費合計 (ﾎ＋ﾍ) | EV17: 本年分の必要経費 算入額(ﾄ×ﾁ) | EX17: 未償却残高 (期末残高)
CQ18: 取得価格の95%額 | CR18: 取得価格の残り５％の額 | CS18: 最終５％の償却経過年数 | CT18: 最終５％の償却分(累計) | CU18: １～4年目 | DP18: 前年までの償却累計額
B19: 1 | C19: =IF(BW19="","",IF(BX19="中古",BW19&" ("&BX19&")",BW19)) -> 着色部分のみ | I19: =IF(BY19="","",BY19&BZ19) -> 0 | K19: =IF(CA19="","",CA19) -> 0 | M19: =IF(CB19="","",CB19) -> 0 | O19: =IF(CC19="","",CC19) -> 0 | Q19: =IF(CD19="","",CD19) -> 0 | V19: =IF(Q19="","",IF(Q19<100000,"償却不可",IF(Q19>199999,IF(CH19<2007,IF(CS19<=0,CK19,CR19),IF(AND(CH19=2007,O19<4),IF(CS19<=0,CK19,CR19),DL19)),IF(BV19="減価償却",IF(CH19<2007,IF(CS19<=0,CK19,CR19),IF(AND(CH19=2007,O19<4),IF(CS19<=0,CK19,CR19),DL19)),EK19)))) -> 償却不可 | Z19: =IF(Q19="","",IF(Q19<100000,"償却不可",IF(Q19>199999,IF(CH19<2007,CV19,IF(AND(CH19=2007,O19<4),CV19,DQ19)),IF(BV19="減価償却",IF(CH19<2007,CV19,IF(AND(CH19=2007,O19<4),CV19,DQ19)),EL19)))) -> 償却不可 | AB19: =IF(AD19="1/3","-",IF(AD19="-","-",IF(BU19="",IF(BT19="","",BT19),BU19))) ->  | AD19: =IF(CD19="","",IF($FC19="一括償却",$EM19,IF(AND($FB19="新定額",$FC19="減価償却",$FD19="新償却率"),$DK19,IF(AND($FB19="新定額",$FC19="減価償却",$FD19="旧償却率"),$DJ19,IF(AND($FB19="旧定額",$FC19="減価償却",$CS19>0),"-",IF(AND($FB19="旧定額",$FC19="減価償却",$FD19="新償却率"),$CJ19,$CI19)))))) ->  | AE19: =IF($FC19="一括償却",$EM19,IF(AND($FB19="新定額",$FC19="減価償却",$FD19="新償却率"),$DK19,IF(AND($FB19="新定額",$FC19="減価償却",$FD19="旧償却率"),$DJ19,IF(AND($FB19="旧定額",$FC19="減価償却",$FD19="新償却率"),$CJ19,$CI19)))) ->  | AG19: =IF(BM19="",IF(Q19="","",IF(Q19<100000,"-",IF(Q19>199999,IF(CH19<2007,CW19,IF(AND(CH19=2007,O19<4),CW19,DR19)),IF(BV19="減価償却",IF(CH19<2007,CW19,IF(AND(CH19=2007,O19<4),CW19,DR19)),IF(AND(Q19>99999,Q19<200000),EQ19,IF(M19="","",12)))))),IF(AND($Q19>99999,$Q19<200000,OR($BV19="一括償却",$BV19="")),EQ19,BM19)) -> - | AI19: / | AJ19: =IF(Q19="","",IF(Q19<100000,"-",IF(Q19>199999,IF(CH19<2007,CY19,IF(AND(CH19=2007,O19<4),CY19,DT19)),IF(BV19="減価償却",IF(CH19<2007,CY19,IF(AND(CH19=2007,O19<4),CY19,DT19)),ES19)))) -> - | AL19: =IF(BM19="",IF($Q19="","",IF($Q19<100000,"償却不可",IF($Q19>199999,IF($CH19<2007,$CZ19,IF(AND($CH19=2007,$O19<4),$CZ19,$DU19)),IF($BV19="減価償却",IF($CH19<2007,$CZ19,IF(AND($CH19=2007,$O19<4),$CZ19,$DU19)),$ET19)))),IF($BP19="償却終了","償却終了",IF(AND($Q19>99999,$Q19<200000,OR($BV19="一括償却",$BV19="")),ET19,$BP19-$BO19))) -> 償却不可 | AS19: =IF(BM19="",IF($Q19="","",IF($Q19<100000,"償却不可",IF($Q19>199999,IF($CH19<2007,$DA19,IF(AND($CH19=2007,$O19<4),$DA19,$DV19)),IF($BV19="減価償却",IF($CH19<2007,$DA19,IF(AND($CH19=2007,$O19<4),$DA19,$DV19)),$EU19)))),IF($BP19="償却終了","償却終了",IF(AND($Q19>99999,$Q19<200000,OR($BV19="一括償却",$BV19="")),EU19,BQ19-BO19))) -> 償却不可 | AW19: =IF(CE19="","",CE19/100) -> 1 | AZ19: =IF(BM19="",IF($Q19="","",IF($Q19<100000,"償却不可",IF($Q19>199999,IF($CH19<2007,$DB19,IF(AND($CH19=2007,$O19<4),$DB19,$DW19)),IF($BV19="減価償却",IF($CH19<2007,$DB19,IF(AND($CH19=2007,$O19<4),$DB19,$DW19)),$EV19)))),IF($BP19="償却終了","償却終了",IF(AND($Q19>99999,$Q19<200000,OR($BV19="一括償却",$BV19="")),EV19,BR19-(AW19*BO19)))) -> 償却不可 | BE19: =IF(BM19="",IF($Q19="","",IF($Q19<100000,"償却不可",IF($Q19>199999,IF($CH19<2007,$DC19,IF(AND($CH19=2007,$O19<4),$DC19,$DX19)),IF($BV19="減価償却",IF($CH19<2007,$DC19,IF(AND($CH19=2007,$O19<4),$DC19,$DX19)),$EX19)))),IF(AND($Q19>99999,$Q19<200000,OR($BV19="一括償却",$BV19="")),EX19,BS19+BO19)) -> 償却不可 | BI19: =IF(BM19="",IF($Q19="","",IF($Q19<100000,"償却不可",IF($Q19>199999,IF($CH19<2007,$DG19,IF(AND($CH19=2007,$O19<4),$DG19,$EC19)),IF($BV19="減価償却",IF($CH19<2007,$DG19,IF(AND($CH19=2007,$O19<4),$DG19,$EC19)),$EY19)))),BM19&"月"&"処分") -> 償却不可 | BL19: =IF(BI19="償却不可",""," "&BI19) ->  | BM19: =IF('償却資産明細書(入力)'!Y6="","",'償却資産明細書(入力)'!Y6) ->  | BN19: =IF(BM19="","",12-BM19) ->  | BO19: =IF(BP19="償却終了",0,ROUNDDOWN(BP19*BN19/12,0)) ->  | BP19: =IF($Q19="","",IF($Q19<100000,"償却不可",IF($Q19>199999,IF($CH19<2007,$CZ19,IF(AND($CH19=2007,$O19<4),$CZ19,$DU19)),IF($BV19="減価償却",IF($CH19<2007,$CZ19,IF(AND($CH19=2007,$O19<4),$CZ19,$DU19)),$ET19)))) -> 償却不可 | BQ19: =IF($Q19="","",IF($Q19<100000,"償却不可",IF($Q19>199999,IF($CH19<2007,$DA19,IF(AND($CH19=2007,$O19<4),$DA19,$DV19)),IF($BV19="減価償却",IF($CH19<2007,$DA19,IF(AND($CH19=2007,$O19<4),$DA19,$DV19)),$EU19)))) -> 償却不可 | BR19: =IF($Q19="","",IF($Q19<100000,"償却不可",IF($Q19>199999,IF($CH19<2007,$DB19,IF(AND($CH19=2007,$O19<4),$DB19,$DW19)),IF($BV19="減価償却",IF($CH19<2007,$DB19,IF(AND($CH19=2007,$O19<4),$DB19,$DW19)),$EV19)))) -> 償却不可 | BS19: =IF($Q19="","",IF($Q19<100000,"償却不可",IF($Q19>199999,IF($CH19<2007,$DC19,IF(AND($CH19=2007,$O19<4),$DC19,$DX19)),IF($BV19="減価償却",IF($CH19<2007,$DC19,IF(AND($CH19=2007,$O19<4),$DC19,$DX19)),$EX19)))) -> 償却不可 | BT19: ='償却資産明細書(入力)'!J6 -> 0 | BU19: ='償却資産明細書(入力)'!K6 -> 0 | BV19: =IF('償却資産明細書(入力)'!AA6="一括償却資産","一括償却資産","減価償却") -> 減価償却 | BW19: ='償却資産明細書(入力)'!B6 -> 着色部分のみ | BY19: ='償却資産明細書(入力)'!C6 -> 0 | CA19: ='償却資産明細書(入力)'!D6 -> 0 | CB19: ='償却資産明細書(入力)'!E6 -> 0 | CC19: ='償却資産明細書(入力)'!F6 -> 0 | CD19: ='償却資産明細書(入力)'!G6 -> 0 | CE19: =IF('償却資産明細書(入力)'!U6="",100,'償却資産明細書(入力)'!U6*100) -> 100 | CH19: =IF('償却資産明細書(入力)'!D6="昭和",VLOOKUP('償却資産明細書(入力)'!E6,$AK$62:$AP$125,4,0),IF('償却資産明細書(入力)'!D6="平成",VLOOKUP('償却資産明細書(入力)'!E6,$AR$62:$AW$125,4,0),VLOOKUP('償却資産明細書(入力)'!E6,$AY$65:$BD$128,4,0))) ->  | CI19: =VLOOKUP('償却資産明細書(入力)'!J6,$K$62:$R$112,5,0) -> 0 | CJ19: =VLOOKUP('償却資産明細書(入力)'!K6,$K$62:$R$112,5,0) -> 0 | CK19: =IF($CH19<2007,ROUNDUP('償却資産明細書(入力)'!G6*$X$62,0),IF(AND($CH19=2007,'償却資産明細書(入力)'!F6<4),ROUNDUP('償却資産明細書(入力)'!G6*$X$62,0),'償却資産明細書(入力)'!G6)) ->  | CL19: =IF($BA$62>2008,2008-$CH19+1,$BA$62-$CH19+1) ->  | CM19: =$BA$62-($CH19-1)-$CL19 ->  | CN19: =IF($CL19+$CM19=1,$DD19,IF($CH19<2009,$DD19+($DE19*($CL19-1))+($DF19*$CM19),$DD19+($DE19*$CL19)+($DF19*($CM19-1)))) ->  | CO19: =IF($BA$62<2009,$CN19-$DE19,$CN19-$DF19) ->  | CP19: =CH19+IF(CH19>2008,ROUNDUP((CQ19-DD19)/DF19,0),IF(2008-CH19<ROUNDUP((CQ19-DD19)/DE19,0),(2008-CH19)+ROUNDUP((CQ19-DD19-(DE19*(2008-CH19)))/DF19,0),ROUNDUP((CQ19-DD19)/DE19,0))) ->  | CQ19: =ROUNDUP('償却資産明細書(入力)'!G6*95%,0) -> 0 | CR19: ='償却資産明細書(入力)'!G6-新償却資産計算!CQ19 -> 0 | CS19: =IF($CP19<2008,$BA$62-$CP19-(2007-$CP19),$BA$62-$CP19) ->  | CT19: =IF($CS19=0,0,IF($CS19>5,"償却終了",IF($CS19>4,CR19-1,$CU19*$CS19))) ->  | CU19: =ROUNDUP(($CR19-1)/5,0) -> -1 | CV19: =IF($CS19<=0,"旧定額","-") ->  | CW19: =IF($CH19<$BA$62,12,IF($CH19=$BA$62,VLOOKUP('償却資産明細書(入力)'!F6,$AB$62:$AE$74,3,0),"-")) ->  | CX19: / | CY19: 12 | CZ19: =IF($CS19>5,"償却終了",IF($CS19>4,CR19-CU19*4-1,IF($CS19>0,$CU19,IF($CL19+CM19=1,$DD19,IF($CL19+CM19<1,0,IF($BA$62<2009,IF(AND(CQ19<CN19,CQ19>CO19),CQ19-CO19,IF(CO19>CQ19,0,$DE19)),IF(AND(CQ19<CN19,CQ19>CO19),CQ19-CO19,IF(CO19>CQ19,0,$DF19)))))))) ->  | DA19: =CZ19 ->  | DB19: =IF($CS19>5,"償却終了",ROUNDUP($DA19*AW19,0)) ->  | DC19: =IF($CS19>4,1,IF($CS19>0,'償却資産明細書(入力)'!G6-($CQ19+$CT19),IF(CN19<0,"取得前",IF($CQ19>$CN19,'償却資産明細書(入力)'!G6-$CN19,'償却資産明細書(入力)'!G6-$CQ19)))) ->  | DD19: =IF($CH19<2009,ROUNDUP($CK19*$CI19*((13-$CC19)/12),0),ROUNDUP($CK19*$CJ19*((13-$CC19)/12),0)) ->  | DE19: =ROUNDUP($CK19*$CI19,0) ->  | DF19: =ROUNDUP($CK19*$CJ19,0) ->  | DG19: =IF($CS19<=0,"",IF($CS19>4,"償却終了","均等償却")) ->  | DJ19: =VLOOKUP('償却資産明細書(入力)'!J6,$K$62:$R$112,7,0) -> 0 | DK19: =VLOOKUP('償却資産明細書(入力)'!K6,$K$62:$R$112,7,0) -> 0 | DL19: ='償却資産明細書(入力)'!G6 -> 0 | DM19: =IF($BA$62>2008,2008-$CH19+1,$BA$62-$CH19+1) ->  | DN19: =$BA$62-($CH19-1)-$CL19 ->  | DO19: =IF($DM19+$DN19=1,$DY19,IF($CH19<2009,$DY19+($EA19*($DM19-1))+($EB19*$DN19),$DY19+($EB19*$DM19)+($EB19*($DN19-1)))) ->  | DP19: =IF($BA$62<2009,$DO19-$EA19,$DO19-$EB19) ->  | DQ19: 定額 | DR19: =IF($CH19<$BA$62,12,IF($CH19=$BA$62,VLOOKUP('償却資産明細書(入力)'!F6,$AB$62:$AE$74,3,0),"-")) ->  | DS19: / | DT19: 12 | DU19: =IF($DM19+$DN19<1,0,IF($DM19+$DN19=1,$DY19,IF($DP19>=$DL19,"償却終了",IF($DO19>=$DL19,$DL19-($DP19+1),IF($DN19>0,$EB19,$EA19))))) ->  | DV19: =IF(DU19="償却終了","償却終了",$AP19+DU19) ->  | DW19: =IF(DU19="償却終了","償却終了",ROUNDUP(DV19*AW19,0)) ->  | DX19: =IF(DO19<=0,"入力確認",IF(DO19>=DL19,1,DL19-DO19)) ->  | DY19: =IF($CH19<2009,ROUNDUP(DL19*$DJ19*((13-$CC19)/12),0),ROUNDUP(DL19*$DK19*((13-$CC19)/12),0)) ->  | DZ19: =IF(DM19>0,EA19-DY19,EB19-DY19) ->  | EA19: =ROUNDUP(DL19*$DJ19,0) -> 0 | EB19: =ROUNDUP(DL19*$DK19,0) -> 0 | EC19: =IF(DX19>1,"","償却終了") ->  | EK19: =IF(EW19>=4,"－",'償却資産明細書(入力)'!G6) ->  | EL19: - | EM19: 1/3 | EP19: =ROUNDUP('償却資産明細書(入力)'!G6/3,0) -> 0 | EQ19: - | ER19: / | ES19: 12 | ET19: =IF(EW19<3,EP19,IF(EW19=3,EK19-(EP19*2),"－")) ->  | EU19: =IF(EW19<4,ET19+'償却資産明細書(入力)'!R6,"－") ->  | EV19: =IF(EW19<4,IF('償却資産明細書(入力)'!U6="",新償却資産計算!EU19,EU19*'償却資産明細書(入力)'!U6),"－") ->  | EW19: =$BA$62-CH19+1 ->  | EX19: =IF($EW19<3,$EK19-($EW19*$EP19),0) ->  | EY19: =IF($EW19<3,"","償却終了") ->  | FB19: =IF($CH19<2007,"旧定額",IF(AND($CH19=2007,$CC19<4),"旧定額","新定額")) ->  | FC19: =IF('償却資産明細書(入力)'!AA6="一括償却資産","一括償却","減価償却") -> 減価償却 | FD19: =IF($BA$62>2008,"新償却率","旧償却率") -> 新償却率
B20: 2 | C20: =IF(BW20="","",IF(BX20="中古",BW20&" ("&BX20&")",BW20)) -> 入力可能です | I20: =IF(BY20="","",BY20&BZ20) -> 0 | K20: =IF(CA20="","",CA20) -> 0 | M20: =IF(CB20="","",CB20) -> 0 | O20: =IF(CC20="","",CC20) -> 0 | Q20: =IF(CD20="","",CD20) -> 0 | V20: =IF(Q20="","",IF(Q20<100000,"償却不可",IF(Q20>199999,IF(CH20<2007,IF(CS20<=0,CK20,CR20),IF(AND(CH20=2007,O20<4),IF(CS20<=0,CK20,CR20),DL20)),IF(BV20="減価償却",IF(CH20<2007,IF(CS20<=0,CK20,CR20),IF(AND(CH20=2007,O20<4),IF(CS20<=0,CK20,CR20),DL20)),EK20)))) -> 償却不可 | Z20: 償却不可 | AD20: =IF(CD20="","",IF($FC20="一括償却",$EM20,IF(AND($FB20="新定額",$FC20="減価償却",$FD20="新償却率"),$DK20,IF(AND($FB20="新定額",$FC20="減価償却",$FD20="旧償却率"),$DJ20,IF(AND($FB20="旧定額",$FC20="減価償却",$CS20>0),"-",IF(AND($FB20="旧定額",$FC20="減価償却",$FD20="新償却率"),$CJ20,$CI20)))))) ->  | AG20: =IF(BM20="",IF(Q20="","",IF(Q20<100000,"-",IF(Q20>199999,IF(CH20<2007,CW20,IF(AND(CH20=2007,O20<4),CW20,DR20)),IF(BV20="減価償却",IF(CH20<2007,CW20,IF(AND(CH20=2007,O20<4),CW20,DR20)),IF(AND(Q20>99999,Q20<200000),EQ20,IF(M20="","",12)))))),IF(AND($Q20>99999,$Q20<200000,OR($BV20="一括償却",$BV20="")),EQ20,BM20)) -> - | AI20: / | AJ20: - | AL20: 償却不可 | AS20: 償却不可 | AW20: =IF(CE20="","",CE20/100) -> 1 | AZ20: =IF(BM20="",IF($Q20="","",IF($Q20<100000,"償却不可",IF($Q20>199999,IF($CH20<2007,$DB20,IF(AND($CH20=2007,$O20<4),$DB20,$DW20)),IF($BV20="減価償却",IF($CH20<2007,$DB20,IF(AND($CH20=2007,$O20<4),$DB20,$DW20)),$EV20)))),IF($BP20="償却終了","償却終了",IF(AND($Q20>99999,$Q20<200000,OR($BV20="一括償却",$BV20="")),EV20,BR20-(AW20*BO20)))) -> 償却不可 | BE20: 償却不可 | BI20: =IF(BM20="",IF($Q20="","",IF($Q20<100000,"償却不可",IF($Q20>199999,IF($CH20<2007,$DG20,IF(AND($CH20=2007,$O20<4),$DG20,$EC20)),IF($BV20="減価償却",IF($CH20<2007,$DG20,IF(AND($CH20=2007,$O20<4),$DG20,$EC20)),$EY20)))),BM20&"月"&"処分") -> 償却不可 | BL20: =IF(BI20="償却不可",""," "&BI20) ->  | BM20: =IF('償却資産明細書(入力)'!Y7="","",'償却資産明細書(入力)'!Y7) ->  | BN20: =IF(BM20="","",12-BM20) ->  | BO20: =IF(BP20="償却終了",0,ROUNDDOWN(BP20*BN20/12,0)) ->  | BP20: =IF($Q20="","",IF($Q20<100000,"償却不可",IF($Q20>199999,IF($CH20<2007,$CZ20,IF(AND($CH20=2007,$O20<4),$CZ20,$DU20)),IF($BV20="減価償却",IF($CH20<2007,$CZ20,IF(AND($CH20=2007,$O20<4),$CZ20,$DU20)),$ET20)))) -> 償却不可 | BQ20: =IF($Q20="","",IF($Q20<100000,"償却不可",IF($Q20>199999,IF($CH20<2007,$DA20,IF(AND($CH20=2007,$O20<4),$DA20,$DV20)),IF($BV20="減価償却",IF($CH20<2007,$DA20,IF(AND($CH20=2007,$O20<4),$DA20,$DV20)),$EU20)))) -> 償却不可 | BR20: =IF($Q20="","",IF($Q20<100000,"償却不可",IF($Q20>199999,IF($CH20<2007,$DB20,IF(AND($CH20=2007,$O20<4),$DB20,$DW20)),IF($BV20="減価償却",IF($CH20<2007,$DB20,IF(AND($CH20=2007,$O20<4),$DB20,$DW20)),$EV20)))) -> 償却不可 | BS20: =IF($Q20="","",IF($Q20<100000,"償却不可",IF($Q20>199999,IF($CH20<2007,$DC20,IF(AND($CH20=2007,$O20<4),$DC20,$DX20)),IF($BV20="減価償却",IF($CH20<2007,$DC20,IF(AND($CH20=2007,$O20<4),$DC20,$DX20)),$EX20)))) -> 償却不可 | BT20: ='償却資産明細書(入力)'!J7 -> 0 | BU20: ='償却資産明細書(入力)'!K7 -> 0 | BV20: =IF('償却資産明細書(入力)'!AA7="一括償却資産","一括償却資産","減価償却") -> 減価償却 | BW20: ='償却資産明細書(入力)'!B7 -> 入力可能です | BY20: ='償却資産明細書(入力)'!C7 -> 0 | CA20: ='償却資産明細書(入力)'!D7 -> 0 | CB20: ='償却資産明細書(入力)'!E7 -> 0 | CC20: ='償却資産明細書(入力)'!F7 -> 0 | CD20: ='償却資産明細書(入力)'!G7 -> 0 | CE20: =IF('償却資産明細書(入力)'!U7="",100,'償却資産明細書(入力)'!U7*100) -> 100 | CH20: =IF('償却資産明細書(入力)'!D7="昭和",VLOOKUP('償却資産明細書(入力)'!E7,$AK$62:$AP$125,4,0),IF('償却資産明細書(入力)'!D7="平成",VLOOKUP('償却資産明細書(入力)'!E7,$AR$62:$AW$125,4,0),VLOOKUP('償却資産明細書(入力)'!E7,$AY$65:$BD$128,4,0))) ->  | CI20: =VLOOKUP('償却資産明細書(入力)'!J7,$K$62:$R$112,5,0) -> 0 | CJ20: =VLOOKUP('償却資産明細書(入力)'!K7,$K$62:$R$112,5,0) -> 0 | CK20: =IF($CH20<2007,ROUNDUP('償却資産明細書(入力)'!G7*$X$62,0),IF(AND($CH20=2007,'償却資産明細書(入力)'!F7<4),ROUNDUP('償却資産明細書(入力)'!G7*$X$62,0),'償却資産明細書(入力)'!G7)) ->  | CL20: =IF($BA$62>2008,2008-$CH20+1,$BA$62-$CH20+1) ->  | CM20: =$BA$62-($CH20-1)-$CL20 ->  | CN20: =IF($CL20+$CM20=1,$DD20,IF($CH20<2009,$DD20+($DE20*($CL20-1))+($DF20*$CM20),$DD20+($DE20*$CL20)+($DF20*($CM20-1)))) ->  | CO20: =IF($BA$62<2009,$CN20-$DE20,$CN20-$DF20) ->  | CP20: =CH20+IF(CH20>2008,ROUNDUP((CQ20-DD20)/DF20,0),IF(2008-CH20<ROUNDUP((CQ20-DD20)/DE20,0),(2008-CH20)+ROUNDUP((CQ20-DD20-(DE20*(2008-CH20)))/DF20,0),ROUNDUP((CQ20-DD20)/DE20,0))) ->  | CQ20: =ROUNDUP('償却資産明細書(入力)'!G7*95%,0) -> 0 | CR20: ='償却資産明細書(入力)'!G7-新償却資産計算!CQ20 -> 0 | CS20: =IF($CP20<2008,$BA$62-$CP20-(2007-$CP20),$BA$62-$CP20) ->  | CU20: =ROUNDUP(($CR20-1)/5,0) -> -1 | CV20: =IF($CS20<=0,"旧定額","-") ->  | CW20: =IF($CH20<$BA$62,12,IF($CH20=$BA$62,VLOOKUP('償却資産明細書(入力)'!F7,$AB$62:$AE$74,3,0),"-")) ->  | CX20: / | CY20: 12 | DA20: =CZ20 ->  | DB20: =IF($CS20>5,"償却終了",ROUNDUP($DA20*AW20,0)) ->  | DC20: =IF($CS20>4,1,IF($CS20>0,'償却資産明細書(入力)'!G7-($CQ20+$CT20),IF(CN20<0,"取得前",IF($CQ20>$CN20,'償却資産明細書(入力)'!G7-$CN20,'償却資産明細書(入力)'!G7-$CQ20)))) ->  | DD20: =IF($CH20<2009,ROUNDUP($CK20*$CI20*((13-$CC20)/12),0),ROUNDUP($CK20*$CJ20*((13-$CC20)/12),0)) ->  | DE20: =ROUNDUP($CK20*$CI20,0) ->  | DF20: =ROUNDUP($CK20*$CJ20,0) ->  | DG20: =IF($CS20<=0,"",IF($CS20>4,"償却終了","均等償却")) ->  | DJ20: =VLOOKUP('償却資産明細書(入力)'!J7,$K$62:$R$112,7,0) -> 0 | DK20: =VLOOKUP('償却資産明細書(入力)'!K7,$K$62:$R$112,7,0) -> 0 | DL20: ='償却資産明細書(入力)'!G7 -> 0 | DM20: =IF($BA$62>2008,2008-$CH20+1,$BA$62-$CH20+1) ->  | DN20: =$BA$62-($CH20-1)-$CL20 ->  | DO20: =IF($DM20+$DN20=1,$DY20,IF($CH20<2009,$DY20+($EA20*($DM20-1))+($EB20*$DN20),$DY20+($EB20*$DM20)+($EB20*($DN20-1)))) ->  | DP20: =IF($BA$62<2009,$DO20-$EA20,$DO20-$EB20) ->  | DQ20: 定額 | DR20: =IF($CH20<$BA$62,12,IF($CH20=$BA$62,VLOOKUP('償却資産明細書(入力)'!F7,$AB$62:$AE$74,3,0),"-")) ->  | DS20: / | DT20: 12 | DU20: =IF($DM20+$DN20<1,0,IF($DM20+$DN20=1,$DY20,IF($DP20>=$DL20,"償却終了",IF($DO20>=$DL20,$DL20-($DP20+1),IF($DN20>0,$EB20,$EA20))))) ->  | DV20: =IF(DU20="償却終了","償却終了",$AP20+DU20) ->  | DW20: =IF(DU20="償却終了","償却終了",ROUNDUP(DV20*AW20,0)) ->  | DX20: =IF(DO20<=0,"入力確認",IF(DO20>=DL20,1,DL20-DO20)) ->  | DY20: =IF($CH20<2009,ROUNDUP(DL20*$DJ20*((13-$CC20)/12),0),ROUNDUP(DL20*$DK20*((13-$CC20)/12),0)) ->  | DZ20: =IF(DM20>0,EA20-DY20,EB20-DY20) ->  | EA20: =ROUNDUP(DL20*$DJ20,0) -> 0 | EB20: =ROUNDUP(DL20*$DK20,0) -> 0 | EC20: =IF(DX20>1,"","償却終了") ->  | EK20: =IF(EW20>=4,"－",'償却資産明細書(入力)'!G7) ->  | EL20: - | EM20: 1/3 | EP20: =ROUNDUP('償却資産明細書(入力)'!G7/3,0) -> 0 | EQ20: - | ER20: / | ES20: 12 | ET20: =IF(EW20<3,EP20,IF(EW20=3,EK20-(EP20*2),"－")) ->  | EU20: =IF(EW20<4,ET20+'償却資産明細書(入力)'!R7,"－") ->  | EV20: =IF(EW20<4,IF('償却資産明細書(入力)'!U7="",新償却資産計算!EU20,EU20*'償却資産明細書(入力)'!U7),"－") ->  | EW20: =$BA$62-CH20+1 ->  | EX20: =IF($EW20<3,$EK20-($EW20*$EP20),0) ->  | EY20: =IF($EW20<3,"","償却終了") ->  | FB20: =IF($CH20<2007,"旧定額",IF(AND($CH20=2007,$CC20<4),"旧定額","新定額")) ->  | FC20: =IF('償却資産明細書(入力)'!AA7="一括償却資産","一括償却","減価償却") -> 減価償却 | FD20: =IF($BA$62>2008,"新償却率","旧償却率") -> 新償却率
B21: 3 | C21: =IF(BW21="","",IF(BX21="中古",BW21&" ("&BX21&")",BW21)) -> 0 | I21: 0 | K21: 0 | M21: 0 | O21: 0 | Q21: 0 | V21: 償却不可 | Z21: 償却不可 | AG21: - | AI21: / | AJ21: - | AL21: 償却不可 | AS21: 償却不可 | AW21: 1 | AZ21: 償却不可 | BE21: 償却不可 | BI21: 償却不可 | BM21: =IF('償却資産明細書(入力)'!Y8="","",'償却資産明細書(入力)'!Y8) ->  | BP21: 償却不可 | BQ21: 償却不可 | BR21: 償却不可 | BS21: 償却不可 | BT21: ='償却資産明細書(入力)'!J8 -> 0 | BU21: ='償却資産明細書(入力)'!K8 -> 0 | BV21: =IF('償却資産明細書(入力)'!AA8="一括償却資産","一括償却資産","減価償却") -> 減価償却 | BW21: ='償却資産明細書(入力)'!B8 -> 0 | BY21: ='償却資産明細書(入力)'!C8 -> 0 | CA21: ='償却資産明細書(入力)'!D8 -> 0 | CB21: ='償却資産明細書(入力)'!E8 -> 0 | CC21: ='償却資産明細書(入力)'!F8 -> 0 | CD21: ='償却資産明細書(入力)'!G8 -> 0 | CE21: =IF('償却資産明細書(入力)'!U8="",100,'償却資産明細書(入力)'!U8*100) -> 100 | CH21: =IF('償却資産明細書(入力)'!D8="昭和",VLOOKUP('償却資産明細書(入力)'!E8,$AK$62:$AP$125,4,0),IF('償却資産明細書(入力)'!D8="平成",VLOOKUP('償却資産明細書(入力)'!E8,$AR$62:$AW$125,4,0),VLOOKUP('償却資産明細書(入力)'!E8,$AY$65:$BD$128,4,0))) ->  | CI21: =VLOOKUP('償却資産明細書(入力)'!J8,$K$62:$R$112,5,0) -> 0 | CJ21: =VLOOKUP('償却資産明細書(入力)'!K8,$K$62:$R$112,5,0) -> 0 | CK21: =IF($CH21<2007,ROUNDUP('償却資産明細書(入力)'!G8*$X$62,0),IF(AND($CH21=2007,'償却資産明細書(入力)'!F8<4),ROUNDUP('償却資産明細書(入力)'!G8*$X$62,0),'償却資産明細書(入力)'!G8)) ->  | CQ21: =ROUNDUP('償却資産明細書(入力)'!G8*95%,0) -> 0 | CR21: ='償却資産明細書(入力)'!G8-新償却資産計算!CQ21 -> 0 | CU21: -1 | CW21: =IF($CH21<$BA$62,12,IF($CH21=$BA$62,VLOOKUP('償却資産明細書(入力)'!F8,$AB$62:$AE$74,3,0),"-")) ->  | CX21: / | CY21: 12 | DC21: =IF($CS21>4,1,IF($CS21>0,'償却資産明細書(入力)'!G8-($CQ21+$CT21),IF(CN21<0,"取得前",IF($CQ21>$CN21,'償却資産明細書(入力)'!G8-$CN21,'償却資産明細書(入力)'!G8-$CQ21)))) ->  | DJ21: =VLOOKUP('償却資産明細書(入力)'!J8,$K$62:$R$112,7,0) -> 0 | DK21: =VLOOKUP('償却資産明細書(入力)'!K8,$K$62:$R$112,7,0) -> 0 | DL21: ='償却資産明細書(入力)'!G8 -> 0 | DQ21: 定額 | DR21: =IF($CH21<$BA$62,12,IF($CH21=$BA$62,VLOOKUP('償却資産明細書(入力)'!F8,$AB$62:$AE$74,3,0),"-")) ->  | DS21: / | DT21: 12 | EA21: 0 | EB21: 0 | EK21: =IF(EW21>=4,"－",'償却資産明細書(入力)'!G8) ->  | EL21: - | EM21: 1/3 | EP21: =ROUNDUP('償却資産明細書(入力)'!G8/3,0) -> 0 | EQ21: - | ER21: / | ES21: 12 | EU21: =IF(EW21<4,ET21+'償却資産明細書(入力)'!R8,"－") ->  | EV21: =IF(EW21<4,IF('償却資産明細書(入力)'!U8="",新償却資産計算!EU21,EU21*'償却資産明細書(入力)'!U8),"－") ->  | FC21: =IF('償却資産明細書(入力)'!AA8="一括償却資産","一括償却","減価償却") -> 減価償却 | FD21: 新償却率
B22: 4 | C22: 0 | I22: 0 | K22: 0 | M22: 0 | O22: 0 | Q22: 0 | V22: 償却不可 | Z22: 償却不可 | AG22: - | AI22: / | AJ22: - | AL22: 償却不可 | AS22: 償却不可 | AW22: 1 | AZ22: 償却不可 | BE22: 償却不可 | BI22: 償却不可 | BM22: =IF('償却資産明細書(入力)'!Y9="","",'償却資産明細書(入力)'!Y9) ->  | BP22: 償却不可 | BQ22: 償却不可 | BR22: 償却不可 | BS22: 償却不可 | BT22: ='償却資産明細書(入力)'!J9 -> 0 | BU22: ='償却資産明細書(入力)'!K9 -> 0 | BV22: =IF('償却資産明細書(入力)'!AA9="一括償却資産","一括償却資産","減価償却") -> 減価償却 | BW22: ='償却資産明細書(入力)'!B9 -> 0 | BY22: ='償却資産明細書(入力)'!C9 -> 0 | CA22: ='償却資産明細書(入力)'!D9 -> 0 | CB22: ='償却資産明細書(入力)'!E9 -> 0 | CC22: ='償却資産明細書(入力)'!F9 -> 0 | CD22: ='償却資産明細書(入力)'!G9 -> 0 | CE22: =IF('償却資産明細書(入力)'!U9="",100,'償却資産明細書(入力)'!U9*100) -> 100 | CH22: =IF('償却資産明細書(入力)'!D9="昭和",VLOOKUP('償却資産明細書(入力)'!E9,$AK$62:$AP$125,4,0),IF('償却資産明細書(入力)'!D9="平成",VLOOKUP('償却資産明細書(入力)'!E9,$AR$62:$AW$125,4,0),VLOOKUP('償却資産明細書(入力)'!E9,$AY$65:$BD$128,4,0))) ->  | CI22: =VLOOKUP('償却資産明細書(入力)'!J9,$K$62:$R$112,5,0) -> 0 | CJ22: =VLOOKUP('償却資産明細書(入力)'!K9,$K$62:$R$112,5,0) -> 0 | CK22: =IF($CH22<2007,ROUNDUP('償却資産明細書(入力)'!G9*$X$62,0),IF(AND($CH22=2007,'償却資産明細書(入力)'!F9<4),ROUNDUP('償却資産明細書(入力)'!G9*$X$62,0),'償却資産明細書(入力)'!G9)) ->  | CQ22: =ROUNDUP('償却資産明細書(入力)'!G9*95%,0) -> 0 | CR22: ='償却資産明細書(入力)'!G9-新償却資産計算!CQ22 -> 0 | CU22: -1 | CW22: =IF($CH22<$BA$62,12,IF($CH22=$BA$62,VLOOKUP('償却資産明細書(入力)'!F9,$AB$62:$AE$74,3,0),"-")) ->  | CX22: / | CY22: 12 | DC22: =IF($CS22>4,1,IF($CS22>0,'償却資産明細書(入力)'!G9-($CQ22+$CT22),IF(CN22<0,"取得前",IF($CQ22>$CN22,'償却資産明細書(入力)'!G9-$CN22,'償却資産明細書(入力)'!G9-$CQ22)))) ->  | DJ22: =VLOOKUP('償却資産明細書(入力)'!J9,$K$62:$R$112,7,0) -> 0 | DK22: =VLOOKUP('償却資産明細書(入力)'!K9,$K$62:$R$112,7,0) -> 0 | DL22: ='償却資産明細書(入力)'!G9 -> 0 | DQ22: 定額 | DR22: =IF($CH22<$BA$62,12,IF($CH22=$BA$62,VLOOKUP('償却資産明細書(入力)'!F9,$AB$62:$AE$74,3,0),"-")) ->  | DS22: / | DT22: 12 | EA22: 0 | EB22: 0 | EK22: =IF(EW22>=4,"－",'償却資産明細書(入力)'!G9) ->  | EL22: - | EM22: 1/3 | EP22: =ROUNDUP('償却資産明細書(入力)'!G9/3,0) -> 0 | EQ22: - | ER22: / | ES22: 12 | EU22: =IF(EW22<4,ET22+'償却資産明細書(入力)'!R9,"－") ->  | EV22: =IF(EW22<4,IF('償却資産明細書(入力)'!U9="",新償却資産計算!EU22,EU22*'償却資産明細書(入力)'!U9),"－") ->  | FC22: =IF('償却資産明細書(入力)'!AA9="一括償却資産","一括償却","減価償却") -> 減価償却 | FD22: 新償却率
B23: 5 | C23: 0 | I23: 0 | K23: 0 | M23: 0 | O23: 0 | Q23: 0 | V23: 償却不可 | Z23: 償却不可 | AG23: - | AI23: / | AJ23: - | AL23: 償却不可 | AS23: 償却不可 | AW23: 1 | AZ23: 償却不可 | BE23: 償却不可 | BI23: 償却不可 | BM23: =IF('償却資産明細書(入力)'!Y10="","",'償却資産明細書(入力)'!Y10) ->  | BP23: 償却不可 | BQ23: 償却不可 | BR23: 償却不可 | BS23: 償却不可 | BT23: ='償却資産明細書(入力)'!J10 -> 0 | BU23: ='償却資産明細書(入力)'!K10 -> 0 | BV23: =IF('償却資産明細書(入力)'!AA10="一括償却資産","一括償却資産","減価償却") -> 減価償却 | BW23: ='償却資産明細書(入力)'!B10 -> 0 | BY23: ='償却資産明細書(入力)'!C10 -> 0 | CA23: ='償却資産明細書(入力)'!D10 -> 0 | CB23: ='償却資産明細書(入力)'!E10 -> 0 | CC23: ='償却資産明細書(入力)'!F10 -> 0 | CD23: ='償却資産明細書(入力)'!G10 -> 0 | CE23: =IF('償却資産明細書(入力)'!U10="",100,'償却資産明細書(入力)'!U10*100) -> 100 | CH23: =IF('償却資産明細書(入力)'!D10="昭和",VLOOKUP('償却資産明細書(入力)'!E10,$AK$62:$AP$125,4,0),IF('償却資産明細書(入力)'!D10="平成",VLOOKUP('償却資産明細書(入力)'!E10,$AR$62:$AW$125,4,0),VLOOKUP('償却資産明細書(入力)'!E10,$AY$65:$BD$128,4,0))) ->  | CI23: =VLOOKUP('償却資産明細書(入力)'!J10,$K$62:$R$112,5,0) -> 0 | CJ23: =VLOOKUP('償却資産明細書(入力)'!K10,$K$62:$R$112,5,0) -> 0 | CK23: =IF($CH23<2007,ROUNDUP('償却資産明細書(入力)'!G10*$X$62,0),IF(AND($CH23=2007,'償却資産明細書(入力)'!F10<4),ROUNDUP('償却資産明細書(入力)'!G10*$X$62,0),'償却資産明細書(入力)'!G10)) ->  | CQ23: =ROUNDUP('償却資産明細書(入力)'!G10*95%,0) -> 0 | CR23: ='償却資産明細書(入力)'!G10-新償却資産計算!CQ23 -> 0 | CU23: -1 | CW23: =IF($CH23<$BA$62,12,IF($CH23=$BA$62,VLOOKUP('償却資産明細書(入力)'!F10,$AB$62:$AE$74,3,0),"-")) ->  | CX23: / | CY23: 12 | DC23: =IF($CS23>4,1,IF($CS23>0,'償却資産明細書(入力)'!G10-($CQ23+$CT23),IF(CN23<0,"取得前",IF($CQ23>$CN23,'償却資産明細書(入力)'!G10-$CN23,'償却資産明細書(入力)'!G10-$CQ23)))) ->  | DJ23: =VLOOKUP('償却資産明細書(入力)'!J10,$K$62:$R$112,7,0) -> 0 | DK23: =VLOOKUP('償却資産明細書(入力)'!K10,$K$62:$R$112,7,0) -> 0 | DL23: ='償却資産明細書(入力)'!G10 -> 0 | DQ23: 定額 | DR23: =IF($CH23<$BA$62,12,IF($CH23=$BA$62,VLOOKUP('償却資産明細書(入力)'!F10,$AB$62:$AE$74,3,0),"-")) ->  | DS23: / | DT23: 12 | EA23: 0 | EB23: 0 | EK23: =IF(EW23>=4,"－",'償却資産明細書(入力)'!G10) ->  | EL23: - | EM23: 1/3 | EP23: =ROUNDUP('償却資産明細書(入力)'!G10/3,0) -> 0 | EQ23: - | ER23: / | ES23: 12 | EU23: =IF(EW23<4,ET23+'償却資産明細書(入力)'!R10,"－") ->  | EV23: =IF(EW23<4,IF('償却資産明細書(入力)'!U10="",新償却資産計算!EU23,EU23*'償却資産明細書(入力)'!U10),"－") ->  | FC23: =IF('償却資産明細書(入力)'!AA10="一括償却資産","一括償却","減価償却") -> 減価償却 | FD23: 新償却率
B24: 6 | C24: 0 | I24: 0 | K24: 0 | M24: 0 | O24: 0 | Q24: 0 | V24: 償却不可 | Z24: 償却不可 | AG24: - | AI24: / | AJ24: - | AL24: 償却不可 | AS24: 償却不可 | AW24: 1 | AZ24: 償却不可 | BE24: 償却不可 | BI24: 償却不可 | BM24: =IF('償却資産明細書(入力)'!Y11="","",'償却資産明細書(入力)'!Y11) ->  | BP24: 償却不可 | BQ24: 償却不可 | BR24: 償却不可 | BS24: 償却不可 | BT24: ='償却資産明細書(入力)'!J11 -> 0 | BU24: ='償却資産明細書(入力)'!K11 -> 0 | BV24: =IF('償却資産明細書(入力)'!AA11="一括償却資産","一括償却資産","減価償却") -> 減価償却 | BW24: ='償却資産明細書(入力)'!B11 -> 0 | BY24: ='償却資産明細書(入力)'!C11 -> 0 | CA24: ='償却資産明細書(入力)'!D11 -> 0 | CB24: ='償却資産明細書(入力)'!E11 -> 0 | CC24: ='償却資産明細書(入力)'!F11 -> 0 | CD24: ='償却資産明細書(入力)'!G11 -> 0 | CE24: =IF('償却資産明細書(入力)'!U11="",100,'償却資産明細書(入力)'!U11*100) -> 100 | CH24: =IF('償却資産明細書(入力)'!D11="昭和",VLOOKUP('償却資産明細書(入力)'!E11,$AK$62:$AP$125,4,0),IF('償却資産明細書(入力)'!D11="平成",VLOOKUP('償却資産明細書(入力)'!E11,$AR$62:$AW$125,4,0),VLOOKUP('償却資産明細書(入力)'!E11,$AY$65:$BD$128,4,0))) ->  | CI24: =VLOOKUP('償却資産明細書(入力)'!J11,$K$62:$R$112,5,0) -> 0 | CJ24: =VLOOKUP('償却資産明細書(入力)'!K11,$K$62:$R$112,5,0) -> 0 | CK24: =IF($CH24<2007,ROUNDUP('償却資産明細書(入力)'!G11*$X$62,0),IF(AND($CH24=2007,'償却資産明細書(入力)'!F11<4),ROUNDUP('償却資産明細書(入力)'!G11*$X$62,0),'償却資産明細書(入力)'!G11)) ->  | CQ24: =ROUNDUP('償却資産明細書(入力)'!G11*95%,0) -> 0 | CR24: ='償却資産明細書(入力)'!G11-新償却資産計算!CQ24 -> 0 | CU24: -1 | CW24: =IF($CH24<$BA$62,12,IF($CH24=$BA$62,VLOOKUP('償却資産明細書(入力)'!F11,$AB$62:$AE$74,3,0),"-")) ->  | CX24: / | CY24: 12 | DC24: =IF($CS24>4,1,IF($CS24>0,'償却資産明細書(入力)'!G11-($CQ24+$CT24),IF(CN24<0,"取得前",IF($CQ24>$CN24,'償却資産明細書(入力)'!G11-$CN24,'償却資産明細書(入力)'!G11-$CQ24)))) ->  | DJ24: =VLOOKUP('償却資産明細書(入力)'!J11,$K$62:$R$112,7,0) -> 0 | DK24: =VLOOKUP('償却資産明細書(入力)'!K11,$K$62:$R$112,7,0) -> 0 | DL24: ='償却資産明細書(入力)'!G11 -> 0 | DQ24: 定額 | DR24: =IF($CH24<$BA$62,12,IF($CH24=$BA$62,VLOOKUP('償却資産明細書(入力)'!F11,$AB$62:$AE$74,3,0),"-")) ->  | DS24: / | DT24: 12 | EA24: 0 | EB24: 0 | EK24: =IF(EW24>=4,"－",'償却資産明細書(入力)'!G11) ->  | EL24: - | EM24: 1/3 | EP24: =ROUNDUP('償却資産明細書(入力)'!G11/3,0) -> 0 | EQ24: - | ER24: / | ES24: 12 | EU24: =IF(EW24<4,ET24+'償却資産明細書(入力)'!R11,"－") ->  | EV24: =IF(EW24<4,IF('償却資産明細書(入力)'!U11="",新償却資産計算!EU24,EU24*'償却資産明細書(入力)'!U11),"－") ->  | FC24: =IF('償却資産明細書(入力)'!AA11="一括償却資産","一括償却","減価償却") -> 減価償却 | FD24: 新償却率
B25: 7 | C25: 0 | I25: 0 | K25: 0 | M25: 0 | O25: 0 | Q25: 0 | V25: 償却不可 | Z25: 償却不可 | AG25: =IF(BM25="",IF(Q25="","",IF(Q25<100000,"-",IF(Q25>199999,IF(CH25<2007,CW25,IF(AND(CH25=2007,O25<4),CW25,DR25)),IF(BV25="減価償却",IF(CH25<2007,CW25,IF(AND(CH25=2007,O25<4),CW25,DR25)),IF(AND(Q25>99999,Q25<200000),EQ25,IF(M25="","",12)))))),IF(AND($Q25>99999,$Q25<200000,OR($BV25="一括償却",$BV25="")),EQ25,BM25)) -> - | AI25: / | AJ25: - | AL25: 償却不可 | AS25: 償却不可 | AW25: 1 | AZ25: 償却不可 | BE25: 償却不可 | BI25: 償却不可 | BM25: =IF('償却資産明細書(入力)'!Y12="","",'償却資産明細書(入力)'!Y12) ->  | BP25: 償却不可 | BQ25: 償却不可 | BR25: 償却不可 | BS25: 償却不可 | BT25: ='償却資産明細書(入力)'!J12 -> 0 | BU25: ='償却資産明細書(入力)'!K12 -> 0 | BV25: =IF('償却資産明細書(入力)'!AA12="一括償却資産","一括償却資産","減価償却") -> 減価償却 | BW25: ='償却資産明細書(入力)'!B12 -> 0 | BY25: ='償却資産明細書(入力)'!C12 -> 0 | CA25: ='償却資産明細書(入力)'!D12 -> 0 | CB25: ='償却資産明細書(入力)'!E12 -> 0 | CC25: ='償却資産明細書(入力)'!F12 -> 0 | CD25: ='償却資産明細書(入力)'!G12 -> 0 | CE25: =IF('償却資産明細書(入力)'!U12="",100,'償却資産明細書(入力)'!U12*100) -> 100 | CH25: =IF('償却資産明細書(入力)'!D12="昭和",VLOOKUP('償却資産明細書(入力)'!E12,$AK$62:$AP$125,4,0),IF('償却資産明細書(入力)'!D12="平成",VLOOKUP('償却資産明細書(入力)'!E12,$AR$62:$AW$125,4,0),VLOOKUP('償却資産明細書(入力)'!E12,$AY$65:$BD$128,4,0))) ->  | CI25: =VLOOKUP('償却資産明細書(入力)'!J12,$K$62:$R$112,5,0) -> 0 | CJ25: =VLOOKUP('償却資産明細書(入力)'!K12,$K$62:$R$112,5,0) -> 0 | CK25: =IF($CH25<2007,ROUNDUP('償却資産明細書(入力)'!G12*$X$62,0),IF(AND($CH25=2007,'償却資産明細書(入力)'!F12<4),ROUNDUP('償却資産明細書(入力)'!G12*$X$62,0),'償却資産明細書(入力)'!G12)) ->  | CQ25: =ROUNDUP('償却資産明細書(入力)'!G12*95%,0) -> 0 | CR25: ='償却資産明細書(入力)'!G12-新償却資産計算!CQ25 -> 0 | CU25: -1 | CW25: =IF($CH25<$BA$62,12,IF($CH25=$BA$62,VLOOKUP('償却資産明細書(入力)'!F12,$AB$62:$AE$74,3,0),"-")) ->  | CX25: / | CY25: 12 | DC25: =IF($CS25>4,1,IF($CS25>0,'償却資産明細書(入力)'!G12-($CQ25+$CT25),IF(CN25<0,"取得前",IF($CQ25>$CN25,'償却資産明細書(入力)'!G12-$CN25,'償却資産明細書(入力)'!G12-$CQ25)))) ->  | DJ25: =VLOOKUP('償却資産明細書(入力)'!J12,$K$62:$R$112,7,0) -> 0 | DK25: =VLOOKUP('償却資産明細書(入力)'!K12,$K$62:$R$112,7,0) -> 0 | DL25: ='償却資産明細書(入力)'!G12 -> 0 | DQ25: 定額 | DR25: =IF($CH25<$BA$62,12,IF($CH25=$BA$62,VLOOKUP('償却資産明細書(入力)'!F12,$AB$62:$AE$74,3,0),"-")) ->  | DS25: / | DT25: 12 | EA25: 0 | EB25: 0 | EK25: =IF(EW25>=4,"－",'償却資産明細書(入力)'!G12) ->  | EL25: - | EM25: 1/3 | EP25: =ROUNDUP('償却資産明細書(入力)'!G12/3,0) -> 0 | EQ25: - | ER25: / | ES25: 12 | EU25: =IF(EW25<4,ET25+'償却資産明細書(入力)'!R12,"－") ->  | EV25: =IF(EW25<4,IF('償却資産明細書(入力)'!U12="",新償却資産計算!EU25,EU25*'償却資産明細書(入力)'!U12),"－") ->  | FC25: =IF('償却資産明細書(入力)'!AA12="一括償却資産","一括償却","減価償却") -> 減価償却 | FD25: 新償却率
B26: 8 | C26: 0 | I26: 0 | K26: 0 | M26: 0 | O26: 0 | Q26: 0 | V26: 償却不可 | Z26: 償却不可 | AG26: - | AI26: / | AJ26: - | AL26: 償却不可 | AS26: 償却不可 | AW26: 1 | AZ26: 償却不可 | BE26: 償却不可 | BI26: 償却不可 | BM26: =IF('償却資産明細書(入力)'!Y13="","",'償却資産明細書(入力)'!Y13) ->  | BP26: 償却不可 | BQ26: 償却不可 | BR26: 償却不可 | BS26: 償却不可 | BT26: ='償却資産明細書(入力)'!J13 -> 0 | BU26: ='償却資産明細書(入力)'!K13 -> 0 | BV26: =IF('償却資産明細書(入力)'!AA13="一括償却資産","一括償却資産","減価償却") -> 減価償却 | BW26: ='償却資産明細書(入力)'!B13 -> 0 | BY26: ='償却資産明細書(入力)'!C13 -> 0 | CA26: ='償却資産明細書(入力)'!D13 -> 0 | CB26: ='償却資産明細書(入力)'!E13 -> 0 | CC26: ='償却資産明細書(入力)'!F13 -> 0 | CD26: ='償却資産明細書(入力)'!G13 -> 0 | CE26: =IF('償却資産明細書(入力)'!U13="",100,'償却資産明細書(入力)'!U13*100) -> 100 | CH26: =IF('償却資産明細書(入力)'!D13="昭和",VLOOKUP('償却資産明細書(入力)'!E13,$AK$62:$AP$125,4,0),IF('償却資産明細書(入力)'!D13="平成",VLOOKUP('償却資産明細書(入力)'!E13,$AR$62:$AW$125,4,0),VLOOKUP('償却資産明細書(入力)'!E13,$AY$65:$BD$128,4,0))) ->  | CI26: =VLOOKUP('償却資産明細書(入力)'!J13,$K$62:$R$112,5,0) -> 0 | CJ26: =VLOOKUP('償却資産明細書(入力)'!K13,$K$62:$R$112,5,0) -> 0 | CK26: =IF($CH26<2007,ROUNDUP('償却資産明細書(入力)'!G13*$X$62,0),IF(AND($CH26=2007,'償却資産明細書(入力)'!F13<4),ROUNDUP('償却資産明細書(入力)'!G13*$X$62,0),'償却資産明細書(入力)'!G13)) ->  | CQ26: =ROUNDUP('償却資産明細書(入力)'!G13*95%,0) -> 0 | CR26: ='償却資産明細書(入力)'!G13-新償却資産計算!CQ26 -> 0 | CU26: -1 | CW26: =IF($CH26<$BA$62,12,IF($CH26=$BA$62,VLOOKUP('償却資産明細書(入力)'!F13,$AB$62:$AE$74,3,0),"-")) ->  | CX26: / | CY26: 12 | DC26: =IF($CS26>4,1,IF($CS26>0,'償却資産明細書(入力)'!G13-($CQ26+$CT26),IF(CN26<0,"取得前",IF($CQ26>$CN26,'償却資産明細書(入力)'!G13-$CN26,'償却資産明細書(入力)'!G13-$CQ26)))) ->  | DJ26: =VLOOKUP('償却資産明細書(入力)'!J13,$K$62:$R$112,7,0) -> 0 | DK26: =VLOOKUP('償却資産明細書(入力)'!K13,$K$62:$R$112,7,0) -> 0 | DL26: ='償却資産明細書(入力)'!G13 -> 0 | DQ26: 定額 | DR26: =IF($CH26<$BA$62,12,IF($CH26=$BA$62,VLOOKUP('償却資産明細書(入力)'!F13,$AB$62:$AE$74,3,0),"-")) ->  | DS26: / | DT26: 12 | EA26: 0 | EB26: 0 | EK26: =IF(EW26>=4,"－",'償却資産明細書(入力)'!G13) ->  | EL26: - | EM26: 1/3 | EP26: =ROUNDUP('償却資産明細書(入力)'!G13/3,0) -> 0 | EQ26: - | ER26: / | ES26: 12 | EU26: =IF(EW26<4,ET26+'償却資産明細書(入力)'!R13,"－") ->  | EV26: =IF(EW26<4,IF('償却資産明細書(入力)'!U13="",新償却資産計算!EU26,EU26*'償却資産明細書(入力)'!U13),"－") ->  | FC26: =IF('償却資産明細書(入力)'!AA13="一括償却資産","一括償却","減価償却") -> 減価償却 | FD26: 新償却率
B27: 9 | C27: 0 | I27: 0 | K27: 0 | M27: 0 | O27: 0 | Q27: 0 | V27: 償却不可 | Z27: 償却不可 | AG27: - | AI27: / | AJ27: - | AL27: 償却不可 | AS27: 償却不可 | AW27: 1 | AZ27: 償却不可 | BE27: 償却不可 | BI27: 償却不可 | BM27: =IF('償却資産明細書(入力)'!Y14="","",'償却資産明細書(入力)'!Y14) ->  | BP27: 償却不可 | BQ27: 償却不可 | BR27: 償却不可 | BS27: 償却不可 | BT27: ='償却資産明細書(入力)'!J14 -> 0 | BU27: ='償却資産明細書(入力)'!K14 -> 0 | BV27: =IF('償却資産明細書(入力)'!AA14="一括償却資産","一括償却資産","減価償却") -> 減価償却 | BW27: ='償却資産明細書(入力)'!B14 -> 0 | BY27: ='償却資産明細書(入力)'!C14 -> 0 | CA27: ='償却資産明細書(入力)'!D14 -> 0 | CB27: ='償却資産明細書(入力)'!E14 -> 0 | CC27: ='償却資産明細書(入力)'!F14 -> 0 | CD27: ='償却資産明細書(入力)'!G14 -> 0 | CE27: =IF('償却資産明細書(入力)'!U14="",100,'償却資産明細書(入力)'!U14*100) -> 100 | CH27: =IF('償却資産明細書(入力)'!D14="昭和",VLOOKUP('償却資産明細書(入力)'!E14,$AK$62:$AP$125,4,0),IF('償却資産明細書(入力)'!D14="平成",VLOOKUP('償却資産明細書(入力)'!E14,$AR$62:$AW$125,4,0),VLOOKUP('償却資産明細書(入力)'!E14,$AY$65:$BD$128,4,0))) ->  | CI27: =VLOOKUP('償却資産明細書(入力)'!J14,$K$62:$R$112,5,0) -> 0 | CJ27: =VLOOKUP('償却資産明細書(入力)'!K14,$K$62:$R$112,5,0) -> 0 | CK27: =IF($CH27<2007,ROUNDUP('償却資産明細書(入力)'!G14*$X$62,0),IF(AND($CH27=2007,'償却資産明細書(入力)'!F14<4),ROUNDUP('償却資産明細書(入力)'!G14*$X$62,0),'償却資産明細書(入力)'!G14)) ->  | CQ27: =ROUNDUP('償却資産明細書(入力)'!G14*95%,0) -> 0 | CR27: ='償却資産明細書(入力)'!G14-新償却資産計算!CQ27 -> 0 | CU27: -1 | CW27: =IF($CH27<$BA$62,12,IF($CH27=$BA$62,VLOOKUP('償却資産明細書(入力)'!F14,$AB$62:$AE$74,3,0),"-")) ->  | CX27: / | CY27: 12 | DC27: =IF($CS27>4,1,IF($CS27>0,'償却資産明細書(入力)'!G14-($CQ27+$CT27),IF(CN27<0,"取得前",IF($CQ27>$CN27,'償却資産明細書(入力)'!G14-$CN27,'償却資産明細書(入力)'!G14-$CQ27)))) ->  | DJ27: =VLOOKUP('償却資産明細書(入力)'!J14,$K$62:$R$112,7,0) -> 0 | DK27: =VLOOKUP('償却資産明細書(入力)'!K14,$K$62:$R$112,7,0) -> 0 | DL27: ='償却資産明細書(入力)'!G14 -> 0 | DQ27: 定額 | DR27: =IF($CH27<$BA$62,12,IF($CH27=$BA$62,VLOOKUP('償却資産明細書(入力)'!F14,$AB$62:$AE$74,3,0),"-")) ->  | DS27: / | DT27: 12 | EA27: 0 | EB27: 0 | EK27: =IF(EW27>=4,"－",'償却資産明細書(入力)'!G14) ->  | EL27: - | EM27: 1/3 | EP27: =ROUNDUP('償却資産明細書(入力)'!G14/3,0) -> 0 | EQ27: - | ER27: / | ES27: 12 | EU27: =IF(EW27<4,ET27+'償却資産明細書(入力)'!R14,"－") ->  | EV27: =IF(EW27<4,IF('償却資産明細書(入力)'!U14="",新償却資産計算!EU27,EU27*'償却資産明細書(入力)'!U14),"－") ->  | FC27: =IF('償却資産明細書(入力)'!AA14="一括償却資産","一括償却","減価償却") -> 減価償却 | FD27: 新償却率
B28: 10 | C28: 0 | I28: 0 | K28: 0 | M28: 0 | O28: 0 | Q28: 0 | V28: 償却不可 | Z28: 償却不可 | AG28: - | AI28: / | AJ28: - | AL28: 償却不可 | AS28: 償却不可 | AW28: 1 | AZ28: 償却不可 | BE28: 償却不可 | BI28: 償却不可 | BM28: =IF('償却資産明細書(入力)'!Y15="","",'償却資産明細書(入力)'!Y15) ->  | BP28: 償却不可 | BQ28: 償却不可 | BR28: 償却不可 | BS28: 償却不可 | BT28: ='償却資産明細書(入力)'!J15 -> 0 | BU28: ='償却資産明細書(入力)'!K15 -> 0 | BV28: =IF('償却資産明細書(入力)'!AA15="一括償却資産","一括償却資産","減価償却") -> 減価償却 | BW28: ='償却資産明細書(入力)'!B15 -> 0 | BY28: ='償却資産明細書(入力)'!C15 -> 0 | CA28: ='償却資産明細書(入力)'!D15 -> 0 | CB28: ='償却資産明細書(入力)'!E15 -> 0 | CC28: ='償却資産明細書(入力)'!F15 -> 0 | CD28: ='償却資産明細書(入力)'!G15 -> 0 | CE28: =IF('償却資産明細書(入力)'!U15="",100,'償却資産明細書(入力)'!U15*100) -> 100 | CH28: =IF('償却資産明細書(入力)'!D15="昭和",VLOOKUP('償却資産明細書(入力)'!E15,$AK$62:$AP$125,4,0),IF('償却資産明細書(入力)'!D15="平成",VLOOKUP('償却資産明細書(入力)'!E15,$AR$62:$AW$125,4,0),VLOOKUP('償却資産明細書(入力)'!E15,$AY$65:$BD$128,4,0))) ->  | CI28: =VLOOKUP('償却資産明細書(入力)'!J15,$K$62:$R$112,5,0) -> 0 | CJ28: =VLOOKUP('償却資産明細書(入力)'!K15,$K$62:$R$112,5,0) -> 0 | CK28: =IF($CH28<2007,ROUNDUP('償却資産明細書(入力)'!G15*$X$62,0),IF(AND($CH28=2007,'償却資産明細書(入力)'!F15<4),ROUNDUP('償却資産明細書(入力)'!G15*$X$62,0),'償却資産明細書(入力)'!G15)) ->  | CQ28: =ROUNDUP('償却資産明細書(入力)'!G15*95%,0) -> 0 | CR28: ='償却資産明細書(入力)'!G15-新償却資産計算!CQ28 -> 0 | CU28: -1 | CW28: =IF($CH28<$BA$62,12,IF($CH28=$BA$62,VLOOKUP('償却資産明細書(入力)'!F15,$AB$62:$AE$74,3,0),"-")) ->  | CX28: / | CY28: 12 | DC28: =IF($CS28>4,1,IF($CS28>0,'償却資産明細書(入力)'!G15-($CQ28+$CT28),IF(CN28<0,"取得前",IF($CQ28>$CN28,'償却資産明細書(入力)'!G15-$CN28,'償却資産明細書(入力)'!G15-$CQ28)))) ->  | DJ28: =VLOOKUP('償却資産明細書(入力)'!J15,$K$62:$R$112,7,0) -> 0 | DK28: =VLOOKUP('償却資産明細書(入力)'!K15,$K$62:$R$112,7,0) -> 0 | DL28: ='償却資産明細書(入力)'!G15 -> 0 | DQ28: 定額 | DR28: =IF($CH28<$BA$62,12,IF($CH28=$BA$62,VLOOKUP('償却資産明細書(入力)'!F15,$AB$62:$AE$74,3,0),"-")) ->  | DS28: / | DT28: 12 | EA28: 0 | EB28: 0 | EK28: =IF(EW28>=4,"－",'償却資産明細書(入力)'!G15) ->  | EL28: - | EM28: 1/3 | EP28: =ROUNDUP('償却資産明細書(入力)'!G15/3,0) -> 0 | EQ28: - | ER28: / | ES28: 12 | EU28: =IF(EW28<4,ET28+'償却資産明細書(入力)'!R15,"－") ->  | EV28: =IF(EW28<4,IF('償却資産明細書(入力)'!U15="",新償却資産計算!EU28,EU28*'償却資産明細書(入力)'!U15),"－") ->  | FC28: =IF('償却資産明細書(入力)'!AA15="一括償却資産","一括償却","減価償却") -> 減価償却 | FD28: 新償却率
B29: 11 | C29: 0 | I29: 0 | K29: 0 | M29: 0 | O29: 0 | Q29: 0 | V29: 償却不可 | Z29: 償却不可 | AG29: - | AI29: / | AJ29: - | AL29: 償却不可 | AS29: 償却不可 | AW29: 1 | AZ29: 償却不可 | BE29: 償却不可 | BI29: 償却不可 | BM29: =IF('償却資産明細書(入力)'!Y16="","",'償却資産明細書(入力)'!Y16) ->  | BP29: 償却不可 | BQ29: 償却不可 | BR29: 償却不可 | BS29: 償却不可 | BT29: ='償却資産明細書(入力)'!J16 -> 0 | BU29: ='償却資産明細書(入力)'!K16 -> 0 | BV29: =IF('償却資産明細書(入力)'!AA16="一括償却資産","一括償却資産","減価償却") -> 減価償却 | BW29: ='償却資産明細書(入力)'!B16 -> 0 | BY29: ='償却資産明細書(入力)'!C16 -> 0 | CA29: ='償却資産明細書(入力)'!D16 -> 0 | CB29: ='償却資産明細書(入力)'!E16 -> 0 | CC29: ='償却資産明細書(入力)'!F16 -> 0 | CD29: ='償却資産明細書(入力)'!G16 -> 0 | CE29: =IF('償却資産明細書(入力)'!U16="",100,'償却資産明細書(入力)'!U16*100) -> 100 | CH29: =IF('償却資産明細書(入力)'!D16="昭和",VLOOKUP('償却資産明細書(入力)'!E16,$AK$62:$AP$125,4,0),IF('償却資産明細書(入力)'!D16="平成",VLOOKUP('償却資産明細書(入力)'!E16,$AR$62:$AW$125,4,0),VLOOKUP('償却資産明細書(入力)'!E16,$AY$65:$BD$128,4,0))) ->  | CI29: =VLOOKUP('償却資産明細書(入力)'!J16,$K$62:$R$112,5,0) -> 0 | CJ29: =VLOOKUP('償却資産明細書(入力)'!K16,$K$62:$R$112,5,0) -> 0 | CK29: =IF($CH29<2007,ROUNDUP('償却資産明細書(入力)'!G16*$X$62,0),IF(AND($CH29=2007,'償却資産明細書(入力)'!F16<4),ROUNDUP('償却資産明細書(入力)'!G16*$X$62,0),'償却資産明細書(入力)'!G16)) ->  | CQ29: =ROUNDUP('償却資産明細書(入力)'!G16*95%,0) -> 0 | CR29: ='償却資産明細書(入力)'!G16-新償却資産計算!CQ29 -> 0 | CU29: -1 | CW29: =IF($CH29<$BA$62,12,IF($CH29=$BA$62,VLOOKUP('償却資産明細書(入力)'!F16,$AB$62:$AE$74,3,0),"-")) ->  | CX29: / | CY29: 12 | DC29: =IF($CS29>4,1,IF($CS29>0,'償却資産明細書(入力)'!G16-($CQ29+$CT29),IF(CN29<0,"取得前",IF($CQ29>$CN29,'償却資産明細書(入力)'!G16-$CN29,'償却資産明細書(入力)'!G16-$CQ29)))) ->  | DJ29: =VLOOKUP('償却資産明細書(入力)'!J16,$K$62:$R$112,7,0) -> 0 | DK29: =VLOOKUP('償却資産明細書(入力)'!K16,$K$62:$R$112,7,0) -> 0 | DL29: ='償却資産明細書(入力)'!G16 -> 0 | DQ29: 定額 | DR29: =IF($CH29<$BA$62,12,IF($CH29=$BA$62,VLOOKUP('償却資産明細書(入力)'!F16,$AB$62:$AE$74,3,0),"-")) ->  | DS29: / | DT29: 12 | EA29: 0 | EB29: 0 | EK29: =IF(EW29>=4,"－",'償却資産明細書(入力)'!G16) ->  | EL29: - | EM29: 1/3 | EP29: =ROUNDUP('償却資産明細書(入力)'!G16/3,0) -> 0 | EQ29: - | ER29: / | ES29: 12 | EU29: =IF(EW29<4,ET29+'償却資産明細書(入力)'!R16,"－") ->  | EV29: =IF(EW29<4,IF('償却資産明細書(入力)'!U16="",新償却資産計算!EU29,EU29*'償却資産明細書(入力)'!U16),"－") ->  | FC29: =IF('償却資産明細書(入力)'!AA16="一括償却資産","一括償却","減価償却") -> 減価償却 | FD29: 新償却率
B30: 12 | C30: 0 | I30: 0 | K30: 0 | M30: 0 | O30: 0 | Q30: 0 | V30: 償却不可 | Z30: 償却不可 | AG30: - | AI30: / | AJ30: - | AL30: 償却不可 | AS30: 償却不可 | AW30: 1 | AZ30: 償却不可 | BE30: 償却不可 | BI30: 償却不可 | BM30: =IF('償却資産明細書(入力)'!Y17="","",'償却資産明細書(入力)'!Y17) ->  | BP30: 償却不可 | BQ30: 償却不可 | BR30: 償却不可 | BS30: 償却不可 | BT30: ='償却資産明細書(入力)'!J17 -> 0 | BU30: ='償却資産明細書(入力)'!K17 -> 0 | BV30: =IF('償却資産明細書(入力)'!AA17="一括償却資産","一括償却資産","減価償却") -> 減価償却 | BW30: ='償却資産明細書(入力)'!B17 -> 0 | BY30: ='償却資産明細書(入力)'!C17 -> 0 | CA30: ='償却資産明細書(入力)'!D17 -> 0 | CB30: ='償却資産明細書(入力)'!E17 -> 0 | CC30: ='償却資産明細書(入力)'!F17 -> 0 | CD30: ='償却資産明細書(入力)'!G17 -> 0 | CE30: =IF('償却資産明細書(入力)'!U17="",100,'償却資産明細書(入力)'!U17*100) -> 100 | CH30: =IF('償却資産明細書(入力)'!D17="昭和",VLOOKUP('償却資産明細書(入力)'!E17,$AK$62:$AP$125,4,0),IF('償却資産明細書(入力)'!D17="平成",VLOOKUP('償却資産明細書(入力)'!E17,$AR$62:$AW$125,4,0),VLOOKUP('償却資産明細書(入力)'!E17,$AY$65:$BD$128,4,0))) ->  | CI30: =VLOOKUP('償却資産明細書(入力)'!J17,$K$62:$R$112,5,0) -> 0 | CJ30: =VLOOKUP('償却資産明細書(入力)'!K17,$K$62:$R$112,5,0) -> 0 | CK30: =IF($CH30<2007,ROUNDUP('償却資産明細書(入力)'!G17*$X$62,0),IF(AND($CH30=2007,'償却資産明細書(入力)'!F17<4),ROUNDUP('償却資産明細書(入力)'!G17*$X$62,0),'償却資産明細書(入力)'!G17)) ->  | CQ30: =ROUNDUP('償却資産明細書(入力)'!G17*95%,0) -> 0 | CR30: ='償却資産明細書(入力)'!G17-新償却資産計算!CQ30 -> 0 | CU30: -1 | CW30: =IF($CH30<$BA$62,12,IF($CH30=$BA$62,VLOOKUP('償却資産明細書(入力)'!F17,$AB$62:$AE$74,3,0),"-")) ->  | CX30: / | CY30: 12 | DC30: =IF($CS30>4,1,IF($CS30>0,'償却資産明細書(入力)'!G17-($CQ30+$CT30),IF(CN30<0,"取得前",IF($CQ30>$CN30,'償却資産明細書(入力)'!G17-$CN30,'償却資産明細書(入力)'!G17-$CQ30)))) ->  | DJ30: =VLOOKUP('償却資産明細書(入力)'!J17,$K$62:$R$112,7,0) -> 0 | DK30: =VLOOKUP('償却資産明細書(入力)'!K17,$K$62:$R$112,7,0) -> 0 | DL30: ='償却資産明細書(入力)'!G17 -> 0 | DQ30: 定額 | DR30: =IF($CH30<$BA$62,12,IF($CH30=$BA$62,VLOOKUP('償却資産明細書(入力)'!F17,$AB$62:$AE$74,3,0),"-")) ->  | DS30: / | DT30: 12 | EA30: 0 | EB30: 0 | EK30: =IF(EW30>=4,"－",'償却資産明細書(入力)'!G17) ->  | EL30: - | EM30: 1/3 | EP30: =ROUNDUP('償却資産明細書(入力)'!G17/3,0) -> 0 | EQ30: - | ER30: / | ES30: 12 | EU30: =IF(EW30<4,ET30+'償却資産明細書(入力)'!R17,"－") ->  | EV30: =IF(EW30<4,IF('償却資産明細書(入力)'!U17="",新償却資産計算!EU30,EU30*'償却資産明細書(入力)'!U17),"－") ->  | FC30: =IF('償却資産明細書(入力)'!AA17="一括償却資産","一括償却","減価償却") -> 減価償却 | FD30: 新償却率
B31: 13 | C31: 0 | I31: 0 | K31: 0 | M31: 0 | O31: 0 | Q31: 0 | V31: 償却不可 | Z31: 償却不可 | AG31: - | AI31: / | AJ31: - | AL31: 償却不可 | AS31: 償却不可 | AW31: 1 | AZ31: 償却不可 | BE31: 償却不可 | BI31: 償却不可 | BM31: =IF('償却資産明細書(入力)'!Y18="","",'償却資産明細書(入力)'!Y18) ->  | BP31: 償却不可 | BQ31: 償却不可 | BR31: 償却不可 | BS31: 償却不可 | BT31: ='償却資産明細書(入力)'!J18 -> 0 | BU31: ='償却資産明細書(入力)'!K18 -> 0 | BV31: =IF('償却資産明細書(入力)'!AA18="一括償却資産","一括償却資産","減価償却") -> 減価償却 | BW31: ='償却資産明細書(入力)'!B18 -> 0 | BY31: ='償却資産明細書(入力)'!C18 -> 0 | CA31: ='償却資産明細書(入力)'!D18 -> 0 | CB31: ='償却資産明細書(入力)'!E18 -> 0 | CC31: ='償却資産明細書(入力)'!F18 -> 0 | CD31: ='償却資産明細書(入力)'!G18 -> 0 | CE31: =IF('償却資産明細書(入力)'!U18="",100,'償却資産明細書(入力)'!U18*100) -> 100 | CH31: =IF('償却資産明細書(入力)'!D18="昭和",VLOOKUP('償却資産明細書(入力)'!E18,$AK$62:$AP$125,4,0),IF('償却資産明細書(入力)'!D18="平成",VLOOKUP('償却資産明細書(入力)'!E18,$AR$62:$AW$125,4,0),VLOOKUP('償却資産明細書(入力)'!E18,$AY$65:$BD$128,4,0))) ->  | CI31: =VLOOKUP('償却資産明細書(入力)'!J18,$K$62:$R$112,5,0) -> 0 | CJ31: =VLOOKUP('償却資産明細書(入力)'!K18,$K$62:$R$112,5,0) -> 0 | CK31: =IF($CH31<2007,ROUNDUP('償却資産明細書(入力)'!G18*$X$62,0),IF(AND($CH31=2007,'償却資産明細書(入力)'!F18<4),ROUNDUP('償却資産明細書(入力)'!G18*$X$62,0),'償却資産明細書(入力)'!G18)) ->  | CQ31: =ROUNDUP('償却資産明細書(入力)'!G18*95%,0) -> 0 | CR31: ='償却資産明細書(入力)'!G18-新償却資産計算!CQ31 -> 0 | CU31: -1 | CW31: =IF($CH31<$BA$62,12,IF($CH31=$BA$62,VLOOKUP('償却資産明細書(入力)'!F18,$AB$62:$AE$74,3,0),"-")) ->  | CX31: / | CY31: 12 | DC31: =IF($CS31>4,1,IF($CS31>0,'償却資産明細書(入力)'!G18-($CQ31+$CT31),IF(CN31<0,"取得前",IF($CQ31>$CN31,'償却資産明細書(入力)'!G18-$CN31,'償却資産明細書(入力)'!G18-$CQ31)))) ->  | DJ31: =VLOOKUP('償却資産明細書(入力)'!J18,$K$62:$R$112,7,0) -> 0 | DK31: =VLOOKUP('償却資産明細書(入力)'!K18,$K$62:$R$112,7,0) -> 0 | DL31: ='償却資産明細書(入力)'!G18 -> 0 | DQ31: 定額 | DR31: =IF($CH31<$BA$62,12,IF($CH31=$BA$62,VLOOKUP('償却資産明細書(入力)'!F18,$AB$62:$AE$74,3,0),"-")) ->  | DS31: / | DT31: 12 | EA31: 0 | EB31: 0 | EK31: =IF(EW31>=4,"－",'償却資産明細書(入力)'!G18) ->  | EL31: - | EM31: 1/3 | EP31: =ROUNDUP('償却資産明細書(入力)'!G18/3,0) -> 0 | EQ31: - | ER31: / | ES31: 12 | EU31: =IF(EW31<4,ET31+'償却資産明細書(入力)'!R18,"－") ->  | EV31: =IF(EW31<4,IF('償却資産明細書(入力)'!U18="",新償却資産計算!EU31,EU31*'償却資産明細書(入力)'!U18),"－") ->  | FC31: =IF('償却資産明細書(入力)'!AA18="一括償却資産","一括償却","減価償却") -> 減価償却 | FD31: 新償却率
B32: 14 | C32: 0 | I32: 0 | K32: 0 | M32: 0 | O32: 0 | Q32: 0 | V32: 償却不可 | Z32: 償却不可 | AG32: - | AI32: / | AJ32: - | AL32: 償却不可 | AS32: 償却不可 | AW32: 1 | AZ32: 償却不可 | BE32: 償却不可 | BI32: 償却不可 | BM32: =IF('償却資産明細書(入力)'!Y19="","",'償却資産明細書(入力)'!Y19) ->  | BP32: 償却不可 | BQ32: 償却不可 | BR32: 償却不可 | BS32: 償却不可 | BT32: ='償却資産明細書(入力)'!J19 -> 0 | BU32: ='償却資産明細書(入力)'!K19 -> 0 | BV32: =IF('償却資産明細書(入力)'!AA19="一括償却資産","一括償却資産","減価償却") -> 減価償却 | BW32: ='償却資産明細書(入力)'!B19 -> 0 | BY32: ='償却資産明細書(入力)'!C19 -> 0 | CA32: ='償却資産明細書(入力)'!D19 -> 0 | CB32: ='償却資産明細書(入力)'!E19 -> 0 | CC32: ='償却資産明細書(入力)'!F19 -> 0 | CD32: ='償却資産明細書(入力)'!G19 -> 0 | CE32: =IF('償却資産明細書(入力)'!U19="",100,'償却資産明細書(入力)'!U19*100) -> 100 | CH32: =IF('償却資産明細書(入力)'!D19="昭和",VLOOKUP('償却資産明細書(入力)'!E19,$AK$62:$AP$125,4,0),IF('償却資産明細書(入力)'!D19="平成",VLOOKUP('償却資産明細書(入力)'!E19,$AR$62:$AW$125,4,0),VLOOKUP('償却資産明細書(入力)'!E19,$AY$65:$BD$128,4,0))) ->  | CI32: =VLOOKUP('償却資産明細書(入力)'!J19,$K$62:$R$112,5,0) -> 0 | CJ32: =VLOOKUP('償却資産明細書(入力)'!K19,$K$62:$R$112,5,0) -> 0 | CK32: =IF($CH32<2007,ROUNDUP('償却資産明細書(入力)'!G19*$X$62,0),IF(AND($CH32=2007,'償却資産明細書(入力)'!F19<4),ROUNDUP('償却資産明細書(入力)'!G19*$X$62,0),'償却資産明細書(入力)'!G19)) ->  | CQ32: =ROUNDUP('償却資産明細書(入力)'!G19*95%,0) -> 0 | CR32: ='償却資産明細書(入力)'!G19-新償却資産計算!CQ32 -> 0 | CU32: -1 | CW32: =IF($CH32<$BA$62,12,IF($CH32=$BA$62,VLOOKUP('償却資産明細書(入力)'!F19,$AB$62:$AE$74,3,0),"-")) ->  | CX32: / | CY32: 12 | DC32: =IF($CS32>4,1,IF($CS32>0,'償却資産明細書(入力)'!G19-($CQ32+$CT32),IF(CN32<0,"取得前",IF($CQ32>$CN32,'償却資産明細書(入力)'!G19-$CN32,'償却資産明細書(入力)'!G19-$CQ32)))) ->  | DJ32: =VLOOKUP('償却資産明細書(入力)'!J19,$K$62:$R$112,7,0) -> 0 | DK32: =VLOOKUP('償却資産明細書(入力)'!K19,$K$62:$R$112,7,0) -> 0 | DL32: ='償却資産明細書(入力)'!G19 -> 0 | DQ32: 定額 | DR32: =IF($CH32<$BA$62,12,IF($CH32=$BA$62,VLOOKUP('償却資産明細書(入力)'!F19,$AB$62:$AE$74,3,0),"-")) ->  | DS32: / | DT32: 12 | EA32: 0 | EB32: 0 | EK32: =IF(EW32>=4,"－",'償却資産明細書(入力)'!G19) ->  | EL32: - | EM32: 1/3 | EP32: =ROUNDUP('償却資産明細書(入力)'!G19/3,0) -> 0 | EQ32: - | ER32: / | ES32: 12 | EU32: =IF(EW32<4,ET32+'償却資産明細書(入力)'!R19,"－") ->  | EV32: =IF(EW32<4,IF('償却資産明細書(入力)'!U19="",新償却資産計算!EU32,EU32*'償却資産明細書(入力)'!U19),"－") ->  | FC32: =IF('償却資産明細書(入力)'!AA19="一括償却資産","一括償却","減価償却") -> 減価償却 | FD32: 新償却率
B33: 15 | C33: 0 | I33: 0 | K33: 0 | M33: 0 | O33: 0 | Q33: 0 | V33: 償却不可 | Z33: 償却不可 | AG33: - | AI33: / | AJ33: - | AL33: 償却不可 | AS33: 償却不可 | AW33: 1 | AZ33: 償却不可 | BE33: 償却不可 | BI33: 償却不可 | BM33: =IF('償却資産明細書(入力)'!Y20="","",'償却資産明細書(入力)'!Y20) ->  | BP33: 償却不可 | BQ33: 償却不可 | BR33: 償却不可 | BS33: 償却不可 | BT33: ='償却資産明細書(入力)'!J20 -> 0 | BU33: ='償却資産明細書(入力)'!K20 -> 0 | BV33: =IF('償却資産明細書(入力)'!AA20="一括償却資産","一括償却資産","減価償却") -> 減価償却 | BW33: ='償却資産明細書(入力)'!B20 -> 0 | BY33: ='償却資産明細書(入力)'!C20 -> 0 | CA33: ='償却資産明細書(入力)'!D20 -> 0 | CB33: ='償却資産明細書(入力)'!E20 -> 0 | CC33: ='償却資産明細書(入力)'!F20 -> 0 | CD33: ='償却資産明細書(入力)'!G20 -> 0 | CE33: =IF('償却資産明細書(入力)'!U20="",100,'償却資産明細書(入力)'!U20*100) -> 100 | CH33: =IF('償却資産明細書(入力)'!D20="昭和",VLOOKUP('償却資産明細書(入力)'!E20,$AK$62:$AP$125,4,0),IF('償却資産明細書(入力)'!D20="平成",VLOOKUP('償却資産明細書(入力)'!E20,$AR$62:$AW$125,4,0),VLOOKUP('償却資産明細書(入力)'!E20,$AY$65:$BD$128,4,0))) ->  | CI33: =VLOOKUP('償却資産明細書(入力)'!J20,$K$62:$R$112,5,0) -> 0 | CJ33: =VLOOKUP('償却資産明細書(入力)'!K20,$K$62:$R$112,5,0) -> 0 | CK33: =IF($CH33<2007,ROUNDUP('償却資産明細書(入力)'!G20*$X$62,0),IF(AND($CH33=2007,'償却資産明細書(入力)'!F20<4),ROUNDUP('償却資産明細書(入力)'!G20*$X$62,0),'償却資産明細書(入力)'!G20)) ->  | CQ33: =ROUNDUP('償却資産明細書(入力)'!G20*95%,0) -> 0 | CR33: ='償却資産明細書(入力)'!G20-新償却資産計算!CQ33 -> 0 | CU33: -1 | CW33: =IF($CH33<$BA$62,12,IF($CH33=$BA$62,VLOOKUP('償却資産明細書(入力)'!F20,$AB$62:$AE$74,3,0),"-")) ->  | CX33: / | CY33: 12 | DC33: =IF($CS33>4,1,IF($CS33>0,'償却資産明細書(入力)'!G20-($CQ33+$CT33),IF(CN33<0,"取得前",IF($CQ33>$CN33,'償却資産明細書(入力)'!G20-$CN33,'償却資産明細書(入力)'!G20-$CQ33)))) ->  | DJ33: =VLOOKUP('償却資産明細書(入力)'!J20,$K$62:$R$112,7,0) -> 0 | DK33: =VLOOKUP('償却資産明細書(入力)'!K20,$K$62:$R$112,7,0) -> 0 | DL33: ='償却資産明細書(入力)'!G20 -> 0 | DQ33: 定額 | DR33: =IF($CH33<$BA$62,12,IF($CH33=$BA$62,VLOOKUP('償却資産明細書(入力)'!F20,$AB$62:$AE$74,3,0),"-")) ->  | DS33: / | DT33: 12 | EA33: 0 | EB33: 0 | EK33: =IF(EW33>=4,"－",'償却資産明細書(入力)'!G20) ->  | EL33: - | EM33: 1/3 | EP33: =ROUNDUP('償却資産明細書(入力)'!G20/3,0) -> 0 | EQ33: - | ER33: / | ES33: 12 | EU33: =IF(EW33<4,ET33+'償却資産明細書(入力)'!R20,"－") ->  | EV33: =IF(EW33<4,IF('償却資産明細書(入力)'!U20="",新償却資産計算!EU33,EU33*'償却資産明細書(入力)'!U20),"－") ->  | FC33: =IF('償却資産明細書(入力)'!AA20="一括償却資産","一括償却","減価償却") -> 減価償却 | FD33: 新償却率
B34: 16 | C34: 0 | I34: 0 | K34: 0 | M34: 0 | O34: 0 | Q34: 0 | V34: 償却不可 | Z34: 償却不可 | AG34: - | AI34: / | AJ34: - | AL34: 償却不可 | AS34: 償却不可 | AW34: 1 | AZ34: 償却不可 | BE34: 償却不可 | BI34: 償却不可 | BM34: =IF('償却資産明細書(入力)'!Y21="","",'償却資産明細書(入力)'!Y21) ->  | BP34: 償却不可 | BQ34: 償却不可 | BR34: 償却不可 | BS34: 償却不可 | BT34: ='償却資産明細書(入力)'!J21 -> 0 | BU34: ='償却資産明細書(入力)'!K21 -> 0 | BV34: =IF('償却資産明細書(入力)'!AA21="一括償却資産","一括償却資産","減価償却") -> 減価償却 | BW34: ='償却資産明細書(入力)'!B21 -> 0 | BY34: ='償却資産明細書(入力)'!C21 -> 0 | CA34: ='償却資産明細書(入力)'!D21 -> 0 | CB34: ='償却資産明細書(入力)'!E21 -> 0 | CC34: ='償却資産明細書(入力)'!F21 -> 0 | CD34: ='償却資産明細書(入力)'!G21 -> 0 | CE34: =IF('償却資産明細書(入力)'!U21="",100,'償却資産明細書(入力)'!U21*100) -> 100 | CH34: =IF('償却資産明細書(入力)'!D21="昭和",VLOOKUP('償却資産明細書(入力)'!E21,$AK$62:$AP$125,4,0),IF('償却資産明細書(入力)'!D21="平成",VLOOKUP('償却資産明細書(入力)'!E21,$AR$62:$AW$125,4,0),VLOOKUP('償却資産明細書(入力)'!E21,$AY$65:$BD$128,4,0))) ->  | CI34: =VLOOKUP('償却資産明細書(入力)'!J21,$K$62:$R$112,5,0) -> 0 | CJ34: =VLOOKUP('償却資産明細書(入力)'!K21,$K$62:$R$112,5,0) -> 0 | CK34: =IF($CH34<2007,ROUNDUP('償却資産明細書(入力)'!G21*$X$62,0),IF(AND($CH34=2007,'償却資産明細書(入力)'!F21<4),ROUNDUP('償却資産明細書(入力)'!G21*$X$62,0),'償却資産明細書(入力)'!G21)) ->  | CQ34: =ROUNDUP('償却資産明細書(入力)'!G21*95%,0) -> 0 | CR34: ='償却資産明細書(入力)'!G21-新償却資産計算!CQ34 -> 0 | CU34: -1 | CW34: =IF($CH34<$BA$62,12,IF($CH34=$BA$62,VLOOKUP('償却資産明細書(入力)'!F21,$AB$62:$AE$74,3,0),"-")) ->  | CX34: / | CY34: 12 | DC34: =IF($CS34>4,1,IF($CS34>0,'償却資産明細書(入力)'!G21-($CQ34+$CT34),IF(CN34<0,"取得前",IF($CQ34>$CN34,'償却資産明細書(入力)'!G21-$CN34,'償却資産明細書(入力)'!G21-$CQ34)))) ->  | DJ34: =VLOOKUP('償却資産明細書(入力)'!J21,$K$62:$R$112,7,0) -> 0 | DK34: =VLOOKUP('償却資産明細書(入力)'!K21,$K$62:$R$112,7,0) -> 0 | DL34: ='償却資産明細書(入力)'!G21 -> 0 | DQ34: 定額 | DR34: =IF($CH34<$BA$62,12,IF($CH34=$BA$62,VLOOKUP('償却資産明細書(入力)'!F21,$AB$62:$AE$74,3,0),"-")) ->  | DS34: / | DT34: 12 | EA34: 0 | EB34: 0 | EK34: =IF(EW34>=4,"－",'償却資産明細書(入力)'!G21) ->  | EL34: - | EM34: 1/3 | EP34: =ROUNDUP('償却資産明細書(入力)'!G21/3,0) -> 0 | EQ34: - | ER34: / | ES34: 12 | EU34: =IF(EW34<4,ET34+'償却資産明細書(入力)'!R21,"－") ->  | EV34: =IF(EW34<4,IF('償却資産明細書(入力)'!U21="",新償却資産計算!EU34,EU34*'償却資産明細書(入力)'!U21),"－") ->  | FC34: =IF('償却資産明細書(入力)'!AA21="一括償却資産","一括償却","減価償却") -> 減価償却 | FD34: 新償却率
B35: 17 | C35: 0 | I35: 0 | K35: 0 | M35: 0 | O35: 0 | Q35: 0 | V35: 償却不可 | Z35: 償却不可 | AE35: =IF($FC35="一括償却",$EM35,IF(AND($FB35="新定額",$FC35="減価償却",$FD35="新償却率"),$DK35,IF(AND($FB35="新定額",$FC35="減価償却",$FD35="旧償却率"),$DJ35,IF(AND($FB35="旧定額",$FC35="減価償却",$FD35="新償却率"),$CJ35,$CI35)))) ->  | AG35: - | AI35: / | AJ35: - | AL35: 償却不可 | AS35: 償却不可 | AW35: 1 | AZ35: 償却不可 | BE35: 償却不可 | BI35: 償却不可 | BM35: =IF('償却資産明細書(入力)'!Y22="","",'償却資産明細書(入力)'!Y22) ->  | BP35: 償却不可 | BQ35: 償却不可 | BR35: 償却不可 | BS35: 償却不可 | BT35: ='償却資産明細書(入力)'!J22 -> 0 | BU35: ='償却資産明細書(入力)'!K22 -> 0 | BV35: =IF('償却資産明細書(入力)'!AA22="一括償却資産","一括償却資産","減価償却") -> 減価償却 | BW35: ='償却資産明細書(入力)'!B22 -> 0 | BY35: ='償却資産明細書(入力)'!C22 -> 0 | CA35: ='償却資産明細書(入力)'!D22 -> 0 | CB35: ='償却資産明細書(入力)'!E22 -> 0 | CC35: ='償却資産明細書(入力)'!F22 -> 0 | CD35: ='償却資産明細書(入力)'!G22 -> 0 | CE35: =IF('償却資産明細書(入力)'!U22="",100,'償却資産明細書(入力)'!U22*100) -> 100 | CH35: =IF('償却資産明細書(入力)'!D22="昭和",VLOOKUP('償却資産明細書(入力)'!E22,$AK$62:$AP$125,4,0),IF('償却資産明細書(入力)'!D22="平成",VLOOKUP('償却資産明細書(入力)'!E22,$AR$62:$AW$125,4,0),VLOOKUP('償却資産明細書(入力)'!E22,$AY$65:$BD$128,4,0))) ->  | CI35: =VLOOKUP('償却資産明細書(入力)'!J22,$K$62:$R$112,5,0) -> 0 | CJ35: =VLOOKUP('償却資産明細書(入力)'!K22,$K$62:$R$112,5,0) -> 0 | CK35: =IF($CH35<2007,ROUNDUP('償却資産明細書(入力)'!G22*$X$62,0),IF(AND($CH35=2007,'償却資産明細書(入力)'!F22<4),ROUNDUP('償却資産明細書(入力)'!G22*$X$62,0),'償却資産明細書(入力)'!G22)) ->  | CQ35: =ROUNDUP('償却資産明細書(入力)'!G22*95%,0) -> 0 | CR35: ='償却資産明細書(入力)'!G22-新償却資産計算!CQ35 -> 0 | CU35: -1 | CW35: =IF($CH35<$BA$62,12,IF($CH35=$BA$62,VLOOKUP('償却資産明細書(入力)'!F22,$AB$62:$AE$74,3,0),"-")) ->  | CX35: / | CY35: 12 | DC35: =IF($CS35>4,1,IF($CS35>0,'償却資産明細書(入力)'!G22-($CQ35+$CT35),IF(CN35<0,"取得前",IF($CQ35>$CN35,'償却資産明細書(入力)'!G22-$CN35,'償却資産明細書(入力)'!G22-$CQ35)))) ->  | DJ35: =VLOOKUP('償却資産明細書(入力)'!J22,$K$62:$R$112,7,0) -> 0 | DK35: =VLOOKUP('償却資産明細書(入力)'!K22,$K$62:$R$112,7,0) -> 0 | DL35: ='償却資産明細書(入力)'!G22 -> 0 | DQ35: 定額 | DR35: =IF($CH35<$BA$62,12,IF($CH35=$BA$62,VLOOKUP('償却資産明細書(入力)'!F22,$AB$62:$AE$74,3,0),"-")) ->  | DS35: / | DT35: 12 | EA35: 0 | EB35: 0 | EK35: =IF(EW35>=4,"－",'償却資産明細書(入力)'!G22) ->  | EL35: - | EM35: 1/3 | EP35: =ROUNDUP('償却資産明細書(入力)'!G22/3,0) -> 0 | EQ35: - | ER35: / | ES35: 12 | EU35: =IF(EW35<4,ET35+'償却資産明細書(入力)'!R22,"－") ->  | EV35: =IF(EW35<4,IF('償却資産明細書(入力)'!U22="",新償却資産計算!EU35,EU35*'償却資産明細書(入力)'!U22),"－") ->  | FC35: =IF('償却資産明細書(入力)'!AA22="一括償却資産","一括償却","減価償却") -> 減価償却 | FD35: 新償却率
B36: 18 | C36: 0 | I36: 0 | K36: 0 | M36: 0 | O36: 0 | Q36: 0 | V36: 償却不可 | Z36: 償却不可 | AG36: - | AI36: / | AJ36: - | AL36: 償却不可 | AS36: 償却不可 | AW36: 1 | AZ36: 償却不可 | BE36: 償却不可 | BI36: 償却不可 | BM36: =IF('償却資産明細書(入力)'!Y23="","",'償却資産明細書(入力)'!Y23) ->  | BP36: 償却不可 | BQ36: 償却不可 | BR36: 償却不可 | BS36: 償却不可 | BT36: ='償却資産明細書(入力)'!J23 -> 0 | BU36: ='償却資産明細書(入力)'!K23 -> 0 | BV36: =IF('償却資産明細書(入力)'!AA23="一括償却資産","一括償却資産","減価償却") -> 減価償却 | BW36: ='償却資産明細書(入力)'!B23 -> 0 | BY36: ='償却資産明細書(入力)'!C23 -> 0 | CA36: ='償却資産明細書(入力)'!D23 -> 0 | CB36: ='償却資産明細書(入力)'!E23 -> 0 | CC36: ='償却資産明細書(入力)'!F23 -> 0 | CD36: ='償却資産明細書(入力)'!G23 -> 0 | CE36: =IF('償却資産明細書(入力)'!U23="",100,'償却資産明細書(入力)'!U23*100) -> 100 | CH36: =IF('償却資産明細書(入力)'!D23="昭和",VLOOKUP('償却資産明細書(入力)'!E23,$AK$62:$AP$125,4,0),IF('償却資産明細書(入力)'!D23="平成",VLOOKUP('償却資産明細書(入力)'!E23,$AR$62:$AW$125,4,0),VLOOKUP('償却資産明細書(入力)'!E23,$AY$65:$BD$128,4,0))) ->  | CI36: =VLOOKUP('償却資産明細書(入力)'!J23,$K$62:$R$112,5,0) -> 0 | CJ36: =VLOOKUP('償却資産明細書(入力)'!K23,$K$62:$R$112,5,0) -> 0 | CK36: =IF($CH36<2007,ROUNDUP('償却資産明細書(入力)'!G23*$X$62,0),IF(AND($CH36=2007,'償却資産明細書(入力)'!F23<4),ROUNDUP('償却資産明細書(入力)'!G23*$X$62,0),'償却資産明細書(入力)'!G23)) ->  | CQ36: =ROUNDUP('償却資産明細書(入力)'!G23*95%,0) -> 0 | CR36: ='償却資産明細書(入力)'!G23-新償却資産計算!CQ36 -> 0 | CU36: -1 | CW36: =IF($CH36<$BA$62,12,IF($CH36=$BA$62,VLOOKUP('償却資産明細書(入力)'!F23,$AB$62:$AE$74,3,0),"-")) ->  | CX36: / | CY36: 12 | DC36: =IF($CS36>4,1,IF($CS36>0,'償却資産明細書(入力)'!G23-($CQ36+$CT36),IF(CN36<0,"取得前",IF($CQ36>$CN36,'償却資産明細書(入力)'!G23-$CN36,'償却資産明細書(入力)'!G23-$CQ36)))) ->  | DJ36: =VLOOKUP('償却資産明細書(入力)'!J23,$K$62:$R$112,7,0) -> 0 | DK36: =VLOOKUP('償却資産明細書(入力)'!K23,$K$62:$R$112,7,0) -> 0 | DL36: ='償却資産明細書(入力)'!G23 -> 0 | DQ36: 定額 | DR36: =IF($CH36<$BA$62,12,IF($CH36=$BA$62,VLOOKUP('償却資産明細書(入力)'!F23,$AB$62:$AE$74,3,0),"-")) ->  | DS36: / | DT36: 12 | EA36: 0 | EB36: 0 | EK36: =IF(EW36>=4,"－",'償却資産明細書(入力)'!G23) ->  | EL36: - | EM36: 1/3 | EP36: =ROUNDUP('償却資産明細書(入力)'!G23/3,0) -> 0 | EQ36: - | ER36: / | ES36: 12 | EU36: =IF(EW36<4,ET36+'償却資産明細書(入力)'!R23,"－") ->  | EV36: =IF(EW36<4,IF('償却資産明細書(入力)'!U23="",新償却資産計算!EU36,EU36*'償却資産明細書(入力)'!U23),"－") ->  | FC36: =IF('償却資産明細書(入力)'!AA23="一括償却資産","一括償却","減価償却") -> 減価償却 | FD36: 新償却率
B37: 19 | C37: 0 | I37: 0 | K37: 0 | M37: 0 | O37: 0 | Q37: 0 | V37: 償却不可 | Z37: 償却不可 | AG37: - | AI37: / | AJ37: - | AL37: 償却不可 | AS37: 償却不可 | AW37: 1 | AZ37: 償却不可 | BE37: 償却不可 | BI37: 償却不可 | BM37: =IF('償却資産明細書(入力)'!Y24="","",'償却資産明細書(入力)'!Y24) ->  | BP37: 償却不可 | BQ37: 償却不可 | BR37: 償却不可 | BS37: 償却不可 | BT37: ='償却資産明細書(入力)'!J24 -> 0 | BU37: ='償却資産明細書(入力)'!K24 -> 0 | BV37: =IF('償却資産明細書(入力)'!AA24="一括償却資産","一括償却資産","減価償却") -> 減価償却 | BW37: ='償却資産明細書(入力)'!B24 -> 0 | BY37: ='償却資産明細書(入力)'!C24 -> 0 | CA37: ='償却資産明細書(入力)'!D24 -> 0 | CB37: ='償却資産明細書(入力)'!E24 -> 0 | CC37: ='償却資産明細書(入力)'!F24 -> 0 | CD37: ='償却資産明細書(入力)'!G24 -> 0 | CE37: =IF('償却資産明細書(入力)'!U24="",100,'償却資産明細書(入力)'!U24*100) -> 100 | CH37: =IF('償却資産明細書(入力)'!D24="昭和",VLOOKUP('償却資産明細書(入力)'!E24,$AK$62:$AP$125,4,0),IF('償却資産明細書(入力)'!D24="平成",VLOOKUP('償却資産明細書(入力)'!E24,$AR$62:$AW$125,4,0),VLOOKUP('償却資産明細書(入力)'!E24,$AY$65:$BD$128,4,0))) ->  | CI37: =VLOOKUP('償却資産明細書(入力)'!J24,$K$62:$R$112,5,0) -> 0 | CJ37: =VLOOKUP('償却資産明細書(入力)'!K24,$K$62:$R$112,5,0) -> 0 | CK37: =IF($CH37<2007,ROUNDUP('償却資産明細書(入力)'!G24*$X$62,0),IF(AND($CH37=2007,'償却資産明細書(入力)'!F24<4),ROUNDUP('償却資産明細書(入力)'!G24*$X$62,0),'償却資産明細書(入力)'!G24)) ->  | CQ37: =ROUNDUP('償却資産明細書(入力)'!G24*95%,0) -> 0 | CR37: ='償却資産明細書(入力)'!G24-新償却資産計算!CQ37 -> 0 | CU37: -1 | CW37: =IF($CH37<$BA$62,12,IF($CH37=$BA$62,VLOOKUP('償却資産明細書(入力)'!F24,$AB$62:$AE$74,3,0),"-")) ->  | CX37: / | CY37: 12 | DC37: =IF($CS37>4,1,IF($CS37>0,'償却資産明細書(入力)'!G24-($CQ37+$CT37),IF(CN37<0,"取得前",IF($CQ37>$CN37,'償却資産明細書(入力)'!G24-$CN37,'償却資産明細書(入力)'!G24-$CQ37)))) ->  | DJ37: =VLOOKUP('償却資産明細書(入力)'!J24,$K$62:$R$112,7,0) -> 0 | DK37: =VLOOKUP('償却資産明細書(入力)'!K24,$K$62:$R$112,7,0) -> 0 | DL37: ='償却資産明細書(入力)'!G24 -> 0 | DQ37: 定額 | DR37: =IF($CH37<$BA$62,12,IF($CH37=$BA$62,VLOOKUP('償却資産明細書(入力)'!F24,$AB$62:$AE$74,3,0),"-")) ->  | DS37: / | DT37: 12 | EA37: 0 | EB37: 0 | EK37: =IF(EW37>=4,"－",'償却資産明細書(入力)'!G24) ->  | EL37: - | EM37: 1/3 | EP37: =ROUNDUP('償却資産明細書(入力)'!G24/3,0) -> 0 | EQ37: - | ER37: / | ES37: 12 | EU37: =IF(EW37<4,ET37+'償却資産明細書(入力)'!R24,"－") ->  | EV37: =IF(EW37<4,IF('償却資産明細書(入力)'!U24="",新償却資産計算!EU37,EU37*'償却資産明細書(入力)'!U24),"－") ->  | FC37: =IF('償却資産明細書(入力)'!AA24="一括償却資産","一括償却","減価償却") -> 減価償却 | FD37: 新償却率
B38: 20 | C38: 0 | I38: 0 | K38: 0 | M38: 0 | O38: 0 | Q38: 0 | V38: 償却不可 | Z38: 償却不可 | AG38: - | AI38: / | AJ38: - | AL38: 償却不可 | AS38: 償却不可 | AW38: 1 | AZ38: 償却不可 | BE38: 償却不可 | BI38: 償却不可 | BM38: =IF('償却資産明細書(入力)'!Y25="","",'償却資産明細書(入力)'!Y25) ->  | BP38: 償却不可 | BQ38: 償却不可 | BR38: 償却不可 | BS38: 償却不可 | BT38: ='償却資産明細書(入力)'!J25 -> 0 | BU38: ='償却資産明細書(入力)'!K25 -> 0 | BV38: =IF('償却資産明細書(入力)'!AA25="一括償却資産","一括償却資産","減価償却") -> 減価償却 | BW38: ='償却資産明細書(入力)'!B25 -> 0 | BY38: ='償却資産明細書(入力)'!C25 -> 0 | CA38: ='償却資産明細書(入力)'!D25 -> 0 | CB38: ='償却資産明細書(入力)'!E25 -> 0 | CC38: ='償却資産明細書(入力)'!F25 -> 0 | CD38: ='償却資産明細書(入力)'!G25 -> 0 | CE38: =IF('償却資産明細書(入力)'!U25="",100,'償却資産明細書(入力)'!U25*100) -> 100 | CH38: =IF('償却資産明細書(入力)'!D25="昭和",VLOOKUP('償却資産明細書(入力)'!E25,$AK$62:$AP$125,4,0),IF('償却資産明細書(入力)'!D25="平成",VLOOKUP('償却資産明細書(入力)'!E25,$AR$62:$AW$125,4,0),VLOOKUP('償却資産明細書(入力)'!E25,$AY$65:$BD$128,4,0))) ->  | CI38: =VLOOKUP('償却資産明細書(入力)'!J25,$K$62:$R$112,5,0) -> 0 | CJ38: =VLOOKUP('償却資産明細書(入力)'!K25,$K$62:$R$112,5,0) -> 0 | CK38: =IF($CH38<2007,ROUNDUP('償却資産明細書(入力)'!G25*$X$62,0),IF(AND($CH38=2007,'償却資産明細書(入力)'!F25<4),ROUNDUP('償却資産明細書(入力)'!G25*$X$62,0),'償却資産明細書(入力)'!G25)) ->  | CQ38: =ROUNDUP('償却資産明細書(入力)'!G25*95%,0) -> 0 | CR38: ='償却資産明細書(入力)'!G25-新償却資産計算!CQ38 -> 0 | CU38: -1 | CW38: =IF($CH38<$BA$62,12,IF($CH38=$BA$62,VLOOKUP('償却資産明細書(入力)'!F25,$AB$62:$AE$74,3,0),"-")) ->  | CX38: / | CY38: 12 | DC38: =IF($CS38>4,1,IF($CS38>0,'償却資産明細書(入力)'!G25-($CQ38+$CT38),IF(CN38<0,"取得前",IF($CQ38>$CN38,'償却資産明細書(入力)'!G25-$CN38,'償却資産明細書(入力)'!G25-$CQ38)))) ->  | DJ38: =VLOOKUP('償却資産明細書(入力)'!J25,$K$62:$R$112,7,0) -> 0 | DK38: =VLOOKUP('償却資産明細書(入力)'!K25,$K$62:$R$112,7,0) -> 0 | DL38: ='償却資産明細書(入力)'!G25 -> 0 | DQ38: 定額 | DR38: =IF($CH38<$BA$62,12,IF($CH38=$BA$62,VLOOKUP('償却資産明細書(入力)'!F25,$AB$62:$AE$74,3,0),"-")) ->  | DS38: / | DT38: 12 | EA38: 0 | EB38: 0 | EK38: =IF(EW38>=4,"－",'償却資産明細書(入力)'!G25) ->  | EL38: - | EM38: 1/3 | EP38: =ROUNDUP('償却資産明細書(入力)'!G25/3,0) -> 0 | EQ38: - | ER38: / | ES38: 12 | EU38: =IF(EW38<4,ET38+'償却資産明細書(入力)'!R25,"－") ->  | EV38: =IF(EW38<4,IF('償却資産明細書(入力)'!U25="",新償却資産計算!EU38,EU38*'償却資産明細書(入力)'!U25),"－") ->  | FC38: =IF('償却資産明細書(入力)'!AA25="一括償却資産","一括償却","減価償却") -> 減価償却 | FD38: 新償却率
B39: 21 | C39: 0 | I39: 0 | K39: 0 | M39: 0 | O39: 0 | Q39: 0 | V39: 償却不可 | Z39: 償却不可 | AG39: - | AI39: / | AJ39: - | AL39: 償却不可 | AS39: 償却不可 | AW39: 1 | AZ39: 償却不可 | BE39: 償却不可 | BI39: 償却不可 | BM39: =IF('償却資産明細書(入力)'!Y26="","",'償却資産明細書(入力)'!Y26) ->  | BP39: 償却不可 | BQ39: 償却不可 | BR39: 償却不可 | BS39: 償却不可 | BT39: ='償却資産明細書(入力)'!J26 -> 0 | BU39: ='償却資産明細書(入力)'!K26 -> 0 | BV39: =IF('償却資産明細書(入力)'!AA26="一括償却資産","一括償却資産","減価償却") -> 減価償却 | BW39: ='償却資産明細書(入力)'!B26 -> 0 | BY39: ='償却資産明細書(入力)'!C26 -> 0 | CA39: ='償却資産明細書(入力)'!D26 -> 0 | CB39: ='償却資産明細書(入力)'!E26 -> 0 | CC39: ='償却資産明細書(入力)'!F26 -> 0 | CD39: ='償却資産明細書(入力)'!G26 -> 0 | CE39: =IF('償却資産明細書(入力)'!U26="",100,'償却資産明細書(入力)'!U26*100) -> 100 | CH39: =IF('償却資産明細書(入力)'!D26="昭和",VLOOKUP('償却資産明細書(入力)'!E26,$AK$62:$AP$125,4,0),IF('償却資産明細書(入力)'!D26="平成",VLOOKUP('償却資産明細書(入力)'!E26,$AR$62:$AW$125,4,0),VLOOKUP('償却資産明細書(入力)'!E26,$AY$65:$BD$128,4,0))) ->  | CI39: =VLOOKUP('償却資産明細書(入力)'!J26,$K$62:$R$112,5,0) -> 0 | CJ39: =VLOOKUP('償却資産明細書(入力)'!K26,$K$62:$R$112,5,0) -> 0 | CK39: =IF($CH39<2007,ROUNDUP('償却資産明細書(入力)'!G26*$X$62,0),IF(AND($CH39=2007,'償却資産明細書(入力)'!F26<4),ROUNDUP('償却資産明細書(入力)'!G26*$X$62,0),'償却資産明細書(入力)'!G26)) ->  | CQ39: =ROUNDUP('償却資産明細書(入力)'!G26*95%,0) -> 0 | CR39: ='償却資産明細書(入力)'!G26-新償却資産計算!CQ39 -> 0 | CU39: -1 | CW39: =IF($CH39<$BA$62,12,IF($CH39=$BA$62,VLOOKUP('償却資産明細書(入力)'!F26,$AB$62:$AE$74,3,0),"-")) ->  | CX39: / | CY39: 12 | DC39: =IF($CS39>4,1,IF($CS39>0,'償却資産明細書(入力)'!G26-($CQ39+$CT39),IF(CN39<0,"取得前",IF($CQ39>$CN39,'償却資産明細書(入力)'!G26-$CN39,'償却資産明細書(入力)'!G26-$CQ39)))) ->  | DJ39: =VLOOKUP('償却資産明細書(入力)'!J26,$K$62:$R$112,7,0) -> 0 | DK39: =VLOOKUP('償却資産明細書(入力)'!K26,$K$62:$R$112,7,0) -> 0 | DL39: ='償却資産明細書(入力)'!G26 -> 0 | DQ39: 定額 | DR39: =IF($CH39<$BA$62,12,IF($CH39=$BA$62,VLOOKUP('償却資産明細書(入力)'!F26,$AB$62:$AE$74,3,0),"-")) ->  | DS39: / | DT39: 12 | EA39: 0 | EB39: 0 | EK39: =IF(EW39>=4,"－",'償却資産明細書(入力)'!G26) ->  | EL39: - | EM39: 1/3 | EP39: =ROUNDUP('償却資産明細書(入力)'!G26/3,0) -> 0 | EQ39: - | ER39: / | ES39: 12 | EU39: =IF(EW39<4,ET39+'償却資産明細書(入力)'!R26,"－") ->  | EV39: =IF(EW39<4,IF('償却資産明細書(入力)'!U26="",新償却資産計算!EU39,EU39*'償却資産明細書(入力)'!U26),"－") ->  | FC39: =IF('償却資産明細書(入力)'!AA26="一括償却資産","一括償却","減価償却") -> 減価償却 | FD39: 新償却率
B40: 22 | C40: 0 | I40: 0 | K40: 0 | M40: 0 | O40: 0 | Q40: 0 | V40: 償却不可 | Z40: 償却不可 | AG40: - | AI40: / | AJ40: - | AL40: 償却不可 | AS40: 償却不可 | AW40: 1 | AZ40: 償却不可 | BE40: 償却不可 | BI40: 償却不可 | BM40: =IF('償却資産明細書(入力)'!Y27="","",'償却資産明細書(入力)'!Y27) ->  | BP40: 償却不可 | BQ40: 償却不可 | BR40: 償却不可 | BS40: 償却不可 | BT40: ='償却資産明細書(入力)'!J27 -> 0 | BU40: ='償却資産明細書(入力)'!K27 -> 0 | BV40: =IF('償却資産明細書(入力)'!AA27="一括償却資産","一括償却資産","減価償却") -> 減価償却 | BW40: ='償却資産明細書(入力)'!B27 -> 0 | BY40: ='償却資産明細書(入力)'!C27 -> 0 | CA40: ='償却資産明細書(入力)'!D27 -> 0 | CB40: ='償却資産明細書(入力)'!E27 -> 0 | CC40: ='償却資産明細書(入力)'!F27 -> 0 | CD40: ='償却資産明細書(入力)'!G27 -> 0 | CE40: =IF('償却資産明細書(入力)'!U27="",100,'償却資産明細書(入力)'!U27*100) -> 100 | CH40: =IF('償却資産明細書(入力)'!D27="昭和",VLOOKUP('償却資産明細書(入力)'!E27,$AK$62:$AP$125,4,0),IF('償却資産明細書(入力)'!D27="平成",VLOOKUP('償却資産明細書(入力)'!E27,$AR$62:$AW$125,4,0),VLOOKUP('償却資産明細書(入力)'!E27,$AY$65:$BD$128,4,0))) ->  | CI40: =VLOOKUP('償却資産明細書(入力)'!J27,$K$62:$R$112,5,0) -> 0 | CJ40: =VLOOKUP('償却資産明細書(入力)'!K27,$K$62:$R$112,5,0) -> 0 | CK40: =IF($CH40<2007,ROUNDUP('償却資産明細書(入力)'!G27*$X$62,0),IF(AND($CH40=2007,'償却資産明細書(入力)'!F27<4),ROUNDUP('償却資産明細書(入力)'!G27*$X$62,0),'償却資産明細書(入力)'!G27)) ->  | CQ40: =ROUNDUP('償却資産明細書(入力)'!G27*95%,0) -> 0 | CR40: ='償却資産明細書(入力)'!G27-新償却資産計算!CQ40 -> 0 | CU40: -1 | CW40: =IF($CH40<$BA$62,12,IF($CH40=$BA$62,VLOOKUP('償却資産明細書(入力)'!F27,$AB$62:$AE$74,3,0),"-")) ->  | CX40: / | CY40: 12 | DC40: =IF($CS40>4,1,IF($CS40>0,'償却資産明細書(入力)'!G27-($CQ40+$CT40),IF(CN40<0,"取得前",IF($CQ40>$CN40,'償却資産明細書(入力)'!G27-$CN40,'償却資産明細書(入力)'!G27-$CQ40)))) ->  | DJ40: =VLOOKUP('償却資産明細書(入力)'!J27,$K$62:$R$112,7,0) -> 0 | DK40: =VLOOKUP('償却資産明細書(入力)'!K27,$K$62:$R$112,7,0) -> 0 | DL40: ='償却資産明細書(入力)'!G27 -> 0 | DQ40: 定額 | DR40: =IF($CH40<$BA$62,12,IF($CH40=$BA$62,VLOOKUP('償却資産明細書(入力)'!F27,$AB$62:$AE$74,3,0),"-")) ->  | DS40: / | DT40: 12 | EA40: 0 | EB40: 0 | EK40: =IF(EW40>=4,"－",'償却資産明細書(入力)'!G27) ->  | EL40: - | EM40: 1/3 | EP40: =ROUNDUP('償却資産明細書(入力)'!G27/3,0) -> 0 | EQ40: - | ER40: / | ES40: 12 | EU40: =IF(EW40<4,ET40+'償却資産明細書(入力)'!R27,"－") ->  | EV40: =IF(EW40<4,IF('償却資産明細書(入力)'!U27="",新償却資産計算!EU40,EU40*'償却資産明細書(入力)'!U27),"－") ->  | FC40: =IF('償却資産明細書(入力)'!AA27="一括償却資産","一括償却","減価償却") -> 減価償却 | FD40: 新償却率
B41: 23 | C41: 0 | I41: 0 | K41: 0 | M41: 0 | O41: 0 | Q41: 0 | V41: 償却不可 | Z41: 償却不可 | AG41: - | AI41: / | AJ41: - | AL41: 償却不可 | AS41: 償却不可 | AW41: 1 | AZ41: 償却不可 | BE41: 償却不可 | BI41: 償却不可 | BM41: =IF('償却資産明細書(入力)'!Y28="","",'償却資産明細書(入力)'!Y28) ->  | BP41: 償却不可 | BQ41: 償却不可 | BR41: 償却不可 | BS41: 償却不可 | BT41: ='償却資産明細書(入力)'!J28 -> 0 | BU41: ='償却資産明細書(入力)'!K28 -> 0 | BV41: =IF('償却資産明細書(入力)'!AA28="一括償却資産","一括償却資産","減価償却") -> 減価償却 | BW41: ='償却資産明細書(入力)'!B28 -> 0 | BY41: ='償却資産明細書(入力)'!C28 -> 0 | CA41: ='償却資産明細書(入力)'!D28 -> 0 | CB41: ='償却資産明細書(入力)'!E28 -> 0 | CC41: ='償却資産明細書(入力)'!F28 -> 0 | CD41: ='償却資産明細書(入力)'!G28 -> 0 | CE41: =IF('償却資産明細書(入力)'!U28="",100,'償却資産明細書(入力)'!U28*100) -> 100 | CH41: =IF('償却資産明細書(入力)'!D28="昭和",VLOOKUP('償却資産明細書(入力)'!E28,$AK$62:$AP$125,4,0),IF('償却資産明細書(入力)'!D28="平成",VLOOKUP('償却資産明細書(入力)'!E28,$AR$62:$AW$125,4,0),VLOOKUP('償却資産明細書(入力)'!E28,$AY$65:$BD$128,4,0))) ->  | CI41: =VLOOKUP('償却資産明細書(入力)'!J28,$K$62:$R$112,5,0) -> 0 | CJ41: =VLOOKUP('償却資産明細書(入力)'!K28,$K$62:$R$112,5,0) -> 0 | CK41: =IF($CH41<2007,ROUNDUP('償却資産明細書(入力)'!G28*$X$62,0),IF(AND($CH41=2007,'償却資産明細書(入力)'!F28<4),ROUNDUP('償却資産明細書(入力)'!G28*$X$62,0),'償却資産明細書(入力)'!G28)) ->  | CQ41: =ROUNDUP('償却資産明細書(入力)'!G28*95%,0) -> 0 | CR41: ='償却資産明細書(入力)'!G28-新償却資産計算!CQ41 -> 0 | CU41: -1 | CW41: =IF($CH41<$BA$62,12,IF($CH41=$BA$62,VLOOKUP('償却資産明細書(入力)'!F28,$AB$62:$AE$74,3,0),"-")) ->  | CX41: / | CY41: 12 | DC41: =IF($CS41>4,1,IF($CS41>0,'償却資産明細書(入力)'!G28-($CQ41+$CT41),IF(CN41<0,"取得前",IF($CQ41>$CN41,'償却資産明細書(入力)'!G28-$CN41,'償却資産明細書(入力)'!G28-$CQ41)))) ->  | DJ41: =VLOOKUP('償却資産明細書(入力)'!J28,$K$62:$R$112,7,0) -> 0 | DK41: =VLOOKUP('償却資産明細書(入力)'!K28,$K$62:$R$112,7,0) -> 0 | DL41: ='償却資産明細書(入力)'!G28 -> 0 | DQ41: 定額 | DR41: =IF($CH41<$BA$62,12,IF($CH41=$BA$62,VLOOKUP('償却資産明細書(入力)'!F28,$AB$62:$AE$74,3,0),"-")) ->  | DS41: / | DT41: 12 | EA41: 0 | EB41: 0 | EK41: =IF(EW41>=4,"－",'償却資産明細書(入力)'!G28) ->  | EL41: - | EM41: 1/3 | EP41: =ROUNDUP('償却資産明細書(入力)'!G28/3,0) -> 0 | EQ41: - | ER41: / | ES41: 12 | EU41: =IF(EW41<4,ET41+'償却資産明細書(入力)'!R28,"－") ->  | EV41: =IF(EW41<4,IF('償却資産明細書(入力)'!U28="",新償却資産計算!EU41,EU41*'償却資産明細書(入力)'!U28),"－") ->  | FC41: =IF('償却資産明細書(入力)'!AA28="一括償却資産","一括償却","減価償却") -> 減価償却 | FD41: 新償却率
B42: 24 | AE42: 0 | AF42: 0 | AI42: /
B43: 25 | AE43: 0 | AF43: 0 | AI43: /
B44: 26 | AE44: 0 | AF44: 0 | AI44: /
B45: 27 | AE45: 0 | AF45: 0 | AI45: /
B46: 28 | AE46: 0 | AF46: 0 | AI46: /
B47: 29 | AE47: 0 | AF47: 0 | AI47: /
B48: 30 | AE48: 0 | AF48: 0 | AI48: /
C49: 計 | AL49: =SUM(AL19:AO48) -> 0 | AP49: =SUM(AP19:AR48) -> 0 | AS49: =SUM(AS19:AV48) -> 0 | AZ49: =SUM(AZ19:BD48) -> 0 | BE49: =SUM(BE19:BH48) -> 0
K61: 耐用年数 | O61: 償却率 3月前 4月後 | T61: 年号 | X61: 償却基 礎金額 | AB61: 償却期間 | AK61: 和暦 | AN61: 西暦 | AR61: 和暦 | AU61: 西暦 | BA61: 今年 | BF61: 償却方法
K62: 0 | O62: 0 | Q62: 0 | X62: 0.9 | AB62: 0 | AD62: 12 | AK62: 1 | AN62: 1926 | AR62: 1 | AU62: 1989 | BA62: =VLOOKUP(計算シート!C2,$AY$65:$BD$128,4,0) -> 2023 | BF62: 一括償却
K63: 1 | O63: =ROUNDDOWN(1/K63,3) -> 1 | Q63: =ROUNDUP(1/K63,3) -> 1 | T63: 昭和 | AB63: 1 | AD63: 12 | AK63: 2 | AN63: 1927 | AR63: 2 | AU63: 1990 | BF63: 減価償却
K64: 2 | O64: =ROUNDDOWN(1/K64,3) -> 0.5 | Q64: =ROUNDUP(1/K64,3) -> 0.5 | T64: 平成 | AB64: 2 | AD64: 11 | AK64: 3 | AN64: 1928 | AR64: 3 | AU64: 1991 | AY64: 和暦 | BB64: 西暦
K65: 3 | O65: 0.333 | Q65: 0.334 | AB65: 3 | AD65: 10 | AK65: 4 | AN65: 1929 | AR65: 4 | AU65: 1992 | AY65: 1 | BB65: 2019
K66: 4 | O66: 0.25 | Q66: 0.25 | AB66: 4 | AD66: 9 | AK66: 5 | AN66: 1930 | AR66: 5 | AU66: 1993 | AY66: 2 | BB66: 2020 | BF66: 処分
K67: 5 | O67: 0.2 | Q67: 0.2 | T67: 区分 | AB67: 5 | AD67: 8 | AK67: 6 | AN67: 1931 | AR67: 6 | AU67: 1994 | AY67: 3 | BB67: 2021
K68: 6 | O68: 0.166 | Q68: 0.167 | U68: 新規 | AB68: 6 | AD68: 7 | AK68: 7 | AN68: 1932 | AR68: 7 | AU68: 1995 | AY68: 4 | BB68: 2022 | BF68: 売却
K69: 7 | O69: 0.142 | Q69: 0.143 | U69: 中古 | AB69: 7 | AD69: 6 | AK69: 8 | AN69: 1933 | AR69: 8 | AU69: 1996 | AY69: 5 | BB69: 2023 | BF69: 廃棄
K70: 8 | O70: 0.125 | Q70: 0.125 | AB70: 8 | AD70: 5 | AK70: 9 | AN70: 1934 | AR70: 9 | AU70: 1997 | AY70: 6 | BB70: 2024
K71: 9 | O71: 0.111 | Q71: 0.112 | AB71: 9 | AD71: 4 | AK71: 10 | AN71: 1935 | AR71: 10 | AU71: 1998 | AY71: 7 | BB71: 2025
K72: 10 | O72: 0.1 | Q72: 0.1 | T72: 単位 | AB72: 10 | AD72: 3 | AK72: 11 | AN72: 1936 | AR72: 11 | AU72: 1999 | AY72: 8 | BB72: 2026
K73: 11 | O73: 0.09 | Q73: 0.091 | T73: 台 | AB73: 11 | AD73: 2 | AK73: 12 | AN73: 1937 | AR73: 12 | AU73: 2000 | AY73: 9 | BB73: 2027
K74: 12 | O74: 0.083 | Q74: 0.084 | T74: 式 | AB74: 12 | AD74: 1 | AK74: 13 | AN74: 1938 | AR74: 13 | AU74: 2001 | AY74: 10 | BB74: 2028
K75: 13 | O75: 0.076 | Q75: 0.077 | T75: 棟 | AK75: 14 | AN75: 1939 | AR75: 14 | AU75: 2002 | AY75: 11 | BB75: 2029
K76: 14 | O76: 0.071 | Q76: 0.072 | AK76: 15 | AN76: 1940 | AR76: 15 | AU76: 2003 | AY76: 12 | BB76: 2030
K77: 15 | O77: 0.066 | Q77: 0.067 | T77: ㎡ | AB77: 処分月 | AK77: 16 | AN77: 1941 | AR77: 16 | AU77: 2004 | AY77: 13 | BB77: 2031
K78: 16 | O78: 0.062 | Q78: 0.063 | T78: ａ | AB78: 1 | AK78: 17 | AN78: 1942 | AR78: 17 | AU78: 2005 | AY78: 14 | BB78: 2032
K79: 17 | O79: 0.058 | Q79: 0.059 | T79: ｍ | AB79: 2 | AK79: 18 | AN79: 1943 | AR79: 18 | AU79: 2006 | AY79: 15 | BB79: 2033
K80: 18 | O80: 0.055 | Q80: 0.056 | AB80: 3 | AK80: 19 | AN80: 1944 | AR80: 19 | AU80: 2007 | AY80: 16 | BB80: 2034
K81: 19 | O81: 0.052 | Q81: 0.053 | AB81: 4 | AK81: 20 | AN81: 1945 | AR81: 20 | AU81: 2008 | AY81: 17 | BB81: 2035
K82: 20 | O82: 0.05 | Q82: 0.05 | AB82: 5 | AK82: 21 | AN82: 1946 | AR82: 21 | AU82: 2009 | AY82: 18 | BB82: 2036
K83: 21 | O83: 0.048 | Q83: 0.048 | AB83: 6 | AK83: 22 | AN83: 1947 | AR83: 22 | AU83: 2010 | AY83: 19 | BB83: 2037
K84: 22 | O84: 0.046 | Q84: 0.046 | AB84: 7 | AK84: 23 | AN84: 1948 | AR84: 23 | AU84: 2011 | AY84: 20 | BB84: 2038
K85: 23 | O85: 0.044 | Q85: 0.044 | AB85: 8 | AK85: 24 | AN85: 1949 | AR85: 24 | AU85: 2012 | AY85: 21 | BB85: 2039
K86: 24 | O86: 0.042 | Q86: 0.042 | AB86: 9 | AK86: 25 | AN86: 1950 | AR86: 25 | AU86: 2013 | AY86: 22 | BB86: 2040
K87: 25 | O87: 0.04 | Q87: 0.04 | AB87: 10 | AK87: 26 | AN87: 1951 | AR87: 26 | AU87: 2014 | AY87: 23 | BB87: 2041
K88: 26 | O88: 0.039 | Q88: 0.039 | AB88: 11 | AK88: 27 | AN88: 1952 | AR88: 27 | AU88: 2015 | AY88: 24 | BB88: 2042
K89: 27 | O89: 0.037 | Q89: 0.038 | AB89: 12 | AK89: 28 | AN89: 1953 | AR89: 28 | AU89: 2016 | AY89: 25 | BB89: 2043
K90: 28 | O90: 0.036 | Q90: 0.036 | AK90: 29 | AN90: 1954 | AR90: 29 | AU90: 2017 | AY90: 26 | BB90: 2044
K91: 29 | O91: 0.035 | Q91: 0.035 | AK91: 30 | AN91: 1955 | AR91: 30 | AU91: 2018 | AY91: 27 | BB91: 2045
K92: 30 | O92: 0.034 | Q92: 0.034 | AK92: 31 | AN92: 1956 | AR92: 31 | AU92: 2019 | AY92: 28 | BB92: 2046
K93: 31 | O93: 0.033 | Q93: 0.033 | AK93: 32 | AN93: 1957 | AR93: 32 | AU93: 2020 | AY93: 29 | BB93: 2047
K94: 32 | O94: 0.032 | Q94: 0.032 | AK94: 33 | AN94: 1958 | AR94: 33 | AU94: 2021 | AY94: 30 | BB94: 2048
K95: 33 | O95: 0.031 | Q95: 0.031 | AK95: 34 | AN95: 1959 | AR95: 34 | AU95: 2022 | AY95: 31 | BB95: 2049
K96: 34 | O96: 0.03 | Q96: 0.03 | AK96: 35 | AN96: 1960 | AR96: 35 | AU96: 2023 | AY96: 32 | BB96: 2050
K97: 35 | O97: 0.029 | Q97: 0.029 | AK97: 36 | AN97: 1961 | AR97: 36 | AU97: 2024 | AY97: 33 | BB97: 2051
K98: 36 | O98: 0.028 | Q98: 0.028 | AK98: 37 | AN98: 1962 | AR98: 37 | AU98: 2025 | AY98: 34 | BB98: 2052
K99: 37 | O99: 0.027 | Q99: 0.028 | AK99: 38 | AN99: 1963 | AR99: 38 | AU99: 2026 | AY99: 35 | BB99: 2053
K100: 38 | O100: 0.027 | Q100: 0.027 | AK100: 39 | AN100: 1964 | AR100: 39 | AU100: 2027 | AY100: 36 | BB100: 2054
K101: 39 | O101: 0.026 | Q101: 0.026 | AK101: 40 | AN101: 1965 | AR101: 40 | AU101: 2028 | AY101: 37 | BB101: 2055
K102: 40 | O102: 0.025 | Q102: 0.025 | AK102: 41 | AN102: 1966 | AR102: 41 | AU102: 2029 | AY102: 38 | BB102: 2056
K103: 41 | O103: 0.025 | Q103: 0.025 | AK103: 42 | AN103: 1967 | AR103: 42 | AU103: 2030 | AY103: 39 | BB103: 2057
K104: 42 | O104: 0.024 | Q104: 0.024 | AK104: 43 | AN104: 1968 | AR104: 43 | AU104: 2031 | AY104: 40 | BB104: 2058
K105: 43 | O105: 0.024 | Q105: 0.024 | AK105: 44 | AN105: 1969 | AR105: 44 | AU105: 2032 | AY105: 41 | BB105: 2059
K106: 44 | O106: 0.023 | Q106: 0.023 | AK106: 45 | AN106: 1970 | AR106: 45 | AU106: 2033 | AY106: 42 | BB106: 2060
K107: 45 | O107: 0.023 | Q107: 0.023 | AK107: 46 | AN107: 1971 | AR107: 46 | AU107: 2034 | AY107: 43 | BB107: 2061
K108: 46 | O108: 0.022 | Q108: 0.022 | AK108: 47 | AN108: 1972 | AR108: 47 | AU108: 2035 | AY108: 44 | BB108: 2062
K109: 47 | O109: 0.022 | Q109: 0.022 | AK109: 48 | AN109: 1973 | AR109: 48 | AU109: 2036 | AY109: 45 | BB109: 2063
K110: 48 | O110: 0.021 | Q110: 0.021 | AK110: 49 | AN110: 1974 | AR110: 49 | AU110: 2037 | AY110: 46 | BB110: 2064
K111: 49 | O111: 0.021 | Q111: 0.021 | AK111: 50 | AN111: 1975 | AR111: 50 | AU111: 2038 | AY111: 47 | BB111: 2065
K112: 50 | O112: 0.02 | Q112: 0.02 | AK112: 51 | AN112: 1976 | AR112: 51 | AU112: 2039 | AY112: 48 | BB112: 2066
AK113: 52 | AN113: 1977 | AR113: 52 | AU113: 2040 | AY113: 49 | BB113: 2067
AK114: 53 | AN114: 1978 | AR114: 53 | AU114: 2041 | AY114: 50 | BB114: 2068
AK115: 54 | AN115: 1979 | AR115: 54 | AU115: 2042 | AY115: 51 | BB115: 2069
AK116: 55 | AN116: 1980 | AR116: 55 | AU116: 2043 | AY116: 52 | BB116: 2070
AK117: 56 | AN117: 1981 | AR117: 56 | AU117: 2044 | AY117: 53 | BB117: 2071
AK118: 57 | AN118: 1982 | AR118: 57 | AU118: 2045 | AY118: 54 | BB118: 2072
AK119: 58 | AN119: 1983 | AR119: 58 | AU119: 2046 | AY119: 55 | BB119: 2073
AK120: 59 | AN120: 1984 | AR120: 59 | AU120: 2047 | AY120: 56 | BB120: 2074
AK121: 60 | AN121: 1985 | AR121: 60 | AU121: 2048 | AY121: 57 | BB121: 2075
AK122: 61 | AN122: 1986 | AR122: 61 | AU122: 2049 | AY122: 58 | BB122: 2076
AK123: 62 | AN123: 1987 | AR123: 62 | AU123: 2050 | AY123: 59 | BB123: 2077
AK124: 63 | AN124: 1988 | AR124: 63 | AU124: 2051 | AY124: 60 | BB124: 2078
AK125: 64 | AN125: 1989 | AR125: 64 | AU125: 2052 | AY125: 61 | BB125: 2079
AY126: 62 | BB126: 2080
AY127: 63 | BB127: 2081
AY128: 64 | BB128: 2082

Sheet 償却資産明細書(印刷)
B1: 【別紙】減価償却資産明細書 | T1: =説明書!H1 -> ver.3.4
B2: ○減価償却費の計算 | E2: =IF(ISNUMBER(計算シート!C2),"令和 "&計算シート!C2&" 年分","年分が入力されていません ！！") -> 令和 5 年分 | H2: 住所 | I2: =IF(計算シート!D4="","",計算シート!D4) -> 東近江市八日市緑町１０番５号 | P2: 氏名 | Q2: =IF(計算シート!D5="","",計算シート!D5) -> 東近江 太郎
B3: 減価償却資産の 名 称 等 (繰延資産を含む) | C3: 面積又は数量 | D3: 取 得 （成 熟） 年 月 | G3: イ | H3: ロ | I3: 償 却 方 法 | J3: 耐 用 年 数 | K3: ハ | L3: ニ | N3: ホ | O3: へ | P3: ト | Q3: チ | R3: リ | S3: ヌ
G4: 取得価格 | H4: 償却の基礎 になる金額 | K4: 償却率 | L4: 本年中 の償却 期 間 | N4: 本 年 分の 普通償却費 （ロ×ハ×ニ) | O4: 特 別 償却費 | P4: 本 年 分 の 償却費合計 (ホ＋へ） | Q4: 事業専 用割合 | R4: 本年分の必要 経費算入額 (ト×チ） | S4: 未償却残高 (期末残高) | T4: 摘要
A5: =SUM(A6:A28) -> 0 | D5: 年号 | E5: 年 | F5: 月
A6: =IF(D6="","",1) ->  | B6: =IF('償却資産明細書(入力)'!B6="","",'償却資産明細書(入力)'!B6) -> 着色部分のみ | C6: =IF('償却資産明細書(入力)'!C6="","",'償却資産明細書(入力)'!C6) ->  | D6: =IF('償却資産明細書(入力)'!D6="","",'償却資産明細書(入力)'!D6) ->  | E6: =IF('償却資産明細書(入力)'!E6="","",'償却資産明細書(入力)'!E6) ->  | F6: =IF('償却資産明細書(入力)'!F6="","",'償却資産明細書(入力)'!F6) ->  | G6: =IF('償却資産明細書(入力)'!G6="","",'償却資産明細書(入力)'!G6) ->  | H6: =IF(D6="","",IF('償却資産明細書(入力)'!H6="","",'償却資産明細書(入力)'!H6)) ->  | I6: =IF('償却資産明細書(入力)'!I6="","",'償却資産明細書(入力)'!I6) ->  | J6: =IF('償却資産明細書(入力)'!K6="","",IF('償却資産明細書(入力)'!AA6="一括償却資産","－",'償却資産明細書(入力)'!K6)) ->  | K6: =IF('償却資産明細書(入力)'!L6="","",'償却資産明細書(入力)'!M6) ->  | L6: =IF('償却資産明細書(入力)'!N6="","",'償却資産明細書(入力)'!N6) ->  | M6: 12 | N6: =IF(D6="","",'償却資産明細書(入力)'!Q6) ->  | O6: =IF('償却資産明細書(入力)'!R6="","",'償却資産明細書(入力)'!R6) ->  | P6: =IF(D6="","",'償却資産明細書(入力)'!T6) ->  | Q6: =IF('償却資産明細書(入力)'!U6="","",'償却資産明細書(入力)'!U6) ->  | R6: =IF(D6="","",'償却資産明細書(入力)'!W6) ->  | S6: =IF(D6="","",IF('償却資産明細書(入力)'!X6="","",'償却資産明細書(入力)'!X6)) ->  | T6: =IF('償却資産明細書(入力)'!AA6="",""&新償却資産計算!BL19,'償却資産明細書(入力)'!AA6&新償却資産計算!BL19) -> 
A7: =IF(D7="","",1) ->  | B7: =IF('償却資産明細書(入力)'!B7="","",'償却資産明細書(入力)'!B7) -> 入力可能です | C7: =IF('償却資産明細書(入力)'!C7="","",'償却資産明細書(入力)'!C7) ->  | D7: =IF('償却資産明細書(入力)'!D7="","",'償却資産明細書(入力)'!D7) ->  | E7: =IF('償却資産明細書(入力)'!E7="","",'償却資産明細書(入力)'!E7) ->  | F7: =IF('償却資産明細書(入力)'!F7="","",'償却資産明細書(入力)'!F7) ->  | G7: =IF('償却資産明細書(入力)'!G7="","",'償却資産明細書(入力)'!G7) ->  | H7: =IF(D7="","",IF('償却資産明細書(入力)'!H7="","",'償却資産明細書(入力)'!H7)) ->  | I7: =IF('償却資産明細書(入力)'!I7="","",'償却資産明細書(入力)'!I7) ->  | J7: =IF('償却資産明細書(入力)'!K7="","",IF('償却資産明細書(入力)'!AA7="一括償却資産","－",'償却資産明細書(入力)'!K7)) ->  | K7: =IF('償却資産明細書(入力)'!L7="","",'償却資産明細書(入力)'!M7) ->  | L7: =IF('償却資産明細書(入力)'!N7="","",'償却資産明細書(入力)'!N7) ->  | M7: 12 | N7: =IF(D7="","",'償却資産明細書(入力)'!Q7) ->  | O7: =IF('償却資産明細書(入力)'!R7="","",'償却資産明細書(入力)'!R7) ->  | P7: =IF(D7="","",'償却資産明細書(入力)'!T7) ->  | Q7: =IF('償却資産明細書(入力)'!U7="","",'償却資産明細書(入力)'!U7) ->  | R7: =IF(D7="","",'償却資産明細書(入力)'!W7) ->  | S7: =IF(D7="","",IF('償却資産明細書(入力)'!X7="","",'償却資産明細書(入力)'!X7)) ->  | T7: =IF('償却資産明細書(入力)'!AA7="",""&新償却資産計算!BL20,'償却資産明細書(入力)'!AA7&新償却資産計算!BL20) ->  | U7: 一括償却資産
B8: =IF('償却資産明細書(入力)'!B8="","",'償却資産明細書(入力)'!B8) ->  | C8: =IF('償却資産明細書(入力)'!C8="","",'償却資産明細書(入力)'!C8) ->  | D8: =IF('償却資産明細書(入力)'!D8="","",'償却資産明細書(入力)'!D8) ->  | E8: =IF('償却資産明細書(入力)'!E8="","",'償却資産明細書(入力)'!E8) ->  | F8: =IF('償却資産明細書(入力)'!F8="","",'償却資産明細書(入力)'!F8) ->  | G8: =IF('償却資産明細書(入力)'!G8="","",'償却資産明細書(入力)'!G8) ->  | H8: =IF(D8="","",IF('償却資産明細書(入力)'!H8="","",'償却資産明細書(入力)'!H8)) ->  | I8: =IF('償却資産明細書(入力)'!I8="","",'償却資産明細書(入力)'!I8) ->  | J8: =IF('償却資産明細書(入力)'!K8="","",IF('償却資産明細書(入力)'!AA8="一括償却資産","－",'償却資産明細書(入力)'!K8)) ->  | K8: =IF('償却資産明細書(入力)'!L8="","",'償却資産明細書(入力)'!M8) ->  | L8: =IF('償却資産明細書(入力)'!N8="","",'償却資産明細書(入力)'!N8) ->  | M8: 12 | N8: =IF(D8="","",'償却資産明細書(入力)'!Q8) ->  | O8: =IF('償却資産明細書(入力)'!R8="","",'償却資産明細書(入力)'!R8) ->  | P8: =IF(D8="","",'償却資産明細書(入力)'!T8) ->  | Q8: =IF('償却資産明細書(入力)'!U8="","",'償却資産明細書(入力)'!U8) ->  | R8: =IF(D8="","",'償却資産明細書(入力)'!W8) ->  | S8: =IF(D8="","",IF('償却資産明細書(入力)'!X8="","",'償却資産明細書(入力)'!X8)) ->  | T8: =IF('償却資産明細書(入力)'!AA8="",""&新償却資産計算!BL21,'償却資産明細書(入力)'!AA8&新償却資産計算!BL21) -> 
B9: =IF('償却資産明細書(入力)'!B9="","",'償却資産明細書(入力)'!B9) ->  | C9: =IF('償却資産明細書(入力)'!C9="","",'償却資産明細書(入力)'!C9) ->  | D9: =IF('償却資産明細書(入力)'!D9="","",'償却資産明細書(入力)'!D9) ->  | E9: =IF('償却資産明細書(入力)'!E9="","",'償却資産明細書(入力)'!E9) ->  | F9: =IF('償却資産明細書(入力)'!F9="","",'償却資産明細書(入力)'!F9) ->  | G9: =IF('償却資産明細書(入力)'!G9="","",'償却資産明細書(入力)'!G9) ->  | H9: =IF(D9="","",IF('償却資産明細書(入力)'!H9="","",'償却資産明細書(入力)'!H9)) ->  | I9: =IF('償却資産明細書(入力)'!I9="","",'償却資産明細書(入力)'!I9) ->  | J9: =IF('償却資産明細書(入力)'!K9="","",IF('償却資産明細書(入力)'!AA9="一括償却資産","－",'償却資産明細書(入力)'!K9)) ->  | K9: =IF('償却資産明細書(入力)'!L9="","",'償却資産明細書(入力)'!M9) ->  | L9: =IF('償却資産明細書(入力)'!N9="","",'償却資産明細書(入力)'!N9) ->  | M9: 12 | N9: =IF(D9="","",'償却資産明細書(入力)'!Q9) ->  | O9: =IF('償却資産明細書(入力)'!R9="","",'償却資産明細書(入力)'!R9) ->  | P9: =IF(D9="","",'償却資産明細書(入力)'!T9) ->  | Q9: =IF('償却資産明細書(入力)'!U9="","",'償却資産明細書(入力)'!U9) ->  | R9: =IF(D9="","",'償却資産明細書(入力)'!W9) ->  | S9: =IF(D9="","",IF('償却資産明細書(入力)'!X9="","",'償却資産明細書(入力)'!X9)) ->  | T9: =IF('償却資産明細書(入力)'!AA9="",""&新償却資産計算!BL22,'償却資産明細書(入力)'!AA9&新償却資産計算!BL22) -> 
B10: =IF('償却資産明細書(入力)'!B10="","",'償却資産明細書(入力)'!B10) ->  | C10: =IF('償却資産明細書(入力)'!C10="","",'償却資産明細書(入力)'!C10) ->  | D10: =IF('償却資産明細書(入力)'!D10="","",'償却資産明細書(入力)'!D10) ->  | E10: =IF('償却資産明細書(入力)'!E10="","",'償却資産明細書(入力)'!E10) ->  | F10: =IF('償却資産明細書(入力)'!F10="","",'償却資産明細書(入力)'!F10) ->  | G10: =IF('償却資産明細書(入力)'!G10="","",'償却資産明細書(入力)'!G10) ->  | H10: =IF(D10="","",IF('償却資産明細書(入力)'!H10="","",'償却資産明細書(入力)'!H10)) ->  | I10: =IF('償却資産明細書(入力)'!I10="","",'償却資産明細書(入力)'!I10) ->  | J10: =IF('償却資産明細書(入力)'!K10="","",IF('償却資産明細書(入力)'!AA10="一括償却資産","－",'償却資産明細書(入力)'!K10)) ->  | K10: =IF('償却資産明細書(入力)'!L10="","",'償却資産明細書(入力)'!M10) ->  | L10: =IF('償却資産明細書(入力)'!N10="","",'償却資産明細書(入力)'!N10) ->  | M10: 12 | N10: =IF(D10="","",'償却資産明細書(入力)'!Q10) ->  | O10: =IF('償却資産明細書(入力)'!R10="","",'償却資産明細書(入力)'!R10) ->  | P10: =IF(D10="","",'償却資産明細書(入力)'!T10) ->  | Q10: =IF('償却資産明細書(入力)'!U10="","",'償却資産明細書(入力)'!U10) ->  | R10: =IF(D10="","",'償却資産明細書(入力)'!W10) ->  | S10: =IF(D10="","",IF('償却資産明細書(入力)'!X10="","",'償却資産明細書(入力)'!X10)) ->  | T10: =IF('償却資産明細書(入力)'!AA10="",""&新償却資産計算!BL23,'償却資産明細書(入力)'!AA10&新償却資産計算!BL23) -> 
B11: =IF('償却資産明細書(入力)'!B11="","",'償却資産明細書(入力)'!B11) ->  | C11: =IF('償却資産明細書(入力)'!C11="","",'償却資産明細書(入力)'!C11) ->  | D11: =IF('償却資産明細書(入力)'!D11="","",'償却資産明細書(入力)'!D11) ->  | E11: =IF('償却資産明細書(入力)'!E11="","",'償却資産明細書(入力)'!E11) ->  | F11: =IF('償却資産明細書(入力)'!F11="","",'償却資産明細書(入力)'!F11) ->  | G11: =IF('償却資産明細書(入力)'!G11="","",'償却資産明細書(入力)'!G11) ->  | H11: =IF(D11="","",IF('償却資産明細書(入力)'!H11="","",'償却資産明細書(入力)'!H11)) ->  | I11: =IF('償却資産明細書(入力)'!I11="","",'償却資産明細書(入力)'!I11) ->  | J11: =IF('償却資産明細書(入力)'!K11="","",IF('償却資産明細書(入力)'!AA11="一括償却資産","－",'償却資産明細書(入力)'!K11)) ->  | K11: =IF('償却資産明細書(入力)'!L11="","",'償却資産明細書(入力)'!M11) ->  | L11: =IF('償却資産明細書(入力)'!N11="","",'償却資産明細書(入力)'!N11) ->  | M11: 12 | N11: =IF(D11="","",'償却資産明細書(入力)'!Q11) ->  | O11: =IF('償却資産明細書(入力)'!R11="","",'償却資産明細書(入力)'!R11) ->  | P11: =IF(D11="","",'償却資産明細書(入力)'!T11) ->  | Q11: =IF('償却資産明細書(入力)'!U11="","",'償却資産明細書(入力)'!U11) ->  | R11: =IF(D11="","",'償却資産明細書(入力)'!W11) ->  | S11: =IF(D11="","",IF('償却資産明細書(入力)'!X11="","",'償却資産明細書(入力)'!X11)) ->  | T11: =IF('償却資産明細書(入力)'!AA11="",""&新償却資産計算!BL24,'償却資産明細書(入力)'!AA11&新償却資産計算!BL24) -> 
B12: =IF('償却資産明細書(入力)'!B12="","",'償却資産明細書(入力)'!B12) ->  | C12: =IF('償却資産明細書(入力)'!C12="","",'償却資産明細書(入力)'!C12) ->  | D12: =IF('償却資産明細書(入力)'!D12="","",'償却資産明細書(入力)'!D12) ->  | E12: =IF('償却資産明細書(入力)'!E12="","",'償却資産明細書(入力)'!E12) ->  | F12: =IF('償却資産明細書(入力)'!F12="","",'償却資産明細書(入力)'!F12) ->  | G12: =IF('償却資産明細書(入力)'!G12="","",'償却資産明細書(入力)'!G12) ->  | H12: =IF(D12="","",IF('償却資産明細書(入力)'!H12="","",'償却資産明細書(入力)'!H12)) ->  | I12: =IF('償却資産明細書(入力)'!I12="","",'償却資産明細書(入力)'!I12) ->  | J12: =IF('償却資産明細書(入力)'!K12="","",IF('償却資産明細書(入力)'!AA12="一括償却資産","－",'償却資産明細書(入力)'!K12)) ->  | K12: =IF('償却資産明細書(入力)'!L12="","",'償却資産明細書(入力)'!M12) ->  | L12: =IF('償却資産明細書(入力)'!N12="","",'償却資産明細書(入力)'!N12) ->  | M12: 12 | N12: =IF(D12="","",'償却資産明細書(入力)'!Q12) ->  | O12: =IF('償却資産明細書(入力)'!R12="","",'償却資産明細書(入力)'!R12) ->  | P12: =IF(D12="","",'償却資産明細書(入力)'!T12) ->  | Q12: =IF('償却資産明細書(入力)'!U12="","",'償却資産明細書(入力)'!U12) ->  | R12: =IF(D12="","",'償却資産明細書(入力)'!W12) ->  | S12: =IF(D12="","",IF('償却資産明細書(入力)'!X12="","",'償却資産明細書(入力)'!X12)) ->  | T12: =IF('償却資産明細書(入力)'!AA12="",""&新償却資産計算!BL25,'償却資産明細書(入力)'!AA12&新償却資産計算!BL25) -> 
B13: =IF('償却資産明細書(入力)'!B13="","",'償却資産明細書(入力)'!B13) ->  | C13: =IF('償却資産明細書(入力)'!C13="","",'償却資産明細書(入力)'!C13) ->  | D13: =IF('償却資産明細書(入力)'!D13="","",'償却資産明細書(入力)'!D13) ->  | E13: =IF('償却資産明細書(入力)'!E13="","",'償却資産明細書(入力)'!E13) ->  | F13: =IF('償却資産明細書(入力)'!F13="","",'償却資産明細書(入力)'!F13) ->  | G13: =IF('償却資産明細書(入力)'!G13="","",'償却資産明細書(入力)'!G13) ->  | H13: =IF(D13="","",IF('償却資産明細書(入力)'!H13="","",'償却資産明細書(入力)'!H13)) ->  | I13: =IF('償却資産明細書(入力)'!I13="","",'償却資産明細書(入力)'!I13) ->  | J13: =IF('償却資産明細書(入力)'!K13="","",IF('償却資産明細書(入力)'!AA13="一括償却資産","－",'償却資産明細書(入力)'!K13)) ->  | K13: =IF('償却資産明細書(入力)'!L13="","",'償却資産明細書(入力)'!M13) ->  | L13: =IF('償却資産明細書(入力)'!N13="","",'償却資産明細書(入力)'!N13) ->  | M13: 12 | N13: =IF(D13="","",'償却資産明細書(入力)'!Q13) ->  | O13: =IF('償却資産明細書(入力)'!R13="","",'償却資産明細書(入力)'!R13) ->  | P13: =IF(D13="","",'償却資産明細書(入力)'!T13) ->  | Q13: =IF('償却資産明細書(入力)'!U13="","",'償却資産明細書(入力)'!U13) ->  | R13: =IF(D13="","",'償却資産明細書(入力)'!W13) ->  | S13: =IF(D13="","",IF('償却資産明細書(入力)'!X13="","",'償却資産明細書(入力)'!X13)) ->  | T13: =IF('償却資産明細書(入力)'!AA13="",""&新償却資産計算!BL26,'償却資産明細書(入力)'!AA13&新償却資産計算!BL26) -> 
B14: =IF('償却資産明細書(入力)'!B14="","",'償却資産明細書(入力)'!B14) ->  | C14: =IF('償却資産明細書(入力)'!C14="","",'償却資産明細書(入力)'!C14) ->  | D14: =IF('償却資産明細書(入力)'!D14="","",'償却資産明細書(入力)'!D14) ->  | E14: =IF('償却資産明細書(入力)'!E14="","",'償却資産明細書(入力)'!E14) ->  | F14: =IF('償却資産明細書(入力)'!F14="","",'償却資産明細書(入力)'!F14) ->  | G14: =IF('償却資産明細書(入力)'!G14="","",'償却資産明細書(入力)'!G14) ->  | H14: =IF(D14="","",IF('償却資産明細書(入力)'!H14="","",'償却資産明細書(入力)'!H14)) ->  | I14: =IF('償却資産明細書(入力)'!I14="","",'償却資産明細書(入力)'!I14) ->  | J14: =IF('償却資産明細書(入力)'!K14="","",IF('償却資産明細書(入力)'!AA14="一括償却資産","－",'償却資産明細書(入力)'!K14)) ->  | K14: =IF('償却資産明細書(入力)'!L14="","",'償却資産明細書(入力)'!M14) ->  | L14: =IF('償却資産明細書(入力)'!N14="","",'償却資産明細書(入力)'!N14) ->  | M14: 12 | N14: =IF(D14="","",'償却資産明細書(入力)'!Q14) ->  | O14: =IF('償却資産明細書(入力)'!R14="","",'償却資産明細書(入力)'!R14) ->  | P14: =IF(D14="","",'償却資産明細書(入力)'!T14) ->  | Q14: =IF('償却資産明細書(入力)'!U14="","",'償却資産明細書(入力)'!U14) ->  | R14: =IF(D14="","",'償却資産明細書(入力)'!W14) ->  | S14: =IF(D14="","",IF('償却資産明細書(入力)'!X14="","",'償却資産明細書(入力)'!X14)) ->  | T14: =IF('償却資産明細書(入力)'!AA14="",""&新償却資産計算!BL27,'償却資産明細書(入力)'!AA14&新償却資産計算!BL27) -> 
B15: =IF('償却資産明細書(入力)'!B15="","",'償却資産明細書(入力)'!B15) ->  | C15: =IF('償却資産明細書(入力)'!C15="","",'償却資産明細書(入力)'!C15) ->  | D15: =IF('償却資産明細書(入力)'!D15="","",'償却資産明細書(入力)'!D15) ->  | E15: =IF('償却資産明細書(入力)'!E15="","",'償却資産明細書(入力)'!E15) ->  | F15: =IF('償却資産明細書(入力)'!F15="","",'償却資産明細書(入力)'!F15) ->  | G15: =IF('償却資産明細書(入力)'!G15="","",'償却資産明細書(入力)'!G15) ->  | H15: =IF(D15="","",IF('償却資産明細書(入力)'!H15="","",'償却資産明細書(入力)'!H15)) ->  | I15: =IF('償却資産明細書(入力)'!I15="","",'償却資産明細書(入力)'!I15) ->  | J15: =IF('償却資産明細書(入力)'!K15="","",IF('償却資産明細書(入力)'!AA15="一括償却資産","－",'償却資産明細書(入力)'!K15)) ->  | K15: =IF('償却資産明細書(入力)'!L15="","",'償却資産明細書(入力)'!M15) ->  | L15: =IF('償却資産明細書(入力)'!N15="","",'償却資産明細書(入力)'!N15) ->  | M15: 12 | N15: =IF(D15="","",'償却資産明細書(入力)'!Q15) ->  | O15: =IF('償却資産明細書(入力)'!R15="","",'償却資産明細書(入力)'!R15) ->  | P15: =IF(D15="","",'償却資産明細書(入力)'!T15) ->  | Q15: =IF('償却資産明細書(入力)'!U15="","",'償却資産明細書(入力)'!U15) ->  | R15: =IF(D15="","",'償却資産明細書(入力)'!W15) ->  | S15: =IF(D15="","",IF('償却資産明細書(入力)'!X15="","",'償却資産明細書(入力)'!X15)) ->  | T15: =IF('償却資産明細書(入力)'!AA15="",""&新償却資産計算!BL28,'償却資産明細書(入力)'!AA15&新償却資産計算!BL28) -> 
B16: =IF('償却資産明細書(入力)'!B16="","",'償却資産明細書(入力)'!B16) ->  | C16: =IF('償却資産明細書(入力)'!C16="","",'償却資産明細書(入力)'!C16) ->  | D16: =IF('償却資産明細書(入力)'!D16="","",'償却資産明細書(入力)'!D16) ->  | E16: =IF('償却資産明細書(入力)'!E16="","",'償却資産明細書(入力)'!E16) ->  | F16: =IF('償却資産明細書(入力)'!F16="","",'償却資産明細書(入力)'!F16) ->  | G16: =IF('償却資産明細書(入力)'!G16="","",'償却資産明細書(入力)'!G16) ->  | H16: =IF(D16="","",IF('償却資産明細書(入力)'!H16="","",'償却資産明細書(入力)'!H16)) ->  | I16: =IF('償却資産明細書(入力)'!I16="","",'償却資産明細書(入力)'!I16) ->  | J16: =IF('償却資産明細書(入力)'!K16="","",IF('償却資産明細書(入力)'!AA16="一括償却資産","－",'償却資産明細書(入力)'!K16)) ->  | K16: =IF('償却資産明細書(入力)'!L16="","",'償却資産明細書(入力)'!M16) ->  | L16: =IF('償却資産明細書(入力)'!N16="","",'償却資産明細書(入力)'!N16) ->  | M16: 12 | N16: =IF(D16="","",'償却資産明細書(入力)'!Q16) ->  | O16: =IF('償却資産明細書(入力)'!R16="","",'償却資産明細書(入力)'!R16) ->  | P16: =IF(D16="","",'償却資産明細書(入力)'!T16) ->  | Q16: =IF('償却資産明細書(入力)'!U16="","",'償却資産明細書(入力)'!U16) ->  | R16: =IF(D16="","",'償却資産明細書(入力)'!W16) ->  | S16: =IF(D16="","",IF('償却資産明細書(入力)'!X16="","",'償却資産明細書(入力)'!X16)) ->  | T16: =IF('償却資産明細書(入力)'!AA16="",""&新償却資産計算!BL29,'償却資産明細書(入力)'!AA16&新償却資産計算!BL29) -> 
B17: =IF('償却資産明細書(入力)'!B17="","",'償却資産明細書(入力)'!B17) ->  | C17: =IF('償却資産明細書(入力)'!C17="","",'償却資産明細書(入力)'!C17) ->  | D17: =IF('償却資産明細書(入力)'!D17="","",'償却資産明細書(入力)'!D17) ->  | E17: =IF('償却資産明細書(入力)'!E17="","",'償却資産明細書(入力)'!E17) ->  | F17: =IF('償却資産明細書(入力)'!F17="","",'償却資産明細書(入力)'!F17) ->  | G17: =IF('償却資産明細書(入力)'!G17="","",'償却資産明細書(入力)'!G17) ->  | H17: =IF(D17="","",IF('償却資産明細書(入力)'!H17="","",'償却資産明細書(入力)'!H17)) ->  | I17: =IF('償却資産明細書(入力)'!I17="","",'償却資産明細書(入力)'!I17) ->  | J17: =IF('償却資産明細書(入力)'!K17="","",IF('償却資産明細書(入力)'!AA17="一括償却資産","－",'償却資産明細書(入力)'!K17)) ->  | K17: =IF('償却資産明細書(入力)'!L17="","",'償却資産明細書(入力)'!M17) ->  | L17: =IF('償却資産明細書(入力)'!N17="","",'償却資産明細書(入力)'!N17) ->  | M17: 12 | N17: =IF(D17="","",'償却資産明細書(入力)'!Q17) ->  | O17: =IF('償却資産明細書(入力)'!R17="","",'償却資産明細書(入力)'!R17) ->  | P17: =IF(D17="","",'償却資産明細書(入力)'!T17) ->  | Q17: =IF('償却資産明細書(入力)'!U17="","",'償却資産明細書(入力)'!U17) ->  | R17: =IF(D17="","",'償却資産明細書(入力)'!W17) ->  | S17: =IF(D17="","",IF('償却資産明細書(入力)'!X17="","",'償却資産明細書(入力)'!X17)) ->  | T17: =IF('償却資産明細書(入力)'!AA17="",""&新償却資産計算!BL30,'償却資産明細書(入力)'!AA17&新償却資産計算!BL30) -> 
B18: =IF('償却資産明細書(入力)'!B18="","",'償却資産明細書(入力)'!B18) ->  | C18: =IF('償却資産明細書(入力)'!C18="","",'償却資産明細書(入力)'!C18) ->  | D18: =IF('償却資産明細書(入力)'!D18="","",'償却資産明細書(入力)'!D18) ->  | E18: =IF('償却資産明細書(入力)'!E18="","",'償却資産明細書(入力)'!E18) ->  | F18: =IF('償却資産明細書(入力)'!F18="","",'償却資産明細書(入力)'!F18) ->  | G18: =IF('償却資産明細書(入力)'!G18="","",'償却資産明細書(入力)'!G18) ->  | H18: =IF(D18="","",IF('償却資産明細書(入力)'!H18="","",'償却資産明細書(入力)'!H18)) ->  | I18: =IF('償却資産明細書(入力)'!I18="","",'償却資産明細書(入力)'!I18) ->  | J18: =IF('償却資産明細書(入力)'!K18="","",IF('償却資産明細書(入力)'!AA18="一括償却資産","－",'償却資産明細書(入力)'!K18)) ->  | K18: =IF('償却資産明細書(入力)'!L18="","",'償却資産明細書(入力)'!M18) ->  | L18: =IF('償却資産明細書(入力)'!N18="","",'償却資産明細書(入力)'!N18) ->  | M18: 12 | N18: =IF(D18="","",'償却資産明細書(入力)'!Q18) ->  | O18: =IF('償却資産明細書(入力)'!R18="","",'償却資産明細書(入力)'!R18) ->  | P18: =IF(D18="","",'償却資産明細書(入力)'!T18) ->  | Q18: =IF('償却資産明細書(入力)'!U18="","",'償却資産明細書(入力)'!U18) ->  | R18: =IF(D18="","",'償却資産明細書(入力)'!W18) ->  | S18: =IF(D18="","",IF('償却資産明細書(入力)'!X18="","",'償却資産明細書(入力)'!X18)) ->  | T18: =IF('償却資産明細書(入力)'!AA18="",""&新償却資産計算!BL31,'償却資産明細書(入力)'!AA18&新償却資産計算!BL31) -> 
B19: =IF('償却資産明細書(入力)'!B19="","",'償却資産明細書(入力)'!B19) ->  | C19: =IF('償却資産明細書(入力)'!C19="","",'償却資産明細書(入力)'!C19) ->  | D19: =IF('償却資産明細書(入力)'!D19="","",'償却資産明細書(入力)'!D19) ->  | E19: =IF('償却資産明細書(入力)'!E19="","",'償却資産明細書(入力)'!E19) ->  | F19: =IF('償却資産明細書(入力)'!F19="","",'償却資産明細書(入力)'!F19) ->  | G19: =IF('償却資産明細書(入力)'!G19="","",'償却資産明細書(入力)'!G19) ->  | H19: =IF(D19="","",IF('償却資産明細書(入力)'!H19="","",'償却資産明細書(入力)'!H19)) ->  | I19: =IF('償却資産明細書(入力)'!I19="","",'償却資産明細書(入力)'!I19) ->  | J19: =IF('償却資産明細書(入力)'!K19="","",IF('償却資産明細書(入力)'!AA19="一括償却資産","－",'償却資産明細書(入力)'!K19)) ->  | K19: =IF('償却資産明細書(入力)'!L19="","",'償却資産明細書(入力)'!M19) ->  | L19: =IF('償却資産明細書(入力)'!N19="","",'償却資産明細書(入力)'!N19) ->  | M19: 12 | N19: =IF(D19="","",'償却資産明細書(入力)'!Q19) ->  | O19: =IF('償却資産明細書(入力)'!R19="","",'償却資産明細書(入力)'!R19) ->  | P19: =IF(D19="","",'償却資産明細書(入力)'!T19) ->  | Q19: =IF('償却資産明細書(入力)'!U19="","",'償却資産明細書(入力)'!U19) ->  | R19: =IF(D19="","",'償却資産明細書(入力)'!W19) ->  | S19: =IF(D19="","",IF('償却資産明細書(入力)'!X19="","",'償却資産明細書(入力)'!X19)) ->  | T19: =IF('償却資産明細書(入力)'!AA19="",""&新償却資産計算!BL32,'償却資産明細書(入力)'!AA19&新償却資産計算!BL32) -> 
B20: =IF('償却資産明細書(入力)'!B20="","",'償却資産明細書(入力)'!B20) ->  | C20: =IF('償却資産明細書(入力)'!C20="","",'償却資産明細書(入力)'!C20) ->  | D20: =IF('償却資産明細書(入力)'!D20="","",'償却資産明細書(入力)'!D20) ->  | E20: =IF('償却資産明細書(入力)'!E20="","",'償却資産明細書(入力)'!E20) ->  | F20: =IF('償却資産明細書(入力)'!F20="","",'償却資産明細書(入力)'!F20) ->  | G20: =IF('償却資産明細書(入力)'!G20="","",'償却資産明細書(入力)'!G20) ->  | H20: =IF(D20="","",IF('償却資産明細書(入力)'!H20="","",'償却資産明細書(入力)'!H20)) ->  | I20: =IF('償却資産明細書(入力)'!I20="","",'償却資産明細書(入力)'!I20) ->  | J20: =IF('償却資産明細書(入力)'!K20="","",IF('償却資産明細書(入力)'!AA20="一括償却資産","－",'償却資産明細書(入力)'!K20)) ->  | K20: =IF('償却資産明細書(入力)'!L20="","",'償却資産明細書(入力)'!M20) ->  | L20: =IF('償却資産明細書(入力)'!N20="","",'償却資産明細書(入力)'!N20) ->  | M20: 12 | N20: =IF(D20="","",'償却資産明細書(入力)'!Q20) ->  | O20: =IF('償却資産明細書(入力)'!R20="","",'償却資産明細書(入力)'!R20) ->  | P20: =IF(D20="","",'償却資産明細書(入力)'!T20) ->  | Q20: =IF('償却資産明細書(入力)'!U20="","",'償却資産明細書(入力)'!U20) ->  | R20: =IF(D20="","",'償却資産明細書(入力)'!W20) ->  | S20: =IF(D20="","",IF('償却資産明細書(入力)'!X20="","",'償却資産明細書(入力)'!X20)) ->  | T20: =IF('償却資産明細書(入力)'!AA20="",""&新償却資産計算!BL33,'償却資産明細書(入力)'!AA20&新償却資産計算!BL33) -> 
B21: =IF('償却資産明細書(入力)'!B21="","",'償却資産明細書(入力)'!B21) ->  | C21: =IF('償却資産明細書(入力)'!C21="","",'償却資産明細書(入力)'!C21) ->  | D21: =IF('償却資産明細書(入力)'!D21="","",'償却資産明細書(入力)'!D21) ->  | E21: =IF('償却資産明細書(入力)'!E21="","",'償却資産明細書(入力)'!E21) ->  | F21: =IF('償却資産明細書(入力)'!F21="","",'償却資産明細書(入力)'!F21) ->  | G21: =IF('償却資産明細書(入力)'!G21="","",'償却資産明細書(入力)'!G21) ->  | H21: =IF(D21="","",IF('償却資産明細書(入力)'!H21="","",'償却資産明細書(入力)'!H21)) ->  | I21: =IF('償却資産明細書(入力)'!I21="","",'償却資産明細書(入力)'!I21) ->  | J21: =IF('償却資産明細書(入力)'!K21="","",IF('償却資産明細書(入力)'!AA21="一括償却資産","－",'償却資産明細書(入力)'!K21)) ->  | K21: =IF('償却資産明細書(入力)'!L21="","",'償却資産明細書(入力)'!M21) ->  | L21: =IF('償却資産明細書(入力)'!N21="","",'償却資産明細書(入力)'!N21) ->  | M21: 12 | N21: =IF(D21="","",'償却資産明細書(入力)'!Q21) ->  | O21: =IF('償却資産明細書(入力)'!R21="","",'償却資産明細書(入力)'!R21) ->  | P21: =IF(D21="","",'償却資産明細書(入力)'!T21) ->  | Q21: =IF('償却資産明細書(入力)'!U21="","",'償却資産明細書(入力)'!U21) ->  | R21: =IF(D21="","",'償却資産明細書(入力)'!W21) ->  | S21: =IF(D21="","",IF('償却資産明細書(入力)'!X21="","",'償却資産明細書(入力)'!X21)) ->  | T21: =IF('償却資産明細書(入力)'!AA21="",""&新償却資産計算!BL34,'償却資産明細書(入力)'!AA21&新償却資産計算!BL34) -> 
B22: =IF('償却資産明細書(入力)'!B22="","",'償却資産明細書(入力)'!B22) ->  | C22: =IF('償却資産明細書(入力)'!C22="","",'償却資産明細書(入力)'!C22) ->  | D22: =IF('償却資産明細書(入力)'!D22="","",'償却資産明細書(入力)'!D22) ->  | E22: =IF('償却資産明細書(入力)'!E22="","",'償却資産明細書(入力)'!E22) ->  | F22: =IF('償却資産明細書(入力)'!F22="","",'償却資産明細書(入力)'!F22) ->  | G22: =IF('償却資産明細書(入力)'!G22="","",'償却資産明細書(入力)'!G22) ->  | H22: =IF(D22="","",IF('償却資産明細書(入力)'!H22="","",'償却資産明細書(入力)'!H22)) ->  | I22: =IF('償却資産明細書(入力)'!I22="","",'償却資産明細書(入力)'!I22) ->  | J22: =IF('償却資産明細書(入力)'!K22="","",IF('償却資産明細書(入力)'!AA22="一括償却資産","－",'償却資産明細書(入力)'!K22)) ->  | K22: =IF('償却資産明細書(入力)'!L22="","",'償却資産明細書(入力)'!M22) ->  | L22: =IF('償却資産明細書(入力)'!N22="","",'償却資産明細書(入力)'!N22) ->  | M22: 12 | N22: =IF(D22="","",'償却資産明細書(入力)'!Q22) ->  | O22: =IF('償却資産明細書(入力)'!R22="","",'償却資産明細書(入力)'!R22) ->  | P22: =IF(D22="","",'償却資産明細書(入力)'!T22) ->  | Q22: =IF('償却資産明細書(入力)'!U22="","",'償却資産明細書(入力)'!U22) ->  | R22: =IF(D22="","",'償却資産明細書(入力)'!W22) ->  | S22: =IF(D22="","",IF('償却資産明細書(入力)'!X22="","",'償却資産明細書(入力)'!X22)) ->  | T22: =IF('償却資産明細書(入力)'!AA22="",""&新償却資産計算!BL35,'償却資産明細書(入力)'!AA22&新償却資産計算!BL35) -> 
B23: =IF('償却資産明細書(入力)'!B23="","",'償却資産明細書(入力)'!B23) ->  | C23: =IF('償却資産明細書(入力)'!C23="","",'償却資産明細書(入力)'!C23) ->  | D23: =IF('償却資産明細書(入力)'!D23="","",'償却資産明細書(入力)'!D23) ->  | E23: =IF('償却資産明細書(入力)'!E23="","",'償却資産明細書(入力)'!E23) ->  | F23: =IF('償却資産明細書(入力)'!F23="","",'償却資産明細書(入力)'!F23) ->  | G23: =IF('償却資産明細書(入力)'!G23="","",'償却資産明細書(入力)'!G23) ->  | H23: =IF(D23="","",IF('償却資産明細書(入力)'!H23="","",'償却資産明細書(入力)'!H23)) ->  | I23: =IF('償却資産明細書(入力)'!I23="","",'償却資産明細書(入力)'!I23) ->  | J23: =IF('償却資産明細書(入力)'!K23="","",IF('償却資産明細書(入力)'!AA23="一括償却資産","－",'償却資産明細書(入力)'!K23)) ->  | K23: =IF('償却資産明細書(入力)'!L23="","",'償却資産明細書(入力)'!M23) ->  | L23: =IF('償却資産明細書(入力)'!N23="","",'償却資産明細書(入力)'!N23) ->  | M23: 12 | N23: =IF(D23="","",'償却資産明細書(入力)'!Q23) ->  | O23: =IF('償却資産明細書(入力)'!R23="","",'償却資産明細書(入力)'!R23) ->  | P23: =IF(D23="","",'償却資産明細書(入力)'!T23) ->  | Q23: =IF('償却資産明細書(入力)'!U23="","",'償却資産明細書(入力)'!U23) ->  | R23: =IF(D23="","",'償却資産明細書(入力)'!W23) ->  | S23: =IF(D23="","",IF('償却資産明細書(入力)'!X23="","",'償却資産明細書(入力)'!X23)) ->  | T23: =IF('償却資産明細書(入力)'!AA23="",""&新償却資産計算!BL36,'償却資産明細書(入力)'!AA23&新償却資産計算!BL36) -> 
B24: =IF('償却資産明細書(入力)'!B24="","",'償却資産明細書(入力)'!B24) ->  | C24: =IF('償却資産明細書(入力)'!C24="","",'償却資産明細書(入力)'!C24) ->  | D24: =IF('償却資産明細書(入力)'!D24="","",'償却資産明細書(入力)'!D24) ->  | E24: =IF('償却資産明細書(入力)'!E24="","",'償却資産明細書(入力)'!E24) ->  | F24: =IF('償却資産明細書(入力)'!F24="","",'償却資産明細書(入力)'!F24) ->  | G24: =IF('償却資産明細書(入力)'!G24="","",'償却資産明細書(入力)'!G24) ->  | H24: =IF(D24="","",IF('償却資産明細書(入力)'!H24="","",'償却資産明細書(入力)'!H24)) ->  | I24: =IF('償却資産明細書(入力)'!I24="","",'償却資産明細書(入力)'!I24) ->  | J24: =IF('償却資産明細書(入力)'!K24="","",IF('償却資産明細書(入力)'!AA24="一括償却資産","－",'償却資産明細書(入力)'!K24)) ->  | K24: =IF('償却資産明細書(入力)'!L24="","",'償却資産明細書(入力)'!M24) ->  | L24: =IF('償却資産明細書(入力)'!N24="","",'償却資産明細書(入力)'!N24) ->  | M24: 12 | N24: =IF(D24="","",'償却資産明細書(入力)'!Q24) ->  | O24: =IF('償却資産明細書(入力)'!R24="","",'償却資産明細書(入力)'!R24) ->  | P24: =IF(D24="","",'償却資産明細書(入力)'!T24) ->  | Q24: =IF('償却資産明細書(入力)'!U24="","",'償却資産明細書(入力)'!U24) ->  | R24: =IF(D24="","",'償却資産明細書(入力)'!W24) ->  | S24: =IF(D24="","",IF('償却資産明細書(入力)'!X24="","",'償却資産明細書(入力)'!X24)) ->  | T24: =IF('償却資産明細書(入力)'!AA24="",""&新償却資産計算!BL37,'償却資産明細書(入力)'!AA24&新償却資産計算!BL37) -> 
B25: =IF('償却資産明細書(入力)'!B25="","",'償却資産明細書(入力)'!B25) ->  | C25: =IF('償却資産明細書(入力)'!C25="","",'償却資産明細書(入力)'!C25) ->  | D25: =IF('償却資産明細書(入力)'!D25="","",'償却資産明細書(入力)'!D25) ->  | E25: =IF('償却資産明細書(入力)'!E25="","",'償却資産明細書(入力)'!E25) ->  | F25: =IF('償却資産明細書(入力)'!F25="","",'償却資産明細書(入力)'!F25) ->  | G25: =IF('償却資産明細書(入力)'!G25="","",'償却資産明細書(入力)'!G25) ->  | H25: =IF(D25="","",IF('償却資産明細書(入力)'!H25="","",'償却資産明細書(入力)'!H25)) ->  | I25: =IF('償却資産明細書(入力)'!I25="","",'償却資産明細書(入力)'!I25) ->  | J25: =IF('償却資産明細書(入力)'!K25="","",IF('償却資産明細書(入力)'!AA25="一括償却資産","－",'償却資産明細書(入力)'!K25)) ->  | K25: =IF('償却資産明細書(入力)'!L25="","",'償却資産明細書(入力)'!M25) ->  | L25: =IF('償却資産明細書(入力)'!N25="","",'償却資産明細書(入力)'!N25) ->  | M25: 12 | N25: =IF(D25="","",'償却資産明細書(入力)'!Q25) ->  | O25: =IF('償却資産明細書(入力)'!R25="","",'償却資産明細書(入力)'!R25) ->  | P25: =IF(D25="","",'償却資産明細書(入力)'!T25) ->  | Q25: =IF('償却資産明細書(入力)'!U25="","",'償却資産明細書(入力)'!U25) ->  | R25: =IF(D25="","",'償却資産明細書(入力)'!W25) ->  | S25: =IF(D25="","",IF('償却資産明細書(入力)'!X25="","",'償却資産明細書(入力)'!X25)) ->  | T25: =IF('償却資産明細書(入力)'!AA25="",""&新償却資産計算!BL38,'償却資産明細書(入力)'!AA25&新償却資産計算!BL38) -> 
B26: =IF('償却資産明細書(入力)'!B26="","",'償却資産明細書(入力)'!B26) ->  | C26: =IF('償却資産明細書(入力)'!C26="","",'償却資産明細書(入力)'!C26) ->  | D26: =IF('償却資産明細書(入力)'!D26="","",'償却資産明細書(入力)'!D26) ->  | E26: =IF('償却資産明細書(入力)'!E26="","",'償却資産明細書(入力)'!E26) ->  | F26: =IF('償却資産明細書(入力)'!F26="","",'償却資産明細書(入力)'!F26) ->  | G26: =IF('償却資産明細書(入力)'!G26="","",'償却資産明細書(入力)'!G26) ->  | H26: =IF(D26="","",IF('償却資産明細書(入力)'!H26="","",'償却資産明細書(入力)'!H26)) ->  | I26: =IF('償却資産明細書(入力)'!I26="","",'償却資産明細書(入力)'!I26) ->  | J26: =IF('償却資産明細書(入力)'!K26="","",IF('償却資産明細書(入力)'!AA26="一括償却資産","－",'償却資産明細書(入力)'!K26)) ->  | K26: =IF('償却資産明細書(入力)'!L26="","",'償却資産明細書(入力)'!M26) ->  | L26: =IF('償却資産明細書(入力)'!N26="","",'償却資産明細書(入力)'!N26) ->  | M26: 12 | N26: =IF(D26="","",'償却資産明細書(入力)'!Q26) ->  | O26: =IF('償却資産明細書(入力)'!R26="","",'償却資産明細書(入力)'!R26) ->  | P26: =IF(D26="","",'償却資産明細書(入力)'!T26) ->  | Q26: =IF('償却資産明細書(入力)'!U26="","",'償却資産明細書(入力)'!U26) ->  | R26: =IF(D26="","",'償却資産明細書(入力)'!W26) ->  | S26: =IF(D26="","",IF('償却資産明細書(入力)'!X26="","",'償却資産明細書(入力)'!X26)) ->  | T26: =IF('償却資産明細書(入力)'!AA26="",""&新償却資産計算!BL39,'償却資産明細書(入力)'!AA26&新償却資産計算!BL39) -> 
B27: =IF('償却資産明細書(入力)'!B27="","",'償却資産明細書(入力)'!B27) ->  | C27: =IF('償却資産明細書(入力)'!C27="","",'償却資産明細書(入力)'!C27) ->  | D27: =IF('償却資産明細書(入力)'!D27="","",'償却資産明細書(入力)'!D27) ->  | E27: =IF('償却資産明細書(入力)'!E27="","",'償却資産明細書(入力)'!E27) ->  | F27: =IF('償却資産明細書(入力)'!F27="","",'償却資産明細書(入力)'!F27) ->  | G27: =IF('償却資産明細書(入力)'!G27="","",'償却資産明細書(入力)'!G27) ->  | H27: =IF(D27="","",IF('償却資産明細書(入力)'!H27="","",'償却資産明細書(入力)'!H27)) ->  | I27: =IF('償却資産明細書(入力)'!I27="","",'償却資産明細書(入力)'!I27) ->  | J27: =IF('償却資産明細書(入力)'!K27="","",IF('償却資産明細書(入力)'!AA27="一括償却資産","－",'償却資産明細書(入力)'!K27)) ->  | K27: =IF('償却資産明細書(入力)'!L27="","",'償却資産明細書(入力)'!M27) ->  | L27: =IF('償却資産明細書(入力)'!N27="","",'償却資産明細書(入力)'!N27) ->  | M27: 12 | N27: =IF(D27="","",'償却資産明細書(入力)'!Q27) ->  | O27: =IF('償却資産明細書(入力)'!R27="","",'償却資産明細書(入力)'!R27) ->  | P27: =IF(D27="","",'償却資産明細書(入力)'!T27) ->  | Q27: =IF('償却資産明細書(入力)'!U27="","",'償却資産明細書(入力)'!U27) ->  | R27: =IF(D27="","",'償却資産明細書(入力)'!W27) ->  | S27: =IF(D27="","",IF('償却資産明細書(入力)'!X27="","",'償却資産明細書(入力)'!X27)) ->  | T27: =IF('償却資産明細書(入力)'!AA27="",""&新償却資産計算!BL40,'償却資産明細書(入力)'!AA27&新償却資産計算!BL40) -> 
B28: =IF('償却資産明細書(入力)'!B28="","",'償却資産明細書(入力)'!B28) ->  | C28: =IF('償却資産明細書(入力)'!C28="","",'償却資産明細書(入力)'!C28) ->  | D28: =IF('償却資産明細書(入力)'!D28="","",'償却資産明細書(入力)'!D28) ->  | E28: =IF('償却資産明細書(入力)'!E28="","",'償却資産明細書(入力)'!E28) ->  | F28: =IF('償却資産明細書(入力)'!F28="","",'償却資産明細書(入力)'!F28) ->  | G28: =IF('償却資産明細書(入力)'!G28="","",'償却資産明細書(入力)'!G28) ->  | H28: =IF(D28="","",IF('償却資産明細書(入力)'!H28="","",'償却資産明細書(入力)'!H28)) ->  | I28: =IF('償却資産明細書(入力)'!I28="","",'償却資産明細書(入力)'!I28) ->  | J28: =IF('償却資産明細書(入力)'!K28="","",IF('償却資産明細書(入力)'!AA28="一括償却資産","－",'償却資産明細書(入力)'!K28)) ->  | K28: =IF('償却資産明細書(入力)'!L28="","",'償却資産明細書(入力)'!M28) ->  | L28: =IF('償却資産明細書(入力)'!N28="","",'償却資産明細書(入力)'!N28) ->  | M28: 12 | N28: =IF(D28="","",'償却資産明細書(入力)'!Q28) ->  | O28: =IF('償却資産明細書(入力)'!R28="","",'償却資産明細書(入力)'!R28) ->  | P28: =IF(D28="","",'償却資産明細書(入力)'!T28) ->  | Q28: =IF('償却資産明細書(入力)'!U28="","",'償却資産明細書(入力)'!U28) ->  | R28: =IF(D28="","",'償却資産明細書(入力)'!W28) ->  | S28: =IF(D28="","",IF('償却資産明細書(入力)'!X28="","",'償却資産明細書(入力)'!X28)) ->  | T28: =IF('償却資産明細書(入力)'!AA28="",""&新償却資産計算!BL41,'償却資産明細書(入力)'!AA28&新償却資産計算!BL41) -> 
B29: 小計 | N29: =SUM(N6:N28) -> 0 | P29: =SUM(N29:O29) -> 0 | R29: =SUM(R6:R28) -> 0 | S29: =SUM(S6:S28) -> 0

Sheet 償却率 (H20まで) (hidden)
A1: 耐用年数 | B1: 旧定額法 | C1: 定額法 | E1: 旧の耐用年数
A2: 1 | B2: =ROUNDDOWN(1/A2,3) -> 1 | C2: =ROUNDUP(1/A2,3) -> 1 | AK2: =IF(OR(AC2="初年",AD2="初年"),U2,IF(OR(AC2=E2-F2+1,AD2=E2-F2+1),ROUNDDOWN(Q2*AE2/12,0),IF(OR(AC2="最終年",AD2="最終年"),AA2,IF(AND(F2>=82,G2>3),IF(OR(AC2="償却終了",AD2="償却終了"),0),IF(AC2="５年均等償却",ROUNDUP((L2-K2)/5,0),IF(AC2="均等償却最終年",L2-ROUNDUP((L2-K2)/5,0)*4-K2,IF(OR(AC2="９５％償却済み",AC2="償却終了",AD2="償却終了"),0,0))))))) -> 0
A3: 2 | B3: 0.5 | C3: 0.5 | E3: 基礎数値 | AS3: エラーメッセージ
A4: 3 | B4: 0.333 | C4: 0.334 | E4: 現在年 | F4: 取得年 | G4: 月 | H4: 廃棄月 | I4: 取得価格 | J4: 基礎価格 | K4: 最終未償却残高 | L4: 取得価格×５％ | M4: 耐用年数 | N4: 新耐用年数 | O4: 償却率 | P4: 新償却率 | Q4: 償却限度額 | R4: 新償却限度額 | T4: 開始償却月数 | U4: 初年償却 | V4: 新初年償却 | W4: 廃棄年償却 | X4: 12ヶ月償却年数 | Y4: 終了年償却月数 | Z4: 終了年償却 | AA4: 最終年償却費 | AC4: 判定(１９年３月以前取得) | AD4: 判定(１９年４月以降取得） | AE4: 本年償却月 | AF4: 本年中の償却期間 | AG4: 償却終了年 | AH4: 5年均等償却経過年数 | AI4: 21年度からの経過年数 | AJ4: 均等償却最終年償却費 | AK4: 本年償却額 | AL4: 新本年償却額 | AM4: 中間年償却額 | AN4: 累計償却額 | AO4: 新累計償却額 | AP4: 未償却残高 | AQ4: 新未償却残高 | AS4: 取得月エラー | AT4: 取得月を入力！ | AU4: 元号を入力 | AV4: 取得年を入力！ | AW4: 償却の基礎になる金額 | AZ4: 年分を確認！！ | BA4: 耐用年数を入力！ | BB4: 本年分の普通償却費 | BC4: 本年分の新償却費 | BE4: 事業割合を入力! | BF4: 事業割合エラー | BG4: 本年分の必要経費算入額 | BH4: 新本年分の必要経費算入額 | BI4: 固定資産除却損失 | BJ4: 必要経費算入額 | BK4: 処分費用 | BL4: 実質未償却残高
A5: 4 | B5: 0.25 | C5: 0.25 | E5: =計算シート!$C$2+62 -> 67 | F5: =IF('償却資産明細書(入力)'!D6="平成",'償却資産明細書(入力)'!E6+63,'償却資産明細書(入力)'!E6) -> 0 | G5: ='償却資産明細書(入力)'!F6 -> 0 | H5: ='償却資産明細書(入力)'!Y6 -> 0 | I5: ='償却資産明細書(入力)'!G6 -> 0 | J5: =IF(OR(AND('償却資産明細書(入力)'!D6="平成",'償却資産明細書(入力)'!E6>=19,'償却資産明細書(入力)'!F6>=4),AND('償却資産明細書(入力)'!D6="平成",'償却資産明細書(入力)'!E6>=20)),I5,IF('償却資産明細書(入力)'!AA6="一括償却資産",I5,ROUNDDOWN(I5*0.9,0))) -> 0 | K5: =IF('償却資産明細書(入力)'!AA6="一括償却資産",0,IF(I5>0,1,0)) -> 0 | L5: =IF('償却資産明細書(入力)'!AA6="一括償却資産",0,ROUNDDOWN(I5*0.05,0)) -> 0 | M5: ='償却資産明細書(入力)'!J6 -> 0 | N5: ='償却資産明細書(入力)'!K6 -> 0 | O5: =IF(OR(AND(M5>0,F5>=82,G5>=4),AND(M5>0,F5>=83)),VLOOKUP(M5,$A$2:$C$101,3,1),IF(M5>0,VLOOKUP(M5,$A$2:$C$101,2,1),0)) -> 0 | P5: =IF(AND(M5>0,F5>=82,G5>=4),ROUNDUP(1/N5,3),ROUNDDOWN(1/N5,3)) ->  | Q5: =IF(AND(F5>=82,G5>3),IF('償却資産明細書(入力)'!AA6="一括償却資産",ROUNDDOWN(I5/3,0),ROUNDDOWN(I5*O5,0)),IF('償却資産明細書(入力)'!AA6="一括償却資産",ROUNDDOWN(J5/3,0),ROUNDDOWN(J5*O5,0))) -> 0 | R5: =IF(AND(F5>=82,G5>3),IF('償却資産明細書(入力)'!AA6="一括償却資産",ROUNDDOWN(I5/3,0),ROUNDDOWN(I5*P5,0)),IF('償却資産明細書(入力)'!AA6="一括償却資産",ROUNDDOWN(J5/3,0),ROUNDDOWN(J5*P5,0))) ->  | T5: =13-G5 -> 13 | U5: =IF(AND(F5>=82,G5>3),IF('償却資産明細書(入力)'!AA6="一括償却資産",ROUNDUP(I5/3,0),IF(AND(E5=F5,H5>0),ROUNDDOWN(Q5*AF5/12,0),ROUNDDOWN(Q5*T5/12,0))),IF('償却資産明細書(入力)'!AA6="一括償却資産",ROUNDDOWN(J5/3,0),IF(AND(E5=F5,H5>0),ROUNDDOWN(Q5*AF5/12,0),ROUNDDOWN(Q5*T5/12,0)))) -> 0 | V5: =IF(AND(F5>=82,G5>3),IF('償却資産明細書(入力)'!AA6="一括償却資産",ROUNDUP(I5/3,0),IF(AND(E5=F5,H5>0),ROUNDDOWN(R5*AF5/12,0),ROUNDDOWN(R5*T5/12,0))),IF('償却資産明細書(入力)'!AA6="一括償却資産",ROUNDDOWN(J5/3,0),IF(AND(E5=F5,H5>0),ROUNDDOWN(R5*AF5/12,0),ROUNDDOWN(R5*T5/12,0)))) ->  | W5: =IF('償却資産明細書(入力)'!D6="",0,IF(OR(AC5="最終年",AD5="最終年"),Q5*Y5/12,Z5)) -> 0 | X5: =IF(Q5=0,0,IF(K5=0,ROUNDDOWN((I5-U5)/Q5,0)-1,IF(AND(F5>=82,G5>3),ROUNDDOWN((I5-K5-U5)/Q5,0),ROUNDDOWN((I5-L5-U5)/Q5,0)))) -> 0 | Y5: =IF(Q5=0,0,IF(L5=0,0,IF(AND(E5=F5,H5>0),H5-G5+1,IF(H5>0,H5,12)))) -> 0 | Z5: =IF(AND(F5>=82,G5>3),I5-U5-X5*Q5-K5,I5-U5-X5*Q5-L5) -> 0 | AA5: =IF('償却資産明細書(入力)'!AA6="一括償却資産",Z5,IF(Z5<W5,Z5,W5)) -> 0 | AB5: =IF(H5>0,IF(AND(E5=F5,G5>H5),"取得前に廃棄？")) -> FALSE | AC5: =IF(OR(AND(F5>=82,G5>3),F5<=0),"",IF(E5=F5,"初年",IF(AND(E5>F5,E5<=F5+X5),E5-F5+1,IF(E5=F5+X5+1,"最終年",IF(AG5>82,IF(AND(AG5<E5,AG5+5>E5),IF(E5>82,"５年均等償却","９５％償却済み"),IF(E5=F5+X5+1+5,"均等償却最終年",IF(E5>F5+X5+1+5,"償却終了","償却除外"))),IF(AND(82<E5,87>E5),IF(E5>82,"５年均等償却",IF(AG5<E5<=82,"９５％償却済み")),IF(E5=87,"均等償却最終年",IF(E5>87,"償却終了","９５％償却済み")))))))) ->  | AD5: =IF(AND(F5>=82,G5>3),IF(E5=F5,"初年",IF(AND(E5>F5,E5<=F5+X5),E5-F5+1,IF(E5=F5+X5+1,"最終年",IF(E5>F5+X5+1,"償却終了","償却除外")))),"") ->  | AE5: =IF(OR(AC5="初年",AD5="初年"),T5,IF(OR(AC5=E5-F5+1,AD5=E5-F5+1),IF(H5>0,H5,12),IF(OR(AC5="最終年",AD5="最終年"),Y5,IF(AND(F5>=82,G5>3),IF(OR(AC5="償却終了",AD5="償却終了"),0),IF(AC5="５年均等償却",12,IF(AC5="均等償却最終年",12,IF(OR(AC5="償却終了",AD5="償却終了"),0,"－"))))))) -> － | AF5: =IF(OR(F5=0,G5=0),"",IF(OR('償却資産明細書(入力)'!AA6="一括償却資産",AC5="償却終了",AD5="償却終了"),"－",AE5)) ->  | AG5: =IF(OR('収支内訳書（裏）１'!I26="",'収支内訳書（裏）１'!K26="",'収支内訳書（裏）１'!M26="",'収支内訳書（裏）１'!O26=""),0,IF(F5>0,ROUNDDOWN((I5-L5-U5)/Q5,0)+1+F5,0)) -> 0 | AH5: =IF(AC5="償却終了","－",IF(OR(AC5="５年均等償却",AC5="均等償却最終年"),IF(F5>0,E5-AG5,"－"),"－")) -> － | AI5: =IF(F5=0,"－",IF(F5+X5+1<83,IF(E5>=83,IF(E5-82<6,E5-82,"－"),"－"),"－")) -> － | AJ5: =IF(AND(F5>=82,G5>3),"－",L5-ROUNDUP((L5-K5)/5,0)*4-K5) -> 0 | AK5: =IF(OR(AC5="初年",AD5="初年"),U5,IF(OR(AC5=E5-F5+1,AD5=E5-F5+1),ROUNDDOWN(Q5*AE5/12,0),IF(OR(AC5="最終年",AD5="最終年"),AA5,IF(AND(F5>=82,G5>3),IF(OR(AC5="償却終了",AD5="償却終了"),0),IF(AC5="５年均等償却",ROUNDUP((L5-K5)/5,0),IF(AC5="均等償却最終年",L5-ROUNDUP((L5-K5)/5,0)*4-K5,IF(OR(AC5="９５％償却済み",AC5="償却終了",AD5="償却終了"),0,0))))))) -> 0 | AL5: =IF(OR(AC5="初年",AD5="初年"),V5,IF(OR(AC5=E5-F5+1,AD5=E5-F5+1),ROUNDDOWN(R5*AE5/12,0),IF(OR(AC5="最終年",AD5="最終年"),AA5,IF(AND(F5>=82,G5>3),IF(OR(AC5="償却終了",AD5="償却終了"),0),IF(AC5="５年均等償却",ROUNDUP((L5-K5)/5,0),IF(AC5="均等償却最終年",L5-ROUNDUP((L5-K5)/5,0)*4-K5,IF(OR(AC5="９５％償却済み",AC5="償却終了",AD5="償却終了"),0,0))))))) -> 0 | AM5: =IF(OR(AC5="初年",AD5="初年"),0,IF(AND(F5>=82,G5>3),IF(AD5="償却終了","－",Q5*((E5-F5+1)-2)),IF(AC5="９５％償却済み",I5*0.95-U5,IF(AND(AC5="５年均等償却",AG5<82),I5*0.95+(AK5*AI5)-U5,IF(AND(AC5="５年均等償却",AG5>=82),I5*0.95+(AK5*AH5)-U5,IF(AC5="均等償却最終年",I5*0.95+(ROUNDUP((I5*0.05-K5)/5,0)*4-U5),IF(AC5="償却終了","－",Q5*((E5-F5+1)-2)))))))) -> 0 | AN5: =IF(OR(AC5="初年",AD5="初年"),U5,IF(OR(AC5=E5-F5+1,AD5=E5-F5+1),U5+AK5+AM5,IF(OR(AC5="最終年",AD5="最終年"),U5+Q5*X5+BB5,IF(AND(F5>=82,G5>3),IF(OR(AC5="償却終了",AD5="償却終了"),U5+Q5*X5+Z5),IF(AC5="９５％償却済み",U5+Q5*X5+Z5,IF(AND(AC5="５年均等償却",AG5<82),ROUNDUP(U5+Q5*X5+Z5+((L5-K5)/5*AI5),0),IF(AND(AC5="５年均等償却",AG5>=82),ROUNDUP(U5+Q5*X5+Z5+((L5-K5)/5*AH5),0),I5*0.95+ROUNDUP((L5-K5)/5,0)*4+AJ5))))))) -> 0 | AO5: =IF(OR(AC5="初年",AD5="初年"),V5,IF(OR(AC5=E5-F5+1,AD5=E5-F5+1),V5+AL5+AM5,IF(OR(AC5="最終年",AD5="最終年"),V5+R5*X5+BC5,IF(AND(F5>=82,G5>3),IF(OR(AC5="償却終了",AD5="償却終了"),V5+R5*X5+Z5),IF(AC5="９５％償却済み",V5+R5*X5+Z5,IF(AND(AC5="５年均等償却",AG5<82),ROUNDUP(V5+R5*X5+Z5+((L5-K5)/5*AI5),0),IF(AND(AC5="５年均等償却",AG5>=82),ROUNDUP(V5+R5*X5+Z5+((L5-K5)/5*AH5),0),I5*0.95+ROUNDUP((L5-K5)/5,0)*4+AJ5))))))) -> 0 | AP5: =IF(OR('償却資産明細書(入力)'!D6="",'償却資産明細書(入力)'!E6="",'償却資産明細書(入力)'!F6="",'償却資産明細書(入力)'!G6=""),0,IF(ISTEXT(AB5),AB5,I5-AN5)) -> 0 | AQ5: =IF(OR('償却資産明細書(入力)'!D6="",'償却資産明細書(入力)'!E6="",'償却資産明細書(入力)'!F6="",'償却資産明細書(入力)'!G6=""),0,IF(ISTEXT(AB5),AB5,I5-AO5)) -> 0 | AS5: =IF(AND('償却資産明細書(入力)'!AA6="一括償却資産",E5>F5+X5+1),"償却済、記載不要") -> FALSE | AT5: =IF(AND('償却資産明細書(入力)'!E6>0,'償却資産明細書(入力)'!F6<1),"取得月を入力！") -> FALSE | AU5: =IF(AND('償却資産明細書(入力)'!E6>0,'償却資産明細書(入力)'!D6=""),"元号を入力") -> FALSE | AV5: =IF(AND('償却資産明細書(入力)'!G6>0,OR('償却資産明細書(入力)'!E6<1,'償却資産明細書(入力)'!F6<1)),"取得年を入力！") -> FALSE | AW5: =IF(AS5="償却済、記載不要",AS5,IF(AT5="取得月を入力！",AT5,IF(AU5="元号を入力",AU5,IF(AV5="取得年を入力！",AV5,J5)))) -> 0 | AZ5: =IF(OR(AC5="償却除外",AD5="償却除外"),"年分を確認！！") -> FALSE | BA5: =IF('償却資産明細書(入力)'!AA6="",IF(AND('償却資産明細書(入力)'!G6>1,'償却資産明細書(入力)'!J6=0),"耐用年数を入力！")) -> FALSE | BB5: =IF(AZ5="年分を確認！！",AZ5,IF(BA5="耐用年数を入力！",BA5,IF(ISERROR(AK5),0,ROUNDUP(AK5,0)))) -> 0 | BC5: =IF(AZ5="年分を確認！！",AZ5,IF(BA5="耐用年数を入力！",BA5,IF(ISERROR(AL5),0,ROUNDUP(AL5,0)))) -> 0 | BE5: =IF(OR(AND('償却資産明細書(入力)'!U6="",'償却資産明細書(入力)'!G6>1,'償却資産明細書(入力)'!Y6>0),AND('償却資産明細書(入力)'!U6="",'償却資産明細書(入力)'!S6>1)),"事業割合入力") -> FALSE | BF5: =IF('償却資産明細書(入力)'!U6>1,"事業割合エラー") -> FALSE | BG5: =IF(BE5="事業割合入力",BE5,IF(BF5="事業割合エラー",BF5,ROUNDDOWN('償却資産明細書(入力)'!U6*BB5,0))) -> 0 | BH5: =IF(BE5="事業割合入力",BE5,IF(BF5="事業割合エラー",BF5,ROUNDDOWN('償却資産明細書(入力)'!U6*BC5,0))) -> 0 | BI5: =IF('償却資産明細書(入力)'!Y6>0,ROUNDDOWN(AP4*'償却資産明細書(入力)'!U6,0),0) -> 0 | BJ5: =IF(ISTEXT(BG5),BG5,IF(BI5<=0,BG5,0)) -> 0 | BK5: =IF(H5>0,'償却資産明細書(入力)'!Z6*'償却資産明細書(入力)'!U6,0) -> 0 | BL5: =IF(BI5>0,0,AP5) -> 0
A6: 5 | B6: 0.2 | C6: 0.2 | E6: =計算シート!$C$2+62 -> 67 | F6: =IF('償却資産明細書(入力)'!D7="平成",'償却資産明細書(入力)'!E7+63,'償却資産明細書(入力)'!E7) -> 0 | G6: ='償却資産明細書(入力)'!F7 -> 0 | H6: ='償却資産明細書(入力)'!Y7 -> 0 | I6: ='償却資産明細書(入力)'!G7 -> 0 | J6: =IF(OR(AND('償却資産明細書(入力)'!D7="平成",'償却資産明細書(入力)'!E7>=19,'償却資産明細書(入力)'!F7>=4),AND('償却資産明細書(入力)'!D7="平成",'償却資産明細書(入力)'!E7>=20)),I6,IF('償却資産明細書(入力)'!AA7="一括償却資産",I6,ROUNDDOWN(I6*0.9,0))) -> 0 | K6: =IF('償却資産明細書(入力)'!AA7="一括償却資産",0,IF(I6>0,1,0)) -> 0 | L6: =IF('償却資産明細書(入力)'!AA7="一括償却資産",0,ROUNDDOWN(I6*0.05,0)) -> 0 | M6: ='償却資産明細書(入力)'!J7 -> 0 | N6: ='償却資産明細書(入力)'!K7 -> 0 | O6: 0 | Q6: =IF(AND(F6>=82,G6>3),IF('償却資産明細書(入力)'!AA7="一括償却資産",ROUNDDOWN(I6/3,0),ROUNDDOWN(I6*O6,0)),IF('償却資産明細書(入力)'!AA7="一括償却資産",ROUNDDOWN(J6/3,0),ROUNDDOWN(J6*O6,0))) -> 0 | R6: =IF(AND(F6>=82,G6>3),IF('償却資産明細書(入力)'!AA7="一括償却資産",ROUNDDOWN(I6/3,0),ROUNDDOWN(I6*P6,0)),IF('償却資産明細書(入力)'!AA7="一括償却資産",ROUNDDOWN(J6/3,0),ROUNDDOWN(J6*P6,0))) ->  | T6: 13 | U6: =IF(AND(F6>=82,G6>3),IF('償却資産明細書(入力)'!AA7="一括償却資産",ROUNDUP(I6/3,0),IF(AND(E6=F6,H6>0),ROUNDDOWN(Q6*AF6/12,0),ROUNDDOWN(Q6*T6/12,0))),IF('償却資産明細書(入力)'!AA7="一括償却資産",ROUNDDOWN(J6/3,0),IF(AND(E6=F6,H6>0),ROUNDDOWN(Q6*AF6/12,0),ROUNDDOWN(Q6*T6/12,0)))) -> 0 | V6: =IF(AND(F6>=82,G6>3),IF('償却資産明細書(入力)'!AA7="一括償却資産",ROUNDUP(I6/3,0),IF(AND(E6=F6,H6>0),ROUNDDOWN(R6*AF6/12,0),ROUNDDOWN(R6*T6/12,0))),IF('償却資産明細書(入力)'!AA7="一括償却資産",ROUNDDOWN(J6/3,0),IF(AND(E6=F6,H6>0),ROUNDDOWN(R6*AF6/12,0),ROUNDDOWN(R6*T6/12,0)))) ->  | W6: =IF('償却資産明細書(入力)'!D7="",0,IF(OR(AC6="最終年",AD6="最終年"),Q6*Y6/12,Z6)) -> 0 | X6: 0 | Y6: 0 | Z6: 0 | AA6: =IF('償却資産明細書(入力)'!AA7="一括償却資産",Z6,IF(Z6<W6,Z6,W6)) -> 0 | AB6: FALSE | AE6: － | AF6: =IF(OR(F6=0,G6=0),"",IF(OR('償却資産明細書(入力)'!AA7="一括償却資産",AC6="償却終了",AD6="償却終了"),"－",AE6)) ->  | AG6: =IF(OR('収支内訳書（裏）１'!I27="",'収支内訳書（裏）１'!K27="",'収支内訳書（裏）１'!M27="",'収支内訳書（裏）１'!O27=""),0,IF(F6>0,ROUNDDOWN((I6-L6-U6)/Q6,0)+1+F6,0)) -> 0 | AH6: － | AI6: － | AJ6: 0 | AK6: 0 | AL6: 0 | AM6: 0 | AN6: 0 | AP6: =IF(OR('償却資産明細書(入力)'!D7="",'償却資産明細書(入力)'!E7="",'償却資産明細書(入力)'!F7="",'償却資産明細書(入力)'!G7=""),0,IF(ISTEXT(AB6),AB6,I6-AN6)) -> 0 | AS6: =IF(AND('償却資産明細書(入力)'!AA7="一括償却資産",E6>F6+X6+1),"償却済、記載不要") -> FALSE | AT6: =IF(AND('償却資産明細書(入力)'!E7>0,'償却資産明細書(入力)'!F7<1),"取得月を入力！") -> FALSE | AU6: =IF(AND('償却資産明細書(入力)'!E7>0,'償却資産明細書(入力)'!D7=""),"元号を入力") -> FALSE | AV6: =IF(AND('償却資産明細書(入力)'!G7>0,OR('償却資産明細書(入力)'!E7<1,'償却資産明細書(入力)'!F7<1)),"取得年を入力！") -> FALSE | AW6: 0 | AZ6: FALSE | BA6: =IF('償却資産明細書(入力)'!AA7="",IF(AND('償却資産明細書(入力)'!G7>1,'償却資産明細書(入力)'!J7=0),"耐用年数を入力！")) -> FALSE | BB6: 0 | BC6: 0 | BE6: =IF(OR(AND('償却資産明細書(入力)'!U7="",'償却資産明細書(入力)'!G7>1,'償却資産明細書(入力)'!Y7>0),AND('償却資産明細書(入力)'!U7="",'償却資産明細書(入力)'!S7>1)),"事業割合入力") -> FALSE | BF6: =IF('償却資産明細書(入力)'!U7>1,"事業割合エラー") -> FALSE | BG6: =IF(BE6="事業割合入力",BE6,IF(BF6="事業割合エラー",BF6,ROUNDDOWN('償却資産明細書(入力)'!U7*BB6,0))) -> 0 | BH6: =IF(BE6="事業割合入力",BE6,IF(BF6="事業割合エラー",BF6,ROUNDDOWN('償却資産明細書(入力)'!U7*BC6,0))) -> 0 | BI6: =IF('償却資産明細書(入力)'!Y7>0,ROUNDDOWN(AP5*'償却資産明細書(入力)'!U7,0),0) -> 0 | BJ6: 0 | BK6: =IF(H6>0,'償却資産明細書(入力)'!Z7*'償却資産明細書(入力)'!U7,0) -> 0 | BL6: 0
A7: 6 | B7: 0.166 | C7: 0.167 | E7: =計算シート!$C$2+62 -> 67 | F7: =IF('償却資産明細書(入力)'!D8="平成",'償却資産明細書(入力)'!E8+63,'償却資産明細書(入力)'!E8) -> 0 | G7: ='償却資産明細書(入力)'!F8 -> 0 | H7: ='償却資産明細書(入力)'!Y8 -> 0 | I7: ='償却資産明細書(入力)'!G8 -> 0 | J7: =IF(OR(AND('償却資産明細書(入力)'!D8="平成",'償却資産明細書(入力)'!E8>=19,'償却資産明細書(入力)'!F8>=4),AND('償却資産明細書(入力)'!D8="平成",'償却資産明細書(入力)'!E8>=20)),I7,IF('償却資産明細書(入力)'!AA8="一括償却資産",I7,ROUNDDOWN(I7*0.9,0))) -> 0 | K7: =IF('償却資産明細書(入力)'!AA8="一括償却資産",0,IF(I7>0,1,0)) -> 0 | L7: =IF('償却資産明細書(入力)'!AA8="一括償却資産",0,ROUNDDOWN(I7*0.05,0)) -> 0 | M7: ='償却資産明細書(入力)'!J8 -> 0 | N7: ='償却資産明細書(入力)'!K8 -> 0 | O7: 0 | Q7: =IF(AND(F7>=82,G7>3),IF('償却資産明細書(入力)'!AA8="一括償却資産",ROUNDDOWN(I7/3,0),ROUNDDOWN(I7*O7,0)),IF('償却資産明細書(入力)'!AA8="一括償却資産",ROUNDDOWN(J7/3,0),ROUNDDOWN(J7*O7,0))) -> 0 | R7: =IF(AND(F7>=82,G7>3),IF('償却資産明細書(入力)'!AA8="一括償却資産",ROUNDDOWN(I7/3,0),ROUNDDOWN(I7*P7,0)),IF('償却資産明細書(入力)'!AA8="一括償却資産",ROUNDDOWN(J7/3,0),ROUNDDOWN(J7*P7,0))) ->  | T7: 13 | U7: =IF(AND(F7>=82,G7>3),IF('償却資産明細書(入力)'!AA8="一括償却資産",ROUNDUP(I7/3,0),IF(AND(E7=F7,H7>0),ROUNDDOWN(Q7*AF7/12,0),ROUNDDOWN(Q7*T7/12,0))),IF('償却資産明細書(入力)'!AA8="一括償却資産",ROUNDDOWN(J7/3,0),IF(AND(E7=F7,H7>0),ROUNDDOWN(Q7*AF7/12,0),ROUNDDOWN(Q7*T7/12,0)))) -> 0 | V7: =IF(AND(F7>=82,G7>3),IF('償却資産明細書(入力)'!AA8="一括償却資産",ROUNDUP(I7/3,0),IF(AND(E7=F7,H7>0),ROUNDDOWN(R7*AF7/12,0),ROUNDDOWN(R7*T7/12,0))),IF('償却資産明細書(入力)'!AA8="一括償却資産",ROUNDDOWN(J7/3,0),IF(AND(E7=F7,H7>0),ROUNDDOWN(R7*AF7/12,0),ROUNDDOWN(R7*T7/12,0)))) ->  | W7: =IF('償却資産明細書(入力)'!D8="",0,IF(OR(AC7="最終年",AD7="最終年"),Q7*Y7/12,Z7)) -> 0 | X7: 0 | Y7: 0 | Z7: 0 | AA7: =IF('償却資産明細書(入力)'!AA8="一括償却資産",Z7,IF(Z7<W7,Z7,W7)) -> 0 | AB7: FALSE | AE7: － | AF7: =IF(OR(F7=0,G7=0),"",IF(OR('償却資産明細書(入力)'!AA8="一括償却資産",AC7="償却終了",AD7="償却終了"),"－",AE7)) ->  | AG7: =IF(OR('収支内訳書（裏）１'!I28="",'収支内訳書（裏）１'!K28="",'収支内訳書（裏）１'!M28="",'収支内訳書（裏）１'!O28=""),0,IF(F7>0,ROUNDDOWN((I7-L7-U7)/Q7,0)+1+F7,0)) -> 0 | AH7: － | AI7: － | AJ7: 0 | AK7: 0 | AL7: 0 | AM7: 0 | AN7: 0 | AP7: =IF(OR('償却資産明細書(入力)'!D8="",'償却資産明細書(入力)'!E8="",'償却資産明細書(入力)'!F8="",'償却資産明細書(入力)'!G8=""),0,IF(ISTEXT(AB7),AB7,I7-AN7)) -> 0 | AS7: =IF(AND('償却資産明細書(入力)'!AA8="一括償却資産",E7>F7+X7+1),"償却済、記載不要") -> FALSE | AT7: =IF(AND('償却資産明細書(入力)'!E8>0,'償却資産明細書(入力)'!F8<1),"取得月を入力！") -> FALSE | AU7: =IF(AND('償却資産明細書(入力)'!E8>0,'償却資産明細書(入力)'!D8=""),"元号を入力") -> FALSE | AV7: =IF(AND('償却資産明細書(入力)'!G8>0,OR('償却資産明細書(入力)'!E8<1,'償却資産明細書(入力)'!F8<1)),"取得年を入力！") -> FALSE | AW7: 0 | AZ7: FALSE | BA7: =IF('償却資産明細書(入力)'!AA8="",IF(AND('償却資産明細書(入力)'!G8>1,'償却資産明細書(入力)'!J8=0),"耐用年数を入力！")) -> FALSE | BB7: 0 | BC7: 0 | BE7: =IF(OR(AND('償却資産明細書(入力)'!U8="",'償却資産明細書(入力)'!G8>1,'償却資産明細書(入力)'!Y8>0),AND('償却資産明細書(入力)'!U8="",'償却資産明細書(入力)'!S8>1)),"事業割合入力") -> FALSE | BF7: =IF('償却資産明細書(入力)'!U8>1,"事業割合エラー") -> FALSE | BG7: =IF(BE7="事業割合入力",BE7,IF(BF7="事業割合エラー",BF7,ROUNDDOWN('償却資産明細書(入力)'!U8*BB7,0))) -> 0 | BH7: =IF(BE7="事業割合入力",BE7,IF(BF7="事業割合エラー",BF7,ROUNDDOWN('償却資産明細書(入力)'!U8*BC7,0))) -> 0 | BI7: =IF('償却資産明細書(入力)'!Y8>0,ROUNDDOWN(AP6*'償却資産明細書(入力)'!U8,0),0) -> 0 | BJ7: 0 | BK7: =IF(H7>0,'償却資産明細書(入力)'!Z8*'償却資産明細書(入力)'!U8,0) -> 0 | BL7: 0
A8: 7 | B8: 0.142 | C8: 0.143 | E8: =計算シート!$C$2+62 -> 67 | F8: =IF('償却資産明細書(入力)'!D9="平成",'償却資産明細書(入力)'!E9+63,'償却資産明細書(入力)'!E9) -> 0 | G8: ='償却資産明細書(入力)'!F9 -> 0 | H8: ='償却資産明細書(入力)'!Y9 -> 0 | I8: ='償却資産明細書(入力)'!G9 -> 0 | J8: =IF(OR(AND('償却資産明細書(入力)'!D9="平成",'償却資産明細書(入力)'!E9>=19,'償却資産明細書(入力)'!F9>=4),AND('償却資産明細書(入力)'!D9="平成",'償却資産明細書(入力)'!E9>=20)),I8,IF('償却資産明細書(入力)'!AA9="一括償却資産",I8,ROUNDDOWN(I8*0.9,0))) -> 0 | K8: =IF('償却資産明細書(入力)'!AA9="一括償却資産",0,IF(I8>0,1,0)) -> 0 | L8: =IF('償却資産明細書(入力)'!AA9="一括償却資産",0,ROUNDDOWN(I8*0.05,0)) -> 0 | M8: ='償却資産明細書(入力)'!J9 -> 0 | N8: ='償却資産明細書(入力)'!K9 -> 0 | O8: 0 | Q8: =IF(AND(F8>=82,G8>3),IF('償却資産明細書(入力)'!AA9="一括償却資産",ROUNDDOWN(I8/3,0),ROUNDDOWN(I8*O8,0)),IF('償却資産明細書(入力)'!AA9="一括償却資産",ROUNDDOWN(J8/3,0),ROUNDDOWN(J8*O8,0))) -> 0 | R8: =IF(AND(F8>=82,G8>3),IF('償却資産明細書(入力)'!AA9="一括償却資産",ROUNDDOWN(I8/3,0),ROUNDDOWN(I8*P8,0)),IF('償却資産明細書(入力)'!AA9="一括償却資産",ROUNDDOWN(J8/3,0),ROUNDDOWN(J8*P8,0))) ->  | T8: 13 | U8: =IF(AND(F8>=82,G8>3),IF('償却資産明細書(入力)'!AA9="一括償却資産",ROUNDUP(I8/3,0),IF(AND(E8=F8,H8>0),ROUNDDOWN(Q8*AF8/12,0),ROUNDDOWN(Q8*T8/12,0))),IF('償却資産明細書(入力)'!AA9="一括償却資産",ROUNDDOWN(J8/3,0),IF(AND(E8=F8,H8>0),ROUNDDOWN(Q8*AF8/12,0),ROUNDDOWN(Q8*T8/12,0)))) -> 0 | V8: =IF(AND(F8>=82,G8>3),IF('償却資産明細書(入力)'!AA9="一括償却資産",ROUNDUP(I8/3,0),IF(AND(E8=F8,H8>0),ROUNDDOWN(R8*AF8/12,0),ROUNDDOWN(R8*T8/12,0))),IF('償却資産明細書(入力)'!AA9="一括償却資産",ROUNDDOWN(J8/3,0),IF(AND(E8=F8,H8>0),ROUNDDOWN(R8*AF8/12,0),ROUNDDOWN(R8*T8/12,0)))) ->  | W8: =IF('償却資産明細書(入力)'!D9="",0,IF(OR(AC8="最終年",AD8="最終年"),Q8*Y8/12,Z8)) -> 0 | X8: 0 | Y8: 0 | Z8: 0 | AA8: =IF('償却資産明細書(入力)'!AA9="一括償却資産",Z8,IF(Z8<W8,Z8,W8)) -> 0 | AB8: FALSE | AE8: － | AF8: =IF(OR(F8=0,G8=0),"",IF(OR('償却資産明細書(入力)'!AA9="一括償却資産",AC8="償却終了",AD8="償却終了"),"－",AE8)) ->  | AG8: =IF(OR('収支内訳書（裏）１'!I29="",'収支内訳書（裏）１'!K29="",'収支内訳書（裏）１'!M29="",'収支内訳書（裏）１'!O29=""),0,IF(F8>0,ROUNDDOWN((I8-L8-U8)/Q8,0)+1+F8,0)) -> 0 | AH8: － | AI8: － | AJ8: 0 | AK8: 0 | AL8: 0 | AM8: 0 | AN8: 0 | AP8: =IF(OR('償却資産明細書(入力)'!D9="",'償却資産明細書(入力)'!E9="",'償却資産明細書(入力)'!F9="",'償却資産明細書(入力)'!G9=""),0,IF(ISTEXT(AB8),AB8,I8-AN8)) -> 0 | AS8: =IF(AND('償却資産明細書(入力)'!AA9="一括償却資産",E8>F8+X8+1),"償却済、記載不要") -> FALSE | AT8: =IF(AND('償却資産明細書(入力)'!E9>0,'償却資産明細書(入力)'!F9<1),"取得月を入力！") -> FALSE | AU8: =IF(AND('償却資産明細書(入力)'!E9>0,'償却資産明細書(入力)'!D9=""),"元号を入力") -> FALSE | AV8: =IF(AND('償却資産明細書(入力)'!G9>0,OR('償却資産明細書(入力)'!E9<1,'償却資産明細書(入力)'!F9<1)),"取得年を入力！") -> FALSE | AW8: 0 | AZ8: FALSE | BA8: =IF('償却資産明細書(入力)'!AA9="",IF(AND('償却資産明細書(入力)'!G9>1,'償却資産明細書(入力)'!J9=0),"耐用年数を入力！")) -> FALSE | BB8: 0 | BC8: 0 | BE8: =IF(OR(AND('償却資産明細書(入力)'!U9="",'償却資産明細書(入力)'!G9>1,'償却資産明細書(入力)'!Y9>0),AND('償却資産明細書(入力)'!U9="",'償却資産明細書(入力)'!S9>1)),"事業割合入力") -> FALSE | BF8: =IF('償却資産明細書(入力)'!U9>1,"事業割合エラー") -> FALSE | BG8: =IF(BE8="事業割合入力",BE8,IF(BF8="事業割合エラー",BF8,ROUNDDOWN('償却資産明細書(入力)'!U9*BB8,0))) -> 0 | BH8: =IF(BE8="事業割合入力",BE8,IF(BF8="事業割合エラー",BF8,ROUNDDOWN('償却資産明細書(入力)'!U9*BC8,0))) -> 0 | BI8: =IF('償却資産明細書(入力)'!Y9>0,ROUNDDOWN(AP7*'償却資産明細書(入力)'!U9,0),0) -> 0 | BJ8: 0 | BK8: =IF(H8>0,'償却資産明細書(入力)'!Z9*'償却資産明細書(入力)'!U9,0) -> 0 | BL8: 0
A9: 8 | B9: 0.125 | C9: 0.125 | E9: =計算シート!$C$2+62 -> 67 | F9: =IF('償却資産明細書(入力)'!D10="平成",'償却資産明細書(入力)'!E10+63,'償却資産明細書(入力)'!E10) -> 0 | G9: ='償却資産明細書(入力)'!F10 -> 0 | H9: ='償却資産明細書(入力)'!Y10 -> 0 | I9: ='償却資産明細書(入力)'!G10 -> 0 | J9: =IF(OR(AND('償却資産明細書(入力)'!D10="平成",'償却資産明細書(入力)'!E10>=19,'償却資産明細書(入力)'!F10>=4),AND('償却資産明細書(入力)'!D10="平成",'償却資産明細書(入力)'!E10>=20)),I9,IF('償却資産明細書(入力)'!AA10="一括償却資産",I9,ROUNDDOWN(I9*0.9,0))) -> 0 | K9: =IF('償却資産明細書(入力)'!AA10="一括償却資産",0,IF(I9>0,1,0)) -> 0 | L9: =IF('償却資産明細書(入力)'!AA10="一括償却資産",0,ROUNDDOWN(I9*0.05,0)) -> 0 | M9: ='償却資産明細書(入力)'!J10 -> 0 | N9: ='償却資産明細書(入力)'!K10 -> 0 | O9: 0 | Q9: =IF(AND(F9>=82,G9>3),IF('償却資産明細書(入力)'!AA10="一括償却資産",ROUNDDOWN(I9/3,0),ROUNDDOWN(I9*O9,0)),IF('償却資産明細書(入力)'!AA10="一括償却資産",ROUNDDOWN(J9/3,0),ROUNDDOWN(J9*O9,0))) -> 0 | R9: =IF(AND(F9>=82,G9>3),IF('償却資産明細書(入力)'!AA10="一括償却資産",ROUNDDOWN(I9/3,0),ROUNDDOWN(I9*P9,0)),IF('償却資産明細書(入力)'!AA10="一括償却資産",ROUNDDOWN(J9/3,0),ROUNDDOWN(J9*P9,0))) ->  | T9: 13 | U9: =IF(AND(F9>=82,G9>3),IF('償却資産明細書(入力)'!AA10="一括償却資産",ROUNDUP(I9/3,0),IF(AND(E9=F9,H9>0),ROUNDDOWN(Q9*AF9/12,0),ROUNDDOWN(Q9*T9/12,0))),IF('償却資産明細書(入力)'!AA10="一括償却資産",ROUNDDOWN(J9/3,0),IF(AND(E9=F9,H9>0),ROUNDDOWN(Q9*AF9/12,0),ROUNDDOWN(Q9*T9/12,0)))) -> 0 | V9: =IF(AND(F9>=82,G9>3),IF('償却資産明細書(入力)'!AA10="一括償却資産",ROUNDUP(I9/3,0),IF(AND(E9=F9,H9>0),ROUNDDOWN(R9*AF9/12,0),ROUNDDOWN(R9*T9/12,0))),IF('償却資産明細書(入力)'!AA10="一括償却資産",ROUNDDOWN(J9/3,0),IF(AND(E9=F9,H9>0),ROUNDDOWN(R9*AF9/12,0),ROUNDDOWN(R9*T9/12,0)))) ->  | W9: =IF('償却資産明細書(入力)'!D10="",0,IF(OR(AC9="最終年",AD9="最終年"),Q9*Y9/12,Z9)) -> 0 | X9: 0 | Y9: 0 | Z9: 0 | AA9: =IF('償却資産明細書(入力)'!AA10="一括償却資産",Z9,IF(Z9<W9,Z9,W9)) -> 0 | AB9: FALSE | AE9: － | AF9: =IF(OR(F9=0,G9=0),"",IF(OR('償却資産明細書(入力)'!AA10="一括償却資産",AC9="償却終了",AD9="償却終了"),"－",AE9)) ->  | AG9: =IF(OR('収支内訳書（裏）１'!I30="",'収支内訳書（裏）１'!K30="",'収支内訳書（裏）１'!M30="",'収支内訳書（裏）１'!O30=""),0,IF(F9>0,ROUNDDOWN((I9-L9-U9)/Q9,0)+1+F9,0)) -> 0 | AH9: － | AI9: － | AJ9: 0 | AK9: 0 | AL9: 0 | AM9: 0 | AN9: 0 | AP9: =IF(OR('償却資産明細書(入力)'!D10="",'償却資産明細書(入力)'!E10="",'償却資産明細書(入力)'!F10="",'償却資産明細書(入力)'!G10=""),0,IF(ISTEXT(AB9),AB9,I9-AN9)) -> 0 | AS9: =IF(AND('償却資産明細書(入力)'!AA10="一括償却資産",E9>F9+X9+1),"償却済、記載不要") -> FALSE | AT9: =IF(AND('償却資産明細書(入力)'!E10>0,'償却資産明細書(入力)'!F10<1),"取得月を入力！") -> FALSE | AU9: =IF(AND('償却資産明細書(入力)'!E10>0,'償却資産明細書(入力)'!D10=""),"元号を入力") -> FALSE | AV9: =IF(AND('償却資産明細書(入力)'!G10>0,OR('償却資産明細書(入力)'!E10<1,'償却資産明細書(入力)'!F10<1)),"取得年を入力！") -> FALSE | AW9: 0 | AZ9: FALSE | BA9: =IF('償却資産明細書(入力)'!AA10="",IF(AND('償却資産明細書(入力)'!G10>1,'償却資産明細書(入力)'!J10=0),"耐用年数を入力！")) -> FALSE | BB9: 0 | BC9: 0 | BE9: =IF(OR(AND('償却資産明細書(入力)'!U10="",'償却資産明細書(入力)'!G10>1,'償却資産明細書(入力)'!Y10>0),AND('償却資産明細書(入力)'!U10="",'償却資産明細書(入力)'!S10>1)),"事業割合入力") -> FALSE | BF9: =IF('償却資産明細書(入力)'!U10>1,"事業割合エラー") -> FALSE | BG9: =IF(BE9="事業割合入力",BE9,IF(BF9="事業割合エラー",BF9,ROUNDDOWN('償却資産明細書(入力)'!U10*BB9,0))) -> 0 | BH9: =IF(BE9="事業割合入力",BE9,IF(BF9="事業割合エラー",BF9,ROUNDDOWN('償却資産明細書(入力)'!U10*BC9,0))) -> 0 | BI9: =IF('償却資産明細書(入力)'!Y10>0,ROUNDDOWN(AP8*'償却資産明細書(入力)'!U10,0),0) -> 0 | BJ9: 0 | BK9: =IF(H9>0,'償却資産明細書(入力)'!Z10*'償却資産明細書(入力)'!U10,0) -> 0 | BL9: 0
A10: 9 | B10: 0.111 | C10: 0.112 | E10: =計算シート!$C$2+62 -> 67 | F10: =IF('償却資産明細書(入力)'!D11="平成",'償却資産明細書(入力)'!E11+63,'償却資産明細書(入力)'!E11) -> 0 | G10: ='償却資産明細書(入力)'!F11 -> 0 | H10: ='償却資産明細書(入力)'!Y11 -> 0 | I10: ='償却資産明細書(入力)'!G11 -> 0 | J10: =IF(OR(AND('償却資産明細書(入力)'!D11="平成",'償却資産明細書(入力)'!E11>=19,'償却資産明細書(入力)'!F11>=4),AND('償却資産明細書(入力)'!D11="平成",'償却資産明細書(入力)'!E11>=20)),I10,IF('償却資産明細書(入力)'!AA11="一括償却資産",I10,ROUNDDOWN(I10*0.9,0))) -> 0 | K10: =IF('償却資産明細書(入力)'!AA11="一括償却資産",0,IF(I10>0,1,0)) -> 0 | L10: =IF('償却資産明細書(入力)'!AA11="一括償却資産",0,ROUNDDOWN(I10*0.05,0)) -> 0 | M10: ='償却資産明細書(入力)'!J11 -> 0 | N10: ='償却資産明細書(入力)'!K11 -> 0 | O10: 0 | Q10: =IF(AND(F10>=82,G10>3),IF('償却資産明細書(入力)'!AA11="一括償却資産",ROUNDDOWN(I10/3,0),ROUNDDOWN(I10*O10,0)),IF('償却資産明細書(入力)'!AA11="一括償却資産",ROUNDDOWN(J10/3,0),ROUNDDOWN(J10*O10,0))) -> 0 | R10: =IF(AND(F10>=82,G10>3),IF('償却資産明細書(入力)'!AA11="一括償却資産",ROUNDDOWN(I10/3,0),ROUNDDOWN(I10*P10,0)),IF('償却資産明細書(入力)'!AA11="一括償却資産",ROUNDDOWN(J10/3,0),ROUNDDOWN(J10*P10,0))) ->  | T10: 13 | U10: =IF(AND(F10>=82,G10>3),IF('償却資産明細書(入力)'!AA11="一括償却資産",ROUNDUP(I10/3,0),IF(AND(E10=F10,H10>0),ROUNDDOWN(Q10*AF10/12,0),ROUNDDOWN(Q10*T10/12,0))),IF('償却資産明細書(入力)'!AA11="一括償却資産",ROUNDDOWN(J10/3,0),IF(AND(E10=F10,H10>0),ROUNDDOWN(Q10*AF10/12,0),ROUNDDOWN(Q10*T10/12,0)))) -> 0 | V10: =IF(AND(F10>=82,G10>3),IF('償却資産明細書(入力)'!AA11="一括償却資産",ROUNDUP(I10/3,0),IF(AND(E10=F10,H10>0),ROUNDDOWN(R10*AF10/12,0),ROUNDDOWN(R10*T10/12,0))),IF('償却資産明細書(入力)'!AA11="一括償却資産",ROUNDDOWN(J10/3,0),IF(AND(E10=F10,H10>0),ROUNDDOWN(R10*AF10/12,0),ROUNDDOWN(R10*T10/12,0)))) ->  | W10: =IF('償却資産明細書(入力)'!D11="",0,IF(OR(AC10="最終年",AD10="最終年"),Q10*Y10/12,Z10)) -> 0 | X10: 0 | Y10: 0 | Z10: 0 | AA10: =IF('償却資産明細書(入力)'!AA11="一括償却資産",Z10,IF(Z10<W10,Z10,W10)) -> 0 | AB10: FALSE | AE10: － | AF10: =IF(OR(F10=0,G10=0),"",IF(OR('償却資産明細書(入力)'!AA11="一括償却資産",AC10="償却終了",AD10="償却終了"),"－",AE10)) ->  | AG10: =IF(OR('収支内訳書（裏）１'!I31="",'収支内訳書（裏）１'!K31="",'収支内訳書（裏）１'!M31="",'収支内訳書（裏）１'!O31=""),0,IF(F10>0,ROUNDDOWN((I10-L10-U10)/Q10,0)+1+F10,0)) -> 0 | AH10: － | AI10: － | AJ10: 0 | AK10: 0 | AL10: 0 | AM10: 0 | AN10: 0 | AP10: =IF(OR('償却資産明細書(入力)'!D11="",'償却資産明細書(入力)'!E11="",'償却資産明細書(入力)'!F11="",'償却資産明細書(入力)'!G11=""),0,IF(ISTEXT(AB10),AB10,I10-AN10)) -> 0 | AS10: =IF(AND('償却資産明細書(入力)'!AA11="一括償却資産",E10>F10+X10+1),"償却済、記載不要") -> FALSE | AT10: =IF(AND('償却資産明細書(入力)'!E11>0,'償却資産明細書(入力)'!F11<1),"取得月を入力！") -> FALSE | AU10: =IF(AND('償却資産明細書(入力)'!E11>0,'償却資産明細書(入力)'!D11=""),"元号を入力") -> FALSE | AV10: =IF(AND('償却資産明細書(入力)'!G11>0,OR('償却資産明細書(入力)'!E11<1,'償却資産明細書(入力)'!F11<1)),"取得年を入力！") -> FALSE | AW10: 0 | AZ10: FALSE | BA10: =IF('償却資産明細書(入力)'!AA11="",IF(AND('償却資産明細書(入力)'!G11>1,'償却資産明細書(入力)'!J11=0),"耐用年数を入力！")) -> FALSE | BB10: 0 | BC10: 0 | BE10: =IF(OR(AND('償却資産明細書(入力)'!U11="",'償却資産明細書(入力)'!G11>1,'償却資産明細書(入力)'!Y11>0),AND('償却資産明細書(入力)'!U11="",'償却資産明細書(入力)'!S11>1)),"事業割合入力") -> FALSE | BF10: =IF('償却資産明細書(入力)'!U11>1,"事業割合エラー") -> FALSE | BG10: =IF(BE10="事業割合入力",BE10,IF(BF10="事業割合エラー",BF10,ROUNDDOWN('償却資産明細書(入力)'!U11*BB10,0))) -> 0 | BH10: =IF(BE10="事業割合入力",BE10,IF(BF10="事業割合エラー",BF10,ROUNDDOWN('償却資産明細書(入力)'!U11*BC10,0))) -> 0 | BI10: =IF('償却資産明細書(入力)'!Y11>0,ROUNDDOWN(AP9*'償却資産明細書(入力)'!U11,0),0) -> 0 | BJ10: 0 | BK10: =IF(H10>0,'償却資産明細書(入力)'!Z11*'償却資産明細書(入力)'!U11,0) -> 0 | BL10: 0
A11: 10 | B11: 0.1 | C11: 0.1 | E11: =計算シート!$C$2+62 -> 67 | F11: =IF('償却資産明細書(入力)'!D12="平成",'償却資産明細書(入力)'!E12+63,'償却資産明細書(入力)'!E12) -> 0 | G11: ='償却資産明細書(入力)'!F12 -> 0 | H11: ='償却資産明細書(入力)'!Y12 -> 0 | I11: ='償却資産明細書(入力)'!G12 -> 0 | J11: =IF(OR(AND('償却資産明細書(入力)'!D12="平成",'償却資産明細書(入力)'!E12>=19,'償却資産明細書(入力)'!F12>=4),AND('償却資産明細書(入力)'!D12="平成",'償却資産明細書(入力)'!E12>=20)),I11,IF('償却資産明細書(入力)'!AA12="一括償却資産",I11,ROUNDDOWN(I11*0.9,0))) -> 0 | K11: =IF('償却資産明細書(入力)'!AA12="一括償却資産",0,IF(I11>0,1,0)) -> 0 | L11: =IF('償却資産明細書(入力)'!AA12="一括償却資産",0,ROUNDDOWN(I11*0.05,0)) -> 0 | M11: ='償却資産明細書(入力)'!J12 -> 0 | N11: ='償却資産明細書(入力)'!K12 -> 0 | O11: 0 | Q11: =IF(AND(F11>=82,G11>3),IF('償却資産明細書(入力)'!AA12="一括償却資産",ROUNDDOWN(I11/3,0),ROUNDDOWN(I11*O11,0)),IF('償却資産明細書(入力)'!AA12="一括償却資産",ROUNDDOWN(J11/3,0),ROUNDDOWN(J11*O11,0))) -> 0 | R11: =IF(AND(F11>=82,G11>3),IF('償却資産明細書(入力)'!AA12="一括償却資産",ROUNDDOWN(I11/3,0),ROUNDDOWN(I11*P11,0)),IF('償却資産明細書(入力)'!AA12="一括償却資産",ROUNDDOWN(J11/3,0),ROUNDDOWN(J11*P11,0))) ->  | T11: 13 | U11: =IF(AND(F11>=82,G11>3),IF('償却資産明細書(入力)'!AA12="一括償却資産",ROUNDUP(I11/3,0),IF(AND(E11=F11,H11>0),ROUNDDOWN(Q11*AF11/12,0),ROUNDDOWN(Q11*T11/12,0))),IF('償却資産明細書(入力)'!AA12="一括償却資産",ROUNDDOWN(J11/3,0),IF(AND(E11=F11,H11>0),ROUNDDOWN(Q11*AF11/12,0),ROUNDDOWN(Q11*T11/12,0)))) -> 0 | V11: =IF(AND(F11>=82,G11>3),IF('償却資産明細書(入力)'!AA12="一括償却資産",ROUNDUP(I11/3,0),IF(AND(E11=F11,H11>0),ROUNDDOWN(R11*AF11/12,0),ROUNDDOWN(R11*T11/12,0))),IF('償却資産明細書(入力)'!AA12="一括償却資産",ROUNDDOWN(J11/3,0),IF(AND(E11=F11,H11>0),ROUNDDOWN(R11*AF11/12,0),ROUNDDOWN(R11*T11/12,0)))) ->  | W11: =IF('償却資産明細書(入力)'!D12="",0,IF(OR(AC11="最終年",AD11="最終年"),Q11*Y11/12,Z11)) -> 0 | X11: 0 | Y11: 0 | Z11: 0 | AA11: =IF('償却資産明細書(入力)'!AA12="一括償却資産",Z11,IF(Z11<W11,Z11,W11)) -> 0 | AB11: FALSE | AE11: － | AF11: =IF(OR(F11=0,G11=0),"",IF(OR('償却資産明細書(入力)'!AA12="一括償却資産",AC11="償却終了",AD11="償却終了"),"－",AE11)) ->  | AG11: =IF(OR('収支内訳書（裏）１'!I32="",'収支内訳書（裏）１'!K32="",'収支内訳書（裏）１'!M32="",'収支内訳書（裏）１'!O32=""),0,IF(F11>0,ROUNDDOWN((I11-L11-U11)/Q11,0)+1+F11,0)) -> 0 | AH11: － | AI11: － | AJ11: 0 | AK11: 0 | AL11: 0 | AM11: 0 | AN11: 0 | AP11: =IF(OR('償却資産明細書(入力)'!D12="",'償却資産明細書(入力)'!E12="",'償却資産明細書(入力)'!F12="",'償却資産明細書(入力)'!G12=""),0,IF(ISTEXT(AB11),AB11,I11-AN11)) -> 0 | AS11: =IF(AND('償却資産明細書(入力)'!AA12="一括償却資産",E11>F11+X11+1),"償却済、記載不要") -> FALSE | AT11: =IF(AND('償却資産明細書(入力)'!E12>0,'償却資産明細書(入力)'!F12<1),"取得月を入力！") -> FALSE | AU11: =IF(AND('償却資産明細書(入力)'!E12>0,'償却資産明細書(入力)'!D12=""),"元号を入力") -> FALSE | AV11: =IF(AND('償却資産明細書(入力)'!G12>0,OR('償却資産明細書(入力)'!E12<1,'償却資産明細書(入力)'!F12<1)),"取得年を入力！") -> FALSE | AW11: 0 | AZ11: FALSE | BA11: =IF('償却資産明細書(入力)'!AA12="",IF(AND('償却資産明細書(入力)'!G12>1,'償却資産明細書(入力)'!J12=0),"耐用年数を入力！")) -> FALSE | BB11: 0 | BC11: 0 | BE11: =IF(OR(AND('償却資産明細書(入力)'!U12="",'償却資産明細書(入力)'!G12>1,'償却資産明細書(入力)'!Y12>0),AND('償却資産明細書(入力)'!U12="",'償却資産明細書(入力)'!S12>1)),"事業割合入力") -> FALSE | BF11: =IF('償却資産明細書(入力)'!U12>1,"事業割合エラー") -> FALSE | BG11: =IF(BE11="事業割合入力",BE11,IF(BF11="事業割合エラー",BF11,ROUNDDOWN('償却資産明細書(入力)'!U12*BB11,0))) -> 0 | BH11: =IF(BE11="事業割合入力",BE11,IF(BF11="事業割合エラー",BF11,ROUNDDOWN('償却資産明細書(入力)'!U12*BC11,0))) -> 0 | BI11: =IF('償却資産明細書(入力)'!Y12>0,ROUNDDOWN(AP10*'償却資産明細書(入力)'!U12,0),0) -> 0 | BJ11: 0 | BK11: =IF(H11>0,'償却資産明細書(入力)'!Z12*'償却資産明細書(入力)'!U12,0) -> 0 | BL11: 0
A12: 11 | B12: 0.09 | C12: 0.091 | E12: =計算シート!$C$2+62 -> 67 | F12: =IF('償却資産明細書(入力)'!D13="平成",'償却資産明細書(入力)'!E13+63,'償却資産明細書(入力)'!E13) -> 0 | G12: ='償却資産明細書(入力)'!F13 -> 0 | H12: ='償却資産明細書(入力)'!Y13 -> 0 | I12: ='償却資産明細書(入力)'!G13 -> 0 | J12: =IF(OR(AND('償却資産明細書(入力)'!D13="平成",'償却資産明細書(入力)'!E13>=19,'償却資産明細書(入力)'!F13>=4),AND('償却資産明細書(入力)'!D13="平成",'償却資産明細書(入力)'!E13>=20)),I12,IF('償却資産明細書(入力)'!AA13="一括償却資産",I12,ROUNDDOWN(I12*0.9,0))) -> 0 | K12: =IF('償却資産明細書(入力)'!AA13="一括償却資産",0,IF(I12>0,1,0)) -> 0 | L12: =IF('償却資産明細書(入力)'!AA13="一括償却資産",0,ROUNDDOWN(I12*0.05,0)) -> 0 | M12: ='償却資産明細書(入力)'!J13 -> 0 | N12: ='償却資産明細書(入力)'!K13 -> 0 | O12: 0 | Q12: =IF(AND(F12>=82,G12>3),IF('償却資産明細書(入力)'!AA13="一括償却資産",ROUNDDOWN(I12/3,0),ROUNDDOWN(I12*O12,0)),IF('償却資産明細書(入力)'!AA13="一括償却資産",ROUNDDOWN(J12/3,0),ROUNDDOWN(J12*O12,0))) -> 0 | R12: =IF(AND(F12>=82,G12>3),IF('償却資産明細書(入力)'!AA13="一括償却資産",ROUNDDOWN(I12/3,0),ROUNDDOWN(I12*P12,0)),IF('償却資産明細書(入力)'!AA13="一括償却資産",ROUNDDOWN(J12/3,0),ROUNDDOWN(J12*P12,0))) ->  | T12: 13 | U12: =IF(AND(F12>=82,G12>3),IF('償却資産明細書(入力)'!AA13="一括償却資産",ROUNDUP(I12/3,0),IF(AND(E12=F12,H12>0),ROUNDDOWN(Q12*AF12/12,0),ROUNDDOWN(Q12*T12/12,0))),IF('償却資産明細書(入力)'!AA13="一括償却資産",ROUNDDOWN(J12/3,0),IF(AND(E12=F12,H12>0),ROUNDDOWN(Q12*AF12/12,0),ROUNDDOWN(Q12*T12/12,0)))) -> 0 | V12: =IF(AND(F12>=82,G12>3),IF('償却資産明細書(入力)'!AA13="一括償却資産",ROUNDUP(I12/3,0),IF(AND(E12=F12,H12>0),ROUNDDOWN(R12*AF12/12,0),ROUNDDOWN(R12*T12/12,0))),IF('償却資産明細書(入力)'!AA13="一括償却資産",ROUNDDOWN(J12/3,0),IF(AND(E12=F12,H12>0),ROUNDDOWN(R12*AF12/12,0),ROUNDDOWN(R12*T12/12,0)))) ->  | W12: =IF('償却資産明細書(入力)'!D13="",0,IF(OR(AC12="最終年",AD12="最終年"),Q12*Y12/12,Z12)) -> 0 | X12: 0 | Y12: 0 | Z12: 0 | AA12: =IF('償却資産明細書(入力)'!AA13="一括償却資産",Z12,IF(Z12<W12,Z12,W12)) -> 0 | AB12: FALSE | AE12: － | AF12: =IF(OR(F12=0,G12=0),"",IF(OR('償却資産明細書(入力)'!AA13="一括償却資産",AC12="償却終了",AD12="償却終了"),"－",AE12)) ->  | AG12: =IF(OR('収支内訳書（裏）１'!I33="",'収支内訳書（裏）１'!K33="",'収支内訳書（裏）１'!M33="",'収支内訳書（裏）１'!O33=""),0,IF(F12>0,ROUNDDOWN((I12-L12-U12)/Q12,0)+1+F12,0)) -> 0 | AH12: － | AI12: － | AJ12: 0 | AK12: 0 | AL12: 0 | AM12: 0 | AN12: 0 | AP12: =IF(OR('償却資産明細書(入力)'!D13="",'償却資産明細書(入力)'!E13="",'償却資産明細書(入力)'!F13="",'償却資産明細書(入力)'!G13=""),0,IF(ISTEXT(AB12),AB12,I12-AN12)) -> 0 | AS12: =IF(AND('償却資産明細書(入力)'!AA13="一括償却資産",E12>F12+X12+1),"償却済、記載不要") -> FALSE | AT12: =IF(AND('償却資産明細書(入力)'!E13>0,'償却資産明細書(入力)'!F13<1),"取得月を入力！") -> FALSE | AU12: =IF(AND('償却資産明細書(入力)'!E13>0,'償却資産明細書(入力)'!D13=""),"元号を入力") -> FALSE | AV12: =IF(AND('償却資産明細書(入力)'!G13>0,OR('償却資産明細書(入力)'!E13<1,'償却資産明細書(入力)'!F13<1)),"取得年を入力！") -> FALSE | AW12: 0 | AZ12: FALSE | BA12: =IF('償却資産明細書(入力)'!AA13="",IF(AND('償却資産明細書(入力)'!G13>1,'償却資産明細書(入力)'!J13=0),"耐用年数を入力！")) -> FALSE | BB12: 0 | BC12: 0 | BE12: =IF(OR(AND('償却資産明細書(入力)'!U13="",'償却資産明細書(入力)'!G13>1,'償却資産明細書(入力)'!Y13>0),AND('償却資産明細書(入力)'!U13="",'償却資産明細書(入力)'!S13>1)),"事業割合入力") -> FALSE | BF12: =IF('償却資産明細書(入力)'!U13>1,"事業割合エラー") -> FALSE | BG12: =IF(BE12="事業割合入力",BE12,IF(BF12="事業割合エラー",BF12,ROUNDDOWN('償却資産明細書(入力)'!U13*BB12,0))) -> 0 | BH12: =IF(BE12="事業割合入力",BE12,IF(BF12="事業割合エラー",BF12,ROUNDDOWN('償却資産明細書(入力)'!U13*BC12,0))) -> 0 | BI12: =IF('償却資産明細書(入力)'!Y13>0,ROUNDDOWN(AP11*'償却資産明細書(入力)'!U13,0),0) -> 0 | BJ12: 0 | BK12: =IF(H12>0,'償却資産明細書(入力)'!Z13*'償却資産明細書(入力)'!U13,0) -> 0 | BL12: 0
A13: 12 | B13: 0.083 | C13: 0.084 | E13: =計算シート!$C$2+62 -> 67 | F13: =IF('償却資産明細書(入力)'!D14="平成",'償却資産明細書(入力)'!E14+63,'償却資産明細書(入力)'!E14) -> 0 | G13: ='償却資産明細書(入力)'!F14 -> 0 | H13: ='償却資産明細書(入力)'!Y14 -> 0 | I13: ='償却資産明細書(入力)'!G14 -> 0 | J13: =IF(OR(AND('償却資産明細書(入力)'!D14="平成",'償却資産明細書(入力)'!E14>=19,'償却資産明細書(入力)'!F14>=4),AND('償却資産明細書(入力)'!D14="平成",'償却資産明細書(入力)'!E14>=20)),I13,IF('償却資産明細書(入力)'!AA14="一括償却資産",I13,ROUNDDOWN(I13*0.9,0))) -> 0 | K13: =IF('償却資産明細書(入力)'!AA14="一括償却資産",0,IF(I13>0,1,0)) -> 0 | L13: =IF('償却資産明細書(入力)'!AA14="一括償却資産",0,ROUNDDOWN(I13*0.05,0)) -> 0 | M13: ='償却資産明細書(入力)'!J14 -> 0 | N13: ='償却資産明細書(入力)'!K14 -> 0 | O13: 0 | Q13: =IF(AND(F13>=82,G13>3),IF('償却資産明細書(入力)'!AA14="一括償却資産",ROUNDDOWN(I13/3,0),ROUNDDOWN(I13*O13,0)),IF('償却資産明細書(入力)'!AA14="一括償却資産",ROUNDDOWN(J13/3,0),ROUNDDOWN(J13*O13,0))) -> 0 | R13: =IF(AND(F13>=82,G13>3),IF('償却資産明細書(入力)'!AA14="一括償却資産",ROUNDDOWN(I13/3,0),ROUNDDOWN(I13*P13,0)),IF('償却資産明細書(入力)'!AA14="一括償却資産",ROUNDDOWN(J13/3,0),ROUNDDOWN(J13*P13,0))) ->  | T13: 13 | U13: =IF(AND(F13>=82,G13>3),IF('償却資産明細書(入力)'!AA14="一括償却資産",ROUNDUP(I13/3,0),IF(AND(E13=F13,H13>0),ROUNDDOWN(Q13*AF13/12,0),ROUNDDOWN(Q13*T13/12,0))),IF('償却資産明細書(入力)'!AA14="一括償却資産",ROUNDDOWN(J13/3,0),IF(AND(E13=F13,H13>0),ROUNDDOWN(Q13*AF13/12,0),ROUNDDOWN(Q13*T13/12,0)))) -> 0 | V13: =IF(AND(F13>=82,G13>3),IF('償却資産明細書(入力)'!AA14="一括償却資産",ROUNDUP(I13/3,0),IF(AND(E13=F13,H13>0),ROUNDDOWN(R13*AF13/12,0),ROUNDDOWN(R13*T13/12,0))),IF('償却資産明細書(入力)'!AA14="一括償却資産",ROUNDDOWN(J13/3,0),IF(AND(E13=F13,H13>0),ROUNDDOWN(R13*AF13/12,0),ROUNDDOWN(R13*T13/12,0)))) ->  | W13: =IF('償却資産明細書(入力)'!D14="",0,IF(OR(AC13="最終年",AD13="最終年"),Q13*Y13/12,Z13)) -> 0 | X13: 0 | Y13: 0 | Z13: 0 | AA13: =IF('償却資産明細書(入力)'!AA14="一括償却資産",Z13,IF(Z13<W13,Z13,W13)) -> 0 | AB13: FALSE | AE13: － | AF13: =IF(OR(F13=0,G13=0),"",IF(OR('償却資産明細書(入力)'!AA14="一括償却資産",AC13="償却終了",AD13="償却終了"),"－",AE13)) ->  | AG13: =IF(OR('収支内訳書（裏）１'!I34="",'収支内訳書（裏）１'!K34="",'収支内訳書（裏）１'!M34="",'収支内訳書（裏）１'!O34=""),0,IF(F13>0,ROUNDDOWN((I13-L13-U13)/Q13,0)+1+F13,0)) -> 0 | AH13: － | AI13: － | AJ13: 0 | AK13: 0 | AL13: 0 | AM13: 0 | AN13: 0 | AP13: =IF(OR('償却資産明細書(入力)'!D14="",'償却資産明細書(入力)'!E14="",'償却資産明細書(入力)'!F14="",'償却資産明細書(入力)'!G14=""),0,IF(ISTEXT(AB13),AB13,I13-AN13)) -> 0 | AS13: =IF(AND('償却資産明細書(入力)'!AA14="一括償却資産",E13>F13+X13+1),"償却済、記載不要") -> FALSE | AT13: =IF(AND('償却資産明細書(入力)'!E14>0,'償却資産明細書(入力)'!F14<1),"取得月を入力！") -> FALSE | AU13: =IF(AND('償却資産明細書(入力)'!E14>0,'償却資産明細書(入力)'!D14=""),"元号を入力") -> FALSE | AV13: =IF(AND('償却資産明細書(入力)'!G14>0,OR('償却資産明細書(入力)'!E14<1,'償却資産明細書(入力)'!F14<1)),"取得年を入力！") -> FALSE | AW13: 0 | AZ13: FALSE | BA13: =IF('償却資産明細書(入力)'!AA14="",IF(AND('償却資産明細書(入力)'!G14>1,'償却資産明細書(入力)'!J14=0),"耐用年数を入力！")) -> FALSE | BB13: 0 | BC13: 0 | BE13: =IF(OR(AND('償却資産明細書(入力)'!U14="",'償却資産明細書(入力)'!G14>1,'償却資産明細書(入力)'!Y14>0),AND('償却資産明細書(入力)'!U14="",'償却資産明細書(入力)'!S14>1)),"事業割合入力") -> FALSE | BF13: =IF('償却資産明細書(入力)'!U14>1,"事業割合エラー") -> FALSE | BG13: =IF(BE13="事業割合入力",BE13,IF(BF13="事業割合エラー",BF13,ROUNDDOWN('償却資産明細書(入力)'!U14*BB13,0))) -> 0 | BH13: =IF(BE13="事業割合入力",BE13,IF(BF13="事業割合エラー",BF13,ROUNDDOWN('償却資産明細書(入力)'!U14*BC13,0))) -> 0 | BI13: =IF('償却資産明細書(入力)'!Y14>0,ROUNDDOWN(AP12*'償却資産明細書(入力)'!U14,0),0) -> 0 | BJ13: 0 | BK13: =IF(H13>0,'償却資産明細書(入力)'!Z14*'償却資産明細書(入力)'!U14,0) -> 0 | BL13: 0
A14: 13 | B14: 0.076 | C14: 0.077 | E14: =計算シート!$C$2+62 -> 67 | F14: =IF('償却資産明細書(入力)'!D15="平成",'償却資産明細書(入力)'!E15+63,'償却資産明細書(入力)'!E15) -> 0 | G14: ='償却資産明細書(入力)'!F15 -> 0 | H14: ='償却資産明細書(入力)'!Y15 -> 0 | I14: ='償却資産明細書(入力)'!G15 -> 0 | J14: =IF(OR(AND('償却資産明細書(入力)'!D15="平成",'償却資産明細書(入力)'!E15>=19,'償却資産明細書(入力)'!F15>=4),AND('償却資産明細書(入力)'!D15="平成",'償却資産明細書(入力)'!E15>=20)),I14,IF('償却資産明細書(入力)'!AA15="一括償却資産",I14,ROUNDDOWN(I14*0.9,0))) -> 0 | K14: =IF('償却資産明細書(入力)'!AA15="一括償却資産",0,IF(I14>0,1,0)) -> 0 | L14: =IF('償却資産明細書(入力)'!AA15="一括償却資産",0,ROUNDDOWN(I14*0.05,0)) -> 0 | M14: ='償却資産明細書(入力)'!J15 -> 0 | N14: ='償却資産明細書(入力)'!K15 -> 0 | O14: 0 | Q14: =IF(AND(F14>=82,G14>3),IF('償却資産明細書(入力)'!AA15="一括償却資産",ROUNDDOWN(I14/3,0),ROUNDDOWN(I14*O14,0)),IF('償却資産明細書(入力)'!AA15="一括償却資産",ROUNDDOWN(J14/3,0),ROUNDDOWN(J14*O14,0))) -> 0 | R14: =IF(AND(F14>=82,G14>3),IF('償却資産明細書(入力)'!AA15="一括償却資産",ROUNDDOWN(I14/3,0),ROUNDDOWN(I14*P14,0)),IF('償却資産明細書(入力)'!AA15="一括償却資産",ROUNDDOWN(J14/3,0),ROUNDDOWN(J14*P14,0))) ->  | T14: 13 | U14: =IF(AND(F14>=82,G14>3),IF('償却資産明細書(入力)'!AA15="一括償却資産",ROUNDUP(I14/3,0),IF(AND(E14=F14,H14>0),ROUNDDOWN(Q14*AF14/12,0),ROUNDDOWN(Q14*T14/12,0))),IF('償却資産明細書(入力)'!AA15="一括償却資産",ROUNDDOWN(J14/3,0),IF(AND(E14=F14,H14>0),ROUNDDOWN(Q14*AF14/12,0),ROUNDDOWN(Q14*T14/12,0)))) -> 0 | V14: =IF(AND(F14>=82,G14>3),IF('償却資産明細書(入力)'!AA15="一括償却資産",ROUNDUP(I14/3,0),IF(AND(E14=F14,H14>0),ROUNDDOWN(R14*AF14/12,0),ROUNDDOWN(R14*T14/12,0))),IF('償却資産明細書(入力)'!AA15="一括償却資産",ROUNDDOWN(J14/3,0),IF(AND(E14=F14,H14>0),ROUNDDOWN(R14*AF14/12,0),ROUNDDOWN(R14*T14/12,0)))) ->  | W14: =IF('償却資産明細書(入力)'!D15="",0,IF(OR(AC14="最終年",AD14="最終年"),Q14*Y14/12,Z14)) -> 0 | X14: 0 | Y14: 0 | Z14: 0 | AA14: =IF('償却資産明細書(入力)'!AA15="一括償却資産",Z14,IF(Z14<W14,Z14,W14)) -> 0 | AB14: FALSE | AE14: － | AF14: =IF(OR(F14=0,G14=0),"",IF(OR('償却資産明細書(入力)'!AA15="一括償却資産",AC14="償却終了",AD14="償却終了"),"－",AE14)) ->  | AG14: =IF(OR('収支内訳書（裏）１'!I35="",'収支内訳書（裏）１'!K35="",'収支内訳書（裏）１'!M35="",'収支内訳書（裏）１'!O35=""),0,IF(F14>0,ROUNDDOWN((I14-L14-U14)/Q14,0)+1+F14,0)) -> 0 | AH14: － | AI14: － | AJ14: 0 | AK14: 0 | AL14: 0 | AM14: 0 | AN14: 0 | AP14: =IF(OR('償却資産明細書(入力)'!D15="",'償却資産明細書(入力)'!E15="",'償却資産明細書(入力)'!F15="",'償却資産明細書(入力)'!G15=""),0,IF(ISTEXT(AB14),AB14,I14-AN14)) -> 0 | AS14: =IF(AND('償却資産明細書(入力)'!AA15="一括償却資産",E14>F14+X14+1),"償却済、記載不要") -> FALSE | AT14: =IF(AND('償却資産明細書(入力)'!E15>0,'償却資産明細書(入力)'!F15<1),"取得月を入力！") -> FALSE | AU14: =IF(AND('償却資産明細書(入力)'!E15>0,'償却資産明細書(入力)'!D15=""),"元号を入力") -> FALSE | AV14: =IF(AND('償却資産明細書(入力)'!G15>0,OR('償却資産明細書(入力)'!E15<1,'償却資産明細書(入力)'!F15<1)),"取得年を入力！") -> FALSE | AW14: 0 | AZ14: FALSE | BA14: =IF('償却資産明細書(入力)'!AA15="",IF(AND('償却資産明細書(入力)'!G15>1,'償却資産明細書(入力)'!J15=0),"耐用年数を入力！")) -> FALSE | BB14: 0 | BC14: 0 | BE14: =IF(OR(AND('償却資産明細書(入力)'!U15="",'償却資産明細書(入力)'!G15>1,'償却資産明細書(入力)'!Y15>0),AND('償却資産明細書(入力)'!U15="",'償却資産明細書(入力)'!S15>1)),"事業割合入力") -> FALSE | BF14: =IF('償却資産明細書(入力)'!U15>1,"事業割合エラー") -> FALSE | BG14: =IF(BE14="事業割合入力",BE14,IF(BF14="事業割合エラー",BF14,ROUNDDOWN('償却資産明細書(入力)'!U15*BB14,0))) -> 0 | BH14: =IF(BE14="事業割合入力",BE14,IF(BF14="事業割合エラー",BF14,ROUNDDOWN('償却資産明細書(入力)'!U15*BC14,0))) -> 0 | BI14: =IF('償却資産明細書(入力)'!Y15>0,ROUNDDOWN(AP13*'償却資産明細書(入力)'!U15,0),0) -> 0 | BJ14: 0 | BK14: =IF(H14>0,'償却資産明細書(入力)'!Z15*'償却資産明細書(入力)'!U15,0) -> 0 | BL14: 0
A15: 14 | B15: 0.071 | C15: 0.072 | E15: =計算シート!$C$2+62 -> 67 | F15: =IF('償却資産明細書(入力)'!D16="平成",'償却資産明細書(入力)'!E16+63,'償却資産明細書(入力)'!E16) -> 0 | G15: ='償却資産明細書(入力)'!F16 -> 0 | H15: ='償却資産明細書(入力)'!Y16 -> 0 | I15: ='償却資産明細書(入力)'!G16 -> 0 | J15: =IF(OR(AND('償却資産明細書(入力)'!D16="平成",'償却資産明細書(入力)'!E16>=19,'償却資産明細書(入力)'!F16>=4),AND('償却資産明細書(入力)'!D16="平成",'償却資産明細書(入力)'!E16>=20)),I15,IF('償却資産明細書(入力)'!AA16="一括償却資産",I15,ROUNDDOWN(I15*0.9,0))) -> 0 | K15: =IF('償却資産明細書(入力)'!AA16="一括償却資産",0,IF(I15>0,1,0)) -> 0 | L15: =IF('償却資産明細書(入力)'!AA16="一括償却資産",0,ROUNDDOWN(I15*0.05,0)) -> 0 | M15: ='償却資産明細書(入力)'!J16 -> 0 | N15: ='償却資産明細書(入力)'!K16 -> 0 | O15: 0 | Q15: =IF(AND(F15>=82,G15>3),IF('償却資産明細書(入力)'!AA16="一括償却資産",ROUNDDOWN(I15/3,0),ROUNDDOWN(I15*O15,0)),IF('償却資産明細書(入力)'!AA16="一括償却資産",ROUNDDOWN(J15/3,0),ROUNDDOWN(J15*O15,0))) -> 0 | R15: =IF(AND(F15>=82,G15>3),IF('償却資産明細書(入力)'!AA16="一括償却資産",ROUNDDOWN(I15/3,0),ROUNDDOWN(I15*P15,0)),IF('償却資産明細書(入力)'!AA16="一括償却資産",ROUNDDOWN(J15/3,0),ROUNDDOWN(J15*P15,0))) ->  | T15: 13 | U15: =IF(AND(F15>=82,G15>3),IF('償却資産明細書(入力)'!AA16="一括償却資産",ROUNDUP(I15/3,0),IF(AND(E15=F15,H15>0),ROUNDDOWN(Q15*AF15/12,0),ROUNDDOWN(Q15*T15/12,0))),IF('償却資産明細書(入力)'!AA16="一括償却資産",ROUNDDOWN(J15/3,0),IF(AND(E15=F15,H15>0),ROUNDDOWN(Q15*AF15/12,0),ROUNDDOWN(Q15*T15/12,0)))) -> 0 | V15: =IF(AND(F15>=82,G15>3),IF('償却資産明細書(入力)'!AA16="一括償却資産",ROUNDUP(I15/3,0),IF(AND(E15=F15,H15>0),ROUNDDOWN(R15*AF15/12,0),ROUNDDOWN(R15*T15/12,0))),IF('償却資産明細書(入力)'!AA16="一括償却資産",ROUNDDOWN(J15/3,0),IF(AND(E15=F15,H15>0),ROUNDDOWN(R15*AF15/12,0),ROUNDDOWN(R15*T15/12,0)))) ->  | W15: =IF('償却資産明細書(入力)'!D16="",0,IF(OR(AC15="最終年",AD15="最終年"),Q15*Y15/12,Z15)) -> 0 | X15: 0 | Y15: 0 | Z15: 0 | AA15: =IF('償却資産明細書(入力)'!AA16="一括償却資産",Z15,IF(Z15<W15,Z15,W15)) -> 0 | AB15: FALSE | AE15: － | AF15: =IF(OR(F15=0,G15=0),"",IF(OR('償却資産明細書(入力)'!AA16="一括償却資産",AC15="償却終了",AD15="償却終了"),"－",AE15)) ->  | AG15: =IF(OR('収支内訳書（裏）１'!I36="",'収支内訳書（裏）１'!K36="",'収支内訳書（裏）１'!M36="",'収支内訳書（裏）１'!O36=""),0,IF(F15>0,ROUNDDOWN((I15-L15-U15)/Q15,0)+1+F15,0)) -> 0 | AH15: － | AI15: － | AJ15: 0 | AK15: 0 | AL15: 0 | AM15: 0 | AN15: 0 | AP15: =IF(OR('償却資産明細書(入力)'!D16="",'償却資産明細書(入力)'!E16="",'償却資産明細書(入力)'!F16="",'償却資産明細書(入力)'!G16=""),0,IF(ISTEXT(AB15),AB15,I15-AN15)) -> 0 | AS15: =IF(AND('償却資産明細書(入力)'!AA16="一括償却資産",E15>F15+X15+1),"償却済、記載不要") -> FALSE | AT15: =IF(AND('償却資産明細書(入力)'!E16>0,'償却資産明細書(入力)'!F16<1),"取得月を入力！") -> FALSE | AU15: =IF(AND('償却資産明細書(入力)'!E16>0,'償却資産明細書(入力)'!D16=""),"元号を入力") -> FALSE | AV15: =IF(AND('償却資産明細書(入力)'!G16>0,OR('償却資産明細書(入力)'!E16<1,'償却資産明細書(入力)'!F16<1)),"取得年を入力！") -> FALSE | AW15: 0 | AZ15: FALSE | BA15: =IF('償却資産明細書(入力)'!AA16="",IF(AND('償却資産明細書(入力)'!G16>1,'償却資産明細書(入力)'!J16=0),"耐用年数を入力！")) -> FALSE | BB15: 0 | BC15: 0 | BE15: =IF(OR(AND('償却資産明細書(入力)'!U16="",'償却資産明細書(入力)'!G16>1,'償却資産明細書(入力)'!Y16>0),AND('償却資産明細書(入力)'!U16="",'償却資産明細書(入力)'!S16>1)),"事業割合入力") -> FALSE | BF15: =IF('償却資産明細書(入力)'!U16>1,"事業割合エラー") -> FALSE | BG15: =IF(BE15="事業割合入力",BE15,IF(BF15="事業割合エラー",BF15,ROUNDDOWN('償却資産明細書(入力)'!U16*BB15,0))) -> 0 | BH15: =IF(BE15="事業割合入力",BE15,IF(BF15="事業割合エラー",BF15,ROUNDDOWN('償却資産明細書(入力)'!U16*BC15,0))) -> 0 | BI15: =IF('償却資産明細書(入力)'!Y16>0,ROUNDDOWN(AP14*'償却資産明細書(入力)'!U16,0),0) -> 0 | BJ15: 0 | BK15: =IF(H15>0,'償却資産明細書(入力)'!Z16*'償却資産明細書(入力)'!U16,0) -> 0 | BL15: 0
A16: 15 | B16: 0.066 | C16: 0.067 | E16: =計算シート!$C$2+62 -> 67 | F16: =IF('償却資産明細書(入力)'!D17="平成",'償却資産明細書(入力)'!E17+63,'償却資産明細書(入力)'!E17) -> 0 | G16: ='償却資産明細書(入力)'!F17 -> 0 | H16: ='償却資産明細書(入力)'!Y17 -> 0 | I16: ='償却資産明細書(入力)'!G17 -> 0 | J16: =IF(OR(AND('償却資産明細書(入力)'!D17="平成",'償却資産明細書(入力)'!E17>=19,'償却資産明細書(入力)'!F17>=4),AND('償却資産明細書(入力)'!D17="平成",'償却資産明細書(入力)'!E17>=20)),I16,IF('償却資産明細書(入力)'!AA17="一括償却資産",I16,ROUNDDOWN(I16*0.9,0))) -> 0 | K16: =IF('償却資産明細書(入力)'!AA17="一括償却資産",0,IF(I16>0,1,0)) -> 0 | L16: =IF('償却資産明細書(入力)'!AA17="一括償却資産",0,ROUNDDOWN(I16*0.05,0)) -> 0 | M16: ='償却資産明細書(入力)'!J17 -> 0 | N16: ='償却資産明細書(入力)'!K17 -> 0 | O16: 0 | Q16: =IF(AND(F16>=82,G16>3),IF('償却資産明細書(入力)'!AA17="一括償却資産",ROUNDDOWN(I16/3,0),ROUNDDOWN(I16*O16,0)),IF('償却資産明細書(入力)'!AA17="一括償却資産",ROUNDDOWN(J16/3,0),ROUNDDOWN(J16*O16,0))) -> 0 | R16: =IF(AND(F16>=82,G16>3),IF('償却資産明細書(入力)'!AA17="一括償却資産",ROUNDDOWN(I16/3,0),ROUNDDOWN(I16*P16,0)),IF('償却資産明細書(入力)'!AA17="一括償却資産",ROUNDDOWN(J16/3,0),ROUNDDOWN(J16*P16,0))) ->  | T16: 13 | U16: =IF(AND(F16>=82,G16>3),IF('償却資産明細書(入力)'!AA17="一括償却資産",ROUNDUP(I16/3,0),IF(AND(E16=F16,H16>0),ROUNDDOWN(Q16*AF16/12,0),ROUNDDOWN(Q16*T16/12,0))),IF('償却資産明細書(入力)'!AA17="一括償却資産",ROUNDDOWN(J16/3,0),IF(AND(E16=F16,H16>0),ROUNDDOWN(Q16*AF16/12,0),ROUNDDOWN(Q16*T16/12,0)))) -> 0 | V16: =IF(AND(F16>=82,G16>3),IF('償却資産明細書(入力)'!AA17="一括償却資産",ROUNDUP(I16/3,0),IF(AND(E16=F16,H16>0),ROUNDDOWN(R16*AF16/12,0),ROUNDDOWN(R16*T16/12,0))),IF('償却資産明細書(入力)'!AA17="一括償却資産",ROUNDDOWN(J16/3,0),IF(AND(E16=F16,H16>0),ROUNDDOWN(R16*AF16/12,0),ROUNDDOWN(R16*T16/12,0)))) ->  | W16: =IF('償却資産明細書(入力)'!D17="",0,IF(OR(AC16="最終年",AD16="最終年"),Q16*Y16/12,Z16)) -> 0 | X16: 0 | Y16: 0 | Z16: 0 | AA16: =IF('償却資産明細書(入力)'!AA17="一括償却資産",Z16,IF(Z16<W16,Z16,W16)) -> 0 | AB16: FALSE | AE16: － | AF16: =IF(OR(F16=0,G16=0),"",IF(OR('償却資産明細書(入力)'!AA17="一括償却資産",AC16="償却終了",AD16="償却終了"),"－",AE16)) ->  | AG16: =IF(OR('収支内訳書（裏）１'!I37="",'収支内訳書（裏）１'!K37="",'収支内訳書（裏）１'!M37="",'収支内訳書（裏）１'!O37=""),0,IF(F16>0,ROUNDDOWN((I16-L16-U16)/Q16,0)+1+F16,0)) -> 0 | AH16: － | AI16: － | AJ16: 0 | AK16: 0 | AL16: 0 | AM16: 0 | AN16: 0 | AP16: =IF(OR('償却資産明細書(入力)'!D17="",'償却資産明細書(入力)'!E17="",'償却資産明細書(入力)'!F17="",'償却資産明細書(入力)'!G17=""),0,IF(ISTEXT(AB16),AB16,I16-AN16)) -> 0 | AS16: =IF(AND('償却資産明細書(入力)'!AA17="一括償却資産",E16>F16+X16+1),"償却済、記載不要") -> FALSE | AT16: =IF(AND('償却資産明細書(入力)'!E17>0,'償却資産明細書(入力)'!F17<1),"取得月を入力！") -> FALSE | AU16: =IF(AND('償却資産明細書(入力)'!E17>0,'償却資産明細書(入力)'!D17=""),"元号を入力") -> FALSE | AV16: =IF(AND('償却資産明細書(入力)'!G17>0,OR('償却資産明細書(入力)'!E17<1,'償却資産明細書(入力)'!F17<1)),"取得年を入力！") -> FALSE | AW16: 0 | AZ16: FALSE | BA16: =IF('償却資産明細書(入力)'!AA17="",IF(AND('償却資産明細書(入力)'!G17>1,'償却資産明細書(入力)'!J17=0),"耐用年数を入力！")) -> FALSE | BB16: 0 | BC16: 0 | BE16: =IF(OR(AND('償却資産明細書(入力)'!U17="",'償却資産明細書(入力)'!G17>1,'償却資産明細書(入力)'!Y17>0),AND('償却資産明細書(入力)'!U17="",'償却資産明細書(入力)'!S17>1)),"事業割合入力") -> FALSE | BF16: =IF('償却資産明細書(入力)'!U17>1,"事業割合エラー") -> FALSE | BG16: =IF(BE16="事業割合入力",BE16,IF(BF16="事業割合エラー",BF16,ROUNDDOWN('償却資産明細書(入力)'!U17*BB16,0))) -> 0 | BH16: =IF(BE16="事業割合入力",BE16,IF(BF16="事業割合エラー",BF16,ROUNDDOWN('償却資産明細書(入力)'!U17*BC16,0))) -> 0 | BI16: =IF('償却資産明細書(入力)'!Y17>0,ROUNDDOWN(AP15*'償却資産明細書(入力)'!U17,0),0) -> 0 | BJ16: 0 | BK16: =IF(H16>0,'償却資産明細書(入力)'!Z17*'償却資産明細書(入力)'!U17,0) -> 0 | BL16: 0
A17: 16 | B17: 0.062 | C17: 0.063 | E17: =計算シート!$C$2+62 -> 67 | F17: =IF('償却資産明細書(入力)'!D18="平成",'償却資産明細書(入力)'!E18+63,'償却資産明細書(入力)'!E18) -> 0 | G17: ='償却資産明細書(入力)'!F18 -> 0 | H17: ='償却資産明細書(入力)'!Y18 -> 0 | I17: ='償却資産明細書(入力)'!G18 -> 0 | J17: =IF(OR(AND('償却資産明細書(入力)'!D18="平成",'償却資産明細書(入力)'!E18>=19,'償却資産明細書(入力)'!F18>=4),AND('償却資産明細書(入力)'!D18="平成",'償却資産明細書(入力)'!E18>=20)),I17,IF('償却資産明細書(入力)'!AA18="一括償却資産",I17,ROUNDDOWN(I17*0.9,0))) -> 0 | K17: =IF('償却資産明細書(入力)'!AA18="一括償却資産",0,IF(I17>0,1,0)) -> 0 | L17: =IF('償却資産明細書(入力)'!AA18="一括償却資産",0,ROUNDDOWN(I17*0.05,0)) -> 0 | M17: ='償却資産明細書(入力)'!J18 -> 0 | N17: ='償却資産明細書(入力)'!K18 -> 0 | O17: 0 | Q17: =IF(AND(F17>=82,G17>3),IF('償却資産明細書(入力)'!AA18="一括償却資産",ROUNDDOWN(I17/3,0),ROUNDDOWN(I17*O17,0)),IF('償却資産明細書(入力)'!AA18="一括償却資産",ROUNDDOWN(J17/3,0),ROUNDDOWN(J17*O17,0))) -> 0 | R17: =IF(AND(F17>=82,G17>3),IF('償却資産明細書(入力)'!AA18="一括償却資産",ROUNDDOWN(I17/3,0),ROUNDDOWN(I17*P17,0)),IF('償却資産明細書(入力)'!AA18="一括償却資産",ROUNDDOWN(J17/3,0),ROUNDDOWN(J17*P17,0))) ->  | T17: 13 | U17: =IF(AND(F17>=82,G17>3),IF('償却資産明細書(入力)'!AA18="一括償却資産",ROUNDUP(I17/3,0),IF(AND(E17=F17,H17>0),ROUNDDOWN(Q17*AF17/12,0),ROUNDDOWN(Q17*T17/12,0))),IF('償却資産明細書(入力)'!AA18="一括償却資産",ROUNDDOWN(J17/3,0),IF(AND(E17=F17,H17>0),ROUNDDOWN(Q17*AF17/12,0),ROUNDDOWN(Q17*T17/12,0)))) -> 0 | V17: =IF(AND(F17>=82,G17>3),IF('償却資産明細書(入力)'!AA18="一括償却資産",ROUNDUP(I17/3,0),IF(AND(E17=F17,H17>0),ROUNDDOWN(R17*AF17/12,0),ROUNDDOWN(R17*T17/12,0))),IF('償却資産明細書(入力)'!AA18="一括償却資産",ROUNDDOWN(J17/3,0),IF(AND(E17=F17,H17>0),ROUNDDOWN(R17*AF17/12,0),ROUNDDOWN(R17*T17/12,0)))) ->  | W17: =IF('償却資産明細書(入力)'!D18="",0,IF(OR(AC17="最終年",AD17="最終年"),Q17*Y17/12,Z17)) -> 0 | X17: 0 | Y17: 0 | Z17: 0 | AA17: =IF('償却資産明細書(入力)'!AA18="一括償却資産",Z17,IF(Z17<W17,Z17,W17)) -> 0 | AB17: FALSE | AE17: － | AF17: =IF(OR(F17=0,G17=0),"",IF(OR('償却資産明細書(入力)'!AA18="一括償却資産",AC17="償却終了",AD17="償却終了"),"－",AE17)) ->  | AG17: =IF(OR('収支内訳書（裏）１'!I38="",'収支内訳書（裏）１'!K38="",'収支内訳書（裏）１'!M38="",'収支内訳書（裏）１'!O38=""),0,IF(F17>0,ROUNDDOWN((I17-L17-U17)/Q17,0)+1+F17,0)) -> 0 | AH17: － | AI17: － | AJ17: 0 | AK17: 0 | AL17: 0 | AM17: 0 | AN17: 0 | AP17: =IF(OR('償却資産明細書(入力)'!D18="",'償却資産明細書(入力)'!E18="",'償却資産明細書(入力)'!F18="",'償却資産明細書(入力)'!G18=""),0,IF(ISTEXT(AB17),AB17,I17-AN17)) -> 0 | AS17: =IF(AND('償却資産明細書(入力)'!AA18="一括償却資産",E17>F17+X17+1),"償却済、記載不要") -> FALSE | AT17: =IF(AND('償却資産明細書(入力)'!E18>0,'償却資産明細書(入力)'!F18<1),"取得月を入力！") -> FALSE | AU17: =IF(AND('償却資産明細書(入力)'!E18>0,'償却資産明細書(入力)'!D18=""),"元号を入力") -> FALSE | AV17: =IF(AND('償却資産明細書(入力)'!G18>0,OR('償却資産明細書(入力)'!E18<1,'償却資産明細書(入力)'!F18<1)),"取得年を入力！") -> FALSE | AW17: 0 | AZ17: FALSE | BA17: =IF('償却資産明細書(入力)'!AA18="",IF(AND('償却資産明細書(入力)'!G18>1,'償却資産明細書(入力)'!J18=0),"耐用年数を入力！")) -> FALSE | BB17: 0 | BC17: 0 | BE17: =IF(OR(AND('償却資産明細書(入力)'!U18="",'償却資産明細書(入力)'!G18>1,'償却資産明細書(入力)'!Y18>0),AND('償却資産明細書(入力)'!U18="",'償却資産明細書(入力)'!S18>1)),"事業割合入力") -> FALSE | BF17: =IF('償却資産明細書(入力)'!U18>1,"事業割合エラー") -> FALSE | BG17: =IF(BE17="事業割合入力",BE17,IF(BF17="事業割合エラー",BF17,ROUNDDOWN('償却資産明細書(入力)'!U18*BB17,0))) -> 0 | BH17: =IF(BE17="事業割合入力",BE17,IF(BF17="事業割合エラー",BF17,ROUNDDOWN('償却資産明細書(入力)'!U18*BC17,0))) -> 0 | BI17: =IF('償却資産明細書(入力)'!Y18>0,ROUNDDOWN(AP16*'償却資産明細書(入力)'!U18,0),0) -> 0 | BJ17: 0 | BK17: =IF(H17>0,'償却資産明細書(入力)'!Z18*'償却資産明細書(入力)'!U18,0) -> 0 | BL17: 0
A18: 17 | B18: 0.058 | C18: 0.059 | E18: =計算シート!$C$2+62 -> 67 | F18: =IF('償却資産明細書(入力)'!D19="平成",'償却資産明細書(入力)'!E19+63,'償却資産明細書(入力)'!E19) -> 0 | G18: ='償却資産明細書(入力)'!F19 -> 0 | H18: ='償却資産明細書(入力)'!Y19 -> 0 | I18: ='償却資産明細書(入力)'!G19 -> 0 | J18: =IF(OR(AND('償却資産明細書(入力)'!D19="平成",'償却資産明細書(入力)'!E19>=19,'償却資産明細書(入力)'!F19>=4),AND('償却資産明細書(入力)'!D19="平成",'償却資産明細書(入力)'!E19>=20)),I18,IF('償却資産明細書(入力)'!AA19="一括償却資産",I18,ROUNDDOWN(I18*0.9,0))) -> 0 | K18: =IF('償却資産明細書(入力)'!AA19="一括償却資産",0,IF(I18>0,1,0)) -> 0 | L18: =IF('償却資産明細書(入力)'!AA19="一括償却資産",0,ROUNDDOWN(I18*0.05,0)) -> 0 | M18: ='償却資産明細書(入力)'!J19 -> 0 | N18: ='償却資産明細書(入力)'!K19 -> 0 | O18: 0 | Q18: =IF(AND(F18>=82,G18>3),IF('償却資産明細書(入力)'!AA19="一括償却資産",ROUNDDOWN(I18/3,0),ROUNDDOWN(I18*O18,0)),IF('償却資産明細書(入力)'!AA19="一括償却資産",ROUNDDOWN(J18/3,0),ROUNDDOWN(J18*O18,0))) -> 0 | R18: =IF(AND(F18>=82,G18>3),IF('償却資産明細書(入力)'!AA19="一括償却資産",ROUNDDOWN(I18/3,0),ROUNDDOWN(I18*P18,0)),IF('償却資産明細書(入力)'!AA19="一括償却資産",ROUNDDOWN(J18/3,0),ROUNDDOWN(J18*P18,0))) ->  | T18: 13 | U18: =IF(AND(F18>=82,G18>3),IF('償却資産明細書(入力)'!AA19="一括償却資産",ROUNDUP(I18/3,0),IF(AND(E18=F18,H18>0),ROUNDDOWN(Q18*AF18/12,0),ROUNDDOWN(Q18*T18/12,0))),IF('償却資産明細書(入力)'!AA19="一括償却資産",ROUNDDOWN(J18/3,0),IF(AND(E18=F18,H18>0),ROUNDDOWN(Q18*AF18/12,0),ROUNDDOWN(Q18*T18/12,0)))) -> 0 | V18: =IF(AND(F18>=82,G18>3),IF('償却資産明細書(入力)'!AA19="一括償却資産",ROUNDUP(I18/3,0),IF(AND(E18=F18,H18>0),ROUNDDOWN(R18*AF18/12,0),ROUNDDOWN(R18*T18/12,0))),IF('償却資産明細書(入力)'!AA19="一括償却資産",ROUNDDOWN(J18/3,0),IF(AND(E18=F18,H18>0),ROUNDDOWN(R18*AF18/12,0),ROUNDDOWN(R18*T18/12,0)))) ->  | W18: =IF('償却資産明細書(入力)'!D19="",0,IF(OR(AC18="最終年",AD18="最終年"),Q18*Y18/12,Z18)) -> 0 | X18: 0 | Y18: 0 | Z18: 0 | AA18: =IF('償却資産明細書(入力)'!AA19="一括償却資産",Z18,IF(Z18<W18,Z18,W18)) -> 0 | AB18: FALSE | AE18: － | AF18: =IF(OR(F18=0,G18=0),"",IF(OR('償却資産明細書(入力)'!AA19="一括償却資産",AC18="償却終了",AD18="償却終了"),"－",AE18)) ->  | AG18: =IF(OR('収支内訳書（裏）１'!I39="",'収支内訳書（裏）１'!K39="",'収支内訳書（裏）１'!M39="",'収支内訳書（裏）１'!O39=""),0,IF(F18>0,ROUNDDOWN((I18-L18-U18)/Q18,0)+1+F18,0)) -> 0 | AH18: － | AI18: － | AJ18: 0 | AK18: 0 | AL18: 0 | AM18: 0 | AN18: 0 | AP18: =IF(OR('償却資産明細書(入力)'!D19="",'償却資産明細書(入力)'!E19="",'償却資産明細書(入力)'!F19="",'償却資産明細書(入力)'!G19=""),0,IF(ISTEXT(AB18),AB18,I18-AN18)) -> 0 | AS18: =IF(AND('償却資産明細書(入力)'!AA19="一括償却資産",E18>F18+X18+1),"償却済、記載不要") -> FALSE | AT18: =IF(AND('償却資産明細書(入力)'!E19>0,'償却資産明細書(入力)'!F19<1),"取得月を入力！") -> FALSE | AU18: =IF(AND('償却資産明細書(入力)'!E19>0,'償却資産明細書(入力)'!D19=""),"元号を入力") -> FALSE | AV18: =IF(AND('償却資産明細書(入力)'!G19>0,OR('償却資産明細書(入力)'!E19<1,'償却資産明細書(入力)'!F19<1)),"取得年を入力！") -> FALSE | AW18: 0 | AZ18: FALSE | BA18: =IF('償却資産明細書(入力)'!AA19="",IF(AND('償却資産明細書(入力)'!G19>1,'償却資産明細書(入力)'!J19=0),"耐用年数を入力！")) -> FALSE | BB18: 0 | BC18: 0 | BE18: =IF(OR(AND('償却資産明細書(入力)'!U19="",'償却資産明細書(入力)'!G19>1,'償却資産明細書(入力)'!Y19>0),AND('償却資産明細書(入力)'!U19="",'償却資産明細書(入力)'!S19>1)),"事業割合入力") -> FALSE | BF18: =IF('償却資産明細書(入力)'!U19>1,"事業割合エラー") -> FALSE | BG18: =IF(BE18="事業割合入力",BE18,IF(BF18="事業割合エラー",BF18,ROUNDDOWN('償却資産明細書(入力)'!U19*BB18,0))) -> 0 | BH18: =IF(BE18="事業割合入力",BE18,IF(BF18="事業割合エラー",BF18,ROUNDDOWN('償却資産明細書(入力)'!U19*BC18,0))) -> 0 | BI18: =IF('償却資産明細書(入力)'!Y19>0,ROUNDDOWN(AP17*'償却資産明細書(入力)'!U19,0),0) -> 0 | BJ18: 0 | BK18: =IF(H18>0,'償却資産明細書(入力)'!Z19*'償却資産明細書(入力)'!U19,0) -> 0 | BL18: 0
A19: 18 | B19: 0.055 | C19: 0.056 | E19: =計算シート!$C$2+62 -> 67 | F19: =IF('償却資産明細書(入力)'!D20="平成",'償却資産明細書(入力)'!E20+63,'償却資産明細書(入力)'!E20) -> 0 | G19: ='償却資産明細書(入力)'!F20 -> 0 | H19: ='償却資産明細書(入力)'!Y20 -> 0 | I19: ='償却資産明細書(入力)'!G20 -> 0 | J19: =IF(OR(AND('償却資産明細書(入力)'!D20="平成",'償却資産明細書(入力)'!E20>=19,'償却資産明細書(入力)'!F20>=4),AND('償却資産明細書(入力)'!D20="平成",'償却資産明細書(入力)'!E20>=20)),I19,IF('償却資産明細書(入力)'!AA20="一括償却資産",I19,ROUNDDOWN(I19*0.9,0))) -> 0 | K19: =IF('償却資産明細書(入力)'!AA20="一括償却資産",0,IF(I19>0,1,0)) -> 0 | L19: =IF('償却資産明細書(入力)'!AA20="一括償却資産",0,ROUNDDOWN(I19*0.05,0)) -> 0 | M19: ='償却資産明細書(入力)'!J20 -> 0 | N19: ='償却資産明細書(入力)'!K20 -> 0 | O19: 0 | Q19: =IF(AND(F19>=82,G19>3),IF('償却資産明細書(入力)'!AA20="一括償却資産",ROUNDDOWN(I19/3,0),ROUNDDOWN(I19*O19,0)),IF('償却資産明細書(入力)'!AA20="一括償却資産",ROUNDDOWN(J19/3,0),ROUNDDOWN(J19*O19,0))) -> 0 | R19: =IF(AND(F19>=82,G19>3),IF('償却資産明細書(入力)'!AA20="一括償却資産",ROUNDDOWN(I19/3,0),ROUNDDOWN(I19*P19,0)),IF('償却資産明細書(入力)'!AA20="一括償却資産",ROUNDDOWN(J19/3,0),ROUNDDOWN(J19*P19,0))) ->  | T19: 13 | U19: =IF(AND(F19>=82,G19>3),IF('償却資産明細書(入力)'!AA20="一括償却資産",ROUNDUP(I19/3,0),IF(AND(E19=F19,H19>0),ROUNDDOWN(Q19*AF19/12,0),ROUNDDOWN(Q19*T19/12,0))),IF('償却資産明細書(入力)'!AA20="一括償却資産",ROUNDDOWN(J19/3,0),IF(AND(E19=F19,H19>0),ROUNDDOWN(Q19*AF19/12,0),ROUNDDOWN(Q19*T19/12,0)))) -> 0 | V19: =IF(AND(F19>=82,G19>3),IF('償却資産明細書(入力)'!AA20="一括償却資産",ROUNDUP(I19/3,0),IF(AND(E19=F19,H19>0),ROUNDDOWN(R19*AF19/12,0),ROUNDDOWN(R19*T19/12,0))),IF('償却資産明細書(入力)'!AA20="一括償却資産",ROUNDDOWN(J19/3,0),IF(AND(E19=F19,H19>0),ROUNDDOWN(R19*AF19/12,0),ROUNDDOWN(R19*T19/12,0)))) ->  | W19: =IF('償却資産明細書(入力)'!D20="",0,IF(OR(AC19="最終年",AD19="最終年"),Q19*Y19/12,Z19)) -> 0 | X19: 0 | Y19: 0 | Z19: 0 | AA19: =IF('償却資産明細書(入力)'!AA20="一括償却資産",Z19,IF(Z19<W19,Z19,W19)) -> 0 | AB19: FALSE | AE19: － | AF19: =IF(OR(F19=0,G19=0),"",IF(OR('償却資産明細書(入力)'!AA20="一括償却資産",AC19="償却終了",AD19="償却終了"),"－",AE19)) ->  | AG19: =IF(OR('収支内訳書（裏）１'!I40="",'収支内訳書（裏）１'!K40="",'収支内訳書（裏）１'!M40="",'収支内訳書（裏）１'!O40=""),0,IF(F19>0,ROUNDDOWN((I19-L19-U19)/Q19,0)+1+F19,0)) -> 0 | AH19: － | AI19: － | AJ19: 0 | AK19: 0 | AL19: 0 | AM19: 0 | AN19: 0 | AP19: =IF(OR('償却資産明細書(入力)'!D20="",'償却資産明細書(入力)'!E20="",'償却資産明細書(入力)'!F20="",'償却資産明細書(入力)'!G20=""),0,IF(ISTEXT(AB19),AB19,I19-AN19)) -> 0 | AS19: =IF(AND('償却資産明細書(入力)'!AA20="一括償却資産",E19>F19+X19+1),"償却済、記載不要") -> FALSE | AT19: =IF(AND('償却資産明細書(入力)'!E20>0,'償却資産明細書(入力)'!F20<1),"取得月を入力！") -> FALSE | AU19: =IF(AND('償却資産明細書(入力)'!E20>0,'償却資産明細書(入力)'!D20=""),"元号を入力") -> FALSE | AV19: =IF(AND('償却資産明細書(入力)'!G20>0,OR('償却資産明細書(入力)'!E20<1,'償却資産明細書(入力)'!F20<1)),"取得年を入力！") -> FALSE | AW19: 0 | AZ19: FALSE | BA19: =IF('償却資産明細書(入力)'!AA20="",IF(AND('償却資産明細書(入力)'!G20>1,'償却資産明細書(入力)'!J20=0),"耐用年数を入力！")) -> FALSE | BB19: 0 | BC19: 0 | BE19: =IF(OR(AND('償却資産明細書(入力)'!U20="",'償却資産明細書(入力)'!G20>1,'償却資産明細書(入力)'!Y20>0),AND('償却資産明細書(入力)'!U20="",'償却資産明細書(入力)'!S20>1)),"事業割合入力") -> FALSE | BF19: =IF('償却資産明細書(入力)'!U20>1,"事業割合エラー") -> FALSE | BG19: =IF(BE19="事業割合入力",BE19,IF(BF19="事業割合エラー",BF19,ROUNDDOWN('償却資産明細書(入力)'!U20*BB19,0))) -> 0 | BH19: =IF(BE19="事業割合入力",BE19,IF(BF19="事業割合エラー",BF19,ROUNDDOWN('償却資産明細書(入力)'!U20*BC19,0))) -> 0 | BI19: =IF('償却資産明細書(入力)'!Y20>0,ROUNDDOWN(AP18*'償却資産明細書(入力)'!U20,0),0) -> 0 | BJ19: 0 | BK19: =IF(H19>0,'償却資産明細書(入力)'!Z20*'償却資産明細書(入力)'!U20,0) -> 0 | BL19: 0
A20: 19 | B20: 0.052 | C20: 0.053 | E20: =計算シート!$C$2+62 -> 67 | F20: =IF('償却資産明細書(入力)'!D21="平成",'償却資産明細書(入力)'!E21+63,'償却資産明細書(入力)'!E21) -> 0 | G20: ='償却資産明細書(入力)'!F21 -> 0 | H20: ='償却資産明細書(入力)'!Y21 -> 0 | I20: ='償却資産明細書(入力)'!G21 -> 0 | J20: =IF(OR(AND('償却資産明細書(入力)'!D21="平成",'償却資産明細書(入力)'!E21>=19,'償却資産明細書(入力)'!F21>=4),AND('償却資産明細書(入力)'!D21="平成",'償却資産明細書(入力)'!E21>=20)),I20,IF('償却資産明細書(入力)'!AA21="一括償却資産",I20,ROUNDDOWN(I20*0.9,0))) -> 0 | K20: =IF('償却資産明細書(入力)'!AA21="一括償却資産",0,IF(I20>0,1,0)) -> 0 | L20: =IF('償却資産明細書(入力)'!AA21="一括償却資産",0,ROUNDDOWN(I20*0.05,0)) -> 0 | M20: ='償却資産明細書(入力)'!J21 -> 0 | N20: ='償却資産明細書(入力)'!K21 -> 0 | O20: 0 | Q20: =IF(AND(F20>=82,G20>3),IF('償却資産明細書(入力)'!AA21="一括償却資産",ROUNDDOWN(I20/3,0),ROUNDDOWN(I20*O20,0)),IF('償却資産明細書(入力)'!AA21="一括償却資産",ROUNDDOWN(J20/3,0),ROUNDDOWN(J20*O20,0))) -> 0 | R20: =IF(AND(F20>=82,G20>3),IF('償却資産明細書(入力)'!AA21="一括償却資産",ROUNDDOWN(I20/3,0),ROUNDDOWN(I20*P20,0)),IF('償却資産明細書(入力)'!AA21="一括償却資産",ROUNDDOWN(J20/3,0),ROUNDDOWN(J20*P20,0))) ->  | T20: 13 | U20: =IF(AND(F20>=82,G20>3),IF('償却資産明細書(入力)'!AA21="一括償却資産",ROUNDUP(I20/3,0),IF(AND(E20=F20,H20>0),ROUNDDOWN(Q20*AF20/12,0),ROUNDDOWN(Q20*T20/12,0))),IF('償却資産明細書(入力)'!AA21="一括償却資産",ROUNDDOWN(J20/3,0),IF(AND(E20=F20,H20>0),ROUNDDOWN(Q20*AF20/12,0),ROUNDDOWN(Q20*T20/12,0)))) -> 0 | V20: =IF(AND(F20>=82,G20>3),IF('償却資産明細書(入力)'!AA21="一括償却資産",ROUNDUP(I20/3,0),IF(AND(E20=F20,H20>0),ROUNDDOWN(R20*AF20/12,0),ROUNDDOWN(R20*T20/12,0))),IF('償却資産明細書(入力)'!AA21="一括償却資産",ROUNDDOWN(J20/3,0),IF(AND(E20=F20,H20>0),ROUNDDOWN(R20*AF20/12,0),ROUNDDOWN(R20*T20/12,0)))) ->  | W20: =IF('償却資産明細書(入力)'!D21="",0,IF(OR(AC20="最終年",AD20="最終年"),Q20*Y20/12,Z20)) -> 0 | X20: 0 | Y20: 0 | Z20: 0 | AA20: =IF('償却資産明細書(入力)'!AA21="一括償却資産",Z20,IF(Z20<W20,Z20,W20)) -> 0 | AB20: FALSE | AE20: － | AF20: =IF(OR(F20=0,G20=0),"",IF(OR('償却資産明細書(入力)'!AA21="一括償却資産",AC20="償却終了",AD20="償却終了"),"－",AE20)) ->  | AG20: =IF(OR('収支内訳書（裏）１'!I41="",'収支内訳書（裏）１'!K41="",'収支内訳書（裏）１'!M41="",'収支内訳書（裏）１'!O41=""),0,IF(F20>0,ROUNDDOWN((I20-L20-U20)/Q20,0)+1+F20,0)) -> 0 | AH20: － | AI20: － | AJ20: 0 | AK20: 0 | AL20: 0 | AM20: 0 | AN20: 0 | AP20: =IF(OR('償却資産明細書(入力)'!D21="",'償却資産明細書(入力)'!E21="",'償却資産明細書(入力)'!F21="",'償却資産明細書(入力)'!G21=""),0,IF(ISTEXT(AB20),AB20,I20-AN20)) -> 0 | AS20: =IF(AND('償却資産明細書(入力)'!AA21="一括償却資産",E20>F20+X20+1),"償却済、記載不要") -> FALSE | AT20: =IF(AND('償却資産明細書(入力)'!E21>0,'償却資産明細書(入力)'!F21<1),"取得月を入力！") -> FALSE | AU20: =IF(AND('償却資産明細書(入力)'!E21>0,'償却資産明細書(入力)'!D21=""),"元号を入力") -> FALSE | AV20: =IF(AND('償却資産明細書(入力)'!G21>0,OR('償却資産明細書(入力)'!E21<1,'償却資産明細書(入力)'!F21<1)),"取得年を入力！") -> FALSE | AW20: 0 | AZ20: FALSE | BA20: =IF('償却資産明細書(入力)'!AA21="",IF(AND('償却資産明細書(入力)'!G21>1,'償却資産明細書(入力)'!J21=0),"耐用年数を入力！")) -> FALSE | BB20: 0 | BC20: 0 | BE20: =IF(OR(AND('償却資産明細書(入力)'!U21="",'償却資産明細書(入力)'!G21>1,'償却資産明細書(入力)'!Y21>0),AND('償却資産明細書(入力)'!U21="",'償却資産明細書(入力)'!S21>1)),"事業割合入力") -> FALSE | BF20: =IF('償却資産明細書(入力)'!U21>1,"事業割合エラー") -> FALSE | BG20: =IF(BE20="事業割合入力",BE20,IF(BF20="事業割合エラー",BF20,ROUNDDOWN('償却資産明細書(入力)'!U21*BB20,0))) -> 0 | BH20: =IF(BE20="事業割合入力",BE20,IF(BF20="事業割合エラー",BF20,ROUNDDOWN('償却資産明細書(入力)'!U21*BC20,0))) -> 0 | BI20: =IF('償却資産明細書(入力)'!Y21>0,ROUNDDOWN(AP19*'償却資産明細書(入力)'!U21,0),0) -> 0 | BJ20: 0 | BK20: =IF(H20>0,'償却資産明細書(入力)'!Z21*'償却資産明細書(入力)'!U21,0) -> 0 | BL20: 0
A21: 20 | B21: 0.05 | C21: 0.05 | E21: =計算シート!$C$2+62 -> 67 | F21: =IF('償却資産明細書(入力)'!D22="平成",'償却資産明細書(入力)'!E22+63,'償却資産明細書(入力)'!E22) -> 0 | G21: ='償却資産明細書(入力)'!F22 -> 0 | H21: ='償却資産明細書(入力)'!Y22 -> 0 | I21: ='償却資産明細書(入力)'!G22 -> 0 | J21: =IF(OR(AND('償却資産明細書(入力)'!D22="平成",'償却資産明細書(入力)'!E22>=19,'償却資産明細書(入力)'!F22>=4),AND('償却資産明細書(入力)'!D22="平成",'償却資産明細書(入力)'!E22>=20)),I21,IF('償却資産明細書(入力)'!AA22="一括償却資産",I21,ROUNDDOWN(I21*0.9,0))) -> 0 | K21: =IF('償却資産明細書(入力)'!AA22="一括償却資産",0,IF(I21>0,1,0)) -> 0 | L21: =IF('償却資産明細書(入力)'!AA22="一括償却資産",0,ROUNDDOWN(I21*0.05,0)) -> 0 | M21: ='償却資産明細書(入力)'!J22 -> 0 | N21: ='償却資産明細書(入力)'!K22 -> 0 | O21: 0 | Q21: =IF(AND(F21>=82,G21>3),IF('償却資産明細書(入力)'!AA22="一括償却資産",ROUNDDOWN(I21/3,0),ROUNDDOWN(I21*O21,0)),IF('償却資産明細書(入力)'!AA22="一括償却資産",ROUNDDOWN(J21/3,0),ROUNDDOWN(J21*O21,0))) -> 0 | R21: =IF(AND(F21>=82,G21>3),IF('償却資産明細書(入力)'!AA22="一括償却資産",ROUNDDOWN(I21/3,0),ROUNDDOWN(I21*P21,0)),IF('償却資産明細書(入力)'!AA22="一括償却資産",ROUNDDOWN(J21/3,0),ROUNDDOWN(J21*P21,0))) ->  | T21: 13 | U21: =IF(AND(F21>=82,G21>3),IF('償却資産明細書(入力)'!AA22="一括償却資産",ROUNDUP(I21/3,0),IF(AND(E21=F21,H21>0),ROUNDDOWN(Q21*AF21/12,0),ROUNDDOWN(Q21*T21/12,0))),IF('償却資産明細書(入力)'!AA22="一括償却資産",ROUNDDOWN(J21/3,0),IF(AND(E21=F21,H21>0),ROUNDDOWN(Q21*AF21/12,0),ROUNDDOWN(Q21*T21/12,0)))) -> 0 | V21: =IF(AND(F21>=82,G21>3),IF('償却資産明細書(入力)'!AA22="一括償却資産",ROUNDUP(I21/3,0),IF(AND(E21=F21,H21>0),ROUNDDOWN(R21*AF21/12,0),ROUNDDOWN(R21*T21/12,0))),IF('償却資産明細書(入力)'!AA22="一括償却資産",ROUNDDOWN(J21/3,0),IF(AND(E21=F21,H21>0),ROUNDDOWN(R21*AF21/12,0),ROUNDDOWN(R21*T21/12,0)))) ->  | W21: =IF('償却資産明細書(入力)'!D22="",0,IF(OR(AC21="最終年",AD21="最終年"),Q21*Y21/12,Z21)) -> 0 | X21: 0 | Y21: 0 | Z21: 0 | AA21: =IF('償却資産明細書(入力)'!AA22="一括償却資産",Z21,IF(Z21<W21,Z21,W21)) -> 0 | AB21: FALSE | AE21: － | AF21: =IF(OR(F21=0,G21=0),"",IF(OR('償却資産明細書(入力)'!AA22="一括償却資産",AC21="償却終了",AD21="償却終了"),"－",AE21)) ->  | AG21: =IF(OR('収支内訳書（裏）１'!I42="",'収支内訳書（裏）１'!K42="",'収支内訳書（裏）１'!M42="",'収支内訳書（裏）１'!O42=""),0,IF(F21>0,ROUNDDOWN((I21-L21-U21)/Q21,0)+1+F21,0)) -> 0 | AH21: － | AI21: － | AJ21: 0 | AK21: 0 | AL21: 0 | AM21: 0 | AN21: 0 | AP21: =IF(OR('償却資産明細書(入力)'!D22="",'償却資産明細書(入力)'!E22="",'償却資産明細書(入力)'!F22="",'償却資産明細書(入力)'!G22=""),0,IF(ISTEXT(AB21),AB21,I21-AN21)) -> 0 | AS21: =IF(AND('償却資産明細書(入力)'!AA22="一括償却資産",E21>F21+X21+1),"償却済、記載不要") -> FALSE | AT21: =IF(AND('償却資産明細書(入力)'!E22>0,'償却資産明細書(入力)'!F22<1),"取得月を入力！") -> FALSE | AU21: =IF(AND('償却資産明細書(入力)'!E22>0,'償却資産明細書(入力)'!D22=""),"元号を入力") -> FALSE | AV21: =IF(AND('償却資産明細書(入力)'!G22>0,OR('償却資産明細書(入力)'!E22<1,'償却資産明細書(入力)'!F22<1)),"取得年を入力！") -> FALSE | AW21: 0 | AZ21: FALSE | BA21: =IF('償却資産明細書(入力)'!AA22="",IF(AND('償却資産明細書(入力)'!G22>1,'償却資産明細書(入力)'!J22=0),"耐用年数を入力！")) -> FALSE | BB21: 0 | BC21: 0 | BE21: =IF(OR(AND('償却資産明細書(入力)'!U22="",'償却資産明細書(入力)'!G22>1,'償却資産明細書(入力)'!Y22>0),AND('償却資産明細書(入力)'!U22="",'償却資産明細書(入力)'!S22>1)),"事業割合入力") -> FALSE | BF21: =IF('償却資産明細書(入力)'!U22>1,"事業割合エラー") -> FALSE | BG21: =IF(BE21="事業割合入力",BE21,IF(BF21="事業割合エラー",BF21,ROUNDDOWN('償却資産明細書(入力)'!U22*BB21,0))) -> 0 | BH21: =IF(BE21="事業割合入力",BE21,IF(BF21="事業割合エラー",BF21,ROUNDDOWN('償却資産明細書(入力)'!U22*BC21,0))) -> 0 | BI21: =IF('償却資産明細書(入力)'!Y22>0,ROUNDDOWN(AP20*'償却資産明細書(入力)'!U22,0),0) -> 0 | BJ21: 0 | BK21: =IF(H21>0,'償却資産明細書(入力)'!Z22*'償却資産明細書(入力)'!U22,0) -> 0 | BL21: 0
A22: 21 | B22: 0.048 | C22: 0.048 | E22: =計算シート!$C$2+62 -> 67 | F22: =IF('償却資産明細書(入力)'!D23="平成",'償却資産明細書(入力)'!E23+63,'償却資産明細書(入力)'!E23) -> 0 | G22: ='償却資産明細書(入力)'!F23 -> 0 | H22: ='償却資産明細書(入力)'!Y23 -> 0 | I22: ='償却資産明細書(入力)'!G23 -> 0 | J22: =IF(OR(AND('償却資産明細書(入力)'!D23="平成",'償却資産明細書(入力)'!E23>=19,'償却資産明細書(入力)'!F23>=4),AND('償却資産明細書(入力)'!D23="平成",'償却資産明細書(入力)'!E23>=20)),I22,IF('償却資産明細書(入力)'!AA23="一括償却資産",I22,ROUNDDOWN(I22*0.9,0))) -> 0 | K22: =IF('償却資産明細書(入力)'!AA23="一括償却資産",0,IF(I22>0,1,0)) -> 0 | L22: =IF('償却資産明細書(入力)'!AA23="一括償却資産",0,ROUNDDOWN(I22*0.05,0)) -> 0 | M22: ='償却資産明細書(入力)'!J23 -> 0 | N22: ='償却資産明細書(入力)'!K23 -> 0 | O22: 0 | Q22: =IF(AND(F22>=82,G22>3),IF('償却資産明細書(入力)'!AA23="一括償却資産",ROUNDDOWN(I22/3,0),ROUNDDOWN(I22*O22,0)),IF('償却資産明細書(入力)'!AA23="一括償却資産",ROUNDDOWN(J22/3,0),ROUNDDOWN(J22*O22,0))) -> 0 | R22: =IF(AND(F22>=82,G22>3),IF('償却資産明細書(入力)'!AA23="一括償却資産",ROUNDDOWN(I22/3,0),ROUNDDOWN(I22*P22,0)),IF('償却資産明細書(入力)'!AA23="一括償却資産",ROUNDDOWN(J22/3,0),ROUNDDOWN(J22*P22,0))) ->  | T22: 13 | U22: =IF(AND(F22>=82,G22>3),IF('償却資産明細書(入力)'!AA23="一括償却資産",ROUNDUP(I22/3,0),IF(AND(E22=F22,H22>0),ROUNDDOWN(Q22*AF22/12,0),ROUNDDOWN(Q22*T22/12,0))),IF('償却資産明細書(入力)'!AA23="一括償却資産",ROUNDDOWN(J22/3,0),IF(AND(E22=F22,H22>0),ROUNDDOWN(Q22*AF22/12,0),ROUNDDOWN(Q22*T22/12,0)))) -> 0 | V22: =IF(AND(F22>=82,G22>3),IF('償却資産明細書(入力)'!AA23="一括償却資産",ROUNDUP(I22/3,0),IF(AND(E22=F22,H22>0),ROUNDDOWN(R22*AF22/12,0),ROUNDDOWN(R22*T22/12,0))),IF('償却資産明細書(入力)'!AA23="一括償却資産",ROUNDDOWN(J22/3,0),IF(AND(E22=F22,H22>0),ROUNDDOWN(R22*AF22/12,0),ROUNDDOWN(R22*T22/12,0)))) ->  | W22: =IF('償却資産明細書(入力)'!D23="",0,IF(OR(AC22="最終年",AD22="最終年"),Q22*Y22/12,Z22)) -> 0 | X22: 0 | Y22: 0 | Z22: 0 | AA22: =IF('償却資産明細書(入力)'!AA23="一括償却資産",Z22,IF(Z22<W22,Z22,W22)) -> 0 | AB22: FALSE | AE22: － | AF22: =IF(OR(F22=0,G22=0),"",IF(OR('償却資産明細書(入力)'!AA23="一括償却資産",AC22="償却終了",AD22="償却終了"),"－",AE22)) ->  | AG22: =IF(OR('収支内訳書（裏）１'!I43="",'収支内訳書（裏）１'!K43="",'収支内訳書（裏）１'!M43="",'収支内訳書（裏）１'!O43=""),0,IF(F22>0,ROUNDDOWN((I22-L22-U22)/Q22,0)+1+F22,0)) -> 0 | AH22: － | AI22: － | AJ22: 0 | AK22: 0 | AL22: 0 | AM22: 0 | AN22: 0 | AP22: =IF(OR('償却資産明細書(入力)'!D23="",'償却資産明細書(入力)'!E23="",'償却資産明細書(入力)'!F23="",'償却資産明細書(入力)'!G23=""),0,IF(ISTEXT(AB22),AB22,I22-AN22)) -> 0 | AS22: =IF(AND('償却資産明細書(入力)'!AA23="一括償却資産",E22>F22+X22+1),"償却済、記載不要") -> FALSE | AT22: =IF(AND('償却資産明細書(入力)'!E23>0,'償却資産明細書(入力)'!F23<1),"取得月を入力！") -> FALSE | AU22: =IF(AND('償却資産明細書(入力)'!E23>0,'償却資産明細書(入力)'!D23=""),"元号を入力") -> FALSE | AV22: =IF(AND('償却資産明細書(入力)'!G23>0,OR('償却資産明細書(入力)'!E23<1,'償却資産明細書(入力)'!F23<1)),"取得年を入力！") -> FALSE | AW22: 0 | AZ22: FALSE | BA22: =IF('償却資産明細書(入力)'!AA23="",IF(AND('償却資産明細書(入力)'!G23>1,'償却資産明細書(入力)'!J23=0),"耐用年数を入力！")) -> FALSE | BB22: 0 | BC22: 0 | BE22: =IF(OR(AND('償却資産明細書(入力)'!U23="",'償却資産明細書(入力)'!G23>1,'償却資産明細書(入力)'!Y23>0),AND('償却資産明細書(入力)'!U23="",'償却資産明細書(入力)'!S23>1)),"事業割合入力") -> FALSE | BF22: =IF('償却資産明細書(入力)'!U23>1,"事業割合エラー") -> FALSE | BG22: =IF(BE22="事業割合入力",BE22,IF(BF22="事業割合エラー",BF22,ROUNDDOWN('償却資産明細書(入力)'!U23*BB22,0))) -> 0 | BH22: =IF(BE22="事業割合入力",BE22,IF(BF22="事業割合エラー",BF22,ROUNDDOWN('償却資産明細書(入力)'!U23*BC22,0))) -> 0 | BI22: =IF('償却資産明細書(入力)'!Y23>0,ROUNDDOWN(AP21*'償却資産明細書(入力)'!U23,0),0) -> 0 | BJ22: 0 | BK22: =IF(H22>0,'償却資産明細書(入力)'!Z23*'償却資産明細書(入力)'!U23,0) -> 0 | BL22: 0
A23: 22 | B23: 0.046 | C23: 0.046 | E23: =計算シート!$C$2+62 -> 67 | F23: =IF('償却資産明細書(入力)'!D24="平成",'償却資産明細書(入力)'!E24+63,'償却資産明細書(入力)'!E24) -> 0 | G23: ='償却資産明細書(入力)'!F24 -> 0 | H23: ='償却資産明細書(入力)'!Y24 -> 0 | I23: ='償却資産明細書(入力)'!G24 -> 0 | J23: =IF(OR(AND('償却資産明細書(入力)'!D24="平成",'償却資産明細書(入力)'!E24>=19,'償却資産明細書(入力)'!F24>=4),AND('償却資産明細書(入力)'!D24="平成",'償却資産明細書(入力)'!E24>=20)),I23,IF('償却資産明細書(入力)'!AA24="一括償却資産",I23,ROUNDDOWN(I23*0.9,0))) -> 0 | K23: =IF('償却資産明細書(入力)'!AA24="一括償却資産",0,IF(I23>0,1,0)) -> 0 | L23: =IF('償却資産明細書(入力)'!AA24="一括償却資産",0,ROUNDDOWN(I23*0.05,0)) -> 0 | M23: ='償却資産明細書(入力)'!J24 -> 0 | N23: ='償却資産明細書(入力)'!K24 -> 0 | O23: 0 | Q23: =IF(AND(F23>=82,G23>3),IF('償却資産明細書(入力)'!AA24="一括償却資産",ROUNDDOWN(I23/3,0),ROUNDDOWN(I23*O23,0)),IF('償却資産明細書(入力)'!AA24="一括償却資産",ROUNDDOWN(J23/3,0),ROUNDDOWN(J23*O23,0))) -> 0 | R23: =IF(AND(F23>=82,G23>3),IF('償却資産明細書(入力)'!AA24="一括償却資産",ROUNDDOWN(I23/3,0),ROUNDDOWN(I23*P23,0)),IF('償却資産明細書(入力)'!AA24="一括償却資産",ROUNDDOWN(J23/3,0),ROUNDDOWN(J23*P23,0))) ->  | T23: 13 | U23: =IF(AND(F23>=82,G23>3),IF('償却資産明細書(入力)'!AA24="一括償却資産",ROUNDUP(I23/3,0),IF(AND(E23=F23,H23>0),ROUNDDOWN(Q23*AF23/12,0),ROUNDDOWN(Q23*T23/12,0))),IF('償却資産明細書(入力)'!AA24="一括償却資産",ROUNDDOWN(J23/3,0),IF(AND(E23=F23,H23>0),ROUNDDOWN(Q23*AF23/12,0),ROUNDDOWN(Q23*T23/12,0)))) -> 0 | V23: =IF(AND(F23>=82,G23>3),IF('償却資産明細書(入力)'!AA24="一括償却資産",ROUNDUP(I23/3,0),IF(AND(E23=F23,H23>0),ROUNDDOWN(R23*AF23/12,0),ROUNDDOWN(R23*T23/12,0))),IF('償却資産明細書(入力)'!AA24="一括償却資産",ROUNDDOWN(J23/3,0),IF(AND(E23=F23,H23>0),ROUNDDOWN(R23*AF23/12,0),ROUNDDOWN(R23*T23/12,0)))) ->  | W23: =IF('償却資産明細書(入力)'!D24="",0,IF(OR(AC23="最終年",AD23="最終年"),Q23*Y23/12,Z23)) -> 0 | X23: 0 | Y23: 0 | Z23: 0 | AA23: =IF('償却資産明細書(入力)'!AA24="一括償却資産",Z23,IF(Z23<W23,Z23,W23)) -> 0 | AB23: FALSE | AE23: － | AF23: =IF(OR(F23=0,G23=0),"",IF(OR('償却資産明細書(入力)'!AA24="一括償却資産",AC23="償却終了",AD23="償却終了"),"－",AE23)) ->  | AG23: =IF(OR('収支内訳書（裏）１'!I44="",'収支内訳書（裏）１'!K44="",'収支内訳書（裏）１'!M44="",'収支内訳書（裏）１'!O44=""),0,IF(F23>0,ROUNDDOWN((I23-L23-U23)/Q23,0)+1+F23,0)) -> 0 | AH23: － | AI23: － | AJ23: 0 | AK23: 0 | AL23: 0 | AM23: 0 | AN23: 0 | AP23: =IF(OR('償却資産明細書(入力)'!D24="",'償却資産明細書(入力)'!E24="",'償却資産明細書(入力)'!F24="",'償却資産明細書(入力)'!G24=""),0,IF(ISTEXT(AB23),AB23,I23-AN23)) -> 0 | AS23: =IF(AND('償却資産明細書(入力)'!AA24="一括償却資産",E23>F23+X23+1),"償却済、記載不要") -> FALSE | AT23: =IF(AND('償却資産明細書(入力)'!E24>0,'償却資産明細書(入力)'!F24<1),"取得月を入力！") -> FALSE | AU23: =IF(AND('償却資産明細書(入力)'!E24>0,'償却資産明細書(入力)'!D24=""),"元号を入力") -> FALSE | AV23: =IF(AND('償却資産明細書(入力)'!G24>0,OR('償却資産明細書(入力)'!E24<1,'償却資産明細書(入力)'!F24<1)),"取得年を入力！") -> FALSE | AW23: 0 | AZ23: FALSE | BA23: =IF('償却資産明細書(入力)'!AA24="",IF(AND('償却資産明細書(入力)'!G24>1,'償却資産明細書(入力)'!J24=0),"耐用年数を入力！")) -> FALSE | BB23: 0 | BC23: 0 | BE23: =IF(OR(AND('償却資産明細書(入力)'!U24="",'償却資産明細書(入力)'!G24>1,'償却資産明細書(入力)'!Y24>0),AND('償却資産明細書(入力)'!U24="",'償却資産明細書(入力)'!S24>1)),"事業割合入力") -> FALSE | BF23: =IF('償却資産明細書(入力)'!U24>1,"事業割合エラー") -> FALSE | BG23: =IF(BE23="事業割合入力",BE23,IF(BF23="事業割合エラー",BF23,ROUNDDOWN('償却資産明細書(入力)'!U24*BB23,0))) -> 0 | BH23: =IF(BE23="事業割合入力",BE23,IF(BF23="事業割合エラー",BF23,ROUNDDOWN('償却資産明細書(入力)'!U24*BC23,0))) -> 0 | BI23: =IF('償却資産明細書(入力)'!Y24>0,ROUNDDOWN(AP22*'償却資産明細書(入力)'!U24,0),0) -> 0 | BJ23: 0 | BK23: =IF(H23>0,'償却資産明細書(入力)'!Z24*'償却資産明細書(入力)'!U24,0) -> 0 | BL23: 0
A24: 23 | B24: 0.044 | C24: 0.044 | E24: =計算シート!$C$2+62 -> 67 | F24: =IF('償却資産明細書(入力)'!D25="平成",'償却資産明細書(入力)'!E25+63,'償却資産明細書(入力)'!E25) -> 0 | G24: ='償却資産明細書(入力)'!F25 -> 0 | H24: ='償却資産明細書(入力)'!Y25 -> 0 | I24: ='償却資産明細書(入力)'!G25 -> 0 | J24: =IF(OR(AND('償却資産明細書(入力)'!D25="平成",'償却資産明細書(入力)'!E25>=19,'償却資産明細書(入力)'!F25>=4),AND('償却資産明細書(入力)'!D25="平成",'償却資産明細書(入力)'!E25>=20)),I24,IF('償却資産明細書(入力)'!AA25="一括償却資産",I24,ROUNDDOWN(I24*0.9,0))) -> 0 | K24: =IF('償却資産明細書(入力)'!AA25="一括償却資産",0,IF(I24>0,1,0)) -> 0 | L24: =IF('償却資産明細書(入力)'!AA25="一括償却資産",0,ROUNDDOWN(I24*0.05,0)) -> 0 | M24: ='償却資産明細書(入力)'!J25 -> 0 | N24: ='償却資産明細書(入力)'!K25 -> 0 | O24: 0 | Q24: =IF(AND(F24>=82,G24>3),IF('償却資産明細書(入力)'!AA25="一括償却資産",ROUNDDOWN(I24/3,0),ROUNDDOWN(I24*O24,0)),IF('償却資産明細書(入力)'!AA25="一括償却資産",ROUNDDOWN(J24/3,0),ROUNDDOWN(J24*O24,0))) -> 0 | R24: =IF(AND(F24>=82,G24>3),IF('償却資産明細書(入力)'!AA25="一括償却資産",ROUNDDOWN(I24/3,0),ROUNDDOWN(I24*P24,0)),IF('償却資産明細書(入力)'!AA25="一括償却資産",ROUNDDOWN(J24/3,0),ROUNDDOWN(J24*P24,0))) ->  | T24: 13 | U24: =IF(AND(F24>=82,G24>3),IF('償却資産明細書(入力)'!AA25="一括償却資産",ROUNDUP(I24/3,0),IF(AND(E24=F24,H24>0),ROUNDDOWN(Q24*AF24/12,0),ROUNDDOWN(Q24*T24/12,0))),IF('償却資産明細書(入力)'!AA25="一括償却資産",ROUNDDOWN(J24/3,0),IF(AND(E24=F24,H24>0),ROUNDDOWN(Q24*AF24/12,0),ROUNDDOWN(Q24*T24/12,0)))) -> 0 | V24: =IF(AND(F24>=82,G24>3),IF('償却資産明細書(入力)'!AA25="一括償却資産",ROUNDUP(I24/3,0),IF(AND(E24=F24,H24>0),ROUNDDOWN(R24*AF24/12,0),ROUNDDOWN(R24*T24/12,0))),IF('償却資産明細書(入力)'!AA25="一括償却資産",ROUNDDOWN(J24/3,0),IF(AND(E24=F24,H24>0),ROUNDDOWN(R24*AF24/12,0),ROUNDDOWN(R24*T24/12,0)))) ->  | W24: =IF('償却資産明細書(入力)'!D25="",0,IF(OR(AC24="最終年",AD24="最終年"),Q24*Y24/12,Z24)) -> 0 | X24: 0 | Y24: 0 | Z24: 0 | AA24: =IF('償却資産明細書(入力)'!AA25="一括償却資産",Z24,IF(Z24<W24,Z24,W24)) -> 0 | AB24: FALSE | AE24: － | AF24: =IF(OR(F24=0,G24=0),"",IF(OR('償却資産明細書(入力)'!AA25="一括償却資産",AC24="償却終了",AD24="償却終了"),"－",AE24)) ->  | AG24: =IF(OR('収支内訳書（裏）１'!I45="",'収支内訳書（裏）１'!K45="",'収支内訳書（裏）１'!M45="",'収支内訳書（裏）１'!O45=""),0,IF(F24>0,ROUNDDOWN((I24-L24-U24)/Q24,0)+1+F24,0)) -> 0 | AH24: － | AI24: － | AJ24: 0 | AK24: 0 | AL24: 0 | AM24: 0 | AN24: 0 | AP24: =IF(OR('償却資産明細書(入力)'!D25="",'償却資産明細書(入力)'!E25="",'償却資産明細書(入力)'!F25="",'償却資産明細書(入力)'!G25=""),0,IF(ISTEXT(AB24),AB24,I24-AN24)) -> 0 | AS24: =IF(AND('償却資産明細書(入力)'!AA25="一括償却資産",E24>F24+X24+1),"償却済、記載不要") -> FALSE | AT24: =IF(AND('償却資産明細書(入力)'!E25>0,'償却資産明細書(入力)'!F25<1),"取得月を入力！") -> FALSE | AU24: =IF(AND('償却資産明細書(入力)'!E25>0,'償却資産明細書(入力)'!D25=""),"元号を入力") -> FALSE | AV24: =IF(AND('償却資産明細書(入力)'!G25>0,OR('償却資産明細書(入力)'!E25<1,'償却資産明細書(入力)'!F25<1)),"取得年を入力！") -> FALSE | AW24: 0 | AZ24: FALSE | BA24: =IF('償却資産明細書(入力)'!AA25="",IF(AND('償却資産明細書(入力)'!G25>1,'償却資産明細書(入力)'!J25=0),"耐用年数を入力！")) -> FALSE | BB24: 0 | BC24: 0 | BE24: =IF(OR(AND('償却資産明細書(入力)'!U25="",'償却資産明細書(入力)'!G25>1,'償却資産明細書(入力)'!Y25>0),AND('償却資産明細書(入力)'!U25="",'償却資産明細書(入力)'!S25>1)),"事業割合入力") -> FALSE | BF24: =IF('償却資産明細書(入力)'!U25>1,"事業割合エラー") -> FALSE | BG24: =IF(BE24="事業割合入力",BE24,IF(BF24="事業割合エラー",BF24,ROUNDDOWN('償却資産明細書(入力)'!U25*BB24,0))) -> 0 | BH24: =IF(BE24="事業割合入力",BE24,IF(BF24="事業割合エラー",BF24,ROUNDDOWN('償却資産明細書(入力)'!U25*BC24,0))) -> 0 | BI24: =IF('償却資産明細書(入力)'!Y25>0,ROUNDDOWN(AP23*'償却資産明細書(入力)'!U25,0),0) -> 0 | BJ24: 0 | BK24: =IF(H24>0,'償却資産明細書(入力)'!Z25*'償却資産明細書(入力)'!U25,0) -> 0 | BL24: 0
A25: 24 | B25: 0.042 | C25: 0.042 | E25: =計算シート!$C$2+62 -> 67 | F25: =IF('償却資産明細書(入力)'!D26="平成",'償却資産明細書(入力)'!E26+63,'償却資産明細書(入力)'!E26) -> 0 | G25: ='償却資産明細書(入力)'!F26 -> 0 | H25: ='償却資産明細書(入力)'!Y26 -> 0 | I25: ='償却資産明細書(入力)'!G26 -> 0 | J25: =IF(OR(AND('償却資産明細書(入力)'!D26="平成",'償却資産明細書(入力)'!E26>=19,'償却資産明細書(入力)'!F26>=4),AND('償却資産明細書(入力)'!D26="平成",'償却資産明細書(入力)'!E26>=20)),I25,IF('償却資産明細書(入力)'!AA26="一括償却資産",I25,ROUNDDOWN(I25*0.9,0))) -> 0 | K25: =IF('償却資産明細書(入力)'!AA26="一括償却資産",0,IF(I25>0,1,0)) -> 0 | L25: =IF('償却資産明細書(入力)'!AA26="一括償却資産",0,ROUNDDOWN(I25*0.05,0)) -> 0 | M25: ='償却資産明細書(入力)'!J26 -> 0 | N25: ='償却資産明細書(入力)'!K26 -> 0 | O25: 0 | Q25: =IF(AND(F25>=82,G25>3),IF('償却資産明細書(入力)'!AA26="一括償却資産",ROUNDDOWN(I25/3,0),ROUNDDOWN(I25*O25,0)),IF('償却資産明細書(入力)'!AA26="一括償却資産",ROUNDDOWN(J25/3,0),ROUNDDOWN(J25*O25,0))) -> 0 | R25: =IF(AND(F25>=82,G25>3),IF('償却資産明細書(入力)'!AA26="一括償却資産",ROUNDDOWN(I25/3,0),ROUNDDOWN(I25*P25,0)),IF('償却資産明細書(入力)'!AA26="一括償却資産",ROUNDDOWN(J25/3,0),ROUNDDOWN(J25*P25,0))) ->  | T25: 13 | U25: =IF(AND(F25>=82,G25>3),IF('償却資産明細書(入力)'!AA26="一括償却資産",ROUNDUP(I25/3,0),IF(AND(E25=F25,H25>0),ROUNDDOWN(Q25*AF25/12,0),ROUNDDOWN(Q25*T25/12,0))),IF('償却資産明細書(入力)'!AA26="一括償却資産",ROUNDDOWN(J25/3,0),IF(AND(E25=F25,H25>0),ROUNDDOWN(Q25*AF25/12,0),ROUNDDOWN(Q25*T25/12,0)))) -> 0 | V25: =IF(AND(F25>=82,G25>3),IF('償却資産明細書(入力)'!AA26="一括償却資産",ROUNDUP(I25/3,0),IF(AND(E25=F25,H25>0),ROUNDDOWN(R25*AF25/12,0),ROUNDDOWN(R25*T25/12,0))),IF('償却資産明細書(入力)'!AA26="一括償却資産",ROUNDDOWN(J25/3,0),IF(AND(E25=F25,H25>0),ROUNDDOWN(R25*AF25/12,0),ROUNDDOWN(R25*T25/12,0)))) ->  | W25: =IF('償却資産明細書(入力)'!D26="",0,IF(OR(AC25="最終年",AD25="最終年"),Q25*Y25/12,Z25)) -> 0 | X25: 0 | Y25: 0 | Z25: 0 | AA25: =IF('償却資産明細書(入力)'!AA26="一括償却資産",Z25,IF(Z25<W25,Z25,W25)) -> 0 | AB25: FALSE | AE25: － | AF25: =IF(OR(F25=0,G25=0),"",IF(OR('償却資産明細書(入力)'!AA26="一括償却資産",AC25="償却終了",AD25="償却終了"),"－",AE25)) ->  | AG25: =IF(OR('収支内訳書（裏）１'!I46="",'収支内訳書（裏）１'!K46="",'収支内訳書（裏）１'!M46="",'収支内訳書（裏）１'!O46=""),0,IF(F25>0,ROUNDDOWN((I25-L25-U25)/Q25,0)+1+F25,0)) -> 0 | AH25: － | AI25: － | AJ25: 0 | AK25: 0 | AL25: 0 | AM25: 0 | AN25: 0 | AP25: =IF(OR('償却資産明細書(入力)'!D26="",'償却資産明細書(入力)'!E26="",'償却資産明細書(入力)'!F26="",'償却資産明細書(入力)'!G26=""),0,IF(ISTEXT(AB25),AB25,I25-AN25)) -> 0 | AS25: =IF(AND('償却資産明細書(入力)'!AA26="一括償却資産",E25>F25+X25+1),"償却済、記載不要") -> FALSE | AT25: =IF(AND('償却資産明細書(入力)'!E26>0,'償却資産明細書(入力)'!F26<1),"取得月を入力！") -> FALSE | AU25: =IF(AND('償却資産明細書(入力)'!E26>0,'償却資産明細書(入力)'!D26=""),"元号を入力") -> FALSE | AV25: =IF(AND('償却資産明細書(入力)'!G26>0,OR('償却資産明細書(入力)'!E26<1,'償却資産明細書(入力)'!F26<1)),"取得年を入力！") -> FALSE | AW25: 0 | AZ25: FALSE | BA25: =IF('償却資産明細書(入力)'!AA26="",IF(AND('償却資産明細書(入力)'!G26>1,'償却資産明細書(入力)'!J26=0),"耐用年数を入力！")) -> FALSE | BB25: 0 | BC25: 0 | BE25: =IF(OR(AND('償却資産明細書(入力)'!U26="",'償却資産明細書(入力)'!G26>1,'償却資産明細書(入力)'!Y26>0),AND('償却資産明細書(入力)'!U26="",'償却資産明細書(入力)'!S26>1)),"事業割合入力") -> FALSE | BF25: =IF('償却資産明細書(入力)'!U26>1,"事業割合エラー") -> FALSE | BG25: =IF(BE25="事業割合入力",BE25,IF(BF25="事業割合エラー",BF25,ROUNDDOWN('償却資産明細書(入力)'!U26*BB25,0))) -> 0 | BH25: =IF(BE25="事業割合入力",BE25,IF(BF25="事業割合エラー",BF25,ROUNDDOWN('償却資産明細書(入力)'!U26*BC25,0))) -> 0 | BI25: =IF('償却資産明細書(入力)'!Y26>0,ROUNDDOWN(AP24*'償却資産明細書(入力)'!U26,0),0) -> 0 | BJ25: 0 | BK25: =IF(H25>0,'償却資産明細書(入力)'!Z26*'償却資産明細書(入力)'!U26,0) -> 0 | BL25: 0
A26: 25 | B26: =ROUNDDOWN(1/A26,3) -> 0.04 | C26: 0.04 | E26: =計算シート!$C$2+62 -> 67 | F26: =IF('償却資産明細書(入力)'!D27="平成",'償却資産明細書(入力)'!E27+63,'償却資産明細書(入力)'!E27) -> 0 | G26: ='償却資産明細書(入力)'!F27 -> 0 | H26: ='償却資産明細書(入力)'!Y27 -> 0 | I26: ='償却資産明細書(入力)'!G27 -> 0 | J26: =IF(OR(AND('償却資産明細書(入力)'!D27="平成",'償却資産明細書(入力)'!E27>=19,'償却資産明細書(入力)'!F27>=4),AND('償却資産明細書(入力)'!D27="平成",'償却資産明細書(入力)'!E27>=20)),I26,IF('償却資産明細書(入力)'!AA27="一括償却資産",I26,ROUNDDOWN(I26*0.9,0))) -> 0 | K26: =IF('償却資産明細書(入力)'!AA27="一括償却資産",0,IF(I26>0,1,0)) -> 0 | L26: =IF('償却資産明細書(入力)'!AA27="一括償却資産",0,ROUNDDOWN(I26*0.05,0)) -> 0 | M26: ='償却資産明細書(入力)'!J27 -> 0 | N26: ='償却資産明細書(入力)'!K27 -> 0 | O26: 0 | Q26: =IF(AND(F26>=82,G26>3),IF('償却資産明細書(入力)'!AA27="一括償却資産",ROUNDDOWN(I26/3,0),ROUNDDOWN(I26*O26,0)),IF('償却資産明細書(入力)'!AA27="一括償却資産",ROUNDDOWN(J26/3,0),ROUNDDOWN(J26*O26,0))) -> 0 | R26: =IF(AND(F26>=82,G26>3),IF('償却資産明細書(入力)'!AA27="一括償却資産",ROUNDDOWN(I26/3,0),ROUNDDOWN(I26*P26,0)),IF('償却資産明細書(入力)'!AA27="一括償却資産",ROUNDDOWN(J26/3,0),ROUNDDOWN(J26*P26,0))) ->  | T26: 13 | U26: =IF(AND(F26>=82,G26>3),IF('償却資産明細書(入力)'!AA27="一括償却資産",ROUNDUP(I26/3,0),IF(AND(E26=F26,H26>0),ROUNDDOWN(Q26*AF26/12,0),ROUNDDOWN(Q26*T26/12,0))),IF('償却資産明細書(入力)'!AA27="一括償却資産",ROUNDDOWN(J26/3,0),IF(AND(E26=F26,H26>0),ROUNDDOWN(Q26*AF26/12,0),ROUNDDOWN(Q26*T26/12,0)))) -> 0 | V26: =IF(AND(F26>=82,G26>3),IF('償却資産明細書(入力)'!AA27="一括償却資産",ROUNDUP(I26/3,0),IF(AND(E26=F26,H26>0),ROUNDDOWN(R26*AF26/12,0),ROUNDDOWN(R26*T26/12,0))),IF('償却資産明細書(入力)'!AA27="一括償却資産",ROUNDDOWN(J26/3,0),IF(AND(E26=F26,H26>0),ROUNDDOWN(R26*AF26/12,0),ROUNDDOWN(R26*T26/12,0)))) ->  | W26: =IF('償却資産明細書(入力)'!D27="",0,IF(OR(AC26="最終年",AD26="最終年"),Q26*Y26/12,Z26)) -> 0 | X26: 0 | Y26: 0 | Z26: 0 | AA26: =IF('償却資産明細書(入力)'!AA27="一括償却資産",Z26,IF(Z26<W26,Z26,W26)) -> 0 | AB26: FALSE | AE26: － | AF26: =IF(OR(F26=0,G26=0),"",IF(OR('償却資産明細書(入力)'!AA27="一括償却資産",AC26="償却終了",AD26="償却終了"),"－",AE26)) ->  | AG26: =IF(OR('収支内訳書（裏）１'!I47="",'収支内訳書（裏）１'!K47="",'収支内訳書（裏）１'!M47="",'収支内訳書（裏）１'!O47=""),0,IF(F26>0,ROUNDDOWN((I26-L26-U26)/Q26,0)+1+F26,0)) -> 0 | AH26: － | AI26: － | AJ26: 0 | AK26: 0 | AL26: 0 | AM26: 0 | AN26: 0 | AP26: =IF(OR('償却資産明細書(入力)'!D27="",'償却資産明細書(入力)'!E27="",'償却資産明細書(入力)'!F27="",'償却資産明細書(入力)'!G27=""),0,IF(ISTEXT(AB26),AB26,I26-AN26)) -> 0 | AS26: =IF(AND('償却資産明細書(入力)'!AA27="一括償却資産",E26>F26+X26+1),"償却済、記載不要") -> FALSE | AT26: =IF(AND('償却資産明細書(入力)'!E27>0,'償却資産明細書(入力)'!F27<1),"取得月を入力！") -> FALSE | AU26: =IF(AND('償却資産明細書(入力)'!E27>0,'償却資産明細書(入力)'!D27=""),"元号を入力") -> FALSE | AV26: =IF(AND('償却資産明細書(入力)'!G27>0,OR('償却資産明細書(入力)'!E27<1,'償却資産明細書(入力)'!F27<1)),"取得年を入力！") -> FALSE | AW26: 0 | AZ26: FALSE | BA26: =IF('償却資産明細書(入力)'!AA27="",IF(AND('償却資産明細書(入力)'!G27>1,'償却資産明細書(入力)'!J27=0),"耐用年数を入力！")) -> FALSE | BB26: 0 | BC26: 0 | BE26: =IF(OR(AND('償却資産明細書(入力)'!U27="",'償却資産明細書(入力)'!G27>1,'償却資産明細書(入力)'!Y27>0),AND('償却資産明細書(入力)'!U27="",'償却資産明細書(入力)'!S27>1)),"事業割合入力") -> FALSE | BF26: =IF('償却資産明細書(入力)'!U27>1,"事業割合エラー") -> FALSE | BG26: =IF(BE26="事業割合入力",BE26,IF(BF26="事業割合エラー",BF26,ROUNDDOWN('償却資産明細書(入力)'!U27*BB26,0))) -> 0 | BH26: =IF(BE26="事業割合入力",BE26,IF(BF26="事業割合エラー",BF26,ROUNDDOWN('償却資産明細書(入力)'!U27*BC26,0))) -> 0 | BI26: =IF('償却資産明細書(入力)'!Y27>0,ROUNDDOWN(AP25*'償却資産明細書(入力)'!U27,0),0) -> 0 | BJ26: 0 | BK26: =IF(H26>0,'償却資産明細書(入力)'!Z27*'償却資産明細書(入力)'!U27,0) -> 0 | BL26: 0
A27: 26 | B27: 0.039 | C27: 0.039 | E27: =計算シート!$C$2+62 -> 67 | F27: =IF('償却資産明細書(入力)'!D28="平成",'償却資産明細書(入力)'!E28+63,'償却資産明細書(入力)'!E28) -> 0 | G27: ='償却資産明細書(入力)'!F28 -> 0 | H27: ='償却資産明細書(入力)'!Y28 -> 0 | I27: ='償却資産明細書(入力)'!G28 -> 0 | J27: =IF(OR(AND('償却資産明細書(入力)'!D28="平成",'償却資産明細書(入力)'!E28>=19,'償却資産明細書(入力)'!F28>=4),AND('償却資産明細書(入力)'!D28="平成",'償却資産明細書(入力)'!E28>=20)),I27,IF('償却資産明細書(入力)'!AA28="一括償却資産",I27,ROUNDDOWN(I27*0.9,0))) -> 0 | K27: =IF('償却資産明細書(入力)'!AA28="一括償却資産",0,IF(I27>0,1,0)) -> 0 | L27: =IF('償却資産明細書(入力)'!AA28="一括償却資産",0,ROUNDDOWN(I27*0.05,0)) -> 0 | M27: ='償却資産明細書(入力)'!J28 -> 0 | N27: ='償却資産明細書(入力)'!K28 -> 0 | O27: 0 | Q27: =IF(AND(F27>=82,G27>3),IF('償却資産明細書(入力)'!AA28="一括償却資産",ROUNDDOWN(I27/3,0),ROUNDDOWN(I27*O27,0)),IF('償却資産明細書(入力)'!AA28="一括償却資産",ROUNDDOWN(J27/3,0),ROUNDDOWN(J27*O27,0))) -> 0 | R27: =IF(AND(F27>=82,G27>3),IF('償却資産明細書(入力)'!AA28="一括償却資産",ROUNDDOWN(I27/3,0),ROUNDDOWN(I27*P27,0)),IF('償却資産明細書(入力)'!AA28="一括償却資産",ROUNDDOWN(J27/3,0),ROUNDDOWN(J27*P27,0))) ->  | T27: 13 | U27: =IF(AND(F27>=82,G27>3),IF('償却資産明細書(入力)'!AA28="一括償却資産",ROUNDUP(I27/3,0),IF(AND(E27=F27,H27>0),ROUNDDOWN(Q27*AF27/12,0),ROUNDDOWN(Q27*T27/12,0))),IF('償却資産明細書(入力)'!AA28="一括償却資産",ROUNDDOWN(J27/3,0),IF(AND(E27=F27,H27>0),ROUNDDOWN(Q27*AF27/12,0),ROUNDDOWN(Q27*T27/12,0)))) -> 0 | V27: =IF(AND(F27>=82,G27>3),IF('償却資産明細書(入力)'!AA28="一括償却資産",ROUNDUP(I27/3,0),IF(AND(E27=F27,H27>0),ROUNDDOWN(R27*AF27/12,0),ROUNDDOWN(R27*T27/12,0))),IF('償却資産明細書(入力)'!AA28="一括償却資産",ROUNDDOWN(J27/3,0),IF(AND(E27=F27,H27>0),ROUNDDOWN(R27*AF27/12,0),ROUNDDOWN(R27*T27/12,0)))) ->  | W27: =IF('償却資産明細書(入力)'!D28="",0,IF(OR(AC27="最終年",AD27="最終年"),Q27*Y27/12,Z27)) -> 0 | X27: 0 | Y27: 0 | Z27: 0 | AA27: =IF('償却資産明細書(入力)'!AA28="一括償却資産",Z27,IF(Z27<W27,Z27,W27)) -> 0 | AB27: FALSE | AE27: － | AF27: =IF(OR(F27=0,G27=0),"",IF(OR('償却資産明細書(入力)'!AA28="一括償却資産",AC27="償却終了",AD27="償却終了"),"－",AE27)) ->  | AG27: =IF(OR('収支内訳書（裏）１'!I48="",'収支内訳書（裏）１'!K48="",'収支内訳書（裏）１'!M48="",'収支内訳書（裏）１'!O48=""),0,IF(F27>0,ROUNDDOWN((I27-L27-U27)/Q27,0)+1+F27,0)) -> 0 | AH27: － | AI27: － | AJ27: 0 | AK27: 0 | AL27: 0 | AM27: 0 | AN27: 0 | AP27: =IF(OR('償却資産明細書(入力)'!D28="",'償却資産明細書(入力)'!E28="",'償却資産明細書(入力)'!F28="",'償却資産明細書(入力)'!G28=""),0,IF(ISTEXT(AB27),AB27,I27-AN27)) -> 0 | AS27: =IF(AND('償却資産明細書(入力)'!AA28="一括償却資産",E27>F27+X27+1),"償却済、記載不要") -> FALSE | AT27: =IF(AND('償却資産明細書(入力)'!E28>0,'償却資産明細書(入力)'!F28<1),"取得月を入力！") -> FALSE | AU27: =IF(AND('償却資産明細書(入力)'!E28>0,'償却資産明細書(入力)'!D28=""),"元号を入力") -> FALSE | AV27: =IF(AND('償却資産明細書(入力)'!G28>0,OR('償却資産明細書(入力)'!E28<1,'償却資産明細書(入力)'!F28<1)),"取得年を入力！") -> FALSE | AW27: 0 | AZ27: FALSE | BA27: =IF('償却資産明細書(入力)'!AA28="",IF(AND('償却資産明細書(入力)'!G28>1,'償却資産明細書(入力)'!J28=0),"耐用年数を入力！")) -> FALSE | BB27: 0 | BC27: 0 | BE27: =IF(OR(AND('償却資産明細書(入力)'!U28="",'償却資産明細書(入力)'!G28>1,'償却資産明細書(入力)'!Y28>0),AND('償却資産明細書(入力)'!U28="",'償却資産明細書(入力)'!S28>1)),"事業割合入力") -> FALSE | BF27: =IF('償却資産明細書(入力)'!U28>1,"事業割合エラー") -> FALSE | BG27: =IF(BE27="事業割合入力",BE27,IF(BF27="事業割合エラー",BF27,ROUNDDOWN('償却資産明細書(入力)'!U28*BB27,0))) -> 0 | BH27: =IF(BE27="事業割合入力",BE27,IF(BF27="事業割合エラー",BF27,ROUNDDOWN('償却資産明細書(入力)'!U28*BC27,0))) -> 0 | BI27: =IF('償却資産明細書(入力)'!Y28>0,ROUNDDOWN(AP26*'償却資産明細書(入力)'!U28,0),0) -> 0 | BJ27: 0 | BK27: =IF(H27>0,'償却資産明細書(入力)'!Z28*'償却資産明細書(入力)'!U28,0) -> 0 | BL27: 0
A28: 27 | B28: =ROUNDDOWN(1/A28,3) -> 0.037 | C28: 0.038
A29: 28 | B29: =ROUND(1/A29,3) -> 0.036 | C29: 0.036
A30: 29 | B30: 0.035 | C30: 0.035
A31: 30 | B31: 0.034 | C31: 0.034
A32: 31 | B32: 0.033 | C32: 0.033
A33: 32 | B33: 0.032 | C33: 0.032 | G33: 100 | AF33: =IF(OR(AC5="初年",AD5="初年"),U5,IF(OR(AC5=E5-F5+1,AD5=E5-F5+1),U5+AK5+AM5,IF(OR(AC5="最終年",AD5="最終年"),U5+Q5*X5+BB5,IF(AND(F5>=82,G5>3),IF(OR(AC5="償却終了",AD5="償却終了"),U5+Q5*X5+Z5),IF(AC5="９５％償却済み",U5+Q5*X5+Z5,IF(AND(AC5="５年均等償却",AG5<82),ROUNDUP(U5+Q5*X5+Z5+((L5-K5)/5*AI5),0),IF(AND(AC5="５年均等償却",AG5>=82),ROUNDUP(U5+Q5*X5+Z5+((L5-K5)/5*AH5),0),I5*0.95+ROUNDUP((L5-K5)/5,0)*4+AJ5))))))) -> 0
A34: 33 | B34: 0.031 | C34: =ROUNDUP(1/A34,3) -> 0.031
A35: 34 | B35: 0.03 | C35: 0.03
A36: 35 | B36: =ROUNDUP(1/A36,3) -> 0.029 | C36: 0.029
A37: 36 | B37: =ROUNDUP(1/A37,3) -> 0.028 | C37: 0.028
A38: 37 | B38: =ROUND(1/A38,3) -> 0.027 | C38: 0.028
A39: 38 | B39: =ROUNDUP(1/A39,3) -> 0.027 | C39: 0.027
A40: 39 | B40: 0.026 | C40: 0.026
A41: 40 | B41: 0.025 | C41: 0.025
A42: 41 | B42: 0.025 | C42: 0.025
A43: 42 | B43: 0.024 | C43: 0.024
A44: 43 | B44: 0.024 | C44: 0.024
A45: 44 | B45: 0.023 | C45: 0.023
A46: 45 | B46: 0.023 | C46: 0.023
A47: 46 | B47: 0.022 | C47: 0.022
A48: 47 | B48: 0.022 | C48: 0.022
A49: 48 | B49: 0.021 | C49: 0.021
A50: 49 | B50: 0.021 | C50: 0.021
A51: 50 | B51: 0.02 | C51: 0.02
A52: 51 | B52: 0.02
A53: 52 | B53: 0.02
A54: 53 | B54: 0.019
A55: 54 | B55: 0.019
A56: 55 | B56: 0.019
A57: 56 | B57: 0.018
A58: 57 | B58: 0.018
A59: 58 | B59: 0.018
A60: 59 | B60: 0.017
A61: 60 | B61: 0.017
A62: 61 | B62: 0.017
A63: 62 | B63: 0.017
A64: 63 | B64: 0.016
A65: 64 | B65: 0.016
A66: 65 | B66: 0.016
A67: 66 | B67: 0.016
A68: 67 | B68: 0.015
A69: 68 | B69: 0.015
A70: 69 | B70: 0.015
A71: 70 | B71: 0.015
A72: 71 | B72: =ROUND(1/A72,3) -> 0.014
A73: 72 | B73: =ROUNDUP(1/A73,3) -> 0.014
A74: 73 | B74: 0.014
A75: 74 | B75: 0.014
A76: 75 | B76: 0.014
A77: 76 | B77: 0.014
A78: 77 | B78: 0.013
A79: 78 | B79: 0.013
A80: 79 | B80: 0.013
A81: 80 | B81: 0.013
A82: 81 | B82: 0.013
A83: 82 | B83: 0.013
A84: 83 | B84: =ROUND(1/A84,3) -> 0.012
A85: 84 | B85: =ROUNDUP(1/A85,3) -> 0.012
A86: 85 | B86: 0.012
A87: 86 | B87: 0.012
A88: 87 | B88: 0.012
A89: 88 | B89: 0.012
A90: 89 | B90: 0.012
A91: 90 | B91: 0.012
A92: 91 | B92: 0.011
A93: 92 | B93: 0.011
A94: 93 | B94: 0.011
A95: 94 | B95: 0.011
A96: 95 | B96: 0.011
A97: 96 | B97: 0.011
A98: 97 | B98: 0.011
A99: 98 | B99: 0.011
A100: 99 | B100: 0.011
A101: 100 | B101: 0.01

Sheet 償却率 (H21から) (hidden)
A1: 耐用年数 | B1: 旧定額法 | C1: 定額法 | E1: 新の耐用年数
A2: 1 | B2: =ROUNDDOWN(1/A2,3) -> 1 | C2: =ROUNDUP(1/A2,3) -> 1 | AK2: =IF(OR(AC2="初年",AD2="初年"),U2,IF(OR(AC2=E2-F2+1,AD2=E2-F2+1),ROUNDDOWN(Q2*AE2/12,0),IF(OR(AC2="最終年",AD2="最終年"),AA2,IF(AND(F2>=82,G2>3),IF(OR(AC2="償却終了",AD2="償却終了"),0),IF(AC2="５年均等償却",ROUNDUP((L2-K2)/5,0),IF(AC2="均等償却最終年",L2-ROUNDUP((L2-K2)/5,0)*4-K2,IF(OR(AC2="９５％償却済み",AC2="償却終了",AD2="償却終了"),0,0))))))) -> 0
A3: 2 | B3: 0.5 | C3: 0.5 | E3: 基礎数値 | AS3: エラーメッセージ
A4: 3 | B4: 0.333 | C4: 0.334 | E4: 現在年 | F4: 取得年 | G4: 月 | H4: 廃棄月 | I4: 取得価格 | J4: 基礎価格 | K4: 最終未償却残高 | L4: 取得価格×５％ | M4: 耐用年数 | N4: 新耐用年数 | O4: 償却率 | P4: 新償却率 | Q4: 償却限度額 | R4: 新償却限度額 | T4: 開始償却月数 | U4: 初年償却 | V4: 新初年償却 | W4: 廃棄年償却 | X4: 12ヶ月償却年数 | Y4: 終了年償却月数 | Z4: 終了年償却 | AA4: 最終年償却費 | AC4: 判定(１９年３月以前取得) | AD4: 判定(１９年４月以降取得） | AE4: 本年償却月 | AF4: 本年中の償却期間 | AG4: 償却終了年 | AH4: 5年均等償却経過年数 | AI4: 21年度からの経過年数 | AJ4: 均等償却最終年償却費 | AK4: 本年償却額 | AL4: 新本年償却額 | AM4: 中間年償却額 | AN4: 累計償却額 | AO4: 新累計償却額 | AP4: 未償却残高 | AQ4: 新未償却残高 | AS4: 取得月エラー | AT4: 取得月を入力！ | AU4: 元号を入力 | AV4: 取得年を入力！ | AW4: 償却の基礎になる金額 | AZ4: 年分を確認！！ | BA4: 耐用年数を入力！ | BB4: 本年分の普通償却費 | BC4: 本年分の新償却費 | BE4: 事業割合を入力! | BF4: 事業割合エラー | BG4: 本年分の必要経費算入額 | BH4: 新本年分の必要経費算入額 | BI4: 固定資産除却損失 | BJ4: 必要経費算入額 | BK4: 処分費用 | BL4: 実質未償却残高
A5: 4 | B5: 0.25 | C5: 0.25 | E5: =計算シート!$C$2+63 -> 68 | F5: =IF('償却資産明細書(入力)'!D6="平成",'償却資産明細書(入力)'!E6+63,'償却資産明細書(入力)'!E6) -> 0 | G5: ='償却資産明細書(入力)'!F6 -> 0 | H5: ='償却資産明細書(入力)'!Y6 -> 0 | I5: ='償却資産明細書(入力)'!G6 -> 0 | J5: =IF(OR(AND('償却資産明細書(入力)'!D6="平成",'償却資産明細書(入力)'!E6>=19,'償却資産明細書(入力)'!F6>=4),AND('償却資産明細書(入力)'!D6="平成",'償却資産明細書(入力)'!E6>=20)),I5,IF('償却資産明細書(入力)'!AA6="一括償却資産",I5,ROUNDDOWN(I5*0.9,0))) -> 0 | K5: =IF('償却資産明細書(入力)'!AA6="一括償却資産",0,IF(I5>0,1,0)) -> 0 | L5: =IF('償却資産明細書(入力)'!AA6="一括償却資産",0,ROUNDDOWN(I5*0.05,0)) -> 0 | M5: ='償却資産明細書(入力)'!J6 -> 0 | N5: ='償却資産明細書(入力)'!K6 -> 0 | O5: =IF(OR(AND(M5>0,F5>=82,G5>=4),AND(M5>0,F5>=83)),VLOOKUP(M5,$A$2:$C$101,3,1),IF(M5>0,VLOOKUP(M5,$A$2:$C$101,2,1),0)) -> 0 | P5: =IF(AND(M5>0,F5>=82,G5>=4),ROUNDUP(1/N5,3),ROUNDDOWN(1/N5,3)) ->  | Q5: =IF(AND(F5>=82,G5>3),IF('償却資産明細書(入力)'!AA6="一括償却資産",ROUNDDOWN(I5/3,0),ROUNDDOWN(I5*O5,0)),IF('償却資産明細書(入力)'!AA6="一括償却資産",ROUNDDOWN(J5/3,0),ROUNDDOWN(J5*O5,0))) -> 0 | R5: =IF(AND(F5>=82,G5>3),IF('償却資産明細書(入力)'!AA6="一括償却資産",ROUNDDOWN(I5/3,0),ROUNDDOWN(I5*P5,0)),IF('償却資産明細書(入力)'!AA6="一括償却資産",ROUNDDOWN(J5/3,0),ROUNDDOWN(J5*P5,0))) ->  | T5: =13-G5 -> 13 | U5: =IF(AND(F5>=82,G5>3),IF('償却資産明細書(入力)'!AA6="一括償却資産",ROUNDUP(I5/3,0),IF(AND(E5=F5,H5>0),ROUNDDOWN(Q5*AF5/12,0),ROUNDDOWN(Q5*T5/12,0))),IF('償却資産明細書(入力)'!AA6="一括償却資産",ROUNDDOWN(J5/3,0),IF(AND(E5=F5,H5>0),ROUNDDOWN(Q5*AF5/12,0),ROUNDDOWN(Q5*T5/12,0)))) -> 0 | V5: =IF(AND(F5>=82,G5>3),IF('償却資産明細書(入力)'!AA6="一括償却資産",ROUNDUP(I5/3,0),IF(AND(E5=F5,H5>0),ROUNDDOWN(R5*AF5/12,0),ROUNDDOWN(R5*T5/12,0))),IF('償却資産明細書(入力)'!AA6="一括償却資産",ROUNDDOWN(J5/3,0),IF(AND(E5=F5,H5>0),ROUNDDOWN(R5*AF5/12,0),ROUNDDOWN(R5*T5/12,0)))) ->  | W5: =IF('償却資産明細書(入力)'!D6="",0,IF(OR(AC5="最終年",AD5="最終年"),Q5*Y5/12,Z5)) -> 0 | X5: =IF(Q5=0,0,IF(K5=0,ROUNDDOWN((I5-U5)/Q5,0)-1,IF(AND(F5>=82,G5>3),ROUNDDOWN((I5-K5-U5)/Q5,0),ROUNDDOWN((I5-L5-U5)/Q5,0)))) -> 0 | Y5: =IF(Q5=0,0,IF(L5=0,0,IF(AND(E5=F5,H5>0),H5-G5+1,IF(H5>0,H5,12)))) -> 0 | Z5: =IF(AND(F5>=82,G5>3),I5-U5-X5*Q5-K5,I5-U5-X5*Q5-L5) -> 0 | AA5: =IF('償却資産明細書(入力)'!AA6="一括償却資産",Z5,IF(Z5<W5,Z5,W5)) -> 0 | AB5: =IF(H5>0,IF(AND(E5=F5,G5>H5),"取得前に廃棄？")) -> FALSE | AC5: =IF(OR(AND(F5>=82,G5>3),F5<=0),"",IF(E5=F5,"初年",IF(AND(E5>F5,E5<=F5+X5),E5-F5+1,IF(E5=F5+X5+1,"最終年",IF(AG5>82,IF(AND(AG5<E5,AG5+5>E5),IF(E5>82,"５年均等償却","９５％償却済み"),IF(E5=F5+X5+1+5,"均等償却最終年",IF(E5>F5+X5+1+5,"償却終了","償却除外"))),IF(AND(82<E5,87>E5),IF(E5>82,"５年均等償却",IF(AG5<E5<=82,"９５％償却済み")),IF(E5=87,"均等償却最終年",IF(E5>87,"償却終了","９５％償却済み")))))))) ->  | AD5: =IF(AND(F5>=82,G5>3),IF(E5=F5,"初年",IF(AND(E5>F5,E5<=F5+X5),E5-F5+1,IF(E5=F5+X5+1,"最終年",IF(E5>F5+X5+1,"償却終了","償却除外")))),"") ->  | AE5: =IF(OR(AC5="初年",AD5="初年"),T5,IF(OR(AC5=E5-F5+1,AD5=E5-F5+1),IF(H5>0,H5,12),IF(OR(AC5="最終年",AD5="最終年"),Y5,IF(AND(F5>=82,G5>3),IF(OR(AC5="償却終了",AD5="償却終了"),0),IF(AC5="５年均等償却",12,IF(AC5="均等償却最終年",12,IF(OR(AC5="償却終了",AD5="償却終了"),0,"－"))))))) -> － | AF5: =IF(OR(F5=0,G5=0),"",IF(OR('償却資産明細書(入力)'!AA6="一括償却資産",AC5="償却終了",AD5="償却終了"),"－",AE5)) ->  | AG5: =IF(OR('収支内訳書（裏）１'!I26="",'収支内訳書（裏）１'!K26="",'収支内訳書（裏）１'!M26="",'収支内訳書（裏）１'!O26=""),0,IF(F5>0,ROUNDDOWN((I5-L5-U5)/Q5,0)+1+F5,0)) -> 0 | AH5: =IF(AC5="償却終了","－",IF(OR(AC5="５年均等償却",AC5="均等償却最終年"),IF(F5>0,E5-AG5,"－"),"－")) -> － | AI5: =IF(F5=0,"－",IF(F5+X5+1<83,IF(E5>=83,IF(E5-82<6,E5-82,"－"),"－"),"－")) -> － | AJ5: =IF(AND(F5>=82,G5>3),"－",L5-ROUNDUP((L5-K5)/5,0)*4-K5) -> 0 | AK5: =IF(OR(AC5="初年",AD5="初年"),U5,IF(OR(AC5=E5-F5+1,AD5=E5-F5+1),ROUNDDOWN(Q5*AE5/12,0),IF(OR(AC5="最終年",AD5="最終年"),AA5,IF(AND(F5>=82,G5>3),IF(OR(AC5="償却終了",AD5="償却終了"),0),IF(AC5="５年均等償却",ROUNDUP((L5-K5)/5,0),IF(AC5="均等償却最終年",L5-ROUNDUP((L5-K5)/5,0)*4-K5,IF(OR(AC5="９５％償却済み",AC5="償却終了",AD5="償却終了"),0,0))))))) -> 0 | AL5: =IF(OR(AC5="初年",AD5="初年"),V5,IF(OR(AC5=E5-F5+1,AD5=E5-F5+1),ROUNDDOWN(R5*AE5/12,0),IF(OR(AC5="最終年",AD5="最終年"),AA5,IF(AND(F5>=82,G5>3),IF(OR(AC5="償却終了",AD5="償却終了"),0),IF(AC5="５年均等償却",ROUNDUP((L5-K5)/5,0),IF(AC5="均等償却最終年",L5-ROUNDUP((L5-K5)/5,0)*4-K5,IF(OR(AC5="９５％償却済み",AC5="償却終了",AD5="償却終了"),0,0))))))) -> 0 | AM5: =IF(OR(AC5="初年",AD5="初年"),0,IF(AND(F5>=82,G5>3),IF(AD5="償却終了","－",Q5*((E5-F5+1)-2)),IF(AC5="９５％償却済み",I5*0.95-U5,IF(AND(AC5="５年均等償却",AG5<82),I5*0.95+(AK5*AI5)-U5,IF(AND(AC5="５年均等償却",AG5>=82),I5*0.95+(AK5*AH5)-U5,IF(AC5="均等償却最終年",I5*0.95+(ROUNDUP((I5*0.05-K5)/5,0)*4-U5),IF(AC5="償却終了","－",Q5*((E5-F5+1)-2)))))))) -> 0 | AN5: =IF(OR(AC5="初年",AD5="初年"),U5,IF(OR(AC5=E5-F5+1,AD5=E5-F5+1),U5+AK5+AM5,IF(OR(AC5="最終年",AD5="最終年"),U5+Q5*X5+BB5,IF(AND(F5>=82,G5>3),IF(OR(AC5="償却終了",AD5="償却終了"),U5+Q5*X5+Z5),IF(AC5="９５％償却済み",U5+Q5*X5+Z5,IF(AND(AC5="５年均等償却",AG5<82),ROUNDUP(U5+Q5*X5+Z5+((L5-K5)/5*AI5),0),IF(AND(AC5="５年均等償却",AG5>=82),ROUNDUP(U5+Q5*X5+Z5+((L5-K5)/5*AH5),0),I5*0.95+ROUNDUP((L5-K5)/5,0)*4+AJ5))))))) -> 0 | AO5: =IF(OR(AC5="初年",AD5="初年"),V5,IF(OR(AC5=E5-F5+1,AD5=E5-F5+1),V5+AL5+AM5,IF(OR(AC5="最終年",AD5="最終年"),V5+R5*X5+BC5,IF(AND(F5>=82,G5>3),IF(OR(AC5="償却終了",AD5="償却終了"),V5+R5*X5+Z5),IF(AC5="９５％償却済み",V5+R5*X5+Z5,IF(AND(AC5="５年均等償却",AG5<82),ROUNDUP(V5+R5*X5+Z5+((L5-K5)/5*AI5),0),IF(AND(AC5="５年均等償却",AG5>=82),ROUNDUP(V5+R5*X5+Z5+((L5-K5)/5*AH5),0),I5*0.95+ROUNDUP((L5-K5)/5,0)*4+AJ5))))))) -> 0 | AP5: =IF(OR('償却資産明細書(入力)'!D6="",'償却資産明細書(入力)'!E6="",'償却資産明細書(入力)'!F6="",'償却資産明細書(入力)'!G6=""),0,IF(ISTEXT(AB5),AB5,I5-AN5)) -> 0 | AQ5: =IF(OR('償却資産明細書(入力)'!D6="",'償却資産明細書(入力)'!E6="",'償却資産明細書(入力)'!F6="",'償却資産明細書(入力)'!G6=""),0,IF(ISTEXT(AB5),AB5,I5-AO5)) -> 0 | AS5: =IF(AND('償却資産明細書(入力)'!AA6="一括償却資産",E5>F5+X5+1),"償却済、記載不要") -> FALSE | AT5: =IF(AND('償却資産明細書(入力)'!E6>0,'償却資産明細書(入力)'!F6<1),"取得月を入力！") -> FALSE | AU5: =IF(AND('償却資産明細書(入力)'!E6>0,'償却資産明細書(入力)'!D6=""),"元号を入力") -> FALSE | AV5: =IF(AND('償却資産明細書(入力)'!G6>0,OR('償却資産明細書(入力)'!E6<1,'償却資産明細書(入力)'!F6<1)),"取得年を入力！") -> FALSE | AW5: =IF(AS5="償却済、記載不要",AS5,IF(AT5="取得月を入力！",AT5,IF(AU5="元号を入力",AU5,IF(AV5="取得年を入力！",AV5,J5)))) -> 0 | AZ5: =IF(OR(AC5="償却除外",AD5="償却除外"),"年分を確認！！") -> FALSE | BA5: =IF('償却資産明細書(入力)'!AA6="",IF(AND('償却資産明細書(入力)'!G6>1,'償却資産明細書(入力)'!J6=0),"耐用年数を入力！")) -> FALSE | BB5: =IF(AZ5="年分を確認！！",AZ5,IF(BA5="耐用年数を入力！",BA5,IF(ISERROR(AK5),0,ROUNDUP(AK5,0)))) -> 0 | BC5: =IF(AZ5="年分を確認！！",AZ5,IF(BA5="耐用年数を入力！",BA5,IF(ISERROR(AL5),0,ROUNDUP(AL5,0)))) -> 0 | BE5: =IF(OR(AND('償却資産明細書(入力)'!U6="",'償却資産明細書(入力)'!G6>1,'償却資産明細書(入力)'!Y6>0),AND('償却資産明細書(入力)'!U6="",'償却資産明細書(入力)'!S6>1)),"事業割合入力") -> FALSE | BF5: =IF('償却資産明細書(入力)'!U6>1,"事業割合エラー") -> FALSE | BG5: =IF(BE5="事業割合入力",BE5,IF(BF5="事業割合エラー",BF5,ROUNDDOWN('償却資産明細書(入力)'!U6*BB5,0))) -> 0 | BH5: =IF(BE5="事業割合入力",BE5,IF(BF5="事業割合エラー",BF5,ROUNDDOWN('償却資産明細書(入力)'!U6*BC5,0))) -> 0 | BI5: =IF('償却資産明細書(入力)'!Y6>0,ROUNDDOWN(AP4*'償却資産明細書(入力)'!U6,0),0) -> 0 | BJ5: =IF(ISTEXT(BG5),BG5,IF(BI5<=0,BG5,0)) -> 0 | BK5: =IF(H5>0,'償却資産明細書(入力)'!Z6*'償却資産明細書(入力)'!U6,0) -> 0 | BL5: =IF(BI5>0,0,AP5) -> 0
